Workbook

Sheet main
L1: v.dairyvip 1.4 | PBW1: 0
K2: Active directory | M2: =INFO("directory") -> U:\projects\current\model\v.dairyvip\_DairyVIP1.4\ | AE2: newname | AF2: 0 | AH2: A - steady state | PBW2: 0
K3: v.DairyVIP directory | M3: U:\projects\current\model\v.dairyvip\_DairyVIP1.4\ | AE3: analysis | AF3: =IF(OR(mainfunction=1,mainfunction=4),1,IF(OR(mainfunction=2,mainfunction=5),2,3)) -> 1 | AH3: A - 3 years, start with MKV file, with replacements | PBW3: 0
... 4 more rows

Sheet misc
B1: MISCELLANEOUS | L1: =milk!L1 -> v.dairyvip 1.4
AD2: =IF(UNITS="kg",1,2.20462262) -> 2.20462262 | AK2: calculate | AL2: 0
H3: General | K3: Culling policy | AD3: LBS | AE3: KG | AH3: JAN | AI3: 1
G4: Units | H4: LBS | K4: OPTIMAL | L4: Policy | AD4: YES | AE4: NO | AH4: FEB | AI4: 2
G5: Annual interest rate | H5: 0 | K5: final.pol | M5: Use previously saved POL file | AD5: =LBM -> 16 | AE5: LBM | AH5: MAR | AI5: 3
G6: First calendar month | H6: JAN | K6: 12 | L6: Maximum lactation number | AD6: =CONCATENATE("Milk yield below which to cull nonpregnant cow (lbs/day)") -> Milk yield below which to cull nonpregnant cow (lbs/day) | AH6: APR | AI6: 4 | AK6: OPTIMAL
G7: Save RPO and DEL files? | H7: NO | K7: 24 | L7: =CONCATENATE("Maximum months open (at least ",AD5+1," months)") -> Maximum months open (at least 17 months) | AD7: =CONCATENATE("Milk yield below which to cull nonpregnant cows (kg/day)") -> Milk yield below which to cull nonpregnant cows (kg/day) | AH7: MAY | AI7: 5 | AK7: KEEPPREG
G8: Save POL file? | H8: NO | K8: 0 | L8: =IF(UNITS="kg",AD7,AD6) -> Milk yield below which to cull nonpregnant cow (lbs/day) | AH8: JUN | AI8: 6 | AK8: KEEPALL
K9: -999 | L9: Margin below which to cull nonpregnant cows ($/day) | AH9: JUL | AI9: 7 | AK9: Use_POL
H10: Other | K10: 0 | L10: Additional loss involuntary culling ($/cow) | AH10: AUG | AI10: 8
G11: Percent fat in milk | H11: 3.5 | K11: 0.8 | L11: Price involuntary culled cows as % of price voluntary culled cows | AH11: SEP | AI11: 9
G12: CV milk yield (std/average x 100) | H12: 12 | AH12: OCT | AI12: 10
G13: Effect of previous days open on milk yield? | H13: YES | K13: Labor | AH13: NOV | AI13: 11
G14: Repeatability of milk yield | H14: 0.6 | K14: 0.5 | L14: Fixed labor cost ($/slot/day) | AH14: DEC | AI14: 12
G15: Price calf at birth ($/calf) | H15: 200 | K15: 10 | L15: Variable labor cost ($/hour)
G16: Fixed other cost ($/slot/day) | H16: 2 | K16: 30 | L16: Extra time first month after calving (minutes/month)
G17: Other variable cost dry cows ($/cow/day) | H17: 1 | K17: 213 | L17: Time per lactating cow (minutes/month)
G18: Other variable cost lactating cows ($/cow/day) | H18: 1 | K18: 91 | L18: Time per dry cow (minutes/month)
H20: Feed | K20: Veterinary cost
G21: =IF(UNITS="kg","Feed cost lactating cows ($/kg DM)","Feed cost lactating cows ($/lbs DM)") -> Feed cost lactating cows ($/lbs DM) | H21: 0.15 | K21: 38 | L21: 1st month in lactation ($/cow)
G22: =IF(UNITS="kg","Feed cost dry cows ($/kg DM)","Feed cost dry cows ($/lbs DM)") -> Feed cost dry cows ($/lbs DM) | H22: 0.1 | K22: 23 | L22: 2nd month in lactation ($/cow)
G23: =IF(UNITS="kg","DMI dry cows (kg/cow/day)","DMI dry cows (lbs/cow/day)") -> DMI dry cows (lbs/cow/day) | H23: 25 | K23: 8 | L23: 3rd month in lactation ($/cow)
K24: 1 | L24: ³ 4th month in lactation ($/cow)

Sheet price
B1: PRICE & DECISIONS | L1: =milk!L1 -> v.dairyvip 1.4
AA2: NO | AU2: pchart | AW2: Hide charts
AA3: YES | AW3: Heifer price
F4: Breed | H4: Enter | J4: Heifer | L4: Cull price | N4: Milk price | AA4: DECIDE | AW4: Cull price
F5: cows? | H5: heifers? | J5: price ($) | L5: =IF(UNITS="kg","($/kg)","($/lbs)") -> ($/lbs) | N5: =IF(UNITS="kg","($/100kg)","($/cwt)") -> ($/cwt) | AW5: Milk price
C6: Year 1 | D6: =AD11 -> 1 | E6: =CHOOSE(AD11,"Jan","Feb","Mar","Apr","May","Jun","Jul","Aug","Sep","Oct","Nov","Dec") -> Jan | F6: DECIDE | H6: DECIDE | J6: 1600 | L6: 0.6 | N6: 18 | O6: =E6 -> Jan | P6: =C6 -> Year 1
D7: 2 | E7: Feb | F7: DECIDE | H7: DECIDE | J7: 1600 | L7: 0.6 | N7: 18 | O7: Feb
D8: 3 | E8: Mar | F8: DECIDE | H8: DECIDE | J8: 1600 | L8: 0.6 | N8: 18 | O8: Mar
D9: 4 | E9: Apr | F9: DECIDE | H9: DECIDE | J9: 1600 | L9: 0.6 | N9: 18 | O9: Apr
D10: 5 | E10: May | F10: DECIDE | H10: DECIDE | J10: 1600 | L10: 0.6 | N10: 18 | O10: May | AD10: =STARTSEA -> JAN | AE10: Jan | AF10: 1
D11: 6 | E11: Jun | F11: DECIDE | H11: DECIDE | J11: 1600 | L11: 0.6 | N11: 18 | O11: Jun | AC11: 1 | AD11: =VLOOKUP(AD10,AE10:AF21,2,FALSE) -> 1 | AE11: Feb | AF11: 2
D12: 7 | E12: Jul | F12: DECIDE | H12: DECIDE | J12: 1600 | L12: 0.6 | N12: 18 | O12: Jul | AC12: 2 | AD12: =IF(AD11<12,AD11+1,1) -> 2 | AE12: Mar | AF12: 3
D13: 8 | E13: Aug | F13: DECIDE | H13: DECIDE | J13: 1600 | L13: 0.6 | N13: 18 | O13: Aug | AC13: 3 | AD13: =IF(AD12<12,AD12+1,1) -> 3 | AE13: Apr | AF13: 4
D14: 9 | E14: Sep | F14: DECIDE | H14: DECIDE | J14: 1600 | L14: 0.6 | N14: 18 | O14: Sep | AC14: 4 | AD14: 4 | AE14: May | AF14: 5
D15: 10 | E15: Oct | F15: DECIDE | H15: DECIDE | J15: 1600 | L15: 0.6 | N15: 18 | O15: Oct | AC15: 5 | AD15: 5 | AE15: Jun | AF15: 6
D16: 11 | E16: Nov | F16: DECIDE | H16: DECIDE | J16: 1600 | L16: 0.6 | N16: 18 | O16: Nov | AC16: 6 | AD16: 6 | AE16: Jul | AF16: 7
D17: 12 | E17: Dec | F17: DECIDE | H17: DECIDE | J17: 1600 | L17: 0.6 | N17: 18 | O17: Dec | AC17: 7 | AD17: 7 | AE17: Aug | AF17: 8
C18: Year 2 | D18: 1 | E18: Jan | F18: DECIDE | H18: DECIDE | J18: 1600 | L18: 0.6 | N18: 18 | O18: Jan | P18: =C18 -> Year 2 | AC18: 8 | AD18: 8 | AE18: Sep | AF18: 9
C19: and later | D19: 2 | E19: Feb | F19: DECIDE | H19: DECIDE | J19: 1600 | L19: 0.6 | N19: 18 | O19: Feb | P19: =C19 -> and later | AC19: 9 | AD19: 9 | AE19: Oct | AF19: 10
D20: 3 | E20: Mar | F20: DECIDE | H20: DECIDE | J20: 1600 | L20: 0.6 | N20: 18 | O20: Mar | AC20: 10 | AD20: 10 | AE20: Nov | AF20: 11
D21: 4 | E21: Apr | F21: DECIDE | H21: DECIDE | J21: 1600 | L21: 0.6 | N21: 18 | O21: Apr | AC21: 11 | AD21: 11 | AE21: Dec | AF21: 12
D22: 5 | E22: May | F22: DECIDE | H22: DECIDE | J22: 1600 | L22: 0.6 | N22: 18 | O22: May | AC22: 12 | AD22: 12
D23: 6 | E23: Jun | F23: DECIDE | H23: DECIDE | J23: 1600 | L23: 0.6 | N23: 18 | O23: Jun | AC23: 13 | AD23: 1
D24: 7 | E24: Jul | F24: DECIDE | H24: DECIDE | J24: 1600 | L24: 0.6 | N24: 18 | O24: Jul | AC24: 14 | AD24: 2
D25: 8 | E25: Aug | F25: DECIDE | H25: DECIDE | J25: 1600 | L25: 0.6 | N25: 18 | O25: Aug | AC25: 15 | AD25: 3
D26: 9 | E26: Sep | F26: DECIDE | H26: DECIDE | J26: 1600 | L26: 0.6 | N26: 18 | O26: Sep | AC26: 16 | AD26: 4
D27: 10 | E27: Oct | F27: DECIDE | H27: DECIDE | J27: 1600 | L27: 0.6 | N27: 18 | O27: Oct | AC27: 17 | AD27: 5
D28: 11 | E28: Nov | F28: DECIDE | H28: DECIDE | J28: 1600 | L28: 0.6 | N28: 18 | O28: Nov | AC28: 18 | AD28: 6
D29: 12 | E29: Dec | F29: DECIDE | H29: DECIDE | J29: 1600 | L29: 0.6 | N29: 18 | O29: Dec | AC29: 19 | AD29: 7
AC30: 20 | AD30: 8
AC31: 21 | AD31: 9
AC32: 22 | AD32: 10
AC33: 23 | AD33: 11
AC34: 24 | AD34: 12

Sheet repro
B1: REPRODUCTION | L1: =milk!L1 -> v.dairyvip 1.4
AF2: rfunction | AG2: 1 | AH2: Repro function | AI2: 1 | AK2: rchart | AM2: Hide charts
J3: Breeding period | N3: Risk of abortion (%) per month of pregnancy | AH3: =ROUND(VAR(CONCRANGE,HEATRANGE)+AVERAGE(CONCRANGE,HEATRANGE),6) -> 0.468318 | AI3: =IF(RFUNCTION=1,ROUND(AI2,6),ROUND(AI2,6)) -> 1 | AM3: Probability of conception
I4: first breeding month | J4: 3 | K4: 3 | L4: 3 | O4: 2 | P4: 0.035 | Q4: 0.003 | R4: 6 | AM4: Probability of service
I5: last breeding month | J5: 16 | K5: =misc!K7-9+1 -> 16 | O5: 3 | P5: 0.025 | Q5: 0.001 | R5: 7 | AM5: Pregnancy rate
I6: minutes labor / cow | J6: 0 | O6: 4 | P6: 0.015 | Q6: 0.001 | R6: 8 | AM6: Breeding cost
I7: cost per breeding ($) | J7: 20 | O7: 5 | P7: 0.005
Q8: =1-(1-P4)*(1-P5)*(1-P6)*(1-P7)*(1-Q4)*(1-Q5)*(1-Q6)*(1-Q7) -> 0.08247612257 | R8: total risk of abortion
G10: Relative risk of conception per lactation number
G11: 1 | H11: 0.9 | I11: 0.88 | J11: 0.86 | K11: 0.84 | L11: 0.82 | M11: 0.8 | N11: 0.78 | O11: 0.76 | P11: 0.74 | Q11: 0.72 | R11: 0.7
G12: 1 | H12: 2 | I12: 3 | J12: 4 | K12: 5 | L12: 6 | M12: 7 | N12: 8 | O12: 9 | P12: 10 | Q12: 11 | R12: 12 | S12: lactatation number | AG12: =1-$D$17 -> 0
G14: Probability of conception | AG14: functionconc
D15: =update(AH3,AI2,"Repro function") -> Repro function | F15: month | G15: Jan | H15: Feb | I15: Mar | J15: Apr | K15: May | L15: Jun | M15: Jul | N15: Aug | O15: Sep | P15: Oct | Q15: Nov | R15: Dec | S15: day | T15: Unadjusted | AF15: mim | AG15: Jan | AH15: Feb | AI15: Mar | AJ15: Apr | AK15: May | AL15: Jun | AM15: Jul | AN15: Aug | AO15: Sep | AP15: Oct | AQ15: Nov | AR15: Dec
C16: +/- (%) | D16: 0.05 | F16: 3 | G16: 0.388 | H16: 0.388 | I16: 0.388 | J16: 0.388 | K16: 0.388 | L16: 0.388 | M16: 0.388 | N16: 0.388 | O16: 0.388 | P16: 0.388 | Q16: 0.388 | R16: 0.388 | S16: 60.8 | T16: 0.338 | AF16: 1 | AG16: =$T16*$D$18*$D$17+$T16*$D$30*(1-$D$17)+$D$16 -> 0.388 | AH16: =$T16*$D$19*$D$17+$T16*$D$30*(1-$D$17)+$D$16 -> 0.388 | AI16: =$T16*$D$20*$D$17+$T16*$D$30*(1-$D$17)+$D$16 -> 0.388 | AJ16: =$T16*$D$21*$D$17+$T16*$D$30*(1-$D$17)+$D$16 -> 0.388 | AK16: =$T16*$D$22*$D$17+$T16*$D$30*(1-$D$17)+$D$16 -> 0.388 | AL16: =$T16*$D$23*$D$17+$T16*$D$30*(1-$D$17)+$D$16 -> 0.388 | AM16: =$T16*$D$24*$D$17+$T16*$D$30*(1-$D$17)+$D$16 -> 0.388 | AN16: =$T16*$D$25*$D$17+$T16*$D$30*(1-$D$17)+$D$16 -> 0.388 | AO16: =$T16*$D$26*$D$17+$T16*$D$30*(1-$D$17)+$D$16 -> 0.388 | AP16: =$T16*$D$27*$D$17+$T16*$D$30*(1-$D$17)+$D$16 -> 0.388 | AQ16: =$T16*$D$28*$D$17+$T16*$D$30*(1-$D$17)+$D$16 -> 0.388 | AR16: =$T16*$D$29*$D$17+$T16*$D$30*(1-$D$17)+$D$16 -> 0.388
C17: Seasonality | D17: 1 | F17: 4 | G17: 0.42 | H17: 0.42 | I17: 0.42 | J17: 0.42 | K17: 0.42 | L17: 0.42 | M17: 0.42 | N17: 0.42 | O17: 0.42 | P17: 0.42 | Q17: 0.42 | R17: 0.42 | S17: 91.2 | T17: 0.37 | AF17: 2 | AG17: =$T17*$D$18*$D$17+$T17*$D$30*(1-$D$17)+$D$16 -> 0.42 | AH17: 0.42 | AI17: 0.42 | AJ17: 0.42 | AK17: 0.42 | AL17: 0.42 | AM17: 0.42 | AN17: 0.42 | AO17: 0.42 | AP17: 0.42 | AQ17: 0.42 | AR17: 0.42
C18: Jan | D18: 1 | F18: 5 | G18: 0.417 | H18: 0.417 | I18: 0.417 | J18: 0.417 | K18: 0.417 | L18: 0.417 | M18: 0.417 | N18: 0.417 | O18: 0.417 | P18: 0.417 | Q18: 0.417 | R18: 0.417 | S18: 121.6 | T18: 0.367 | AF18: 3 | AG18: 0.417 | AH18: 0.417 | AI18: 0.417 | AJ18: 0.417 | AK18: 0.417 | AL18: 0.417 | AM18: 0.417 | AN18: 0.417 | AO18: 0.417 | AP18: 0.417 | AQ18: 0.417 | AR18: 0.417
C19: Feb | D19: 1 | F19: 6 | G19: 0.414 | H19: 0.414 | I19: 0.414 | J19: 0.414 | K19: 0.414 | L19: 0.414 | M19: 0.414 | N19: 0.414 | O19: 0.414 | P19: 0.414 | Q19: 0.414 | R19: 0.414 | S19: 152 | T19: 0.364 | AF19: 4 | AG19: 0.414 | AH19: 0.414 | AI19: 0.414 | AJ19: 0.414 | AK19: 0.414 | AL19: 0.414 | AM19: 0.414 | AN19: 0.414 | AO19: 0.414 | AP19: 0.414 | AQ19: 0.414 | AR19: 0.414
C20: Mar | D20: 1 | F20: 7 | G20: 0.408 | H20: 0.408 | I20: 0.408 | J20: 0.408 | K20: 0.408 | L20: 0.408 | M20: 0.408 | N20: 0.408 | O20: 0.408 | P20: 0.408 | Q20: 0.408 | R20: 0.408 | S20: 182.4 | T20: 0.358 | AF20: 5 | AG20: 0.408 | AH20: 0.408 | AI20: 0.408 | AJ20: 0.408 | AK20: 0.408 | AL20: 0.408 | AM20: 0.408 | AN20: 0.408 | AO20: 0.408 | AP20: 0.408 | AQ20: 0.408 | AR20: 0.408
C21: Apr | D21: 1 | F21: 8 | G21: 0.4 | H21: 0.4 | I21: 0.4 | J21: 0.4 | K21: 0.4 | L21: 0.4 | M21: 0.4 | N21: 0.4 | O21: 0.4 | P21: 0.4 | Q21: 0.4 | R21: 0.4 | S21: 212.8 | T21: 0.35 | AF21: 6 | AG21: 0.4 | AH21: 0.4 | AI21: 0.4 | AJ21: 0.4 | AK21: 0.4 | AL21: 0.4 | AM21: 0.4 | AN21: 0.4 | AO21: 0.4 | AP21: 0.4 | AQ21: 0.4 | AR21: 0.4
C22: May | D22: 1 | F22: 9 | G22: 0.39 | H22: 0.39 | I22: 0.39 | J22: 0.39 | K22: 0.39 | L22: 0.39 | M22: 0.39 | N22: 0.39 | O22: 0.39 | P22: 0.39 | Q22: 0.39 | R22: 0.39 | S22: 243.2 | T22: 0.34 | AF22: 7 | AG22: 0.39 | AH22: 0.39 | AI22: 0.39 | AJ22: 0.39 | AK22: 0.39 | AL22: 0.39 | AM22: 0.39 | AN22: 0.39 | AO22: 0.39 | AP22: 0.39 | AQ22: 0.39 | AR22: 0.39
C23: Jun | D23: 1 | F23: 10 | G23: 0.38 | H23: 0.38 | I23: 0.38 | J23: 0.38 | K23: 0.38 | L23: 0.38 | M23: 0.38 | N23: 0.38 | O23: 0.38 | P23: 0.38 | Q23: 0.38 | R23: 0.38 | S23: 273.6 | T23: 0.33 | AF23: 8 | AG23: 0.38 | AH23: 0.38 | AI23: 0.38 | AJ23: 0.38 | AK23: 0.38 | AL23: 0.38 | AM23: 0.38 | AN23: 0.38 | AO23: 0.38 | AP23: 0.38 | AQ23: 0.38 | AR23: 0.38
C24: Jul | D24: 1 | F24: 11 | G24: 0.365 | H24: 0.365 | I24: 0.365 | J24: 0.365 | K24: 0.365 | L24: 0.365 | M24: 0.365 | N24: 0.365 | O24: 0.365 | P24: 0.365 | Q24: 0.365 | R24: 0.365 | S24: 304 | T24: 0.315 | AF24: 9 | AG24: 0.365 | AH24: 0.365 | AI24: 0.365 | AJ24: 0.365 | AK24: 0.365 | AL24: 0.365 | AM24: 0.365 | AN24: 0.365 | AO24: 0.365 | AP24: 0.365 | AQ24: 0.365 | AR24: 0.365
C25: Aug | D25: 1 | F25: 12 | G25: 0.35 | H25: 0.35 | I25: 0.35 | J25: 0.35 | K25: 0.35 | L25: 0.35 | M25: 0.35 | N25: 0.35 | O25: 0.35 | P25: 0.35 | Q25: 0.35 | R25: 0.35 | S25: 334.4 | T25: 0.3 | AF25: 10 | AG25: 0.35 | AH25: 0.35 | AI25: 0.35 | AJ25: 0.35 | AK25: 0.35 | AL25: 0.35 | AM25: 0.35 | AN25: 0.35 | AO25: 0.35 | AP25: 0.35 | AQ25: 0.35 | AR25: 0.35
C26: Sep | D26: 1 | F26: 13 | G26: 0.334 | H26: 0.334 | I26: 0.334 | J26: 0.334 | K26: 0.334 | L26: 0.334 | M26: 0.334 | N26: 0.334 | O26: 0.334 | P26: 0.334 | Q26: 0.334 | R26: 0.334 | S26: 364.8 | T26: 0.284 | AF26: 11 | AG26: 0.334 | AH26: 0.334 | AI26: 0.334 | AJ26: 0.334 | AK26: 0.334 | AL26: 0.334 | AM26: 0.334 | AN26: 0.334 | AO26: 0.334 | AP26: 0.334 | AQ26: 0.334 | AR26: 0.334
C27: Oct | D27: 1 | F27: 14 | G27: 0.315 | H27: 0.315 | I27: 0.315 | J27: 0.315 | K27: 0.315 | L27: 0.315 | M27: 0.315 | N27: 0.315 | O27: 0.315 | P27: 0.315 | Q27: 0.315 | R27: 0.315 | S27: 395.2 | T27: 0.265 | AF27: 12 | AG27: 0.315 | AH27: 0.315 | AI27: 0.315 | AJ27: 0.315 | AK27: 0.315 | AL27: 0.315 | AM27: 0.315 | AN27: 0.315 | AO27: 0.315 | AP27: 0.315 | AQ27: 0.315 | AR27: 0.315
C28: Nov | D28: 1 | F28: 15 | G28: 0.293 | H28: 0.293 | I28: 0.293 | J28: 0.293 | K28: 0.293 | L28: 0.293 | M28: 0.293 | N28: 0.293 | O28: 0.293 | P28: 0.293 | Q28: 0.293 | R28: 0.293 | S28: 425.6 | T28: 0.243 | AF28: 13 | AG28: 0.293 | AH28: 0.293 | AI28: 0.293 | AJ28: 0.293 | AK28: 0.293 | AL28: 0.293 | AM28: 0.293 | AN28: 0.293 | AO28: 0.293 | AP28: 0.293 | AQ28: 0.293 | AR28: 0.293
C29: Dec | D29: 1 | F29: 16 | G29: 0.277 | H29: 0.277 | I29: 0.277 | J29: 0.277 | K29: 0.277 | L29: 0.277 | M29: 0.277 | N29: 0.277 | O29: 0.277 | P29: 0.277 | Q29: 0.277 | R29: 0.277 | S29: 456 | T29: 0.227 | AF29: 14 | AG29: 0.277 | AH29: 0.277 | AI29: 0.277 | AJ29: 0.277 | AK29: 0.277 | AL29: 0.277 | AM29: 0.277 | AN29: 0.277 | AO29: 0.277 | AP29: 0.277 | AQ29: 0.277 | AR29: 0.277
D30: =AVERAGE(D18:D29) -> 1
G32: Probability of service per 21 days | AG32: functionheat
F33: month | G33: Jan | H33: Feb | I33: Mar | J33: Apr | K33: May | L33: Jun | M33: Jul | N33: Aug | O33: Sep | P33: Oct | Q33: Nov | R33: Dec | S33: day | AF33: mim | AG33: Jan | AH33: Feb | AI33: Mar | AJ33: Apr | AK33: May | AL33: Jun | AM33: Jul | AN33: Aug | AO33: Sep | AP33: Oct | AQ33: Nov | AR33: Dec
C34: +/- (%) | D34: 0 | F34: 3 | G34: 0.55 | H34: 0.55 | I34: 0.55 | J34: 0.55 | K34: 0.55 | L34: 0.55 | M34: 0.55 | N34: 0.55 | O34: 0.55 | P34: 0.55 | Q34: 0.55 | R34: 0.55 | S34: 60.8 | AF34: 1 | AG34: =$D$36*$D$35+$D$48*(1-$D$35)+$D$34 -> 0.55 | AH34: =$D$37*$D$35+$D$48*(1-$D$35)+$D$34 -> 0.55 | AI34: =$D$38*$D$35+$D$48*(1-$D$35)+$D$34 -> 0.55 | AJ34: =$D$39*$D$35+$D$48*(1-$D$35)+$D$34 -> 0.55 | AK34: =$D$40*$D$35+$D$48*(1-$D$35)+$D$34 -> 0.55 | AL34: =$D$41*$D$35+$D$48*(1-$D$35)+$D$34 -> 0.55 | AM34: =$D$42*$D$35+$D$48*(1-$D$35)+$D$34 -> 0.55 | AN34: =$D$43*$D$35+$D$48*(1-$D$35)+$D$34 -> 0.55 | AO34: =$D$44*$D$35+$D$48*(1-$D$35)+$D$34 -> 0.55 | AP34: =$D$45*$D$35+$D$48*(1-$D$35)+$D$34 -> 0.55 | AQ34: =$D$46*$D$35+$D$48*(1-$D$35)+$D$34 -> 0.55 | AR34: =$D$47*$D$35+$D$48*(1-$D$35)+$D$34 -> 0.55
C35: seasonality | D35: 1 | F35: 4 | G35: 0.55 | H35: 0.55 | I35: 0.55 | J35: 0.55 | K35: 0.55 | L35: 0.55 | M35: 0.55 | N35: 0.55 | O35: 0.55 | P35: 0.55 | Q35: 0.55 | R35: 0.55 | S35: 91.2 | AF35: 2 | AG35: =$D$36*$D$35+$D$48*(1-$D$35)+$D$34 -> 0.55 | AH35: =$D$37*$D$35+$D$48*(1-$D$35)+$D$34 -> 0.55 | AI35: =$D$38*$D$35+$D$48*(1-$D$35)+$D$34 -> 0.55 | AJ35: =$D$39*$D$35+$D$48*(1-$D$35)+$D$34 -> 0.55 | AK35: =$D$40*$D$35+$D$48*(1-$D$35)+$D$34 -> 0.55 | AL35: =$D$41*$D$35+$D$48*(1-$D$35)+$D$34 -> 0.55 | AM35: =$D$42*$D$35+$D$48*(1-$D$35)+$D$34 -> 0.55 | AN35: =$D$43*$D$35+$D$48*(1-$D$35)+$D$34 -> 0.55 | AO35: =$D$44*$D$35+$D$48*(1-$D$35)+$D$34 -> 0.55 | AP35: =$D$45*$D$35+$D$48*(1-$D$35)+$D$34 -> 0.55 | AQ35: =$D$46*$D$35+$D$48*(1-$D$35)+$D$34 -> 0.55 | AR35: =$D$47*$D$35+$D$48*(1-$D$35)+$D$34 -> 0.55
C36: Jan | D36: 0.55 | F36: 5 | G36: 0.55 | H36: 0.55 | I36: 0.55 | J36: 0.55 | K36: 0.55 | L36: 0.55 | M36: 0.55 | N36: 0.55 | O36: 0.55 | P36: 0.55 | Q36: 0.55 | R36: 0.55 | S36: 121.6 | AF36: 3 | AG36: 0.55 | AH36: 0.55 | AI36: 0.55 | AJ36: 0.55 | AK36: 0.55 | AL36: 0.55 | AM36: 0.55 | AN36: 0.55 | AO36: 0.55 | AP36: 0.55 | AQ36: 0.55 | AR36: 0.55
C37: Feb | D37: 0.55 | F37: 6 | G37: 0.55 | H37: 0.55 | I37: 0.55 | J37: 0.55 | K37: 0.55 | L37: 0.55 | M37: 0.55 | N37: 0.55 | O37: 0.55 | P37: 0.55 | Q37: 0.55 | R37: 0.55 | S37: 152 | AF37: 4 | AG37: 0.55 | AH37: 0.55 | AI37: 0.55 | AJ37: 0.55 | AK37: 0.55 | AL37: 0.55 | AM37: 0.55 | AN37: 0.55 | AO37: 0.55 | AP37: 0.55 | AQ37: 0.55 | AR37: 0.55
C38: Mar | D38: 0.55 | F38: 7 | G38: 0.55 | H38: 0.55 | I38: 0.55 | J38: 0.55 | K38: 0.55 | L38: 0.55 | M38: 0.55 | N38: 0.55 | O38: 0.55 | P38: 0.55 | Q38: 0.55 | R38: 0.55 | S38: 182.4 | AF38: 5 | AG38: 0.55 | AH38: 0.55 | AI38: 0.55 | AJ38: 0.55 | AK38: 0.55 | AL38: 0.55 | AM38: 0.55 | AN38: 0.55 | AO38: 0.55 | AP38: 0.55 | AQ38: 0.55 | AR38: 0.55
C39: Apr | D39: 0.55 | F39: 8 | G39: 0.55 | H39: 0.55 | I39: 0.55 | J39: 0.55 | K39: 0.55 | L39: 0.55 | M39: 0.55 | N39: 0.55 | O39: 0.55 | P39: 0.55 | Q39: 0.55 | R39: 0.55 | S39: 212.8 | AF39: 6 | AG39: 0.55 | AH39: 0.55 | AI39: 0.55 | AJ39: 0.55 | AK39: 0.55 | AL39: 0.55 | AM39: 0.55 | AN39: 0.55 | AO39: 0.55 | AP39: 0.55 | AQ39: 0.55 | AR39: 0.55
C40: May | D40: 0.55 | F40: 9 | G40: 0.55 | H40: 0.55 | I40: 0.55 | J40: 0.55 | K40: 0.55 | L40: 0.55 | M40: 0.55 | N40: 0.55 | O40: 0.55 | P40: 0.55 | Q40: 0.55 | R40: 0.55 | S40: 243.2 | AF40: 7 | AG40: 0.55 | AH40: 0.55 | AI40: 0.55 | AJ40: 0.55 | AK40: 0.55 | AL40: 0.55 | AM40: 0.55 | AN40: 0.55 | AO40: 0.55 | AP40: 0.55 | AQ40: 0.55 | AR40: 0.55
C41: Jun | D41: 0.55 | F41: 10 | G41: 0.55 | H41: 0.55 | I41: 0.55 | J41: 0.55 | K41: 0.55 | L41: 0.55 | M41: 0.55 | N41: 0.55 | O41: 0.55 | P41: 0.55 | Q41: 0.55 | R41: 0.55 | S41: 273.6 | AF41: 8 | AG41: 0.55 | AH41: 0.55 | AI41: 0.55 | AJ41: 0.55 | AK41: 0.55 | AL41: 0.55 | AM41: 0.55 | AN41: 0.55 | AO41: 0.55 | AP41: 0.55 | AQ41: 0.55 | AR41: 0.55
C42: Jul | D42: 0.55 | F42: 11 | G42: 0.55 | H42: 0.55 | I42: 0.55 | J42: 0.55 | K42: 0.55 | L42: 0.55 | M42: 0.55 | N42: 0.55 | O42: 0.55 | P42: 0.55 | Q42: 0.55 | R42: 0.55 | S42: 304 | AF42: 9 | AG42: 0.55 | AH42: 0.55 | AI42: 0.55 | AJ42: 0.55 | AK42: 0.55 | AL42: 0.55 | AM42: 0.55 | AN42: 0.55 | AO42: 0.55 | AP42: 0.55 | AQ42: 0.55 | AR42: 0.55
C43: Aug | D43: 0.55 | F43: 12 | G43: 0.55 | H43: 0.55 | I43: 0.55 | J43: 0.55 | K43: 0.55 | L43: 0.55 | M43: 0.55 | N43: 0.55 | O43: 0.55 | P43: 0.55 | Q43: 0.55 | R43: 0.55 | S43: 334.4 | AF43: 10 | AG43: 0.55 | AH43: 0.55 | AI43: 0.55 | AJ43: 0.55 | AK43: 0.55 | AL43: 0.55 | AM43: 0.55 | AN43: 0.55 | AO43: 0.55 | AP43: 0.55 | AQ43: 0.55 | AR43: 0.55
C44: Sep | D44: 0.55 | F44: 13 | G44: 0.55 | H44: 0.55 | I44: 0.55 | J44: 0.55 | K44: 0.55 | L44: 0.55 | M44: 0.55 | N44: 0.55 | O44: 0.55 | P44: 0.55 | Q44: 0.55 | R44: 0.55 | S44: 364.8 | AF44: 11 | AG44: 0.55 | AH44: 0.55 | AI44: 0.55 | AJ44: 0.55 | AK44: 0.55 | AL44: 0.55 | AM44: 0.55 | AN44: 0.55 | AO44: 0.55 | AP44: 0.55 | AQ44: 0.55 | AR44: 0.55
C45: Oct | D45: 0.55 | F45: 14 | G45: 0.55 | H45: 0.55 | I45: 0.55 | J45: 0.55 | K45: 0.55 | L45: 0.55 | M45: 0.55 | N45: 0.55 | O45: 0.55 | P45: 0.55 | Q45: 0.55 | R45: 0.55 | S45: 395.2 | AF45: 12 | AG45: 0.55 | AH45: 0.55 | AI45: 0.55 | AJ45: 0.55 | AK45: 0.55 | AL45: 0.55 | AM45: 0.55 | AN45: 0.55 | AO45: 0.55 | AP45: 0.55 | AQ45: 0.55 | AR45: 0.55
C46: Nov | D46: 0.55 | F46: 15 | G46: 0.55 | H46: 0.55 | I46: 0.55 | J46: 0.55 | K46: 0.55 | L46: 0.55 | M46: 0.55 | N46: 0.55 | O46: 0.55 | P46: 0.55 | Q46: 0.55 | R46: 0.55 | S46: 425.6 | AF46: 13 | AG46: 0.55 | AH46: 0.55 | AI46: 0.55 | AJ46: 0.55 | AK46: 0.55 | AL46: 0.55 | AM46: 0.55 | AN46: 0.55 | AO46: 0.55 | AP46: 0.55 | AQ46: 0.55 | AR46: 0.55
C47: Dec | D47: 0.55 | F47: 16 | G47: 0.55 | H47: 0.55 | I47: 0.55 | J47: 0.55 | K47: 0.55 | L47: 0.55 | M47: 0.55 | N47: 0.55 | O47: 0.55 | P47: 0.55 | Q47: 0.55 | R47: 0.55 | S47: 456 | AF47: 14 | AG47: 0.55 | AH47: 0.55 | AI47: 0.55 | AJ47: 0.55 | AK47: 0.55 | AL47: 0.55 | AM47: 0.55 | AN47: 0.55 | AO47: 0.55 | AP47: 0.55 | AQ47: 0.55 | AR47: 0.55
D48: =AVERAGE(D36:D47) -> 0.55
G50: Additional breeding cost per month
F51: month | G51: Jan | H51: Feb | I51: Mar | J51: Apr | K51: May | L51: Jun | M51: Jul | N51: Aug | O51: Sep | P51: Oct | Q51: Nov | R51: Dec | S51: day
F52: 3 | G52: 0 | H52: 0 | I52: 0 | J52: 0 | K52: 0 | L52: 0 | M52: 0 | N52: 0 | O52: 0 | P52: 0 | Q52: 0 | R52: 0 | S52: 60.8
F53: 4 | G53: 0 | H53: 0 | I53: 0 | J53: 0 | K53: 0 | L53: 0 | M53: 0 | N53: 0 | O53: 0 | P53: 0 | Q53: 0 | R53: 0 | S53: 91.2
F54: 5 | G54: 0 | H54: 0 | I54: 0 | J54: 0 | K54: 0 | L54: 0 | M54: 0 | N54: 0 | O54: 0 | P54: 0 | Q54: 0 | R54: 0 | S54: 121.6
F55: 6 | G55: 0 | H55: 0 | I55: 0 | J55: 0 | K55: 0 | L55: 0 | M55: 0 | N55: 0 | O55: 0 | P55: 0 | Q55: 0 | R55: 0 | S55: 152
F56: 7 | G56: 0 | H56: 0 | I56: 0 | J56: 0 | K56: 0 | L56: 0 | M56: 0 | N56: 0 | O56: 0 | P56: 0 | Q56: 0 | R56: 0 | S56: 182.4
F57: 8 | G57: 0 | H57: 0 | I57: 0 | J57: 0 | K57: 0 | L57: 0 | M57: 0 | N57: 0 | O57: 0 | P57: 0 | Q57: 0 | R57: 0 | S57: 212.8
F58: 9 | G58: 0 | H58: 0 | I58: 0 | J58: 0 | K58: 0 | L58: 0 | M58: 0 | N58: 0 | O58: 0 | P58: 0 | Q58: 0 | R58: 0 | S58: 243.2
F59: 10 | G59: 0 | H59: 0 | I59: 0 | J59: 0 | K59: 0 | L59: 0 | M59: 0 | N59: 0 | O59: 0 | P59: 0 | Q59: 0 | R59: 0 | S59: 273.6
F60: 11 | G60: 0 | H60: 0 | I60: 0 | J60: 0 | K60: 0 | L60: 0 | M60: 0 | N60: 0 | O60: 0 | P60: 0 | Q60: 0 | R60: 0 | S60: 304
F61: 12 | G61: 0 | H61: 0 | I61: 0 | J61: 0 | K61: 0 | L61: 0 | M61: 0 | N61: 0 | O61: 0 | P61: 0 | Q61: 0 | R61: 0 | S61: 334.4
F62: 13 | G62: 0 | H62: 0 | I62: 0 | J62: 0 | K62: 0 | L62: 0 | M62: 0 | N62: 0 | O62: 0 | P62: 0 | Q62: 0 | R62: 0 | S62: 364.8
F63: 14 | G63: 0 | H63: 0 | I63: 0 | J63: 0 | K63: 0 | L63: 0 | M63: 0 | N63: 0 | O63: 0 | P63: 0 | Q63: 0 | R63: 0 | S63: 395.2
F64: 15 | G64: 0 | H64: 0 | I64: 0 | J64: 0 | K64: 0 | L64: 0 | M64: 0 | N64: 0 | O64: 0 | P64: 0 | Q64: 0 | R64: 0 | S64: 425.6
F65: 16 | G65: 0 | H65: 0 | I65: 0 | J65: 0 | K65: 0 | L65: 0 | M65: 0 | N65: 0 | O65: 0 | P65: 0 | Q65: 0 | R65: 0 | S65: 456
G68: Jan | H68: Feb | I68: Mar | J68: Apr | K68: May | L68: Jun | M68: Jul | N68: Aug | O68: Sep | P68: Oct | Q68: Nov | R68: Dec | S68: xrepro
G69: =G16 -> 0.388 | H69: 0.388 | I69: 0.388 | J69: 0.388 | K69: 0.388 | L69: 0.388 | M69: 0.388 | N69: 0.388 | O69: 0.388 | P69: 0.388 | Q69: 0.388 | R69: 0.388 | S69: chartconc
G70: =G34 -> 0.55 | H70: 0.55 | I70: 0.55 | J70: 0.55 | K70: 0.55 | L70: 0.55 | M70: 0.55 | N70: 0.55 | O70: 0.55 | P70: 0.55 | Q70: 0.55 | R70: 0.55 | S70: chartheat
G71: =G16*G34 -> 0.2134 | H71: 0.2134 | I71: 0.2134 | J71: 0.2134 | K71: 0.2134 | L71: 0.2134 | M71: 0.2134 | N71: 0.2134 | O71: 0.2134 | P71: 0.2134 | Q71: 0.2134 | R71: 0.2134 | S71: chartpreg
F76: 3 | G76: =G16*G34 -> 0.2134 | H76: 0.2134 | I76: 0.2134 | J76: 0.2134 | K76: 0.2134 | L76: 0.2134 | M76: 0.2134 | N76: 0.2134 | O76: 0.2134 | P76: 0.2134 | Q76: 0.2134 | R76: 0.2134
F77: 4 | G77: =G17*G35 -> 0.231 | H77: 0.231 | I77: 0.231 | J77: 0.231 | K77: 0.231 | L77: 0.231 | M77: 0.231 | N77: 0.231 | O77: 0.231 | P77: 0.231 | Q77: 0.231 | R77: 0.231
F78: 5 | G78: =G18*G36 -> 0.22935 | H78: 0.22935 | I78: 0.22935 | J78: 0.22935 | K78: 0.22935 | L78: 0.22935 | M78: 0.22935 | N78: 0.22935 | O78: 0.22935 | P78: 0.22935 | Q78: 0.22935 | R78: 0.22935
F79: 6 | G79: =G19*G37 -> 0.2277 | H79: 0.2277 | I79: 0.2277 | J79: 0.2277 | K79: 0.2277 | L79: 0.2277 | M79: 0.2277 | N79: 0.2277 | O79: 0.2277 | P79: 0.2277 | Q79: 0.2277 | R79: 0.2277
F80: 7 | G80: =G20*G38 -> 0.2244 | H80: 0.2244 | I80: 0.2244 | J80: 0.2244 | K80: 0.2244 | L80: 0.2244 | M80: 0.2244 | N80: 0.2244 | O80: 0.2244 | P80: 0.2244 | Q80: 0.2244 | R80: 0.2244
F81: 8 | G81: =G21*G39 -> 0.22 | H81: 0.22 | I81: 0.22 | J81: 0.22 | K81: 0.22 | L81: 0.22 | M81: 0.22 | N81: 0.22 | O81: 0.22 | P81: 0.22 | Q81: 0.22 | R81: 0.22
F82: 9 | G82: =G22*G40 -> 0.2145 | H82: 0.2145 | I82: 0.2145 | J82: 0.2145 | K82: 0.2145 | L82: 0.2145 | M82: 0.2145 | N82: 0.2145 | O82: 0.2145 | P82: 0.2145 | Q82: 0.2145 | R82: 0.2145
F83: 10 | G83: =G23*G41 -> 0.209 | H83: 0.209 | I83: 0.209 | J83: 0.209 | K83: 0.209 | L83: 0.209 | M83: 0.209 | N83: 0.209 | O83: 0.209 | P83: 0.209 | Q83: 0.209 | R83: 0.209
F84: 11 | G84: =G24*G42 -> 0.20075 | H84: 0.20075 | I84: 0.20075 | J84: 0.20075 | K84: 0.20075 | L84: 0.20075 | M84: 0.20075 | N84: 0.20075 | O84: 0.20075 | P84: 0.20075 | Q84: 0.20075 | R84: 0.20075
F85: 12 | G85: =G25*G43 -> 0.1925 | H85: 0.1925 | I85: 0.1925 | J85: 0.1925 | K85: 0.1925 | L85: 0.1925 | M85: 0.1925 | N85: 0.1925 | O85: 0.1925 | P85: 0.1925 | Q85: 0.1925 | R85: 0.1925
F86: 13 | G86: =G26*G44 -> 0.1837 | H86: 0.1837 | I86: 0.1837 | J86: 0.1837 | K86: 0.1837 | L86: 0.1837 | M86: 0.1837 | N86: 0.1837 | O86: 0.1837 | P86: 0.1837 | Q86: 0.1837 | R86: 0.1837
F87: 14 | G87: =G27*G45 -> 0.17325 | H87: 0.17325 | I87: 0.17325 | J87: 0.17325 | K87: 0.17325 | L87: 0.17325 | M87: 0.17325 | N87: 0.17325 | O87: 0.17325 | P87: 0.17325 | Q87: 0.17325 | R87: 0.17325
F88: 15 | G88: =G28*G46 -> 0.16115 | H88: 0.16115 | I88: 0.16115 | J88: 0.16115 | K88: 0.16115 | L88: 0.16115 | M88: 0.16115 | N88: 0.16115 | O88: 0.16115 | P88: 0.16115 | Q88: 0.16115 | R88: 0.16115
F89: 16 | G89: =G29*G47 -> 0.15235 | H89: 0.15235 | I89: 0.15235 | J89: 0.15235 | K89: 0.15235 | L89: 0.15235 | M89: 0.15235 | N89: 0.15235 | O89: 0.15235 | P89: 0.15235 | Q89: 0.15235 | R89: 0.15235

Sheet milk
B1: MILK YIELD | L1: =main!$L$1 -> v.dairyvip 1.4 | WB1: -335544.32
BD2: mfunction | BE2: 1 | BG2: Wood's curves | BH2: =ROUND(VAR(woodscurves1,woodscurves2,woodscurves3)+AVERAGE(woodscurves1,woodscurves2,woodscurves3),2) -> 798.65 | CA2: peak | CB2: peak | CC2: peak | CD2: 305 milk | CE2: 305 milk | CF2: 305 milk | CG2: dim | CH2: dim | CI2: dim | CJ2: total | CL2: See Wood[99] for derivatives of Wood's function | WB2: -335544.32
G3: Milk yield pregnant cow relative to non-pregnant cow | BG3: Fit curves | BH3: =ROUND(VAR(peakmilkcurves1,peakmilkcurves2,peakmilkcurves3)+AVERAGE(peakmilkcurves1,peakmilkcurves2,peakmilkcurves3),2) -> 157.3 | CA3: goal | CB3: actual | CC3: error | CD3: goal | CE3: actual | CF3: error | CG3: goal | CH3: actual | CI3: error | CJ3: error | CK3: a | CL3: b | CM3: c | WB3: -335544.32
G4: 1 | H4: 1 | I4: 1 | J4: 1 | K4: 0.95 | L4: 0.9 | M4: 0.85 | N4: 0 | O4: 0 | BG4: Florida curves | BH4: =ROUND(VAR(floridacurves1,floridacurves2,floridacurves3)+AVERAGE(floridacurves1,floridacurves2,floridacurves3),2) -> 413.09 | BY4: woods1 | BZ4: lact 1 | CA4: =D43 -> 36 | CB4: =MAX(BZ15:BZ38) -> 35.99998648 | CC4: =(ABS(CB4-CA4)) -> 1.351696446e-05 | CD4: =D45 -> 10000 | CE4: =SUM(BZ15:BZ24)*30.4 -> 10000.78946 | CF4: =(ABS(CE4-CD4)/30.4) -> 0.02596908678 | CG4: =D44 -> 137 | CH4: =(MATCH(CB4,BZ15:BZ38,0)-1)*30.5+15 -> 137 | CI4: =ABS(CG4-CH4)/20 -> 0 | CJ4: =IF(OR(ISERROR(CC4^2+CF4^2+CI4^1),_wb1>1,_wb1<0),10000,CC4^2+CF4^2+CI4^1) -> 0.0006743936507 | CK4: =IF(CN4<0,0,IF(CN4>100,100,CN4)) -> 9.057696171 | CL4: =IF(OR(_wb1<0,_wb1>1),1,_wb1) -> 0.3520180742 | CM4: =IF(_wb1/CG4>1,1,IF(_wb1/CG4<0,0,_wb1/CG4)) -> 0.002569474994 | CN4: =CA4/(CO4*CP4) -> 9.057696171 | CO4: =IF(ISERROR(CG4^_wb1),1,IF(CG4^_wb1>CG4,1,IF(CG4^_wb1<=0,0.0001,CG4^_wb1))) -> 5.651506862 | CP4: =IF(ISERROR(EXP(-_wb1)),0.001,IF(EXP(-_wb1)<=0,0.0001,EXP(-_wb1))) -> 0.7032674108 | DH4: Jan | DI4: Feb | DJ4: Mar | DK4: Apr | DL4: May | DM4: Jun | DN4: Jul | DO4: Aug | DP4: Sep | DQ4: Oct | DR4: Nov | DS4: Dec
B5: Jan | C5: 305-day | D5: peak | E5: peak | G5: 1 | H5: 2 | I5: 3 | J5: 4 | K5: 5 | L5: 6 | M5: 7 | N5: 8 | O5: 9 | P5: month of pregnancy | BG5: Diphasic curves | BH5: =ROUND(VAR(diphasiccurves1,diphasiccurves2,diphasiccurves3)+AVERAGE(diphasiccurves1,diphasiccurves2,diphasiccurves3),2) -> 1246.04 | BY5: woods2 | BZ5: lact 2 | CA5: =D46 -> 45 | CB5: =MAX(BZ42:BZ65) -> 45 | CC5: =(ABS(CB5-CA5)) -> 0 | CD5: =D48 -> 12000 | CE5: =SUM(BZ42:BZ51)*30.4 -> 11999.77992 | CF5: =(ABS(CE5-CD5)/30.4) -> 0.007239592176 | CG5: =D47 -> 76 | CH5: =(MATCH(CB5,BZ42:BZ65,0)-1)*30.4+15 -> 75.8 | CI5: =ABS(CG5-CH5)/20 -> 0.01 | CJ5: =IF(OR(ISERROR(CC5^2+CF5^2+CI5^1),_wb2>1,_wb2<0),10000,CC5^2+CF5^2+CI5^1) -> 0.01005241169 | CK5: =IF(CN5<0,0,IF(CN5>100,100,CN5)) -> 20.43264691 | CL5: =IF(OR(_wb2<0,_wb2>1),1,_wb2) -> 0.2370434522 | CM5: =IF(_wb2/CG5>1,1,IF(_wb2/CG5<0,0,_wb2/CG5)) -> 0.003118992793 | CN5: =CA5/(CO5*CP5) -> 20.43264691 | CO5: =IF(ISERROR(CG5^_wb2),1,IF(CG5^_wb2>CG5,1,IF(CG5^_wb2<=0,0.0001,CG5^_wb2))) -> 2.791480169 | CP5: =IF(ISERROR(EXP(-_wb2)),0.001,IF(EXP(-_wb2)<=0,0.0001,EXP(-_wb2))) -> 0.7889570053
C6: yield | D6: yield | E6: DIM | BG6: =ROUND(VAR(milkcurves1,milkcurves2,milkcurves3)+AVERAGE(milkcurves1,milkcurves2,milkcurves3),2) -> 798.65 | BH6: =IF(mfunction=1,ROUND(BH2,2),IF(mfunction=2,ROUND(BH3,2),IF(mfunction=3,ROUND(BH4,2),ROUND(BH4,2)))) -> 798.65 | BY6: woods3 | BZ6: lact 3 | CA6: =D49 -> 45 | CB6: =MAX(BZ69:BZ92) -> 45 | CC6: =(ABS(CB6-CA6)) -> 0 | CD6: =D51 -> 12000 | CE6: =SUM(BZ69:BZ78)*30.4 -> 11999.77992 | CF6: =(ABS(CE6-CD6)/30.4) -> 0.007239592176 | CG6: =D50 -> 76 | CH6: =(MATCH(CB6,BZ69:BZ92,0)-1)*30.4+15 -> 75.8 | CI6: =ABS(CG6-CH6)/20 -> 0.01 | CJ6: =IF(OR(ISERROR(CC6^2+CF6^2+CI6^1),_wb3>1,_wb3<0),10000,CC6^2+CF6^2+CI6^1) -> 0.01005241169 | CK6: =IF(CN6<0,0,IF(CN6>100,100,CN6)) -> 20.43264691 | CL6: =IF(OR(_wb3<0,_wb3>1),1,_wb3) -> 0.2370434522 | CM6: =IF(_wb3/CG6>1,1,IF(_wb3/CG6<0,0,_wb3/CG6)) -> 0.003118992793 | CN6: =CA6/(CO6*CP6) -> 20.43264691 | CO6: =IF(ISERROR(CG6^_wb3),1,IF(CG6^_wb3>CG6,1,IF(CG6^_wb3<=0,0.0001,CG6^_wb3))) -> 2.791480169 | CP6: =IF(ISERROR(EXP(-_wb3)),0.001,IF(EXP(-_wb3)<=0,0.0001,EXP(-_wb3))) -> 0.7889570053
B7: lact 1 | C7: =SUM(G9:G18)*30.4 -> 24383.0962 | D7: =MAX(G9:G32) -> 88.03270749 | E7: =(MATCH(D7,G9:G32,0)-1)*30.4+15 -> 136.6 | G7: Lactation 1 | I7: =IF(MIN(milkcurves1,milkcurves2,milkcurves3)<0,"Error: minimum milk yield < 0 !","") ->  | CJ7: werror1 | DH7: 305-day milk
B8: lact 2 | C8: =SUM(H36:H45)*30.4 -> 28721.59504 | D8: =MAX(G36:G59) -> 109.061138 | E8: =(MATCH(D8,G36:G59,0)-1)*30.4+15 -> 75.8 | F8: month | G8: Jan | H8: Feb | I8: Mar | J8: Apr | K8: May | L8: Jun | M8: Jul | N8: Aug | O8: Sep | P8: Oct | Q8: Nov | R8: Dec | S8: day | CJ8: werror2 | DH8: =SUM(DH15:DH24)*30.4 -> 24383.0962 | DI8: =SUM(DI16:DI25)*30.4 -> 24383.0962 | DJ8: =SUM(DJ17:DJ26)*30.4 -> 24383.0962 | DK8: =SUM(DK18:DK27)*30.4 -> 24383.0962 | DL8: =SUM(DL19:DL28)*30.4 -> 24383.0962 | DM8: =SUM(DM20:DM29)*30.4 -> 24383.0962 | DN8: =SUM(DN21:DN30)*30.4 -> 24383.0962 | DO8: =SUM(DO22:DO31)*30.4 -> 24383.0962 | DP8: =SUM(DP23:DP32)*30.4 -> 24383.0962 | DQ8: =SUM(DQ24:DQ33)*30.4 -> 24383.0962 | DR8: =SUM(DR25:DR34)*30.4 -> 24383.0962 | DS8: =SUM(DS26:DS35)*30.4 -> 24383.0962 | DT8: lact 1
B9: lact 3+ | C9: =SUM(I63:I72)*30.4 -> 30089.49989 | D9: =MAX(G63:G86) -> 115.2463832 | E9: =(MATCH(D9,G63:G86,0)-1)*30.4+15 -> 75.8 | F9: 1 | G9: 58.62329042 | H9: 58.62329042 | I9: 58.62329042 | J9: 58.62329042 | K9: 58.62329042 | L9: 58.62329042 | M9: 58.62329042 | N9: 58.62329042 | O9: 58.62329042 | P9: 58.62329042 | Q9: 58.62329042 | R9: 58.62329042 | S9: 15.2 | CJ9: werror3 | DH9: =SUM(DH51:DH60)*30.4 -> 28721.59504 | DI9: =SUM(DI52:DI61)*30.4 -> 28721.59504 | DJ9: =SUM(DJ53:DJ62)*30.4 -> 28721.59504 | DK9: =SUM(DK54:DK63)*30.4 -> 28721.59504 | DL9: =SUM(DL55:DL64)*30.4 -> 28721.59504 | DM9: =SUM(DM56:DM65)*30.4 -> 28721.59504 | DN9: =SUM(DN57:DN66)*30.4 -> 28721.59504 | DO9: =SUM(DO58:DO67)*30.4 -> 28721.59504 | DP9: =SUM(DP59:DP68)*30.4 -> 28721.59504 | DQ9: =SUM(DQ60:DQ69)*30.4 -> 28721.59504 | DR9: =SUM(DR61:DR70)*30.4 -> 28721.59504 | DS9: =SUM(DS62:DS71)*30.4 -> 28721.59504 | DT9: lact 2
F10: 2 | G10: 78.22116345 | H10: 78.22116345 | I10: 78.22116345 | J10: 78.22116345 | K10: 78.22116345 | L10: 78.22116345 | M10: 78.22116345 | N10: 78.22116345 | O10: 78.22116345 | P10: 78.22116345 | Q10: 78.22116345 | R10: 78.22116345 | S10: 45.6 | DH10: =SUM(DH87:DH96)*30.4 -> 30089.49989 | DI10: =SUM(DI88:DI97)*30.4 -> 30089.49989 | DJ10: =SUM(DJ89:DJ98)*30.4 -> 30089.49989 | DK10: =SUM(DK90:DK99)*30.4 -> 30089.49989 | DL10: =SUM(DL91:DL100)*30.4 -> 30089.49989 | DM10: =SUM(DM92:DM101)*30.4 -> 30089.49989 | DN10: =SUM(DN93:DN102)*30.4 -> 30089.49989 | DO10: =SUM(DO94:DO103)*30.4 -> 30089.49989 | DP10: =SUM(DP95:DP104)*30.4 -> 30089.49989 | DQ10: =SUM(DQ96:DQ105)*30.4 -> 30089.49989 | DR10: =SUM(DR97:DR106)*30.4 -> 30089.49989 | DS10: =SUM(DS98:DS107)*30.4 -> 30089.49989 | DT10: lact 3+
F11: 3 | G11: 85.46448892 | H11: 85.46448892 | I11: 85.46448892 | J11: 85.46448892 | K11: 85.46448892 | L11: 85.46448892 | M11: 85.46448892 | N11: 85.46448892 | O11: 85.46448892 | P11: 85.46448892 | Q11: 85.46448892 | R11: 85.46448892 | S11: 76
F12: 4 | G12: 88.0039338 | H12: 88.0039338 | I12: 88.0039338 | J12: 88.0039338 | K12: 88.0039338 | L12: 88.0039338 | M12: 88.0039338 | N12: 88.0039338 | O12: 88.0039338 | P12: 88.0039338 | Q12: 88.0039338 | R12: 88.0039338 | S12: 106.4 | AE12: Curves fitted from original florida curves by Florida lactation curves.sas. Months 23+24 are an extension of 21+22 (dragged) | DH12: f | DI12: g | DJ12: h | DK12: i | DL12: j | DM12: k | DN12: l | DO12: m | DP12: n | DQ12: o | DR12: p | DS12: q
F13: 5 | G13: 88.03270749 | H13: 88.03270749 | I13: 88.03270749 | J13: 88.03270749 | K13: 88.03270749 | L13: 88.03270749 | M13: 88.03270749 | N13: 88.03270749 | O13: 88.03270749 | P13: 88.03270749 | Q13: 88.03270749 | R13: 88.03270749 | S13: 136.8 | AE13: Florida curves (default) | AS13: Florida curves | AU13: floridacurves1 | BJ13: Woods curves | BL13: woodscurves1 | BZ13: Fit curves | CB13: peakmilkcurves1 | CS13: diphasiccurves1 | DH13: chartmilk1
F14: 6 | G14: 86.55815134 | H14: 86.55815134 | I14: 86.55815134 | J14: 86.55815134 | K14: 86.55815134 | L14: 86.55815134 | M14: 86.55815134 | N14: 86.55815134 | O14: 86.55815134 | P14: 86.55815134 | Q14: 86.55815134 | R14: 86.55815134 | S14: 167.2 | AE14: Jan | AF14: Feb | AG14: Mar | AH14: Apr | AI14: May | AJ14: Jun | AK14: Jul | AL14: Aug | AM14: Sep | AN14: Oct | AO14: Nov | AP14: Dec | AQ14: Avg | AS14: mim | AT14: Jan | AU14: Feb | AV14: Mar | AW14: Apr | AX14: May | AY14: Jun | AZ14: Jul | BA14: Aug | BB14: Sep | BC14: Oct | BD14: Nov | BE14: Dec | BI14: mim | BJ14: day | BK14: Jan | BL14: Feb | BM14: Mar | BN14: Apr | BO14: May | BP14: Jun | BQ14: Jul | BR14: Aug | BS14: Sep | BT14: Oct | BU14: Nov | BV14: Dec | CA14: Jan | CB14: Feb | CC14: Mar | CD14: Apr | CE14: May | CF14: Jun | CG14: Jul | CH14: Aug | CI14: Sep | CJ14: Oct | CK14: Nov | CL14: Dec | CP14: mim | CQ14: day | CS14: Jan | CT14: Feb | CU14: Mar | CV14: Apr | CW14: May | CX14: Jun | CY14: Jul | CZ14: Aug | DA14: Sep | DB14: Oct | DC14: Nov | DD14: Dec | DH14: Jan | DI14: Feb | DJ14: Mar | DK14: Apr | DL14: May | DM14: Jun | DN14: Jul | DO14: Aug | DP14: Sep | DQ14: Oct | DR14: Nov | DS14: Dec
C15: +/- (abs) | D15: 0 | F15: 7 | G15: 84.14107435 | H15: 84.14107435 | I15: 84.14107435 | J15: 84.14107435 | K15: 84.14107435 | L15: 84.14107435 | M15: 84.14107435 | N15: 84.14107435 | O15: 84.14107435 | P15: 84.14107435 | Q15: 84.14107435 | R15: 84.14107435 | S15: 197.6 | AE15: 24.30257083 | AF15: 24.38905973 | AG15: 24.53762989 | AH15: 24.02049096 | AI15: 23.53101363 | AJ15: 22.53543426 | AK15: 21.36670078 | AL15: 21.71561294 | AM15: 22.51551724 | AN15: 23.37440434 | AO15: 23.73132482 | AP15: 24.35248907 | AQ15: 23.36435404 | AS15: 1 | AT15: =((mseasonality*AE15*msea1+(1-mseasonality)*$AQ15)+mabs)*(1+pct)*lbs -> 56.66054176 | AU15: =((mseasonality*AF15*msea2+(1-mseasonality)*$AQ15)+mabs)*(1+pct)*lbs -> 56.66054176 | AV15: =((mseasonality*AG15*msea3+(1-mseasonality)*$AQ15)+mabs)*(1+pct)*lbs -> 56.66054176 | AW15: =((mseasonality*AH15*msea4+(1-mseasonality)*$AQ15)+mabs)*(1+pct)*lbs -> 56.66054176 | AX15: =((mseasonality*AI15*msea5+(1-mseasonality)*$AQ15)+mabs)*(1+pct)*lbs -> 56.66054176 | AY15: =((mseasonality*AJ15*msea6+(1-mseasonality)*$AQ15)+mabs)*(1+pct)*lbs -> 56.66054176 | AZ15: =((mseasonality*AK15*msea7+(1-mseasonality)*$AQ15)+mabs)*(1+pct)*lbs -> 56.66054176 | BA15: =((mseasonality*AL15*msea8+(1-mseasonality)*$AQ15)+mabs)*(1+pct)*lbs -> 56.66054176 | BB15: =((mseasonality*AM15*msea9+(1-mseasonality)*$AQ15)+mabs)*(1+pct)*lbs -> 56.66054176 | BC15: =((mseasonality*AN15*msea10+(1-mseasonality)*$AQ15)+mabs)*(1+pct)*lbs -> 56.66054176 | BD15: =((mseasonality*AO15*msea11+(1-mseasonality)*$AQ15)+mabs)*(1+pct)*lbs -> 56.66054176 | BE15: =((mseasonality*AP15*msea12+(1-mseasonality)*$AQ15)+mabs)*(1+pct)*lbs -> 56.66054176 | BI15: 1 | BJ15: =(BI15-1)*30.4+15.2 -> 15.2 | BK15: =((mseasonality*($D$32*($BJ15)^$D$33*EXP(-$D$34*$BJ15)*msea1) +(1-mseasonality)*($D$32*($BJ15)^$D$33*EXP(-$D$34*$BJ15)*mseaavg)))*(1+pct)*lbs+mabs -> 58.62329042 | BL15: =((mseasonality*($D$32*($BJ15)^$D$33*EXP(-$D$34*$BJ15)*msea2) +(1-mseasonality)*($D$32*($BJ15)^$D$33*EXP(-$D$34*$BJ15)*mseaavg)))*(1+pct)*lbs+mabs -> 58.62329042 | BM15: =((mseasonality*($D$32*($BJ15)^$D$33*EXP(-$D$34*$BJ15)*msea3) +(1-mseasonality)*($D$32*($BJ15)^$D$33*EXP(-$D$34*$BJ15)*mseaavg)))*(1+pct)*lbs+mabs -> 58.62329042 | BN15: =((mseasonality*($D$32*($BJ15)^$D$33*EXP(-$D$34*$BJ15)*msea4) +(1-mseasonality)*($D$32*($BJ15)^$D$33*EXP(-$D$34*$BJ15)*mseaavg)))*(1+pct)*lbs+mabs -> 58.62329042 | BO15: =((mseasonality*($D$32*($BJ15)^$D$33*EXP(-$D$34*$BJ15)*msea5) +(1-mseasonality)*($D$32*($BJ15)^$D$33*EXP(-$D$34*$BJ15)*mseaavg)))*(1+pct)*lbs+mabs -> 58.62329042 | BP15: =((mseasonality*($D$32*($BJ15)^$D$33*EXP(-$D$34*$BJ15)*msea6) +(1-mseasonality)*($D$32*($BJ15)^$D$33*EXP(-$D$34*$BJ15)*mseaavg)))*(1+pct)*lbs+mabs -> 58.62329042 | BQ15: =((mseasonality*($D$32*($BJ15)^$D$33*EXP(-$D$34*$BJ15)*msea7) +(1-mseasonality)*($D$32*($BJ15)^$D$33*EXP(-$D$34*$BJ15)*mseaavg)))*(1+pct)*lbs+mabs -> 58.62329042 | BR15: =((mseasonality*($D$32*($BJ15)^$D$33*EXP(-$D$34*$BJ15)*msea8) +(1-mseasonality)*($D$32*($BJ15)^$D$33*EXP(-$D$34*$BJ15)*mseaavg)))*(1+pct)*lbs+mabs -> 58.62329042 | BS15: =((mseasonality*($D$32*($BJ15)^$D$33*EXP(-$D$34*$BJ15)*msea9) +(1-mseasonality)*($D$32*($BJ15)^$D$33*EXP(-$D$34*$BJ15)*mseaavg)))*(1+pct)*lbs+mabs -> 58.62329042 | BT15: =((mseasonality*($D$32*($BJ15)^$D$33*EXP(-$D$34*$BJ15)*msea10) +(1-mseasonality)*($D$32*($BJ15)^$D$33*EXP(-$D$34*$BJ15)*mseaavg)))*(1+pct)*lbs+mabs -> 58.62329042 | BU15: =((mseasonality*($D$32*($BJ15)^$D$33*EXP(-$D$34*$BJ15)*msea11) +(1-mseasonality)*($D$32*($BJ15)^$D$33*EXP(-$D$34*$BJ15)*mseaavg)))*(1+pct)*lbs+mabs -> 58.62329042 | BV15: =((mseasonality*($D$32*($BJ15)^$D$33*EXP(-$D$34*$BJ15)*msea12) +(1-mseasonality)*($D$32*($BJ15)^$D$33*EXP(-$D$34*$BJ15)*mseaavg)))*(1+pct)*lbs+mabs -> 58.62329042 | BY15: =BZ15*30.4 -> 690.1759509 | BZ15: =(CK$4*($BJ15)^CL$4*EXP(-CM$4*$BJ15)) -> 22.70315628 | CA15: =((mseasonality*$BZ15*msea1+(1-mseasonality)*$BZ15*mseaavg))*(1+pct)+mabs -> 24.97347191 | CB15: =((mseasonality*$BZ15*msea2+(1-mseasonality)*$BZ15*mseaavg))*(1+pct)+mabs -> 24.97347191 | CC15: =((mseasonality*$BZ15*msea3+(1-mseasonality)*$BZ15*mseaavg))*(1+pct)+mabs -> 24.97347191 | CD15: =((mseasonality*$BZ15*msea4+(1-mseasonality)*$BZ15*mseaavg))*(1+pct)+mabs -> 24.97347191 | CE15: =((mseasonality*$BZ15*msea5+(1-mseasonality)*$BZ15*mseaavg))*(1+pct)+mabs -> 24.97347191 | CF15: =((mseasonality*$BZ15*msea6+(1-mseasonality)*$BZ15*mseaavg))*(1+pct)+mabs -> 24.97347191 | CG15: =((mseasonality*$BZ15*msea7+(1-mseasonality)*$BZ15*mseaavg))*(1+pct)+mabs -> 24.97347191 | CH15: =((mseasonality*$BZ15*msea8+(1-mseasonality)*$BZ15*mseaavg))*(1+pct)+mabs -> 24.97347191 | CI15: =((mseasonality*$BZ15*msea9+(1-mseasonality)*$BZ15*mseaavg))*(1+pct)+mabs -> 24.97347191 | CJ15: =((mseasonality*$BZ15*msea10+(1-mseasonality)*$BZ15*mseaavg))*(1+pct)+mabs -> 24.97347191 | CK15: =((mseasonality*$BZ15*msea11+(1-mseasonality)*$BZ15*mseaavg))*(1+pct)+mabs -> 24.97347191 | CL15: =((mseasonality*$BZ15*msea12+(1-mseasonality)*$BZ15*mseaavg))*(1+pct)+mabs -> 24.97347191 | CP15: 1 | CQ15: =(CP15-1)*30.4+15.2 -> 15.2 | CR15: =dp1_1a*dp1_1b*(1-(TANH(dp1_1b*($CQ15-dp1_1c)))^2)+dp1_2a*dp1_2b*(1-(TANH(dp1_2b*($CQ15-dp1_2c)))^2) -> 34.95492642 | CS15: =((mseasonality*$CR15*msea1+(1-mseasonality)*$CR15*mseaavg)*(1+pct)*lbs)+mabs -> 84.7686636 | CT15: =((mseasonality*$CR15*msea2+(1-mseasonality)*$CR15*mseaavg)*(1+pct)*lbs)+mabs -> 84.7686636 | CU15: =((mseasonality*$CR15*msea3+(1-mseasonality)*$CR15*mseaavg)*(1+pct)*lbs)+mabs -> 84.7686636 | CV15: =((mseasonality*$CR15*msea4+(1-mseasonality)*$CR15*mseaavg)*(1+pct)*lbs)+mabs -> 84.7686636 | CW15: =((mseasonality*$CR15*msea5+(1-mseasonality)*$CR15*mseaavg)*(1+pct)*lbs)+mabs -> 84.7686636 | CX15: =((mseasonality*$CR15*msea6+(1-mseasonality)*$CR15*mseaavg)*(1+pct)*lbs)+mabs -> 84.7686636 | CY15: =((mseasonality*$CR15*msea7+(1-mseasonality)*$CR15*mseaavg)*(1+pct)*lbs)+mabs -> 84.7686636 | CZ15: =((mseasonality*$CR15*msea8+(1-mseasonality)*$CR15*mseaavg)*(1+pct)*lbs)+mabs -> 84.7686636 | DA15: =((mseasonality*$CR15*msea9+(1-mseasonality)*$CR15*mseaavg)*(1+pct)*lbs)+mabs -> 84.7686636 | DB15: =((mseasonality*$CR15*msea10+(1-mseasonality)*$CR15*mseaavg)*(1+pct)*lbs)+mabs -> 84.7686636 | DC15: =((mseasonality*$CR15*msea11+(1-mseasonality)*$CR15*mseaavg)*(1+pct)*lbs)+mabs -> 84.7686636 | DD15: =((mseasonality*$CR15*msea12+(1-mseasonality)*$CR15*mseaavg)*(1+pct)*lbs)+mabs -> 84.7686636 | DG15: Jan | DH15: =G9 -> 58.62329042
C16: +/- (%) | D16: 0.1 | F16: 8 | G16: 81.12807944 | H16: 81.12807944 | I16: 81.12807944 | J16: 81.12807944 | K16: 81.12807944 | L16: 81.12807944 | M16: 81.12807944 | N16: 81.12807944 | O16: 81.12807944 | P16: 81.12807944 | Q16: 81.12807944 | R16: 81.12807944 | S16: 228 | AE16: 27.89607925 | AF16: 28.16873913 | AG16: 28.17584314 | AH16: 27.6665854 | AI16: 26.87459579 | AJ16: 25.89957025 | AK16: 24.73424444 | AL16: 24.36234502 | AM16: 24.70407675 | AN16: 25.5628899 | AO16: 26.4881392 | AP16: 27.35711075 | AQ16: 26.49085158 | AS16: 2 | AT16: =((mseasonality*AE16*msea1+(1-mseasonality)*$AQ16)+mabs)*(1+pct)*lbs -> 64.24256369 | AU16: 64.24256369 | AV16: 64.24256369 | AW16: 64.24256369 | AX16: 64.24256369 | AY16: 64.24256369 | AZ16: 64.24256369 | BA16: 64.24256369 | BB16: 64.24256369 | BC16: 64.24256369 | BD16: 64.24256369 | BE16: 64.24256369 | BI16: 2 | BJ16: =(BI16-1)*30.4+15.2 -> 45.6 | BK16: 78.22116345 | BL16: 78.22116345 | BM16: 78.22116345 | BN16: 78.22116345 | BO16: 78.22116345 | BP16: 78.22116345 | BQ16: 78.22116345 | BR16: 78.22116345 | BS16: 78.22116345 | BT16: 78.22116345 | BU16: 78.22116345 | BV16: 78.22116345 | BY16: =BZ16*30.4+BY15 -> 1629.880869 | BZ16: =(CK$4*($BJ16)^CL$4*EXP(-CM$4*$BJ16)) -> 30.91134598 | CA16: =((mseasonality*$BZ16*msea1+(1-mseasonality)*$BZ16*mseaavg))*(1+pct)+mabs -> 34.00248058 | CB16: 34.00248058 | CC16: 34.00248058 | CD16: 34.00248058 | CE16: 34.00248058 | CF16: 34.00248058 | CG16: 34.00248058 | CH16: 34.00248058 | CI16: 34.00248058 | CJ16: 34.00248058 | CK16: 34.00248058 | CL16: 34.00248058 | CP16: 2 | CQ16: =(CP16-1)*30.4+15.2 -> 45.6 | CR16: 35.77205606 | CS16: 86.75027234 | CT16: 86.75027234 | CU16: 86.75027234 | CV16: 86.75027234 | CW16: 86.75027234 | CX16: 86.75027234 | CY16: 86.75027234 | CZ16: 86.75027234 | DA16: 86.75027234 | DB16: 86.75027234 | DC16: 86.75027234 | DD16: 86.75027234 | DG16: Feb | DH16: =H10 -> 78.22116345 | DI16: =H9 -> 58.62329042
C17: Seasonality | D17: 0 | F17: 9 | G17: 77.74736051 | H17: 77.74736051 | I17: 77.74736051 | J17: 77.74736051 | K17: 77.74736051 | L17: 77.74736051 | M17: 77.74736051 | N17: 77.74736051 | O17: 77.74736051 | P17: 77.74736051 | Q17: 77.74736051 | R17: 77.74736051 | S17: 258.4 | AE17: 29.68071375 | AF17: 30.07788163 | AG17: 30.02846042 | AH17: 29.5350425 | AI17: 28.60807829 | AJ17: 27.636566 | AK17: 26.54633532 | AL17: 25.83442871 | AM17: 25.90171012 | AN17: 26.67342921 | AO17: 27.80838063 | AP17: 28.82179779 | AQ17: 28.0960687 | AS17: 3 | AT17: 68.13535144 | AU17: 68.13535144 | AV17: 68.13535144 | AW17: 68.13535144 | AX17: 68.13535144 | AY17: 68.13535144 | AZ17: 68.13535144 | BA17: 68.13535144 | BB17: 68.13535144 | BC17: 68.13535144 | BD17: 68.13535144 | BE17: 68.13535144 | BI17: 3 | BJ17: 76 | BK17: 85.46448892 | BL17: 85.46448892 | BM17: 85.46448892 | BN17: 85.46448892 | BO17: 85.46448892 | BP17: 85.46448892 | BQ17: 85.46448892 | BR17: 85.46448892 | BS17: 85.46448892 | BT17: 85.46448892 | BU17: 85.46448892 | BV17: 85.46448892 | BY17: =BZ17*30.4+BY16 -> 2670.190553 | BZ17: 34.2207133 | CA17: 37.64278463 | CB17: 37.64278463 | CC17: 37.64278463 | CD17: 37.64278463 | CE17: 37.64278463 | CF17: 37.64278463 | CG17: 37.64278463 | CH17: 37.64278463 | CI17: 37.64278463 | CJ17: 37.64278463 | CK17: 37.64278463 | CL17: 37.64278463 | CP17: 3 | CQ17: 76 | CR17: 36.24825104 | CS17: 87.9050856 | CT17: 87.9050856 | CU17: 87.9050856 | CV17: 87.9050856 | CW17: 87.9050856 | CX17: 87.9050856 | CY17: 87.9050856 | CZ17: 87.9050856 | DA17: 87.9050856 | DB17: 87.9050856 | DC17: 87.9050856 | DD17: 87.9050856 | DG17: Mar | DH17: =I11 -> 85.46448892 | DI17: =I10 -> 78.22116345 | DJ17: =I9 -> 58.62329042
C18: Jan | D18: 1 | F18: 10 | G18: 74.15528334 | H18: 74.15528334 | I18: 74.15528334 | J18: 74.15528334 | K18: 74.15528334 | L18: 74.15528334 | M18: 74.15528334 | N18: 74.15528334 | O18: 74.15528334 | P18: 74.15528334 | Q18: 74.15528334 | R18: 74.15528334 | S18: 288.8 | AE18: 30.16580063 | AF18: 30.64381696 | AG18: 30.59772786 | AH18: 30.13064943 | AI18: 29.18311728 | AJ18: 28.21110397 | AK18: 27.22655286 | AL18: 26.42110721 | AM18: 26.34034632 | AN18: 26.97987997 | AO18: 28.0969873 | AP18: 29.17378773 | AQ18: 28.59757313 | AS18: 4 | AT18: 69.35154225 | AU18: 69.35154225 | AV18: 69.35154225 | AW18: 69.35154225 | AX18: 69.35154225 | AY18: 69.35154225 | AZ18: 69.35154225 | BA18: 69.35154225 | BB18: 69.35154225 | BC18: 69.35154225 | BD18: 69.35154225 | BE18: 69.35154225 | BI18: 4 | BJ18: 106.4 | BK18: 88.0039338 | BL18: 88.0039338 | BM18: 88.0039338 | BN18: 88.0039338 | BO18: 88.0039338 | BP18: 88.0039338 | BQ18: 88.0039338 | BR18: 88.0039338 | BS18: 88.0039338 | BT18: 88.0039338 | BU18: 88.0039338 | BV18: 88.0039338 | BY18: 3753.31591 | BZ18: 35.62912359 | CA18: 39.19203595 | CB18: 39.19203595 | CC18: 39.19203595 | CD18: 39.19203595 | CE18: 39.19203595 | CF18: 39.19203595 | CG18: 39.19203595 | CH18: 39.19203595 | CI18: 39.19203595 | CJ18: 39.19203595 | CK18: 39.19203595 | CL18: 39.19203595 | CP18: 4 | CQ18: 106.4 | CR18: 36.36276798 | CS18: 88.18279891 | CT18: 88.18279891 | CU18: 88.18279891 | CV18: 88.18279891 | CW18: 88.18279891 | CX18: 88.18279891 | CY18: 88.18279891 | CZ18: 88.18279891 | DA18: 88.18279891 | DB18: 88.18279891 | DC18: 88.18279891 | DD18: 88.18279891 | DG18: Apr | DH18: =J12 -> 88.0039338 | DI18: =J11 -> 85.46448892 | DJ18: =J10 -> 78.22116345 | DK18: =J9 -> 58.62329042
C19: Feb | D19: 1 | F19: 11 | G19: 70.46172777 | H19: 70.46172777 | I19: 70.46172777 | J19: 70.46172777 | K19: 70.46172777 | L19: 70.46172777 | M19: 70.46172777 | N19: 70.46172777 | O19: 70.46172777 | P19: 70.46172777 | Q19: 70.46172777 | R19: 70.46172777 | S19: 319.2 | AE19: 29.76756213 | AF19: 30.2966706 | AG19: 30.29321624 | AH19: 29.86430948 | AI19: 28.96848721 | AJ19: 28.0011673 | AK19: 27.12342239 | AL19: 26.36548576 | AM19: 26.21711828 | AN19: 26.71070511 | AO19: 27.68487027 | AP19: 28.76382344 | AQ19: 28.33806985 | AS19: 5 | AT19: 68.72222478 | AU19: 68.72222478 | AV19: 68.72222478 | AW19: 68.72222478 | AX19: 68.72222478 | AY19: 68.72222478 | AZ19: 68.72222478 | BA19: 68.72222478 | BB19: 68.72222478 | BC19: 68.72222478 | BD19: 68.72222478 | BE19: 68.72222478 | BI19: 5 | BJ19: 136.8 | BK19: 88.03270749 | BL19: 88.03270749 | BM19: 88.03270749 | BN19: 88.03270749 | BO19: 88.03270749 | BP19: 88.03270749 | BQ19: 88.03270749 | BR19: 88.03270749 | BS19: 88.03270749 | BT19: 88.03270749 | BU19: 88.03270749 | BV19: 88.03270749 | BY19: 4847.715499 | BZ19: 35.99998648 | CA19: 39.59998513 | CB19: 39.59998513 | CC19: 39.59998513 | CD19: 39.59998513 | CE19: 39.59998513 | CF19: 39.59998513 | CG19: 39.59998513 | CH19: 39.59998513 | CI19: 39.59998513 | CJ19: 39.59998513 | CK19: 39.59998513 | CL19: 39.59998513 | CP19: 5 | CQ19: 136.8 | CR19: 36.10929681 | CS19: 87.56810979 | CT19: 87.56810979 | CU19: 87.56810979 | CV19: 87.56810979 | CW19: 87.56810979 | CX19: 87.56810979 | CY19: 87.56810979 | CZ19: 87.56810979 | DA19: 87.56810979 | DB19: 87.56810979 | DC19: 87.56810979 | DD19: 87.56810979 | DG19: May | DH19: =K13 -> 88.03270749 | DI19: =K12 -> 88.0039338 | DJ19: =K11 -> 85.46448892 | DK19: =K10 -> 78.22116345 | DL19: =K9 -> 58.62329042
C20: Mar | D20: 1 | F20: 12 | G20: 66.74504742 | H20: 66.74504742 | I20: 66.74504742 | J20: 66.74504742 | K20: 66.74504742 | L20: 66.74504742 | M20: 66.74504742 | N20: 66.74504742 | O20: 66.74504742 | P20: 66.74504742 | Q20: 66.74504742 | R20: 66.74504742 | S20: 349.6 | AE20: 28.81758162 | AF20: 29.37829352 | AG20: 29.44032073 | AH20: 29.06167354 | AI20: 28.25757301 | AJ20: 27.30601805 | AK20: 26.51697216 | AL20: 25.86816597 | AM20: 25.69694171 | AN20: 26.05277336 | AO20: 26.83565424 | AP20: 27.8729332 | AQ20: 27.59207509 | AS20: 6 | AT20: 66.91312417 | AU20: 66.91312417 | AV20: 66.91312417 | AW20: 66.91312417 | AX20: 66.91312417 | AY20: 66.91312417 | AZ20: 66.91312417 | BA20: 66.91312417 | BB20: 66.91312417 | BC20: 66.91312417 | BD20: 66.91312417 | BE20: 66.91312417 | BI20: 6 | BJ20: 167.2 | BK20: 86.55815134 | BL20: 86.55815134 | BM20: 86.55815134 | BN20: 86.55815134 | BO20: 86.55815134 | BP20: 86.55815134 | BQ20: 86.55815134 | BR20: 86.55815134 | BS20: 86.55815134 | BT20: 86.55815134 | BU20: 86.55815134 | BV20: 86.55815134 | BY20: 5933.967853 | BZ20: 35.73198532 | CA20: 39.30518385 | CB20: 39.30518385 | CC20: 39.30518385 | CD20: 39.30518385 | CE20: 39.30518385 | CF20: 39.30518385 | CG20: 39.30518385 | CH20: 39.30518385 | CI20: 39.30518385 | CJ20: 39.30518385 | CK20: 39.30518385 | CL20: 39.30518385 | CP20: 6 | CQ20: 167.2 | CR20: 35.49666059 | CS20: 86.08241495 | CT20: 86.08241495 | CU20: 86.08241495 | CV20: 86.08241495 | CW20: 86.08241495 | CX20: 86.08241495 | CY20: 86.08241495 | CZ20: 86.08241495 | DA20: 86.08241495 | DB20: 86.08241495 | DC20: 86.08241495 | DD20: 86.08241495 | DG20: Jun | DH20: =L14 -> 86.55815134 | DI20: =L13 -> 88.03270749 | DJ20: =L12 -> 88.0039338 | DK20: =L11 -> 85.46448892 | DL20: =L10 -> 78.22116345 | DM20: =L9 -> 58.62329042
C21: Apr | D21: 1 | F21: 13 | G21: 63.06146247 | H21: 63.06146247 | I21: 63.06146247 | J21: 63.06146247 | K21: 63.06146247 | L21: 63.06146247 | M21: 63.06146247 | N21: 63.06146247 | O21: 63.06146247 | P21: 63.06146247 | Q21: 63.06146247 | R21: 63.06146247 | S21: 380 | AE21: 27.57126898 | AF21: 28.15119173 | AG21: 28.28876071 | AH21: 27.97177168 | AI21: 27.2758622 | AJ21: 26.35417536 | AK21: 25.62529054 | AL21: 25.09088014 | AM21: 24.91509375 | AN21: 25.15515975 | AO21: 25.75241826 | AP21: 26.71921072 | AQ21: 26.57259032 | AS21: 7 | AT21: 64.44078705 | AU21: 64.44078705 | AV21: 64.44078705 | AW21: 64.44078705 | AX21: 64.44078705 | AY21: 64.44078705 | AZ21: 64.44078705 | BA21: 64.44078705 | BB21: 64.44078705 | BC21: 64.44078705 | BD21: 64.44078705 | BE21: 64.44078705 | BI21: 7 | BJ21: 197.6 | BK21: 84.14107435 | BL21: 84.14107435 | BM21: 84.14107435 | BN21: 84.14107435 | BO21: 84.14107435 | BP21: 84.14107435 | BQ21: 84.14107435 | BR21: 84.14107435 | BS21: 84.14107435 | BT21: 84.14107435 | BU21: 84.14107435 | BV21: 84.14107435 | BY21: 6999.450175 | BZ21: 35.04876061 | CA21: 38.55363667 | CB21: 38.55363667 | CC21: 38.55363667 | CD21: 38.55363667 | CE21: 38.55363667 | CF21: 38.55363667 | CG21: 38.55363667 | CH21: 38.55363667 | CI21: 38.55363667 | CJ21: 38.55363667 | CK21: 38.55363667 | CL21: 38.55363667 | CP21: 7 | CQ21: 197.6 | CR21: 34.54817718 | CS21: 83.78226218 | CT21: 83.78226218 | CU21: 83.78226218 | CV21: 83.78226218 | CW21: 83.78226218 | CX21: 83.78226218 | CY21: 83.78226218 | CZ21: 83.78226218 | DA21: 83.78226218 | DB21: 83.78226218 | DC21: 83.78226218 | DD21: 83.78226218 | DG21: Jul | DH21: =M15 -> 84.14107435 | DI21: =M14 -> 86.55815134 | DJ21: =M13 -> 88.03270749 | DK21: =M12 -> 88.0039338 | DL21: =M11 -> 85.46448892 | DM21: =M10 -> 78.22116345 | DN21: =M9 -> 58.62329042
C22: May | D22: 1 | F22: 14 | G22: 59.45124706 | H22: 59.45124706 | I22: 59.45124706 | J22: 59.45124706 | K22: 59.45124706 | L22: 59.45124706 | M22: 59.45124706 | N22: 59.45124706 | O22: 59.45124706 | P22: 59.45124706 | Q22: 59.45124706 | R22: 59.45124706 | S22: 410.4 | AE22: 26.21632583 | AF22: 26.80745604 | AG22: 27.02107942 | AH22: 26.77564466 | AI22: 26.18843708 | AJ22: 25.31139369 | AK22: 24.611083 | AL22: 24.16012562 | AM22: 23.9797918 | AN22: 24.13294617 | AO22: 24.58443642 | AP22: 25.4645952 | AQ22: 25.43777624 | AS22: 8 | AT22: 61.6887666 | AU22: 61.6887666 | AV22: 61.6887666 | AW22: 61.6887666 | AX22: 61.6887666 | AY22: 61.6887666 | AZ22: 61.6887666 | BA22: 61.6887666 | BB22: 61.6887666 | BC22: 61.6887666 | BD22: 61.6887666 | BE22: 61.6887666 | BI22: 8 | BJ22: 228 | BK22: 81.12807944 | BL22: 81.12807944 | BM22: 81.12807944 | BN22: 81.12807944 | BO22: 81.12807944 | BP22: 81.12807944 | BQ22: 81.12807944 | BR22: 81.12807944 | BS22: 81.12807944 | BT22: 81.12807944 | BU22: 81.12807944 | BV22: 81.12807944 | BY22: 8035.78432 | BZ22: 34.08993897 | CA22: 37.49893287 | CB22: 37.49893287 | CC22: 37.49893287 | CD22: 37.49893287 | CE22: 37.49893287 | CF22: 37.49893287 | CG22: 37.49893287 | CH22: 37.49893287 | CI22: 37.49893287 | CJ22: 37.49893287 | CK22: 37.49893287 | CL22: 37.49893287 | CP22: 8 | CQ22: 228 | CR22: 33.29975957 | CS22: 80.7547435 | CT22: 80.7547435 | CU22: 80.7547435 | CV22: 80.7547435 | CW22: 80.7547435 | CX22: 80.7547435 | CY22: 80.7547435 | CZ22: 80.7547435 | DA22: 80.7547435 | DB22: 80.7547435 | DC22: 80.7547435 | DD22: 80.7547435 | DG22: Aug | DH22: =N16 -> 81.12807944 | DI22: =N15 -> 84.14107435 | DJ22: =N14 -> 86.55815134 | DK22: =N13 -> 88.03270749 | DL22: =N12 -> 88.0039338 | DM22: =N11 -> 85.46448892 | DN22: =N10 -> 78.22116345 | DO22: =N9 -> 58.62329042
C23: Jun | D23: 1 | F23: 15 | G23: 55.94296264 | H23: 55.94296264 | I23: 55.94296264 | J23: 55.94296264 | K23: 55.94296264 | L23: 55.94296264 | M23: 55.94296264 | N23: 55.94296264 | O23: 55.94296264 | P23: 55.94296264 | Q23: 55.94296264 | R23: 55.94296264 | S23: 440.8 | AE23: 24.88121084 | AF23: 25.47769166 | AG23: 25.7611438 | AH23: 25.59497546 | AI23: 25.10746682 | AJ23: 24.28864104 | AK23: 23.58822931 | AL23: 23.17079907 | AM23: 22.97477219 | AN23: 23.07102194 | AO23: 23.43391861 | AP23: 24.2216514 | AQ23: 24.29762685 | AS23: 9 | AT23: 58.92380753 | AU23: 58.92380753 | AV23: 58.92380753 | AW23: 58.92380753 | AX23: 58.92380753 | AY23: 58.92380753 | AZ23: 58.92380753 | BA23: 58.92380753 | BB23: 58.92380753 | BC23: 58.92380753 | BD23: 58.92380753 | BE23: 58.92380753 | BI23: 9 | BJ23: 258.4 | BK23: 77.74736051 | BL23: 77.74736051 | BM23: 77.74736051 | BN23: 77.74736051 | BO23: 77.74736051 | BP23: 77.74736051 | BQ23: 77.74736051 | BR23: 77.74736051 | BS23: 77.74736051 | BT23: 77.74736051 | BU23: 77.74736051 | BV23: 77.74736051 | BY23: 9037.422935 | BZ23: 32.94863865 | CA23: 36.24350252 | CB23: 36.24350252 | CC23: 36.24350252 | CD23: 36.24350252 | CE23: 36.24350252 | CF23: 36.24350252 | CG23: 36.24350252 | CH23: 36.24350252 | CI23: 36.24350252 | CJ23: 36.24350252 | CK23: 36.24350252 | CL23: 36.24350252 | CP23: 9 | CQ23: 258.4 | CR23: 31.7970226 | CS23: 77.1104788 | CT23: 77.1104788 | CU23: 77.1104788 | CV23: 77.1104788 | CW23: 77.1104788 | CX23: 77.1104788 | CY23: 77.1104788 | CZ23: 77.1104788 | DA23: 77.1104788 | DB23: 77.1104788 | DC23: 77.1104788 | DD23: 77.1104788 | DG23: Sep | DH23: =O17 -> 77.74736051 | DI23: =O16 -> 81.12807944 | DJ23: =O15 -> 84.14107435 | DK23: =O14 -> 86.55815134 | DL23: =O13 -> 88.03270749 | DM23: =O12 -> 88.0039338 | DN23: =O11 -> 85.46448892 | DO23: =O10 -> 78.22116345 | DP23: =O9 -> 58.62329042
C24: Jul | D24: 1 | F24: 16 | G24: 52.55644394 | H24: 52.55644394 | I24: 52.55644394 | J24: 52.55644394 | K24: 52.55644394 | L24: 52.55644394 | M24: 52.55644394 | N24: 52.55644394 | O24: 52.55644394 | P24: 52.55644394 | Q24: 52.55644394 | R24: 52.55644394 | S24: 471.2 | AE24: 23.64360501 | AF24: 24.23994787 | AG24: 24.58264418 | AH24: 24.50072084 | AI24: 24.09969963 | AJ24: 23.35007714 | AK24: 22.62834058 | AL24: 22.18983084 | AM24: 21.96186898 | AN24: 22.02788427 | AO24: 22.36275123 | AP24: 23.06034963 | AQ24: 23.22064335 | AS24: 10 | AT24: 56.31203114 | AU24: 56.31203114 | AV24: 56.31203114 | AW24: 56.31203114 | AX24: 56.31203114 | AY24: 56.31203114 | AZ24: 56.31203114 | BA24: 56.31203114 | BB24: 56.31203114 | BC24: 56.31203114 | BD24: 56.31203114 | BE24: 56.31203114 | BI24: 10 | BJ24: 288.8 | BK24: 74.15528334 | BL24: 74.15528334 | BM24: 74.15528334 | BN24: 74.15528334 | BO24: 74.15528334 | BP24: 74.15528334 | BQ24: 74.15528334 | BR24: 74.15528334 | BS24: 74.15528334 | BT24: 74.15528334 | BU24: 74.15528334 | BV24: 74.15528334 | BY24: 10000.78946 | BZ24: 31.68968833 | CA24: 34.85865716 | CB24: 34.85865716 | CC24: 34.85865716 | CD24: 34.85865716 | CE24: 34.85865716 | CF24: 34.85865716 | CG24: 34.85865716 | CH24: 34.85865716 | CI24: 34.85865716 | CJ24: 34.85865716 | CK24: 34.85865716 | CL24: 34.85865716 | CP24: 10 | CQ24: 288.8 | CR24: 30.09179661 | CS24: 72.97516102 | CT24: 72.97516102 | CU24: 72.97516102 | CV24: 72.97516102 | CW24: 72.97516102 | CX24: 72.97516102 | CY24: 72.97516102 | CZ24: 72.97516102 | DA24: 72.97516102 | DB24: 72.97516102 | DC24: 72.97516102 | DD24: 72.97516102 | DG24: Oct | DH24: =P18 -> 74.15528334 | DI24: =P17 -> 77.74736051 | DJ24: =P16 -> 81.12807944 | DK24: =P15 -> 84.14107435 | DL24: =P14 -> 86.55815134 | DM24: =P13 -> 88.03270749 | DN24: =P12 -> 88.0039338 | DO24: =P11 -> 85.46448892 | DP24: =P10 -> 78.22116345 | DQ24: =P9 -> 58.62329042
C25: Aug | D25: 1 | F25: 17 | G25: 49.30495761 | H25: 49.30495761 | I25: 49.30495761 | J25: 49.30495761 | K25: 49.30495761 | L25: 49.30495761 | M25: 49.30495761 | N25: 49.30495761 | O25: 49.30495761 | P25: 49.30495761 | Q25: 49.30495761 | R25: 49.30495761 | S25: 501.6 | AE25: 22.53887695 | AF25: 23.12864768 | AG25: 23.51759408 | AH25: 23.52174281 | AI25: 23.19395489 | AJ25: 22.52103166 | AK25: 21.76731638 | AL25: 21.25981923 | AM25: 20.98359267 | AN25: 21.0394389 | AO25: 21.39923788 | AP25: 22.01484585 | AQ25: 22.24050825 | AS25: 11 | AT25: 53.93512032 | AU25: 53.93512032 | AV25: 53.93512032 | AW25: 53.93512032 | AX25: 53.93512032 | AY25: 53.93512032 | AZ25: 53.93512032 | BA25: 53.93512032 | BB25: 53.93512032 | BC25: 53.93512032 | BD25: 53.93512032 | BE25: 53.93512032 | BI25: 11 | BJ25: 319.2 | BK25: 70.46172777 | BL25: 70.46172777 | BM25: 70.46172777 | BN25: 70.46172777 | BO25: 70.46172777 | BP25: 70.46172777 | BQ25: 70.46172777 | BR25: 70.46172777 | BS25: 70.46172777 | BT25: 70.46172777 | BU25: 70.46172777 | BV25: 70.46172777 | BY25: 10923.71918 | BZ25: 30.35953041 | CA25: 33.39548345 | CB25: 33.39548345 | CC25: 33.39548345 | CD25: 33.39548345 | CE25: 33.39548345 | CF25: 33.39548345 | CG25: 33.39548345 | CH25: 33.39548345 | CI25: 33.39548345 | CJ25: 33.39548345 | CK25: 33.39548345 | CL25: 33.39548345 | CP25: 11 | CQ25: 319.2 | CR25: 28.23849643 | CS25: 68.48075079 | CT25: 68.48075079 | CU25: 68.48075079 | CV25: 68.48075079 | CW25: 68.48075079 | CX25: 68.48075079 | CY25: 68.48075079 | CZ25: 68.48075079 | DA25: 68.48075079 | DB25: 68.48075079 | DC25: 68.48075079 | DD25: 68.48075079 | DG25: Nov | DH25: =Q19 -> 70.46172777 | DI25: =Q18 -> 74.15528334 | DJ25: =Q17 -> 77.74736051 | DK25: =Q16 -> 81.12807944 | DL25: =Q15 -> 84.14107435 | DM25: =Q14 -> 86.55815134 | DN25: =Q13 -> 88.03270749 | DO25: =Q12 -> 88.0039338 | DP25: =Q11 -> 85.46448892 | DQ25: =Q10 -> 78.22116345 | DR25: =Q9 -> 58.62329042
C26: Sep | D26: 1 | F26: 18 | G26: 46.1967942 | H26: 46.1967942 | I26: 46.1967942 | J26: 46.1967942 | K26: 46.1967942 | L26: 46.1967942 | M26: 46.1967942 | N26: 46.1967942 | O26: 46.1967942 | P26: 46.1967942 | Q26: 46.1967942 | R26: 46.1967942 | S26: 532 | AE26: 21.56854819 | AF26: 22.14351751 | AG26: 22.56482992 | AH26: 22.65344023 | AI26: 22.3886153 | AJ26: 21.79598245 | AK26: 21.01190183 | AL26: 20.40266487 | AM26: 20.06570895 | AN26: 20.12280055 | AO26: 20.54484011 | AP26: 21.09026171 | AQ26: 21.3627593 | AS26: 12 | AT26: 51.80650462 | AU26: 51.80650462 | AV26: 51.80650462 | AW26: 51.80650462 | AX26: 51.80650462 | AY26: 51.80650462 | AZ26: 51.80650462 | BA26: 51.80650462 | BB26: 51.80650462 | BC26: 51.80650462 | BD26: 51.80650462 | BE26: 51.80650462 | BI26: 12 | BJ26: 349.6 | BK26: 66.74504742 | BL26: 66.74504742 | BM26: 66.74504742 | BN26: 66.74504742 | BO26: 66.74504742 | BP26: 66.74504742 | BQ26: 66.74504742 | BR26: 66.74504742 | BS26: 66.74504742 | BT26: 66.74504742 | BU26: 66.74504742 | BV26: 66.74504742 | BY26: 11805.07795 | BZ26: 28.99206452 | CA26: 31.89127098 | CB26: 31.89127098 | CC26: 31.89127098 | CD26: 31.89127098 | CE26: 31.89127098 | CF26: 31.89127098 | CG26: 31.89127098 | CH26: 31.89127098 | CI26: 31.89127098 | CJ26: 31.89127098 | CK26: 31.89127098 | CL26: 31.89127098 | CP26: 12 | CQ26: 349.6 | CR26: 26.29075673 | CS26: 63.75731668 | CT26: 63.75731668 | CU26: 63.75731668 | CV26: 63.75731668 | CW26: 63.75731668 | CX26: 63.75731668 | CY26: 63.75731668 | CZ26: 63.75731668 | DA26: 63.75731668 | DB26: 63.75731668 | DC26: 63.75731668 | DD26: 63.75731668 | DG26: Dec | DH26: =R20 -> 66.74504742 | DI26: =R19 -> 70.46172777 | DJ26: =R18 -> 74.15528334 | DK26: =R17 -> 77.74736051 | DL26: =R16 -> 81.12807944 | DM26: =R15 -> 84.14107435 | DN26: =R14 -> 86.55815134 | DO26: =R13 -> 88.03270749 | DP26: =R12 -> 88.0039338 | DQ26: =R11 -> 85.46448892 | DR26: =R10 -> 78.22116345 | DS26: =R9 -> 58.62329042
C27: Oct | D27: 1 | F27: 19 | G27: 43.2364615 | H27: 43.2364615 | I27: 43.2364615 | J27: 43.2364615 | K27: 43.2364615 | L27: 43.2364615 | M27: 43.2364615 | N27: 43.2364615 | O27: 43.2364615 | P27: 43.2364615 | Q27: 43.2364615 | R27: 43.2364615 | S27: 562.4 | AE27: 20.70875842 | AF27: 21.2585168 | AG27: 21.6985108 | AH27: 21.8663803 | AI27: 21.65911901 | AJ27: 21.1465337 | AK27: 20.34624472 | AL27: 19.623205 | AM27: 19.21981747 | AN27: 19.28009352 | AO27: 19.78091814 | AP27: 20.26946456 | AQ27: 20.57146354 | AS27: 13 | AT27: 49.88754522 | AU27: 49.88754522 | AV27: 49.88754522 | AW27: 49.88754522 | AX27: 49.88754522 | AY27: 49.88754522 | AZ27: 49.88754522 | BA27: 49.88754522 | BB27: 49.88754522 | BC27: 49.88754522 | BD27: 49.88754522 | BE27: 49.88754522 | BI27: 13 | BJ27: 380 | BK27: 63.06146247 | BL27: 63.06146247 | BM27: 63.06146247 | BN27: 63.06146247 | BO27: 63.06146247 | BP27: 63.06146247 | BQ27: 63.06146247 | BR27: 63.06146247 | BS27: 63.06146247 | BT27: 63.06146247 | BU27: 63.06146247 | BV27: 63.06146247 | BY27: 12644.49239 | BZ27: 27.61231721 | CA27: 30.37354894 | CB27: 30.37354894 | CC27: 30.37354894 | CD27: 30.37354894 | CE27: 30.37354894 | CF27: 30.37354894 | CG27: 30.37354894 | CH27: 30.37354894 | CI27: 30.37354894 | CJ27: 30.37354894 | CK27: 30.37354894 | CL27: 30.37354894 | CP27: 13 | CQ27: 380 | CR27: 24.29864182 | CS27: 58.92626893 | CT27: 58.92626893 | CU27: 58.92626893 | CV27: 58.92626893 | CW27: 58.92626893 | CX27: 58.92626893 | CY27: 58.92626893 | CZ27: 58.92626893 | DA27: 58.92626893 | DB27: 58.92626893 | DC27: 58.92626893 | DD27: 58.92626893 | DG27: Jan | DH27: =G21 -> 63.06146247 | DI27: =G20 -> 66.74504742 | DJ27: =G19 -> 70.46172777 | DK27: =G18 -> 74.15528334 | DL27: =G17 -> 77.74736051 | DM27: =G16 -> 81.12807944 | DN27: =G15 -> 84.14107435 | DO27: =G14 -> 86.55815134 | DP27: =G13 -> 88.03270749 | DQ27: =G12 -> 88.0039338 | DR27: =G11 -> 85.46448892 | DS27: =G10 -> 78.22116345
C28: Nov | D28: 1 | F28: 20 | G28: 40.42559099 | H28: 40.42559099 | I28: 40.42559099 | J28: 40.42559099 | K28: 40.42559099 | L28: 40.42559099 | M28: 40.42559099 | N28: 40.42559099 | O28: 40.42559099 | P28: 40.42559099 | Q28: 40.42559099 | R28: 40.42559099 | S28: 592.8 | AE28: 19.91873086 | AF28: 20.43076772 | AG28: 20.87661823 | AH28: 21.11493013 | AI28: 20.96545177 | AJ28: 20.52939421 | AK28: 19.73845258 | AL28: 18.91284782 | AM28: 18.44593053 | AN28: 18.50225222 | AO28: 19.07547156 | AP28: 19.51984754 | AQ28: 19.83589127 | AS28: 14 | AT28: 48.10372003 | AU28: 48.10372003 | AV28: 48.10372003 | AW28: 48.10372003 | AX28: 48.10372003 | AY28: 48.10372003 | AZ28: 48.10372003 | BA28: 48.10372003 | BB28: 48.10372003 | BC28: 48.10372003 | BD28: 48.10372003 | BE28: 48.10372003 | BI28: 14 | BJ28: 410.4 | BK28: 59.45124706 | BL28: 59.45124706 | BM28: 59.45124706 | BN28: 59.45124706 | BO28: 59.45124706 | BP28: 59.45124706 | BQ28: 59.45124706 | BR28: 59.45124706 | BS28: 59.45124706 | BT28: 59.45124706 | BU28: 59.45124706 | BV28: 59.45124706 | BY28: 13442.15379 | BZ28: 26.2388618 | CA28: 28.86274798 | CB28: 28.86274798 | CC28: 28.86274798 | CD28: 28.86274798 | CE28: 28.86274798 | CF28: 28.86274798 | CG28: 28.86274798 | CH28: 28.86274798 | CI28: 28.86274798 | CJ28: 28.86274798 | CK28: 28.86274798 | CL28: 28.86274798 | CP28: 14 | CQ28: 410.4 | CR28: 22.30660455 | CS28: 54.09540947 | CT28: 54.09540947 | CU28: 54.09540947 | CV28: 54.09540947 | CW28: 54.09540947 | CX28: 54.09540947 | CY28: 54.09540947 | CZ28: 54.09540947 | DA28: 54.09540947 | DB28: 54.09540947 | DC28: 54.09540947 | DD28: 54.09540947 | DG28: Feb | DH28: =H22 -> 59.45124706 | DI28: =H21 -> 63.06146247 | DJ28: =H20 -> 66.74504742 | DK28: =H19 -> 70.46172777 | DL28: =H18 -> 74.15528334 | DM28: =H17 -> 77.74736051 | DN28: =H16 -> 81.12807944 | DO28: =H15 -> 84.14107435 | DP28: =H14 -> 86.55815134 | DQ28: =H13 -> 88.03270749 | DR28: =H12 -> 88.0039338 | DS28: =H11 -> 85.46448892
C29: Dec | D29: 1 | F29: 21 | G29: 37.76363369 | H29: 37.76363369 | I29: 37.76363369 | J29: 37.76363369 | K29: 37.76363369 | L29: 37.76363369 | M29: 37.76363369 | N29: 37.76363369 | O29: 37.76363369 | P29: 37.76363369 | Q29: 37.76363369 | R29: 37.76363369 | S29: 623.2 | AE29: 19.14923744 | AF29: 19.60948482 | AG29: 20.04945591 | AH29: 20.34588822 | AI29: 20.25963906 | AJ29: 19.89435556 | AK29: 19.1471498 | AL29: 18.25320678 | AM29: 17.73505188 | AN29: 17.77282168 | AO29: 18.38988007 | AP29: 18.80010962 | AQ29: 19.11719007 | AS29: 15 | AT29: 46.36080862 | AU29: 46.36080862 | AV29: 46.36080862 | AW29: 46.36080862 | AX29: 46.36080862 | AY29: 46.36080862 | AZ29: 46.36080862 | BA29: 46.36080862 | BB29: 46.36080862 | BC29: 46.36080862 | BD29: 46.36080862 | BE29: 46.36080862 | BI29: 15 | BJ29: 440.8 | BK29: 55.94296264 | BL29: 55.94296264 | BM29: 55.94296264 | BN29: 55.94296264 | BO29: 55.94296264 | BP29: 55.94296264 | BQ29: 55.94296264 | BR29: 55.94296264 | BS29: 55.94296264 | BT29: 55.94296264 | BU29: 55.94296264 | BV29: 55.94296264 | BY29: 14198.6723 | BZ29: 24.88547734 | CA29: 27.37402507 | CB29: 27.37402507 | CC29: 27.37402507 | CD29: 27.37402507 | CE29: 27.37402507 | CF29: 27.37402507 | CG29: 27.37402507 | CH29: 27.37402507 | CI29: 27.37402507 | CJ29: 27.37402507 | CK29: 27.37402507 | CL29: 27.37402507 | CP29: 15 | CQ29: 440.8 | CR29: 20.35223662 | CS29: 49.35590134 | CT29: 49.35590134 | CU29: 49.35590134 | CV29: 49.35590134 | CW29: 49.35590134 | CX29: 49.35590134 | CY29: 49.35590134 | CZ29: 49.35590134 | DA29: 49.35590134 | DB29: 49.35590134 | DC29: 49.35590134 | DD29: 49.35590134 | DG29: Mar | DH29: =I23 -> 55.94296264 | DI29: =I22 -> 59.45124706 | DJ29: =I21 -> 63.06146247 | DK29: =I20 -> 66.74504742 | DL29: =I19 -> 70.46172777 | DM29: =I18 -> 74.15528334 | DN29: =I17 -> 77.74736051 | DO29: =I16 -> 81.12807944 | DP29: =I15 -> 84.14107435 | DQ29: =I14 -> 86.55815134 | DR29: =I13 -> 88.03270749 | DS29: =I12 -> 88.0039338
D30: =AVERAGE(D18:D29) -> 1 | F30: 22 | G30: 35.24839881 | H30: 35.24839881 | I30: 35.24839881 | J30: 35.24839881 | K30: 35.24839881 | L30: 35.24839881 | M30: 35.24839881 | N30: 35.24839881 | O30: 35.24839881 | P30: 35.24839881 | Q30: 35.24839881 | R30: 35.24839881 | S30: 653.6 | AE30: 18.35106418 | AF30: 18.74490465 | AG30: 19.16814945 | AH30: 19.50711602 | AI30: 19.49323826 | AJ30: 19.19227033 | AK30: 18.5280347 | AL30: 17.61973495 | AM30: 17.07175542 | AN30: 17.07175812 | AO30: 17.68564417 | AP30: 18.0670356 | AQ30: 18.37505882 | AS30: 16 | AT30: 44.56107735 | AU30: 44.56107735 | AV30: 44.56107735 | AW30: 44.56107735 | AX30: 44.56107735 | AY30: 44.56107735 | AZ30: 44.56107735 | BA30: 44.56107735 | BB30: 44.56107735 | BC30: 44.56107735 | BD30: 44.56107735 | BE30: 44.56107735 | BI30: 16 | BJ30: 471.2 | BK30: 52.55644394 | BL30: 52.55644394 | BM30: 52.55644394 | BN30: 52.55644394 | BO30: 52.55644394 | BP30: 52.55644394 | BQ30: 52.55644394 | BR30: 52.55644394 | BS30: 52.55644394 | BT30: 52.55644394 | BU30: 52.55644394 | BV30: 52.55644394 | BY30: 14914.9669 | BZ30: 23.56232229 | CA30: 25.91855452 | CB30: 25.91855452 | CC30: 25.91855452 | CD30: 25.91855452 | CE30: 25.91855452 | CF30: 25.91855452 | CG30: 25.91855452 | CH30: 25.91855452 | CI30: 25.91855452 | CJ30: 25.91855452 | CK30: 25.91855452 | CL30: 25.91855452 | CP30: 16 | CQ30: 471.2 | CR30: 18.46574748 | CS30: 44.78100505 | CT30: 44.78100505 | CU30: 44.78100505 | CV30: 44.78100505 | CW30: 44.78100505 | CX30: 44.78100505 | CY30: 44.78100505 | CZ30: 44.78100505 | DA30: 44.78100505 | DB30: 44.78100505 | DC30: 44.78100505 | DD30: 44.78100505 | DG30: Apr | DH30: =J24 -> 52.55644394 | DI30: =J23 -> 55.94296264 | DJ30: =J22 -> 59.45124706 | DK30: =J21 -> 63.06146247 | DL30: =J20 -> 66.74504742 | DM30: =J19 -> 70.46172777 | DN30: =J18 -> 74.15528334 | DO30: =J17 -> 77.74736051 | DP30: =J16 -> 81.12807944 | DQ30: =J15 -> 84.14107435 | DR30: =J14 -> 86.55815134 | DS30: =J13 -> 88.03270749
D31: =update(BG6,BH2,"Wood's curves") -> Wood's curves | F31: 23 | G31: 32.87647353 | H31: 32.87647353 | I31: 32.87647353 | J31: 32.87647353 | K31: 32.87647353 | L31: 32.87647353 | M31: 32.87647353 | N31: 32.87647353 | O31: 32.87647353 | P31: 32.87647353 | Q31: 32.87647353 | R31: 32.87647353 | S31: 684 | AE31: 17.48347642 | AF31: 17.79721545 | AG31: 18.19314613 | AH31: 18.55616948 | AI31: 18.62483075 | AJ31: 18.38303031 | AK31: 17.84043667 | AL31: 16.98535927 | AM31: 16.43676397 | AN31: 16.37922949 | AO31: 16.93112592 | AP31: 17.28227624 | AQ31: 17.57442168 | AS31: 17 | AT31: 42.61946432 | AU31: 42.61946432 | AV31: 42.61946432 | AW31: 42.61946432 | AX31: 42.61946432 | AY31: 42.61946432 | AZ31: 42.61946432 | BA31: 42.61946432 | BB31: 42.61946432 | BC31: 42.61946432 | BD31: 42.61946432 | BE31: 42.61946432 | BI31: 17 | BJ31: 501.6 | BK31: 49.30495761 | BL31: 49.30495761 | BM31: 49.30495761 | BN31: 49.30495761 | BO31: 49.30495761 | BP31: 49.30495761 | BQ31: 49.30495761 | BR31: 49.30495761 | BS31: 49.30495761 | BT31: 49.30495761 | BU31: 49.30495761 | BV31: 49.30495761 | BY31: 15592.18121 | BZ31: 22.27678665 | CA31: 24.50446532 | CB31: 24.50446532 | CC31: 24.50446532 | CD31: 24.50446532 | CE31: 24.50446532 | CF31: 24.50446532 | CG31: 24.50446532 | CH31: 24.50446532 | CI31: 24.50446532 | CJ31: 24.50446532 | CK31: 24.50446532 | CL31: 24.50446532 | CP31: 17 | CQ31: 501.6 | CR31: 16.67004149 | CS31: 40.4262656 | CT31: 40.4262656 | CU31: 40.4262656 | CV31: 40.4262656 | CW31: 40.4262656 | CX31: 40.4262656 | CY31: 40.4262656 | CZ31: 40.4262656 | DA31: 40.4262656 | DB31: 40.4262656 | DC31: 40.4262656 | DD31: 40.4262656 | DG31: May | DH31: =K25 -> 49.30495761 | DI31: =K24 -> 52.55644394 | DJ31: =K23 -> 55.94296264 | DK31: =K22 -> 59.45124706 | DL31: =K21 -> 63.06146247 | DM31: =K20 -> 66.74504742 | DN31: =K19 -> 70.46172777 | DO31: =K18 -> 74.15528334 | DP31: =K17 -> 77.74736051 | DQ31: =K16 -> 81.12807944 | DR31: =K15 -> 84.14107435 | DS31: =K14 -> 86.55815134
C32: lact 1, a | D32: 10 | F32: 24 | G32: 30.64355153 | H32: 30.64355153 | I32: 30.64355153 | J32: 30.64355153 | K32: 30.64355153 | L32: 30.64355153 | M32: 30.64355153 | N32: 30.64355153 | O32: 30.64355153 | P32: 30.64355153 | Q32: 30.64355153 | R32: 30.64355153 | S32: 714.4 | AE32: 16.52268415 | AF32: 16.74548683 | AG32: 17.10271469 | AH32: 17.46893056 | AI32: 17.62751409 | AJ32: 17.44354472 | AK32: 17.05387324 | AL32: 16.32411494 | AM32: 15.80952801 | AN32: 15.67941598 | AO32: 16.10828963 | AP32: 16.41912823 | AQ32: 16.69210209 | AS32: 18 | AT32: 40.47976442 | AU32: 40.47976442 | AV32: 40.47976442 | AW32: 40.47976442 | AX32: 40.47976442 | AY32: 40.47976442 | AZ32: 40.47976442 | BA32: 40.47976442 | BB32: 40.47976442 | BC32: 40.47976442 | BD32: 40.47976442 | BE32: 40.47976442 | BI32: 18 | BJ32: 532 | BK32: 46.1967942 | BL32: 46.1967942 | BM32: 46.1967942 | BN32: 46.1967942 | BO32: 46.1967942 | BP32: 46.1967942 | BQ32: 46.1967942 | BR32: 46.1967942 | BS32: 46.1967942 | BT32: 46.1967942 | BU32: 46.1967942 | BV32: 46.1967942 | BY32: 16231.61857 | BZ32: 21.03412373 | CA32: 23.13753611 | CB32: 23.13753611 | CC32: 23.13753611 | CD32: 23.13753611 | CE32: 23.13753611 | CF32: 23.13753611 | CG32: 23.13753611 | CH32: 23.13753611 | CI32: 23.13753611 | CJ32: 23.13753611 | CK32: 23.13753611 | CL32: 23.13753611 | CP32: 18 | CQ32: 532 | CR32: 14.98123315 | CS32: 36.33076203 | CT32: 36.33076203 | CU32: 36.33076203 | CV32: 36.33076203 | CW32: 36.33076203 | CX32: 36.33076203 | CY32: 36.33076203 | CZ32: 36.33076203 | DA32: 36.33076203 | DB32: 36.33076203 | DC32: 36.33076203 | DD32: 36.33076203 | DG32: Jun | DH32: =L26 -> 46.1967942 | DI32: =L25 -> 49.30495761 | DJ32: =L24 -> 52.55644394 | DK32: =L23 -> 55.94296264 | DL32: =L22 -> 59.45124706 | DM32: =L21 -> 63.06146247 | DN32: =L20 -> 66.74504742 | DO32: =L19 -> 70.46172777 | DP32: =L18 -> 74.15528334 | DQ32: =L17 -> 77.74736051 | DR32: =L16 -> 81.12807944 | DS32: =L15 -> 84.14107435
C33: lact 1, b | D33: 0.34 | AE33: 15.47030723 | AF33: 15.59659937 | AG33: 15.901445 | AH33: 16.24823874 | AI33: 16.49639411 | AJ33: 16.37571842 | AK33: 16.1546072 | AL33: 15.6147797 | AM33: 15.1708044 | AN33: 14.9643106 | AO33: 15.21944258 | AP33: 15.46931427 | AQ33: 15.7234968 | AS33: 19 | AT33: 38.13081439 | AU33: 38.13081439 | AV33: 38.13081439 | AW33: 38.13081439 | AX33: 38.13081439 | AY33: 38.13081439 | AZ33: 38.13081439 | BA33: 38.13081439 | BB33: 38.13081439 | BC33: 38.13081439 | BD33: 38.13081439 | BE33: 38.13081439 | BI33: 19 | BJ33: 562.4 | BK33: 43.2364615 | BL33: 43.2364615 | BM33: 43.2364615 | BN33: 43.2364615 | BO33: 43.2364615 | BP33: 43.2364615 | BQ33: 43.2364615 | BR33: 43.2364615 | BS33: 43.2364615 | BT33: 43.2364615 | BU33: 43.2364615 | BV33: 43.2364615 | BY33: 16834.69155 | BZ33: 19.83792701 | CA33: 21.82171971 | CB33: 21.82171971 | CC33: 21.82171971 | CD33: 21.82171971 | CE33: 21.82171971 | CF33: 21.82171971 | CG33: 21.82171971 | CH33: 21.82171971 | CI33: 21.82171971 | CJ33: 21.82171971 | CK33: 21.82171971 | CL33: 21.82171971 | CP33: 19 | CQ33: 562.4 | CR33: 13.4094414 | CS33: 32.51903361 | CT33: 32.51903361 | CU33: 32.51903361 | CV33: 32.51903361 | CW33: 32.51903361 | CX33: 32.51903361 | CY33: 32.51903361 | CZ33: 32.51903361 | DA33: 32.51903361 | DB33: 32.51903361 | DC33: 32.51903361 | DD33: 32.51903361 | DG33: Jul | DH33: =M27 -> 43.2364615 | DI33: =M26 -> 46.1967942 | DJ33: =M25 -> 49.30495761 | DK33: =M24 -> 52.55644394 | DL33: =M23 -> 55.94296264 | DM33: =M22 -> 59.45124706 | DN33: =M21 -> 63.06146247 | DO33: =M20 -> 66.74504742 | DP33: =M19 -> 70.46172777 | DQ33: =M18 -> 74.15528334 | DR33: =M17 -> 77.74736051 | DS33: =M16 -> 81.12807944
C34: lact 1, c | D34: 0.0028 | G34: Lactation 2 | AE34: 14.36184076 | AF34: 14.39417434 | AG34: 14.6287479 | AH34: 14.93252262 | AI34: 15.25607713 | AJ34: 15.2144301 | AK34: 15.15220368 | AL34: 14.84450817 | AM34: 14.50523516 | AN34: 14.23751969 | AO34: 14.29397577 | AP34: 14.44976314 | AQ34: 14.68924987 | AS34: 20 | AT34: 35.62267779 | AU34: 35.62267779 | AV34: 35.62267779 | AW34: 35.62267779 | AX34: 35.62267779 | AY34: 35.62267779 | AZ34: 35.62267779 | BA34: 35.62267779 | BB34: 35.62267779 | BC34: 35.62267779 | BD34: 35.62267779 | BE34: 35.62267779 | BI34: 20 | BJ34: 592.8 | BK34: 40.42559099 | BL34: 40.42559099 | BM34: 40.42559099 | BN34: 40.42559099 | BO34: 40.42559099 | BP34: 40.42559099 | BQ34: 40.42559099 | BR34: 40.42559099 | BS34: 40.42559099 | BT34: 40.42559099 | BU34: 40.42559099 | BV34: 40.42559099 | BY34: 17402.88261 | BZ34: 18.6904952 | CA34: 20.55954472 | CB34: 20.55954472 | CC34: 20.55954472 | CD34: 20.55954472 | CE34: 20.55954472 | CF34: 20.55954472 | CG34: 20.55954472 | CH34: 20.55954472 | CI34: 20.55954472 | CJ34: 20.55954472 | CK34: 20.55954472 | CL34: 20.55954472 | CP34: 20 | CQ34: 592.8 | CR34: 11.95972412 | CS34: 29.00334615 | CT34: 29.00334615 | CU34: 29.00334615 | CV34: 29.00334615 | CW34: 29.00334615 | CX34: 29.00334615 | CY34: 29.00334615 | CZ34: 29.00334615 | DA34: 29.00334615 | DB34: 29.00334615 | DC34: 29.00334615 | DD34: 29.00334615 | DG34: Aug | DH34: =N28 -> 40.42559099 | DI34: =N27 -> 43.2364615 | DJ34: =N26 -> 46.1967942 | DK34: =N25 -> 49.30495761 | DL34: =N24 -> 52.55644394 | DM34: =N23 -> 55.94296264 | DN34: =N22 -> 59.45124706 | DO34: =N21 -> 63.06146247 | DP34: =N20 -> 66.74504742 | DQ34: =N19 -> 70.46172777 | DR34: =N18 -> 74.15528334 | DS34: =N17 -> 77.74736051
C35: lact 2, a | D35: 19.3 | F35: month | G35: Jan | H35: Feb | I35: Mar | J35: Apr | K35: May | L35: Jun | M35: Jul | N35: Aug | O35: Sep | P35: Oct | Q35: Nov | R35: Dec | S35: day | AE35: 13.27512031 | AF35: 13.22750331 | AG35: 13.3673549 | AH35: 13.60443136 | AI35: 13.96816202 | AJ35: 14.03551052 | AK35: 14.08608723 | AL35: 14.01246616 | AM35: 13.80392618 | AN35: 13.51806348 | AO35: 13.3951046 | AP35: 13.4093897 | AQ35: 13.64192665 | AS35: 21 | AT35: 33.08283008 | AU35: 33.08283008 | AV35: 33.08283008 | AW35: 33.08283008 | AX35: 33.08283008 | AY35: 33.08283008 | AZ35: 33.08283008 | BA35: 33.08283008 | BB35: 33.08283008 | BC35: 33.08283008 | BD35: 33.08283008 | BE35: 33.08283008 | BI35: 21 | BJ35: 623.2 | BK35: 37.76363369 | BL35: 37.76363369 | BM35: 37.76363369 | BN35: 37.76363369 | BO35: 37.76363369 | BP35: 37.76363369 | BQ35: 37.76363369 | BR35: 37.76363369 | BS35: 37.76363369 | BT35: 37.76363369 | BU35: 37.76363369 | BV35: 37.76363369 | BY35: 17937.71331 | BZ35: 17.59311529 | CA35: 19.35242682 | CB35: 19.35242682 | CC35: 19.35242682 | CD35: 19.35242682 | CE35: 19.35242682 | CF35: 19.35242682 | CG35: 19.35242682 | CH35: 19.35242682 | CI35: 19.35242682 | CJ35: 19.35242682 | CK35: 19.35242682 | CL35: 19.35242682 | CP35: 21 | CQ35: 623.2 | CR35: 10.63304453 | CS35: 25.78603554 | CT35: 25.78603554 | CU35: 25.78603554 | CV35: 25.78603554 | CW35: 25.78603554 | CX35: 25.78603554 | CY35: 25.78603554 | CZ35: 25.78603554 | DA35: 25.78603554 | DB35: 25.78603554 | DC35: 25.78603554 | DD35: 25.78603554 | DG35: Sep | DH35: =O29 -> 37.76363369 | DI35: =O28 -> 40.42559099 | DJ35: =O27 -> 43.2364615 | DK35: =O26 -> 46.1967942 | DL35: =O25 -> 49.30495761 | DM35: =O24 -> 52.55644394 | DN35: =O23 -> 55.94296264 | DO35: =O22 -> 59.45124706 | DP35: =O21 -> 63.06146247 | DQ35: =O20 -> 66.74504742 | DR35: =O19 -> 70.46172777 | DS35: =O18 -> 74.15528334
C36: lact 2, b | D36: 0.255 | F36: 1 | G36: 88.96312488 | H36: 88.96312488 | I36: 88.96312488 | J36: 88.96312488 | K36: 88.96312488 | L36: 88.96312488 | M36: 88.96312488 | N36: 88.96312488 | O36: 88.96312488 | P36: 88.96312488 | Q36: 88.96312488 | R36: 88.96312488 | S36: 15.2 | AE36: 12.33878723 | AF36: 12.24047784 | AG36: 12.25181793 | AH36: 12.39946631 | AI36: 12.73873239 | AJ36: 12.9637207 | AK36: 13.03209898 | AL36: 13.133465 | AM36: 13.067026 | AN36: 12.84417662 | AO36: 12.62660961 | AP36: 12.43587497 | AQ36: 12.6726878 | AS36: 22 | AT36: 30.73234359 | AU36: 30.73234359 | AV36: 30.73234359 | AW36: 30.73234359 | AX36: 30.73234359 | AY36: 30.73234359 | AZ36: 30.73234359 | BA36: 30.73234359 | BB36: 30.73234359 | BC36: 30.73234359 | BD36: 30.73234359 | BE36: 30.73234359 | BI36: 22 | BJ36: 653.6 | BK36: 35.24839881 | BL36: 35.24839881 | BM36: 35.24839881 | BN36: 35.24839881 | BO36: 35.24839881 | BP36: 35.24839881 | BQ36: 35.24839881 | BR36: 35.24839881 | BS36: 35.24839881 | BT36: 35.24839881 | BU36: 35.24839881 | BV36: 35.24839881 | BY36: 18440.72035 | BZ36: 16.54628397 | CA36: 18.20091237 | CB36: 18.20091237 | CC36: 18.20091237 | CD36: 18.20091237 | CE36: 18.20091237 | CF36: 18.20091237 | CG36: 18.20091237 | CH36: 18.20091237 | CI36: 18.20091237 | CJ36: 18.20091237 | CK36: 18.20091237 | CL36: 18.20091237 | CP36: 22 | CQ36: 653.6 | CR36: 9.427193013 | CS36: 22.86174325 | CT36: 22.86174325 | CU36: 22.86174325 | CV36: 22.86174325 | CW36: 22.86174325 | CX36: 22.86174325 | CY36: 22.86174325 | CZ36: 22.86174325 | DA36: 22.86174325 | DB36: 22.86174325 | DC36: 22.86174325 | DD36: 22.86174325 | DG36: Oct | DH36: =P30 -> 35.24839881 | DI36: =P29 -> 37.76363369 | DJ36: =P28 -> 40.42559099 | DK36: =P27 -> 43.2364615 | DL36: =P26 -> 46.1967942 | DM36: =P25 -> 49.30495761 | DN36: =P24 -> 52.55644394 | DO36: =P23 -> 55.94296264 | DP36: =P22 -> 59.45124706 | DQ36: =P21 -> 63.06146247 | DR36: =P20 -> 66.74504742 | DS36: =P19 -> 70.46172777
C37: lact 2, c | D37: 0.0034 | F37: 2 | G37: 106.1664441 | H37: 106.1664441 | I37: 106.1664441 | J37: 106.1664441 | K37: 106.1664441 | L37: 106.1664441 | M37: 106.1664441 | N37: 106.1664441 | O37: 106.1664441 | P37: 106.1664441 | Q37: 106.1664441 | R37: 106.1664441 | S37: 45.6 | AE37: 11.40245414 | AF37: 11.25345237 | AG37: 11.13628096 | AH37: 11.19450125 | AI37: 11.50930275 | AJ37: 11.89193089 | AK37: 11.97811074 | AL37: 12.25446385 | AM37: 12.33012583 | AN37: 12.17028976 | AO37: 11.85811462 | AP37: 11.46236023 | AQ37: 11.70344895 | AS37: 23 | AT37: 28.38185711 | AU37: 28.38185711 | AV37: 28.38185711 | AW37: 28.38185711 | AX37: 28.38185711 | AY37: 28.38185711 | AZ37: 28.38185711 | BA37: 28.38185711 | BB37: 28.38185711 | BC37: 28.38185711 | BD37: 28.38185711 | BE37: 28.38185711 | BI37: 23 | BJ37: 684 | BK37: 32.87647353 | BL37: 32.87647353 | BM37: 32.87647353 | BN37: 32.87647353 | BO37: 32.87647353 | BP37: 32.87647353 | BQ37: 32.87647353 | BR37: 32.87647353 | BS37: 32.87647353 | BT37: 32.87647353 | BU37: 32.87647353 | BV37: 32.87647353 | BY37: 18913.43677 | BZ37: 15.54988247 | CA37: 17.10487072 | CB37: 17.10487072 | CC37: 17.10487072 | CD37: 17.10487072 | CE37: 17.10487072 | CF37: 17.10487072 | CG37: 17.10487072 | CH37: 17.10487072 | CI37: 17.10487072 | CJ37: 17.10487072 | CK37: 17.10487072 | CL37: 17.10487072 | CP37: 23 | CQ37: 684 | CR37: 8.337616874 | CS37: 20.21942863 | CT37: 20.21942863 | CU37: 20.21942863 | CV37: 20.21942863 | CW37: 20.21942863 | CX37: 20.21942863 | CY37: 20.21942863 | CZ37: 20.21942863 | DA37: 20.21942863 | DB37: 20.21942863 | DC37: 20.21942863 | DD37: 20.21942863 | DG37: Nov | DH37: =Q31 -> 32.87647353 | DI37: =Q30 -> 35.24839881 | DJ37: =Q29 -> 37.76363369 | DK37: =Q28 -> 40.42559099 | DL37: =Q27 -> 43.2364615 | DM37: =Q26 -> 46.1967942 | DN37: =Q25 -> 49.30495761 | DO37: =Q24 -> 52.55644394 | DP37: =Q23 -> 55.94296264 | DQ37: =Q22 -> 59.45124706 | DR37: =Q21 -> 63.06146247 | DS37: =Q20 -> 66.74504742
C38: lact 3+, a | D38: 21 | F38: 3 | G38: 109.061138 | H38: 109.061138 | I38: 109.061138 | J38: 109.061138 | K38: 109.061138 | L38: 109.061138 | M38: 109.061138 | N38: 109.061138 | O38: 109.061138 | P38: 109.061138 | Q38: 109.061138 | R38: 109.061138 | S38: 76 | AE38: 10.46612106 | AF38: 10.2664269 | AG38: 10.02074398 | AH38: 9.989536201 | AI38: 10.27987312 | AJ38: 10.82014107 | AK38: 10.92412249 | AL38: 11.37546269 | AM38: 11.59322565 | AN38: 11.49640289 | AO38: 11.08961963 | AP38: 10.4888455 | AQ38: 10.7342101 | AS38: 24 | AT38: 26.03137063 | AU38: 26.03137063 | AV38: 26.03137063 | AW38: 26.03137063 | AX38: 26.03137063 | AY38: 26.03137063 | AZ38: 26.03137063 | BA38: 26.03137063 | BB38: 26.03137063 | BC38: 26.03137063 | BD38: 26.03137063 | BE38: 26.03137063 | BI38: 24 | BJ38: 714.4 | BK38: 30.64355153 | BL38: 30.64355153 | BM38: 30.64355153 | BN38: 30.64355153 | BO38: 30.64355153 | BP38: 30.64355153 | BQ38: 30.64355153 | BR38: 30.64355153 | BS38: 30.64355153 | BT38: 30.64355153 | BU38: 30.64355153 | BV38: 30.64355153 | BY38: 19357.37756 | BZ38: 14.60331541 | CA38: 16.06364696 | CB38: 16.06364696 | CC38: 16.06364696 | CD38: 16.06364696 | CE38: 16.06364696 | CF38: 16.06364696 | CG38: 16.06364696 | CH38: 16.06364696 | CI38: 16.06364696 | CJ38: 16.06364696 | CK38: 16.06364696 | CL38: 16.06364696 | CP38: 24 | CQ38: 714.4 | CR38: 7.358133952 | CS38: 17.84409941 | CT38: 17.84409941 | CU38: 17.84409941 | CV38: 17.84409941 | CW38: 17.84409941 | CX38: 17.84409941 | CY38: 17.84409941 | CZ38: 17.84409941 | DA38: 17.84409941 | DB38: 17.84409941 | DC38: 17.84409941 | DD38: 17.84409941 | DG38: Dec | DH38: =R32 -> 30.64355153 | DI38: =R31 -> 32.87647353 | DJ38: =R30 -> 35.24839881 | DK38: =R29 -> 37.76363369 | DL38: =R28 -> 40.42559099 | DM38: =R27 -> 43.2364615 | DN38: =R26 -> 46.1967942 | DO38: =R25 -> 49.30495761 | DP38: =R24 -> 52.55644394 | DQ38: =R23 -> 55.94296264 | DR38: =R22 -> 59.45124706 | DS38: =R21 -> 63.06146247
C39: lact 3+, b | D39: 0.25 | F39: 4 | G39: 107.1627862 | H39: 107.1627862 | I39: 107.1627862 | J39: 107.1627862 | K39: 107.1627862 | L39: 107.1627862 | M39: 107.1627862 | N39: 107.1627862 | O39: 107.1627862 | P39: 107.1627862 | Q39: 107.1627862 | R39: 107.1627862 | S39: 106.4 | DG39: Jan | DI39: =G32 -> 30.64355153 | DJ39: =G31 -> 32.87647353 | DK39: =G30 -> 35.24839881 | DL39: =G29 -> 37.76363369 | DM39: =G28 -> 40.42559099 | DN39: =G27 -> 43.2364615 | DO39: =G26 -> 46.1967942 | DP39: =G25 -> 49.30495761 | DQ39: =G24 -> 52.55644394 | DR39: =G23 -> 55.94296264 | DS39: =G22 -> 59.45124706
C40: lact 3+, c | D40: 0.0035 | F40: 5 | G40: 103.0355654 | H40: 103.0355654 | I40: 103.0355654 | J40: 103.0355654 | K40: 103.0355654 | L40: 103.0355654 | M40: 103.0355654 | N40: 103.0355654 | O40: 103.0355654 | P40: 103.0355654 | Q40: 103.0355654 | R40: 103.0355654 | S40: 136.8 | BL40: woodscurves2 | CB40: peakmilkcurves2 | DG40: Feb | DJ40: =H32 -> 30.64355153 | DK40: =H31 -> 32.87647353 | DL40: =H30 -> 35.24839881 | DM40: =H29 -> 37.76363369 | DN40: =H28 -> 40.42559099 | DO40: =H27 -> 43.2364615 | DP40: =H26 -> 46.1967942 | DQ40: =H25 -> 49.30495761 | DR40: =H24 -> 52.55644394 | DS40: =H23 -> 55.94296264
F41: 6 | G41: 97.79615401 | H41: 97.79615401 | I41: 97.79615401 | J41: 97.79615401 | K41: 97.79615401 | L41: 97.79615401 | M41: 97.79615401 | N41: 97.79615401 | O41: 97.79615401 | P41: 97.79615401 | Q41: 97.79615401 | R41: 97.79615401 | S41: 167.2 | AE41: Jan | AF41: Feb | AG41: Mar | AH41: Apr | AI41: May | AJ41: Jun | AK41: Jul | AL41: Aug | AM41: Sep | AN41: Oct | AO41: Nov | AP41: Dec | AQ41: Avg | AS41: mim | AU41: floridacurves2 | BI41: mim | BK41: Jan | BL41: Feb | BM41: Mar | BN41: Apr | BO41: May | BP41: Jun | BQ41: Jul | BR41: Aug | BS41: Sep | BT41: Oct | BU41: Nov | BV41: Dec | CA41: Jan | CB41: Feb | CC41: Mar | CD41: Apr | CE41: May | CF41: Jun | CG41: Jul | CH41: Aug | CI41: Sep | CJ41: Oct | CK41: Nov | CL41: Dec | CS41: diphasiccurves2 | DG41: Mar | DK41: =I32 -> 30.64355153 | DL41: =I31 -> 32.87647353 | DM41: =I30 -> 35.24839881 | DN41: =I29 -> 37.76363369 | DO41: =I28 -> 40.42559099 | DP41: =I27 -> 43.2364615 | DQ41: =I26 -> 46.1967942 | DR41: =I25 -> 49.30495761 | DS41: =I24 -> 52.55644394
D42: =update(BG6,BH3,"Fit curves") -> Fit curves | F42: 7 | G42: 92.03086803 | H42: 92.03086803 | I42: 92.03086803 | J42: 92.03086803 | K42: 92.03086803 | L42: 92.03086803 | M42: 92.03086803 | N42: 92.03086803 | O42: 92.03086803 | P42: 92.03086803 | Q42: 92.03086803 | R42: 92.03086803 | S42: 197.6 | AE42: 34.54885221 | AF42: 35.23538981 | AG42: 35.51229956 | AH42: 33.9604468 | AI42: 31.51122482 | AJ42: 28.9051945 | AK42: 26.6873652 | AL42: 26.26958996 | AM42: 27.59263736 | AN42: 29.78686227 | AO42: 31.5916812 | AP42: 32.97281652 | AQ42: 31.21453002 | AS42: 1 | AT42: =((mseasonality*AE42*msea1+(1-mseasonality)*$AQ42)+mabs)*(1+pct)*lbs -> 75.69788484 | AU42: =((mseasonality*AF42*msea2+(1-mseasonality)*$AQ42)+mabs)*(1+pct)*lbs -> 75.69788484 | AV42: =((mseasonality*AG42*msea3+(1-mseasonality)*$AQ42)+mabs)*(1+pct)*lbs -> 75.69788484 | AW42: =((mseasonality*AH42*msea4+(1-mseasonality)*$AQ42)+mabs)*(1+pct)*lbs -> 75.69788484 | AX42: =((mseasonality*AI42*msea5+(1-mseasonality)*$AQ42)+mabs)*(1+pct)*lbs -> 75.69788484 | AY42: =((mseasonality*AJ42*msea6+(1-mseasonality)*$AQ42)+mabs)*(1+pct)*lbs -> 75.69788484 | AZ42: =((mseasonality*AK42*msea7+(1-mseasonality)*$AQ42)+mabs)*(1+pct)*lbs -> 75.69788484 | BA42: =((mseasonality*AL42*msea8+(1-mseasonality)*$AQ42)+mabs)*(1+pct)*lbs -> 75.69788484 | BB42: =((mseasonality*AM42*msea9+(1-mseasonality)*$AQ42)+mabs)*(1+pct)*lbs -> 75.69788484 | BC42: =((mseasonality*AN42*msea10+(1-mseasonality)*$AQ42)+mabs)*(1+pct)*lbs -> 75.69788484 | BD42: =((mseasonality*AO42*msea11+(1-mseasonality)*$AQ42)+mabs)*(1+pct)*lbs -> 75.69788484 | BE42: =((mseasonality*AP42*msea12+(1-mseasonality)*$AQ42)+mabs)*(1+pct)*lbs -> 75.69788484 | BI42: 1 | BJ42: =(BI42-1)*30.4+15.2 -> 15.2 | BK42: =((mseasonality*($D$35*($BJ42)^$D$36*EXP(-$D$37*$BJ42)*msea1) +(1-mseasonality)*($D$35*($BJ42)^$D$36*EXP(-$D$37*$BJ42)*mseaavg)))*(1+pct)*lbs+mabs -> 88.96312488 | BL42: =((mseasonality*($D$35*($BJ42)^$D$36*EXP(-$D$37*$BJ42)*msea2) +(1-mseasonality)*($D$35*($BJ42)^$D$36*EXP(-$D$37*$BJ42)*mseaavg)))*(1+pct)*lbs+mabs -> 88.96312488 | BM42: =((mseasonality*($D$35*($BJ42)^$D$36*EXP(-$D$37*$BJ42)*msea3) +(1-mseasonality)*($D$35*($BJ42)^$D$36*EXP(-$D$37*$BJ42)*mseaavg)))*(1+pct)*lbs+mabs -> 88.96312488 | BN42: =((mseasonality*($D$35*($BJ42)^$D$36*EXP(-$D$37*$BJ42)*msea4) +(1-mseasonality)*($D$35*($BJ42)^$D$36*EXP(-$D$37*$BJ42)*mseaavg)))*(1+pct)*lbs+mabs -> 88.96312488 | BO42: =((mseasonality*($D$35*($BJ42)^$D$36*EXP(-$D$37*$BJ42)*msea5) +(1-mseasonality)*($D$35*($BJ42)^$D$36*EXP(-$D$37*$BJ42)*mseaavg)))*(1+pct)*lbs+mabs -> 88.96312488 | BP42: =((mseasonality*($D$35*($BJ42)^$D$36*EXP(-$D$37*$BJ42)*msea6) +(1-mseasonality)*($D$35*($BJ42)^$D$36*EXP(-$D$37*$BJ42)*mseaavg)))*(1+pct)*lbs+mabs -> 88.96312488 | BQ42: =((mseasonality*($D$35*($BJ42)^$D$36*EXP(-$D$37*$BJ42)*msea7) +(1-mseasonality)*($D$35*($BJ42)^$D$36*EXP(-$D$37*$BJ42)*mseaavg)))*(1+pct)*lbs+mabs -> 88.96312488 | BR42: =((mseasonality*($D$35*($BJ42)^$D$36*EXP(-$D$37*$BJ42)*msea8) +(1-mseasonality)*($D$35*($BJ42)^$D$36*EXP(-$D$37*$BJ42)*mseaavg)))*(1+pct)*lbs+mabs -> 88.96312488 | BS42: =((mseasonality*($D$35*($BJ42)^$D$36*EXP(-$D$37*$BJ42)*msea9) +(1-mseasonality)*($D$35*($BJ42)^$D$36*EXP(-$D$37*$BJ42)*mseaavg)))*(1+pct)*lbs+mabs -> 88.96312488 | BT42: =((mseasonality*($D$35*($BJ42)^$D$36*EXP(-$D$37*$BJ42)*msea10) +(1-mseasonality)*($D$35*($BJ42)^$D$36*EXP(-$D$37*$BJ42)*mseaavg)))*(1+pct)*lbs+mabs -> 88.96312488 | BU42: =((mseasonality*($D$35*($BJ42)^$D$36*EXP(-$D$37*$BJ42)*msea11) +(1-mseasonality)*($D$35*($BJ42)^$D$36*EXP(-$D$37*$BJ42)*mseaavg)))*(1+pct)*lbs+mabs -> 88.96312488 | BV42: =((mseasonality*($D$35*($BJ42)^$D$36*EXP(-$D$37*$BJ42)*msea12) +(1-mseasonality)*($D$35*($BJ42)^$D$36*EXP(-$D$37*$BJ42)*mseaavg)))*(1+pct)*lbs+mabs -> 88.96312488 | BY42: =BZ42*30.4 -> 1129.164368 | BZ42: =(CK$5*($BJ42)^CL$5*EXP(-CM$5*$BJ42)) -> 37.14356475 | CA42: =((mseasonality*$BZ42*msea1+(1-mseasonality)*$BZ42*mseaavg))*(1+pct)+mabs -> 40.85792122 | CB42: =((mseasonality*$BZ42*msea2+(1-mseasonality)*$BZ42*mseaavg))*(1+pct)+mabs -> 40.85792122 | CC42: =((mseasonality*$BZ42*msea3+(1-mseasonality)*$BZ42*mseaavg))*(1+pct)+mabs -> 40.85792122 | CD42: =((mseasonality*$BZ42*msea4+(1-mseasonality)*$BZ42*mseaavg))*(1+pct)+mabs -> 40.85792122 | CE42: =((mseasonality*$BZ42*msea5+(1-mseasonality)*$BZ42*mseaavg))*(1+pct)+mabs -> 40.85792122 | CF42: =((mseasonality*$BZ42*msea6+(1-mseasonality)*$BZ42*mseaavg))*(1+pct)+mabs -> 40.85792122 | CG42: =((mseasonality*$BZ42*msea7+(1-mseasonality)*$BZ42*mseaavg))*(1+pct)+mabs -> 40.85792122 | CH42: =((mseasonality*$BZ42*msea8+(1-mseasonality)*$BZ42*mseaavg))*(1+pct)+mabs -> 40.85792122 | CI42: =((mseasonality*$BZ42*msea9+(1-mseasonality)*$BZ42*mseaavg))*(1+pct)+mabs -> 40.85792122 | CJ42: =((mseasonality*$BZ42*msea10+(1-mseasonality)*$BZ42*mseaavg))*(1+pct)+mabs -> 40.85792122 | CK42: =((mseasonality*$BZ42*msea11+(1-mseasonality)*$BZ42*mseaavg))*(1+pct)+mabs -> 40.85792122 | CL42: =((mseasonality*$BZ42*msea12+(1-mseasonality)*$BZ42*mseaavg))*(1+pct)+mabs -> 40.85792122 | CP42: 1 | CQ42: =(CP42-1)*30.4+15.2 -> 15.2 | CR42: =dp2_1a*dp2_1b*(1-(TANH(dp2_1b*($CQ42-dp2_1c)))^2)+dp2_2a*dp2_2b*(1-(TANH(dp2_2b*($CQ42-dp2_2c)))^2) -> 41.80710234 | CS42: =((mseasonality*$CR42*msea1+(1-mseasonality)*$CR42*mseaavg)*(1+pct)*lbs)+mabs -> 101.3857718 | CT42: =((mseasonality*$CR42*msea2+(1-mseasonality)*$CR42*mseaavg)*(1+pct)*lbs)+mabs -> 101.3857718 | CU42: =((mseasonality*$CR42*msea3+(1-mseasonality)*$CR42*mseaavg)*(1+pct)*lbs)+mabs -> 101.3857718 | CV42: =((mseasonality*$CR42*msea4+(1-mseasonality)*$CR42*mseaavg)*(1+pct)*lbs)+mabs -> 101.3857718 | CW42: =((mseasonality*$CR42*msea5+(1-mseasonality)*$CR42*mseaavg)*(1+pct)*lbs)+mabs -> 101.3857718 | CX42: =((mseasonality*$CR42*msea6+(1-mseasonality)*$CR42*mseaavg)*(1+pct)*lbs)+mabs -> 101.3857718 | CY42: =((mseasonality*$CR42*msea7+(1-mseasonality)*$CR42*mseaavg)*(1+pct)*lbs)+mabs -> 101.3857718 | CZ42: =((mseasonality*$CR42*msea8+(1-mseasonality)*$CR42*mseaavg)*(1+pct)*lbs)+mabs -> 101.3857718 | DA42: =((mseasonality*$CR42*msea9+(1-mseasonality)*$CR42*mseaavg)*(1+pct)*lbs)+mabs -> 101.3857718 | DB42: =((mseasonality*$CR42*msea10+(1-mseasonality)*$CR42*mseaavg)*(1+pct)*lbs)+mabs -> 101.3857718 | DC42: =((mseasonality*$CR42*msea11+(1-mseasonality)*$CR42*mseaavg)*(1+pct)*lbs)+mabs -> 101.3857718 | DD42: =((mseasonality*$CR42*msea12+(1-mseasonality)*$CR42*mseaavg)*(1+pct)*lbs)+mabs -> 101.3857718 | DG42: Apr | DL42: =J32 -> 30.64355153 | DM42: =J31 -> 32.87647353 | DN42: =J30 -> 35.24839881 | DO42: =J29 -> 37.76363369 | DP42: =J28 -> 40.42559099 | DQ42: =J27 -> 43.2364615 | DR42: =J26 -> 46.1967942 | DS42: =J25 -> 49.30495761
C43: lact 1, peak | D43: 36 | F43: 8 | G43: 86.07807713 | H43: 86.07807713 | I43: 86.07807713 | J43: 86.07807713 | K43: 86.07807713 | L43: 86.07807713 | M43: 86.07807713 | N43: 86.07807713 | O43: 86.07807713 | P43: 86.07807713 | Q43: 86.07807713 | R43: 86.07807713 | S43: 228 | AE43: 35.05035228 | AF43: 35.91599742 | AG43: 36.62918983 | AH43: 36.28131231 | AI43: 35.12530125 | AJ43: 33.40521114 | AK43: 31.63684783 | AL43: 30.45308931 | AM43: 30.40645557 | AN43: 31.17836016 | AO43: 32.42241383 | AP43: 33.87445307 | AQ43: 33.531582 | AS43: 2 | AT43: 81.31693258 | AU43: 81.31693258 | AV43: 81.31693258 | AW43: 81.31693258 | AX43: 81.31693258 | AY43: 81.31693258 | AZ43: 81.31693258 | BA43: 81.31693258 | BB43: 81.31693258 | BC43: 81.31693258 | BD43: 81.31693258 | BE43: 81.31693258 | BI43: 2 | BJ43: =(BI43-1)*30.4+15.2 -> 45.6 | BK43: 106.1664441 | BL43: 106.1664441 | BM43: 106.1664441 | BN43: 106.1664441 | BO43: 106.1664441 | BP43: 106.1664441 | BQ43: 106.1664441 | BR43: 106.1664441 | BS43: 106.1664441 | BT43: 106.1664441 | BU43: 106.1664441 | BV43: 106.1664441 | BY43: 2461.694288 | BZ43: =(CK$5*($BJ43)^CL$5*EXP(-CM$5*$BJ43)) -> 43.83322105 | CA43: 48.21654315 | CB43: 48.21654315 | CC43: 48.21654315 | CD43: 48.21654315 | CE43: 48.21654315 | CF43: 48.21654315 | CG43: 48.21654315 | CH43: 48.21654315 | CI43: 48.21654315 | CJ43: 48.21654315 | CK43: 48.21654315 | CL43: 48.21654315 | CP43: 2 | CQ43: =(CP43-1)*30.4+15.2 -> 45.6 | CR43: =dp2_1a*dp2_1b*(1-(TANH(dp2_1b*($CQ43-dp2_1c)))^2)+dp2_2a*dp2_2b*(1-(TANH(dp2_2b*($CQ43-dp2_2c)))^2) -> 42.95772808 | CS43: 104.1761369 | CT43: 104.1761369 | CU43: 104.1761369 | CV43: 104.1761369 | CW43: 104.1761369 | CX43: 104.1761369 | CY43: 104.1761369 | CZ43: 104.1761369 | DA43: 104.1761369 | DB43: 104.1761369 | DC43: 104.1761369 | DD43: 104.1761369 | DG43: May | DM43: =K32 -> 30.64355153 | DN43: =K31 -> 32.87647353 | DO43: =K30 -> 35.24839881 | DP43: =K29 -> 37.76363369 | DQ43: =K28 -> 40.42559099 | DR43: =K27 -> 43.2364615 | DS43: =K26 -> 46.1967942
C44: lact 1, dim | D44: 137 | F44: 9 | G44: 80.14290546 | H44: 80.14290546 | I44: 80.14290546 | J44: 80.14290546 | K44: 80.14290546 | L44: 80.14290546 | M44: 80.14290546 | N44: 80.14290546 | O44: 80.14290546 | P44: 80.14290546 | Q44: 80.14290546 | R44: 80.14290546 | S44: 258.4 | AE44: 34.6681142 | AF44: 35.55510539 | AG44: 36.30659618 | AH44: 36.45954827 | AI44: 35.93332124 | AJ44: 34.76724736 | AK44: 33.39323714 | AL44: 32.04061992 | AM44: 31.40579001 | AN44: 31.503559 | AO44: 32.38162437 | AP44: 33.7021458 | AQ44: 34.00974241 | AS44: 3 | AT44: 82.47651215 | AU44: 82.47651215 | AV44: 82.47651215 | AW44: 82.47651215 | AX44: 82.47651215 | AY44: 82.47651215 | AZ44: 82.47651215 | BA44: 82.47651215 | BB44: 82.47651215 | BC44: 82.47651215 | BD44: 82.47651215 | BE44: 82.47651215 | BI44: 3 | BJ44: 76 | BK44: 109.061138 | BL44: 109.061138 | BM44: 109.061138 | BN44: 109.061138 | BO44: 109.061138 | BP44: 109.061138 | BQ44: 109.061138 | BR44: 109.061138 | BS44: 109.061138 | BT44: 109.061138 | BU44: 109.061138 | BV44: 109.061138 | BY44: 3829.694288 | BZ44: 45 | CA44: 49.5 | CB44: 49.5 | CC44: 49.5 | CD44: 49.5 | CE44: 49.5 | CF44: 49.5 | CG44: 49.5 | CH44: 49.5 | CI44: 49.5 | CJ44: 49.5 | CK44: 49.5 | CL44: 49.5 | CP44: 3 | CQ44: 76 | CR44: 43.11074876 | CS44: 104.5472251 | CT44: 104.5472251 | CU44: 104.5472251 | CV44: 104.5472251 | CW44: 104.5472251 | CX44: 104.5472251 | CY44: 104.5472251 | CZ44: 104.5472251 | DA44: 104.5472251 | DB44: 104.5472251 | DC44: 104.5472251 | DD44: 104.5472251 | DG44: Jun | DN44: =L32 -> 30.64355153 | DO44: =L31 -> 32.87647353 | DP44: =L30 -> 35.24839881 | DQ44: =L29 -> 37.76363369 | DR44: =L28 -> 40.42559099 | DS44: =L27 -> 43.2364615
C45: lact 1, 305m | D45: 10000 | F45: 10 | G45: 74.35224715 | H45: 74.35224715 | I45: 74.35224715 | J45: 74.35224715 | K45: 74.35224715 | L45: 74.35224715 | M45: 74.35224715 | N45: 74.35224715 | O45: 74.35224715 | P45: 74.35224715 | Q45: 74.35224715 | R45: 74.35224715 | S45: 288.8 | AE45: 33.63661175 | AF45: 34.45975231 | AG45: 35.03758153 | AH45: 35.25532033 | AI45: 34.92691964 | AJ45: 34.06664484 | AK45: 33.00771472 | AL45: 31.82426407 | AM45: 31.0909496 | AN45: 30.99483096 | AO45: 31.65810253 | AP45: 32.75832561 | AQ45: 33.22641816 | AS45: 4 | AT45: 80.57688436 | AU45: 80.57688436 | AV45: 80.57688436 | AW45: 80.57688436 | AX45: 80.57688436 | AY45: 80.57688436 | AZ45: 80.57688436 | BA45: 80.57688436 | BB45: 80.57688436 | BC45: 80.57688436 | BD45: 80.57688436 | BE45: 80.57688436 | BI45: 4 | BJ45: 106.4 | BK45: 107.1627862 | BL45: 107.1627862 | BM45: 107.1627862 | BN45: 107.1627862 | BO45: 107.1627862 | BP45: 107.1627862 | BQ45: 107.1627862 | BR45: 107.1627862 | BS45: 107.1627862 | BT45: 107.1627862 | BU45: 107.1627862 | BV45: 107.1627862 | BY45: 5177.248129 | BZ45: 44.32742896 | CA45: 48.76017186 | CB45: 48.76017186 | CC45: 48.76017186 | CD45: 48.76017186 | CE45: 48.76017186 | CF45: 48.76017186 | CG45: 48.76017186 | CH45: 48.76017186 | CI45: 48.76017186 | CJ45: 48.76017186 | CK45: 48.76017186 | CL45: 48.76017186 | CP45: 4 | CQ45: 106.4 | CR45: 42.25912843 | CS45: 102.4819735 | CT45: 102.4819735 | CU45: 102.4819735 | CV45: 102.4819735 | CW45: 102.4819735 | CX45: 102.4819735 | CY45: 102.4819735 | CZ45: 102.4819735 | DA45: 102.4819735 | DB45: 102.4819735 | DC45: 102.4819735 | DD45: 102.4819735 | DG45: Jul | DO45: =M32 -> 30.64355153 | DP45: =M31 -> 32.87647353 | DQ45: =M30 -> 35.24839881 | DR45: =M29 -> 37.76363369 | DS45: =M28 -> 40.42559099
C46: lact 2, peak | D46: 45 | F46: 11 | G46: 68.78427641 | H46: 68.78427641 | I46: 68.78427641 | J46: 68.78427641 | K46: 68.78427641 | L46: 68.78427641 | M46: 68.78427641 | N46: 68.78427641 | O46: 68.78427641 | P46: 68.78427641 | Q46: 68.78427641 | R46: 68.78427641 | S46: 319.2 | AE46: 32.15469237 | AF46: 32.88204284 | AG46: 33.21221412 | AH46: 33.2655456 | AI46: 32.88592804 | AJ46: 32.15573576 | AK46: 31.32143899 | AL46: 30.4507546 | AM46: 29.88275875 | AN46: 29.86373223 | AO46: 30.42403321 | AP46: 31.29534129 | AQ46: 31.64951815 | AS46: 5 | AT46: 76.75276799 | AU46: 76.75276799 | AV46: 76.75276799 | AW46: 76.75276799 | AX46: 76.75276799 | AY46: 76.75276799 | AZ46: 76.75276799 | BA46: 76.75276799 | BB46: 76.75276799 | BC46: 76.75276799 | BD46: 76.75276799 | BE46: 76.75276799 | BI46: 5 | BJ46: 136.8 | BK46: 103.0355654 | BL46: 103.0355654 | BM46: 103.0355654 | BN46: 103.0355654 | BO46: 103.0355654 | BP46: 103.0355654 | BQ46: 103.0355654 | BR46: 103.0355654 | BS46: 103.0355654 | BT46: 103.0355654 | BU46: 103.0355654 | BV46: 103.0355654 | BY46: 6478.134736 | BZ46: 42.79232261 | CA46: 47.07155487 | CB46: 47.07155487 | CC46: 47.07155487 | CD46: 47.07155487 | CE46: 47.07155487 | CF46: 47.07155487 | CG46: 47.07155487 | CH46: 47.07155487 | CI46: 47.07155487 | CJ46: 47.07155487 | CK46: 47.07155487 | CL46: 47.07155487 | CP46: 5 | CQ46: 136.8 | CR46: 40.48921489 | CS46: 98.18978292 | CT46: 98.18978292 | CU46: 98.18978292 | CV46: 98.18978292 | CW46: 98.18978292 | CX46: 98.18978292 | CY46: 98.18978292 | CZ46: 98.18978292 | DA46: 98.18978292 | DB46: 98.18978292 | DC46: 98.18978292 | DD46: 98.18978292 | DG46: Aug | DP46: =N32 -> 30.64355153 | DQ46: =N31 -> 32.87647353 | DR46: =N30 -> 35.24839881 | DS46: =N29 -> 37.76363369
C47: lact 2, dim | D47: 76 | F47: 12 | G47: 63.48559195 | H47: 63.48559195 | I47: 63.48559195 | J47: 63.48559195 | K47: 63.48559195 | L47: 63.48559195 | M47: 63.48559195 | N47: 63.48559195 | O47: 63.48559195 | P47: 63.48559195 | Q47: 63.48559195 | R47: 63.48559195 | S47: 349.6 | AE47: 30.38815042 | AF47: 31.02403263 | AG47: 31.12802755 | AH47: 30.94065915 | AI47: 30.39989611 | AJ47: 29.68582721 | AK47: 28.98552594 | AL47: 28.43406381 | AM47: 28.12818433 | AN47: 28.30057613 | AO47: 28.83468368 | AP47: 29.51949591 | AQ47: 29.64742691 | AS47: 6 | AT47: 71.89752678 | AU47: 71.89752678 | AV47: 71.89752678 | AW47: 71.89752678 | AX47: 71.89752678 | AY47: 71.89752678 | AZ47: 71.89752678 | BA47: 71.89752678 | BB47: 71.89752678 | BC47: 71.89752678 | BD47: 71.89752678 | BE47: 71.89752678 | BI47: 6 | BJ47: 167.2 | BK47: 97.79615401 | BL47: 97.79615401 | BM47: 97.79615401 | BN47: 97.79615401 | BO47: 97.79615401 | BP47: 97.79615401 | BQ47: 97.79615401 | BR47: 97.79615401 | BS47: 97.79615401 | BT47: 97.79615401 | BU47: 97.79615401 | BV47: 97.79615401 | BY47: 7718.984367 | BZ47: 40.81742207 | CA47: 44.89916427 | CB47: 44.89916427 | CC47: 44.89916427 | CD47: 44.89916427 | CE47: 44.89916427 | CF47: 44.89916427 | CG47: 44.89916427 | CH47: 44.89916427 | CI47: 44.89916427 | CJ47: 44.89916427 | CK47: 44.89916427 | CL47: 44.89916427 | CP47: 6 | CQ47: 167.2 | CR47: 37.96281499 | CS47: 92.06304872 | CT47: 92.06304872 | CU47: 92.06304872 | CV47: 92.06304872 | CW47: 92.06304872 | CX47: 92.06304872 | CY47: 92.06304872 | CZ47: 92.06304872 | DA47: 92.06304872 | DB47: 92.06304872 | DC47: 92.06304872 | DD47: 92.06304872 | DG47: Sep | DQ47: =O32 -> 30.64355153 | DR47: =O31 -> 32.87647353 | DS47: =O30 -> 35.24839881
C48: lact 2, 305m | D48: 12000 | F48: 13 | G48: 58.4817823 | H48: 58.4817823 | I48: 58.4817823 | J48: 58.4817823 | K48: 58.4817823 | L48: 58.4817823 | M48: 58.4817823 | N48: 58.4817823 | O48: 58.4817823 | P48: 58.4817823 | Q48: 58.4817823 | R48: 58.4817823 | S48: 380 | AE48: 28.47230043 | AF48: 29.04261329 | AG48: 29.00048076 | AH48: 28.6013806 | AI48: 27.88961301 | AJ48: 27.1291855 | AK48: 26.4810298 | AL48: 26.1679924 | AM48: 26.10596261 | AN48: 26.47400626 | AO48: 27.02809076 | AP48: 27.59508325 | AQ48: 27.49897822 | AS48: 7 | AT48: 66.68735636 | AU48: 66.68735636 | AV48: 66.68735636 | AW48: 66.68735636 | AX48: 66.68735636 | AY48: 66.68735636 | AZ48: 66.68735636 | BA48: 66.68735636 | BB48: 66.68735636 | BC48: 66.68735636 | BD48: 66.68735636 | BE48: 66.68735636 | BI48: 7 | BJ48: 197.6 | BK48: 92.03086803 | BL48: 92.03086803 | BM48: 92.03086803 | BN48: 92.03086803 | BO48: 92.03086803 | BP48: 92.03086803 | BQ48: 92.03086803 | BR48: 92.03086803 | BS48: 92.03086803 | BT48: 92.03086803 | BU48: 92.03086803 | BV48: 92.03086803 | BY48: 8893.173755 | BZ48: 38.62465093 | CA48: 42.48711602 | CB48: 42.48711602 | CC48: 42.48711602 | CD48: 42.48711602 | CE48: 42.48711602 | CF48: 42.48711602 | CG48: 42.48711602 | CH48: 42.48711602 | CI48: 42.48711602 | CJ48: 42.48711602 | CK48: 42.48711602 | CL48: 42.48711602 | CP48: 7 | CQ48: 197.6 | CR48: 34.88724508 | CS48: 84.60453061 | CT48: 84.60453061 | CU48: 84.60453061 | CV48: 84.60453061 | CW48: 84.60453061 | CX48: 84.60453061 | CY48: 84.60453061 | CZ48: 84.60453061 | DA48: 84.60453061 | DB48: 84.60453061 | DC48: 84.60453061 | DD48: 84.60453061 | DG48: Oct | DR48: =P32 -> 30.64355153 | DS48: =P31 -> 32.87647353
C49: lact 3+, peak | D49: 45 | F49: 14 | G49: 53.78423301 | H49: 53.78423301 | I49: 53.78423301 | J49: 53.78423301 | K49: 53.78423301 | L49: 53.78423301 | M49: 53.78423301 | N49: 53.78423301 | O49: 53.78423301 | P49: 53.78423301 | Q49: 53.78423301 | R49: 53.78423301 | S49: 410.4 | AE49: 26.51455039 | AF49: 27.05439732 | AG49: 26.97341815 | AH49: 26.45548056 | AI49: 25.62862879 | AJ49: 24.8010205 | AK49: 24.13892376 | AL49: 23.93875845 | AM49: 24.03222626 | AN49: 24.53056965 | AO49: 25.12474795 | AP49: 25.64842423 | AQ49: 25.40342883 | AS49: 8 | AT49: 61.60547122 | AU49: 61.60547122 | AV49: 61.60547122 | AW49: 61.60547122 | AX49: 61.60547122 | AY49: 61.60547122 | AZ49: 61.60547122 | BA49: 61.60547122 | BB49: 61.60547122 | BC49: 61.60547122 | BD49: 61.60547122 | BE49: 61.60547122 | BI49: 8 | BJ49: 228 | BK49: 86.07807713 | BL49: 86.07807713 | BM49: 86.07807713 | BN49: 86.07807713 | BO49: 86.07807713 | BP49: 86.07807713 | BQ49: 86.07807713 | BR49: 86.07807713 | BS49: 86.07807713 | BT49: 86.07807713 | BU49: 86.07807713 | BV49: 86.07807713 | BY49: 9997.993024 | BZ49: 36.34273912 | CA49: 39.97701303 | CB49: 39.97701303 | CC49: 39.97701303 | CD49: 39.97701303 | CE49: 39.97701303 | CF49: 39.97701303 | CG49: 39.97701303 | CH49: 39.97701303 | CI49: 39.97701303 | CJ49: 39.97701303 | CK49: 39.97701303 | CL49: 39.97701303 | CP49: 8 | CQ49: 228 | CR49: 31.48230417 | CS49: 76.34725989 | CT49: 76.34725989 | CU49: 76.34725989 | CV49: 76.34725989 | CW49: 76.34725989 | CX49: 76.34725989 | CY49: 76.34725989 | CZ49: 76.34725989 | DA49: 76.34725989 | DB49: 76.34725989 | DC49: 76.34725989 | DD49: 76.34725989 | DG49: Nov | DS49: =Q32 -> 30.64355153
C50: lact 3+, dim | D50: 76 | F50: 15 | G50: 49.39466356 | H50: 49.39466356 | I50: 49.39466356 | J50: 49.39466356 | K50: 49.39466356 | L50: 49.39466356 | M50: 49.39466356 | N50: 49.39466356 | O50: 49.39466356 | P50: 49.39466356 | Q50: 49.39466356 | R50: 49.39466356 | S50: 440.8 | AE50: 24.59697497 | AF50: 25.14060301 | AG50: 25.12952956 | AH50: 24.61454723 | AI50: 23.76477576 | AJ50: 22.88147 | AK50: 22.16008066 | AL50: 21.9375863 | AM50: 22.0661313 | AN50: 22.59428991 | AO50: 23.22729263 | AP50: 23.77190337 | AQ50: 23.49043206 | AS50: 9 | AT50: 56.96629166 | AU50: 56.96629166 | AV50: 56.96629166 | AW50: 56.96629166 | AX50: 56.96629166 | AY50: 56.96629166 | AZ50: 56.96629166 | BA50: 56.96629166 | BB50: 56.96629166 | BC50: 56.96629166 | BD50: 56.96629166 | BE50: 56.96629166 | BI50: 9 | BJ50: 258.4 | BK50: 80.14290546 | BL50: 80.14290546 | BM50: 80.14290546 | BN50: 80.14290546 | BO50: 80.14290546 | BP50: 80.14290546 | BQ50: 80.14290546 | BR50: 80.14290546 | BS50: 80.14290546 | BT50: 80.14290546 | BU50: 80.14290546 | BV50: 80.14290546 | BY50: 11033.12972 | BZ50: 34.05054906 | CA50: 37.45560396 | CB50: 37.45560396 | CC50: 37.45560396 | CD50: 37.45560396 | CE50: 37.45560396 | CF50: 37.45560396 | CG50: 37.45560396 | CH50: 37.45560396 | CI50: 37.45560396 | CJ50: 37.45560396 | CK50: 37.45560396 | CL50: 37.45560396 | CP50: 9 | CQ50: 258.4 | CR50: 27.95216576 | CS50: 67.7863746 | CT50: 67.7863746 | CU50: 67.7863746 | CV50: 67.7863746 | CW50: 67.7863746 | CX50: 67.7863746 | CY50: 67.7863746 | CZ50: 67.7863746 | DA50: 67.7863746 | DB50: 67.7863746 | DC50: 67.7863746 | DD50: 67.7863746 | DH50: chartmilk2
C51: lact 3+, 305m | D51: 12000 | F51: 16 | G51: 45.30823001 | H51: 45.30823001 | I51: 45.30823001 | J51: 45.30823001 | K51: 45.30823001 | L51: 45.30823001 | M51: 45.30823001 | N51: 45.30823001 | O51: 45.30823001 | P51: 45.30823001 | Q51: 45.30823001 | R51: 45.30823001 | S51: 471.2 | AE51: 22.77888883 | AF51: 23.35193943 | AG51: 23.50081035 | AH51: 23.11075286 | AI51: 22.34168991 | AJ51: 21.43758405 | AK51: 20.63525367 | AL51: 20.27329552 | AM51: 20.31548405 | AN51: 20.76624039 | AO51: 21.42019319 | AP51: 22.02800515 | AQ51: 21.83001145 | AS51: 10 | AT51: 52.93963074 | AU51: 52.93963074 | AV51: 52.93963074 | AW51: 52.93963074 | AX51: 52.93963074 | AY51: 52.93963074 | AZ51: 52.93963074 | BA51: 52.93963074 | BB51: 52.93963074 | BC51: 52.93963074 | BD51: 52.93963074 | BE51: 52.93963074 | BI51: 10 | BJ51: 288.8 | BK51: 74.35224715 | BL51: 74.35224715 | BM51: 74.35224715 | BN51: 74.35224715 | BO51: 74.35224715 | BP51: 74.35224715 | BQ51: 74.35224715 | BR51: 74.35224715 | BS51: 74.35224715 | BT51: 74.35224715 | BU51: 74.35224715 | BV51: 74.35224715 | BY51: 11999.77992 | BZ51: 31.79770397 | CA51: 34.97747437 | CB51: 34.97747437 | CC51: 34.97747437 | CD51: 34.97747437 | CE51: 34.97747437 | CF51: 34.97747437 | CG51: 34.97747437 | CH51: 34.97747437 | CI51: 34.97747437 | CJ51: 34.97747437 | CK51: 34.97747437 | CL51: 34.97747437 | CP51: 10 | CQ51: 288.8 | CR51: 24.46675097 | CS51: 59.33394788 | CT51: 59.33394788 | CU51: 59.33394788 | CV51: 59.33394788 | CW51: 59.33394788 | CX51: 59.33394788 | CY51: 59.33394788 | CZ51: 59.33394788 | DA51: 59.33394788 | DB51: 59.33394788 | DC51: 59.33394788 | DD51: 59.33394788 | DG51: Jan | DH51: =G36 -> 88.96312488
F52: 17 | G52: 41.51568821 | H52: 41.51568821 | I52: 41.51568821 | J52: 41.51568821 | K52: 41.51568821 | L52: 41.51568821 | M52: 41.51568821 | N52: 41.51568821 | O52: 41.51568821 | P52: 41.51568821 | Q52: 41.51568821 | R52: 41.51568821 | S52: 501.6 | AE52: 21.09941984 | AF52: 21.71349132 | AG52: 22.07902141 | AH52: 21.91362032 | AI52: 21.32033229 | AJ52: 20.44530928 | AK52: 19.56505699 | AL52: 18.98488983 | AM52: 18.8423681 | AN52: 19.12411729 | AO52: 19.76943623 | AP52: 20.4533505 | AQ52: 20.44253445 | AS52: 11 | AT52: 49.57488125 | AU52: 49.57488125 | AV52: 49.57488125 | AW52: 49.57488125 | AX52: 49.57488125 | AY52: 49.57488125 | AZ52: 49.57488125 | BA52: 49.57488125 | BB52: 49.57488125 | BC52: 49.57488125 | BD52: 49.57488125 | BE52: 49.57488125 | BI52: 11 | BJ52: 319.2 | BK52: 68.78427641 | BL52: 68.78427641 | BM52: 68.78427641 | BN52: 68.78427641 | BO52: 68.78427641 | BP52: 68.78427641 | BQ52: 68.78427641 | BR52: 68.78427641 | BS52: 68.78427641 | BT52: 68.78427641 | BU52: 68.78427641 | BV52: 68.78427641 | BY52: 12900.09378 | BZ52: 29.61558766 | CA52: 32.57714642 | CB52: 32.57714642 | CC52: 32.57714642 | CD52: 32.57714642 | CE52: 32.57714642 | CF52: 32.57714642 | CG52: 32.57714642 | CH52: 32.57714642 | CI52: 32.57714642 | CJ52: 32.57714642 | CK52: 32.57714642 | CL52: 32.57714642 | CP52: 11 | CQ52: 319.2 | CR52: 21.1533384 | CS52: 51.29864115 | CT52: 51.29864115 | CU52: 51.29864115 | CV52: 51.29864115 | CW52: 51.29864115 | CX52: 51.29864115 | CY52: 51.29864115 | CZ52: 51.29864115 | DA52: 51.29864115 | DB52: 51.29864115 | DC52: 51.29864115 | DD52: 51.29864115 | DG52: Feb | DH52: =H37 -> 106.1664441 | DI52: =H36 -> 88.96312488
D53: =update(BG6,BH4,"Florida curves") -> Florida curves | F53: 18 | G53: 38.00492332 | H53: 38.00492332 | I53: 38.00492332 | J53: 38.00492332 | K53: 38.00492332 | L53: 38.00492332 | M53: 38.00492332 | N53: 38.00492332 | O53: 38.00492332 | P53: 38.00492332 | Q53: 38.00492332 | R53: 38.00492332 | S53: 532 | AE53: 19.58008238 | AF53: 20.22960403 | AG53: 20.82614923 | AH53: 20.94678961 | AI53: 20.60051041 | AJ53: 19.81147331 | AK53: 18.87994658 | AL53: 18.05414607 | AM53: 17.66877129 | AN53: 17.72181284 | AO53: 18.32221371 | AP53: 19.0627332 | AQ53: 19.30868605 | AS53: 12 | AT53: 46.82520264 | AU53: 46.82520264 | AV53: 46.82520264 | AW53: 46.82520264 | AX53: 46.82520264 | AY53: 46.82520264 | AZ53: 46.82520264 | BA53: 46.82520264 | BB53: 46.82520264 | BC53: 46.82520264 | BD53: 46.82520264 | BE53: 46.82520264 | BI53: 12 | BJ53: 349.6 | BK53: 63.48559195 | BL53: 63.48559195 | BM53: 63.48559195 | BN53: 63.48559195 | BO53: 63.48559195 | BP53: 63.48559195 | BQ53: 63.48559195 | BR53: 63.48559195 | BS53: 63.48559195 | BT53: 63.48559195 | BU53: 63.48559195 | BV53: 63.48559195 | BY53: 13736.81448 | BZ53: 27.52370728 | CA53: 30.27607801 | CB53: 30.27607801 | CC53: 30.27607801 | CD53: 30.27607801 | CE53: 30.27607801 | CF53: 30.27607801 | CG53: 30.27607801 | CH53: 30.27607801 | CI53: 30.27607801 | CJ53: 30.27607801 | CK53: 30.27607801 | CL53: 30.27607801 | CP53: 12 | CQ53: 349.6 | CR53: 18.09650597 | CS53: 43.88556304 | CT53: 43.88556304 | CU53: 43.88556304 | CV53: 43.88556304 | CW53: 43.88556304 | CX53: 43.88556304 | CY53: 43.88556304 | CZ53: 43.88556304 | DA53: 43.88556304 | DB53: 43.88556304 | DC53: 43.88556304 | DD53: 43.88556304 | DG53: Mar | DH53: =I38 -> 109.061138 | DI53: =I37 -> 106.1664441 | DJ53: =I36 -> 88.96312488
F54: 19 | G54: 34.76204131 | H54: 34.76204131 | I54: 34.76204131 | J54: 34.76204131 | K54: 34.76204131 | L54: 34.76204131 | M54: 34.76204131 | N54: 34.76204131 | O54: 34.76204131 | P54: 34.76204131 | Q54: 34.76204131 | R54: 34.76204131 | S54: 562.4 | AE54: 18.22735057 | AF54: 18.88876849 | AG54: 19.68486591 | AH54: 20.10478438 | AI54: 20.0423996 | AJ54: 19.39576902 | AK54: 18.46020081 | AL54: 17.41820309 | AM54: 16.78221263 | AN54: 16.58898843 | AO54: 17.1066101 | AP54: 17.85315628 | AQ54: 18.37944244 | AS54: 13 | AT54: 44.57170801 | AU54: 44.57170801 | AV54: 44.57170801 | AW54: 44.57170801 | AX54: 44.57170801 | AY54: 44.57170801 | AZ54: 44.57170801 | BA54: 44.57170801 | BB54: 44.57170801 | BC54: 44.57170801 | BD54: 44.57170801 | BE54: 44.57170801 | BI54: 13 | BJ54: 380 | BK54: 58.4817823 | BL54: 58.4817823 | BM54: 58.4817823 | BN54: 58.4817823 | BO54: 58.4817823 | BP54: 58.4817823 | BQ54: 58.4817823 | BR54: 58.4817823 | BS54: 58.4817823 | BT54: 58.4817823 | BU54: 58.4817823 | BV54: 58.4817823 | BY54: 14513.03605 | BZ54: 25.53360429 | CA54: 28.08696471 | CB54: 28.08696471 | CC54: 28.08696471 | CD54: 28.08696471 | CE54: 28.08696471 | CF54: 28.08696471 | CG54: 28.08696471 | CH54: 28.08696471 | CI54: 28.08696471 | CJ54: 28.08696471 | CK54: 28.08696471 | CL54: 28.08696471 | CP54: 13 | CQ54: 380 | CR54: 15.34341937 | CS54: 37.20909435 | CT54: 37.20909435 | CU54: 37.20909435 | CV54: 37.20909435 | CW54: 37.20909435 | CX54: 37.20909435 | CY54: 37.20909435 | CZ54: 37.20909435 | DA54: 37.20909435 | DB54: 37.20909435 | DC54: 37.20909435 | DD54: 37.20909435 | DG54: Apr | DH54: =J39 -> 107.1627862 | DI54: =J38 -> 109.061138 | DJ54: =J37 -> 106.1664441 | DK54: =J36 -> 88.96312488
D55: =update(BG6,BH5,"Diphasic curves") -> Diphasic curves | F55: 20 | G55: 31.7721518 | H55: 31.7721518 | I55: 31.7721518 | J55: 31.7721518 | K55: 31.7721518 | L55: 31.7721518 | M55: 31.7721518 | N55: 31.7721518 | O55: 31.7721518 | P55: 31.7721518 | Q55: 31.7721518 | R55: 31.7721518 | S55: 592.8 | AE55: 17.03523155 | AF55: 17.6685061 | AG55: 18.58898923 | AH55: 19.26977845 | AI55: 19.48806447 | AJ55: 19.03273893 | AK55: 18.1559012 | AL55: 16.98215071 | AM55: 16.14136934 | AN55: 15.73064779 | AO55: 16.1312896 | AP55: 16.80786851 | AQ55: 17.58604466 | AS55: 14 | AT55: 42.64765103 | AU55: 42.64765103 | AV55: 42.64765103 | AW55: 42.64765103 | AX55: 42.64765103 | AY55: 42.64765103 | AZ55: 42.64765103 | BA55: 42.64765103 | BB55: 42.64765103 | BC55: 42.64765103 | BD55: 42.64765103 | BE55: 42.64765103 | BI55: 14 | BJ55: 410.4 | BK55: 53.78423301 | BL55: 53.78423301 | BM55: 53.78423301 | BN55: 53.78423301 | BO55: 53.78423301 | BP55: 53.78423301 | BQ55: 53.78423301 | BR55: 53.78423301 | BS55: 53.78423301 | BT55: 53.78423301 | BU55: 53.78423301 | BV55: 53.78423301 | BY55: 15232.03776 | BZ55: 23.65137209 | CA55: 26.0165093 | CB55: 26.0165093 | CC55: 26.0165093 | CD55: 26.0165093 | CE55: 26.0165093 | CF55: 26.0165093 | CG55: 26.0165093 | CH55: 26.0165093 | CI55: 26.0165093 | CJ55: 26.0165093 | CK55: 26.0165093 | CL55: 26.0165093 | CP55: 14 | CQ55: 410.4 | CR55: 12.9116193 | CS55: 31.31177278 | CT55: 31.31177278 | CU55: 31.31177278 | CV55: 31.31177278 | CW55: 31.31177278 | CX55: 31.31177278 | CY55: 31.31177278 | CZ55: 31.31177278 | DA55: 31.31177278 | DB55: 31.31177278 | DC55: 31.31177278 | DD55: 31.31177278 | DG55: May | DH55: =K40 -> 103.0355654 | DI55: =K39 -> 107.1627862 | DJ55: =K38 -> 109.061138 | DK55: =K37 -> 106.1664441 | DL55: =K36 -> 88.96312488
C56: lact 1, phase 1, a | D56: 11111.91439 | F56: 21 | G56: 29.01992995 | H56: 29.01992995 | I56: 29.01992995 | J56: 29.01992995 | K56: 29.01992995 | L56: 29.01992995 | M56: 29.01992995 | N56: 29.01992995 | O56: 29.01992995 | P56: 29.01992995 | Q56: 29.01992995 | R56: 29.01992995 | S56: 623.2 | AE56: 15.98783876 | AF56: 16.5402537 | AG56: 17.47394267 | AH56: 18.32836233 | AI56: 18.78298023 | AJ56: 18.55375955 | AK56: 17.80691308 | AL56: 16.63161869 | AM56: 15.68170373 | AN56: 15.12671006 | AO56: 15.38518323 | AP56: 15.90040076 | AQ56: 16.84997223 | AS56: 15 | AT56: 40.86261292 | AU56: 40.86261292 | AV56: 40.86261292 | AW56: 40.86261292 | AX56: 40.86261292 | AY56: 40.86261292 | AZ56: 40.86261292 | BA56: 40.86261292 | BB56: 40.86261292 | BC56: 40.86261292 | BD56: 40.86261292 | BE56: 40.86261292 | BI56: 15 | BJ56: 440.8 | BK56: 49.39466356 | BL56: 49.39466356 | BM56: 49.39466356 | BN56: 49.39466356 | BO56: 49.39466356 | BP56: 49.39466356 | BQ56: 49.39466356 | BR56: 49.39466356 | BS56: 49.39466356 | BT56: 49.39466356 | BU56: 49.39466356 | BV56: 49.39466356 | BY56: 15897.16958 | BZ56: 21.87933597 | CA56: 24.06726957 | CB56: 24.06726957 | CC56: 24.06726957 | CD56: 24.06726957 | CE56: 24.06726957 | CF56: 24.06726957 | CG56: 24.06726957 | CH56: 24.06726957 | CI56: 24.06726957 | CJ56: 24.06726957 | CK56: 24.06726957 | CL56: 24.06726957 | CP56: 15 | CQ56: 440.8 | CR56: 10.79720273 | CS56: 26.18413311 | CT56: 26.18413311 | CU56: 26.18413311 | CV56: 26.18413311 | CW56: 26.18413311 | CX56: 26.18413311 | CY56: 26.18413311 | CZ56: 26.18413311 | DA56: 26.18413311 | DB56: 26.18413311 | DC56: 26.18413311 | DD56: 26.18413311 | DG56: Jun | DH56: =L41 -> 97.79615401 | DI56: =L40 -> 103.0355654 | DJ56: =L39 -> 107.1627862 | DK56: =L38 -> 109.061138 | DL56: =L37 -> 106.1664441 | DM56: =L36 -> 88.96312488
C57: lact 1, phase 1, b | D57: 0.002211920845 | F57: 22 | G57: 26.49001809 | H57: 26.49001809 | I57: 26.49001809 | J57: 26.49001809 | K57: 26.49001809 | L57: 26.49001809 | M57: 26.49001809 | N57: 26.49001809 | O57: 26.49001809 | P57: 26.49001809 | Q57: 26.49001809 | R57: 26.49001809 | S57: 653.6 | AE57: 15.06196516 | AF57: 15.47424848 | AG57: 16.28721547 | AH57: 17.18830976 | AI57: 17.79755414 | AJ57: 17.80902573 | AK57: 17.2628663 | AL57: 16.24536558 | AM57: 15.3210902 | AN57: 14.73158304 | AO57: 14.83717605 | AP57: 15.09860248 | AQ57: 16.09291687 | AS57: 16 | AT57: 39.0266894 | AU57: 39.0266894 | AV57: 39.0266894 | AW57: 39.0266894 | AX57: 39.0266894 | AY57: 39.0266894 | AZ57: 39.0266894 | BA57: 39.0266894 | BB57: 39.0266894 | BC57: 39.0266894 | BD57: 39.0266894 | BE57: 39.0266894 | BI57: 16 | BJ57: 471.2 | BK57: 45.30823001 | BL57: 45.30823001 | BM57: 45.30823001 | BN57: 45.30823001 | BO57: 45.30823001 | BP57: 45.30823001 | BQ57: 45.30823001 | BR57: 45.30823001 | BS57: 45.30823001 | BT57: 45.30823001 | BU57: 45.30823001 | BV57: 45.30823001 | BY57: 16511.77263 | BZ57: 20.21720554 | CA57: 22.23892609 | CB57: 22.23892609 | CC57: 22.23892609 | CD57: 22.23892609 | CE57: 22.23892609 | CF57: 22.23892609 | CG57: 22.23892609 | CH57: 22.23892609 | CI57: 22.23892609 | CJ57: 22.23892609 | CK57: 22.23892609 | CL57: 22.23892609 | CP57: 16 | CQ57: 471.2 | CR57: 8.982145936 | CS57: 21.78246632 | CT57: 21.78246632 | CU57: 21.78246632 | CV57: 21.78246632 | CW57: 21.78246632 | CX57: 21.78246632 | CY57: 21.78246632 | CZ57: 21.78246632 | DA57: 21.78246632 | DB57: 21.78246632 | DC57: 21.78246632 | DD57: 21.78246632 | DG57: Jul | DH57: =M42 -> 92.03086803 | DI57: =M41 -> 97.79615401 | DJ57: =M40 -> 103.0355654 | DK57: =M39 -> 107.1627862 | DL57: =M38 -> 109.061138 | DM57: =M37 -> 106.1664441 | DN57: =M36 -> 88.96312488
C58: lact 1, phase 1, c | D58: 84.8372778 | F58: 23 | G58: 24.16730995 | H58: 24.16730995 | I58: 24.16730995 | J58: 24.16730995 | K58: 24.16730995 | L58: 24.16730995 | M58: 24.16730995 | N58: 24.16730995 | O58: 24.16730995 | P58: 24.16730995 | Q58: 24.16730995 | R58: 24.16730995 | S58: 684 | AE58: 14.22965652 | AF58: 14.44441294 | AG58: 14.99882263 | AH58: 15.79534425 | AI58: 16.44864685 | AJ58: 16.68953496 | AK58: 16.40313594 | AL58: 15.70786775 | AM58: 14.96544223 | AN58: 14.47373625 | AO58: 14.43579431 | AP58: 14.3686781 | AQ58: 15.24675606 | AS58: 17 | AT58: 36.97467762 | AU58: 36.97467762 | AV58: 36.97467762 | AW58: 36.97467762 | AX58: 36.97467762 | AY58: 36.97467762 | AZ58: 36.97467762 | BA58: 36.97467762 | BB58: 36.97467762 | BC58: 36.97467762 | BD58: 36.97467762 | BE58: 36.97467762 | BI58: 17 | BJ58: 501.6 | BK58: 41.51568821 | BL58: 41.51568821 | BM58: 41.51568821 | BN58: 41.51568821 | BO58: 41.51568821 | BP58: 41.51568821 | BQ58: 41.51568821 | BR58: 41.51568821 | BS58: 41.51568821 | BT58: 41.51568821 | BU58: 41.51568821 | BV58: 41.51568821 | BY58: 17079.12426 | BZ58: 18.66288256 | CA58: 20.52917081 | CB58: 20.52917081 | CC58: 20.52917081 | CD58: 20.52917081 | CE58: 20.52917081 | CF58: 20.52917081 | CG58: 20.52917081 | CH58: 20.52917081 | CI58: 20.52917081 | CJ58: 20.52917081 | CK58: 20.52917081 | CL58: 20.52917081 | CP58: 17 | CQ58: 501.6 | CR58: 7.440213359 | CS58: 18.04314893 | CT58: 18.04314893 | CU58: 18.04314893 | CV58: 18.04314893 | CW58: 18.04314893 | CX58: 18.04314893 | CY58: 18.04314893 | CZ58: 18.04314893 | DA58: 18.04314893 | DB58: 18.04314893 | DC58: 18.04314893 | DD58: 18.04314893 | DG58: Aug | DH58: =N43 -> 86.07807713 | DI58: =N42 -> 92.03086803 | DJ58: =N41 -> 97.79615401 | DK58: =N40 -> 103.0355654 | DL58: =N39 -> 107.1627862 | DM58: =N38 -> 109.061138 | DN58: =N37 -> 106.1664441 | DO58: =N36 -> 88.96312488
C59: lact 1, phase 2, a | D59: 4532.390574 | F59: 24 | G59: 22.03714845 | H59: 22.03714845 | I59: 22.03714845 | J59: 22.03714845 | K59: 22.03714845 | L59: 22.03714845 | M59: 22.03714845 | N59: 22.03714845 | O59: 22.03714845 | P59: 22.03714845 | Q59: 22.03714845 | R59: 22.03714845 | S59: 714.4 | AE59: 13.46078469 | AF59: 13.4332398 | AG59: 13.61176501 | AH59: 14.14990554 | AI59: 14.72109384 | AJ59: 15.14907178 | AK59: 15.15682299 | AL59: 14.92190828 | AM59: 14.5143393 | AN59: 14.25527412 | AO59: 14.10889261 | AP59: 13.67922345 | AQ59: 14.26352678 | AS59: 18 | AT59: 34.59026317 | AU59: 34.59026317 | AV59: 34.59026317 | AW59: 34.59026317 | AX59: 34.59026317 | AY59: 34.59026317 | AZ59: 34.59026317 | BA59: 34.59026317 | BB59: 34.59026317 | BC59: 34.59026317 | BD59: 34.59026317 | BE59: 34.59026317 | BI59: 18 | BJ59: 532 | BK59: 38.00492332 | BL59: 38.00492332 | BM59: 38.00492332 | BN59: 38.00492332 | BO59: 38.00492332 | BP59: 38.00492332 | BQ59: 38.00492332 | BR59: 38.00492332 | BS59: 38.00492332 | BT59: 38.00492332 | BU59: 38.00492332 | BV59: 38.00492332 | BY59: 17602.40057 | BZ59: 17.21303655 | CA59: 18.93434021 | CB59: 18.93434021 | CC59: 18.93434021 | CD59: 18.93434021 | CE59: 18.93434021 | CF59: 18.93434021 | CG59: 18.93434021 | CH59: 18.93434021 | CI59: 18.93434021 | CJ59: 18.93434021 | CK59: 18.93434021 | CL59: 18.93434021 | CP59: 18 | CQ59: 532 | CR59: 6.141357206 | CS59: 14.89331251 | CT59: 14.89331251 | CU59: 14.89331251 | CV59: 14.89331251 | CW59: 14.89331251 | CX59: 14.89331251 | CY59: 14.89331251 | CZ59: 14.89331251 | DA59: 14.89331251 | DB59: 14.89331251 | DC59: 14.89331251 | DD59: 14.89331251 | DG59: Sep | DH59: =O44 -> 80.14290546 | DI59: =O43 -> 86.07807713 | DJ59: =O42 -> 92.03086803 | DK59: =O41 -> 97.79615401 | DL59: =O40 -> 103.0355654 | DM59: =O39 -> 107.1627862 | DN59: =O38 -> 109.061138 | DO59: =O37 -> 106.1664441 | DP59: =O36 -> 88.96312488
C60: lact 1, phase 2, b | D60: 0.002617932805 | AE60: 12.72562084 | AF60: 12.43667695 | AG60: 12.17248932 | AH60: 12.3239162 | AI60: 12.68922679 | AJ60: 13.22619206 | AK60: 13.52273505 | AL60: 13.82116589 | AM60: 13.86665387 | AN60: 13.95150914 | AO60: 13.76334108 | AP60: 13.0052622 | AQ60: 13.12539911 | AS60: 19 | AT60: 31.83020696 | AU60: 31.83020696 | AV60: 31.83020696 | AW60: 31.83020696 | AX60: 31.83020696 | AY60: 31.83020696 | AZ60: 31.83020696 | BA60: 31.83020696 | BB60: 31.83020696 | BC60: 31.83020696 | BD60: 31.83020696 | BE60: 31.83020696 | BI60: 19 | BJ60: 562.4 | BK60: 34.76204131 | BL60: 34.76204131 | BM60: 34.76204131 | BN60: 34.76204131 | BO60: 34.76204131 | BP60: 34.76204131 | BQ60: 34.76204131 | BR60: 34.76204131 | BS60: 34.76204131 | BT60: 34.76204131 | BU60: 34.76204131 | BV60: 34.76204131 | BY60: 18084.65157 | BZ60: 15.86351985 | CA60: 17.44987184 | CB60: 17.44987184 | CC60: 17.44987184 | CD60: 17.44987184 | CE60: 17.44987184 | CF60: 17.44987184 | CG60: 17.44987184 | CH60: 17.44987184 | CI60: 17.44987184 | CJ60: 17.44987184 | CK60: 17.44987184 | CL60: 17.44987184 | CP60: 19 | CQ60: 562.4 | CR60: 5.054764433 | CS60: 12.25823281 | CT60: 12.25823281 | CU60: 12.25823281 | CV60: 12.25823281 | CW60: 12.25823281 | CX60: 12.25823281 | CY60: 12.25823281 | CZ60: 12.25823281 | DA60: 12.25823281 | DB60: 12.25823281 | DC60: 12.25823281 | DD60: 12.25823281 | DG60: Oct | DH60: =P45 -> 74.35224715 | DI60: =P44 -> 80.14290546 | DJ60: =P43 -> 86.07807713 | DK60: =P42 -> 92.03086803 | DL60: =P41 -> 97.79615401 | DM60: =P40 -> 103.0355654 | DN60: =P39 -> 107.1627862 | DO60: =P38 -> 109.061138 | DP60: =P37 -> 106.1664441 | DQ60: =P36 -> 88.96312488
C61: lact 1, phase 2, c | D61: 124.1463133 | G61: Lactation 3 | AE61: 11.99740874 | AF61: 11.46901238 | AG61: 10.78134819 | AH61: 10.47754808 | AI61: 10.53839498 | AJ61: 11.06620739 | AK61: 11.58936703 | AL61: 12.38280391 | AM61: 12.92617835 | AN61: 13.41053497 | AO61: 13.28471252 | AP61: 12.3322823 | AQ61: 11.8546499 | AS61: 20 | AT61: 28.74853226 | AU61: 28.74853226 | AV61: 28.74853226 | AW61: 28.74853226 | AX61: 28.74853226 | AY61: 28.74853226 | AZ61: 28.74853226 | BA61: 28.74853226 | BB61: 28.74853226 | BC61: 28.74853226 | BD61: 28.74853226 | BE61: 28.74853226 | BI61: 20 | BJ61: 592.8 | BK61: 31.7721518 | BL61: 31.7721518 | BM61: 31.7721518 | BN61: 31.7721518 | BO61: 31.7721518 | BP61: 31.7721518 | BQ61: 31.7721518 | BR61: 31.7721518 | BS61: 31.7721518 | BT61: 31.7721518 | BU61: 31.7721518 | BV61: 31.7721518 | BY61: 18528.78552 | BZ61: 14.60966938 | CA61: 16.07063632 | CB61: 16.07063632 | CC61: 16.07063632 | CD61: 16.07063632 | CE61: 16.07063632 | CF61: 16.07063632 | CG61: 16.07063632 | CH61: 16.07063632 | CI61: 16.07063632 | CJ61: 16.07063632 | CK61: 16.07063632 | CL61: 16.07063632 | CP61: 20 | CQ61: 592.8 | CR61: 4.150810171 | CS61: 10.06606699 | CT61: 10.06606699 | CU61: 10.06606699 | CV61: 10.06606699 | CW61: 10.06606699 | CX61: 10.06606699 | CY61: 10.06606699 | CZ61: 10.06606699 | DA61: 10.06606699 | DB61: 10.06606699 | DC61: 10.06606699 | DD61: 10.06606699 | DG61: Nov | DH61: =Q46 -> 68.78427641 | DI61: =Q45 -> 74.35224715 | DJ61: =Q44 -> 80.14290546 | DK61: =Q43 -> 86.07807713 | DL61: =Q42 -> 92.03086803 | DM61: =Q41 -> 97.79615401 | DN61: =Q40 -> 103.0355654 | DO61: =Q39 -> 107.1627862 | DP61: =Q38 -> 109.061138 | DQ61: =Q37 -> 106.1664441 | DR61: =Q36 -> 88.96312488
C62: lact 2, phase 1, a | D62: 7573.87818 | F62: month | G62: Jan | H62: Feb | I62: Mar | J62: Apr | K62: May | L62: Jun | M62: Jul | N62: Aug | O62: Sep | P62: Oct | Q62: Nov | R62: Dec | S62: day | AE62: 11.25493802 | AF62: 10.56775912 | AG62: 9.603060198 | AH62: 8.875988905 | AI62: 8.586486682 | AJ62: 8.943169429 | AK62: 9.554881862 | AL62: 10.64005918 | AM62: 11.60725206 | AN62: 12.45279963 | AO62: 12.53696959 | AP62: 11.66027237 | AQ62: 10.52363642 | AS62: 21 | AT62: 25.52071159 | AU62: 25.52071159 | AV62: 25.52071159 | AW62: 25.52071159 | AX62: 25.52071159 | AY62: 25.52071159 | AZ62: 25.52071159 | BA62: 25.52071159 | BB62: 25.52071159 | BC62: 25.52071159 | BD62: 25.52071159 | BE62: 25.52071159 | BI62: 21 | BJ62: 623.2 | BK62: 29.01992995 | BL62: 29.01992995 | BM62: 29.01992995 | BN62: 29.01992995 | BO62: 29.01992995 | BP62: 29.01992995 | BQ62: 29.01992995 | BR62: 29.01992995 | BS62: 29.01992995 | BT62: 29.01992995 | BU62: 29.01992995 | BV62: 29.01992995 | BY62: 18937.55994 | BZ62: 13.44652701 | CA62: 14.79117971 | CB62: 14.79117971 | CC62: 14.79117971 | CD62: 14.79117971 | CE62: 14.79117971 | CF62: 14.79117971 | CG62: 14.79117971 | CH62: 14.79117971 | CI62: 14.79117971 | CJ62: 14.79117971 | CK62: 14.79117971 | CL62: 14.79117971 | CP62: 21 | CQ62: 623.2 | CR62: 3.40219 | CS62: 8.250599535 | CT62: 8.250599535 | CU62: 8.250599535 | CV62: 8.250599535 | CW62: 8.250599535 | CX62: 8.250599535 | CY62: 8.250599535 | CZ62: 8.250599535 | DA62: 8.250599535 | DB62: 8.250599535 | DC62: 8.250599535 | DD62: 8.250599535 | DG62: Dec | DH62: =R47 -> 63.48559195 | DI62: =R46 -> 68.78427641 | DJ62: =R45 -> 74.35224715 | DK62: =R44 -> 80.14290546 | DL62: =R43 -> 86.07807713 | DM62: =R42 -> 92.03086803 | DN62: =R41 -> 97.79615401 | DO62: =R40 -> 103.0355654 | DP62: =R39 -> 107.1627862 | DQ62: =R38 -> 109.061138 | DR62: =R37 -> 106.1664441 | DS62: =R36 -> 88.96312488
C63: lact 2, phase 1, b | D63: 0.003789143843 | F63: 1 | G63: 95.34604204 | H63: 95.34604204 | I63: 95.34604204 | J63: 95.34604204 | K63: 95.34604204 | L63: 95.34604204 | M63: 95.34604204 | N63: 95.34604204 | O63: 95.34604204 | P63: 95.34604204 | Q63: 95.34604204 | R63: 95.34604204 | S63: 15.2 | AE63: 10.48511743 | AF63: 9.798540176 | AG63: 8.877169912 | AH63: 7.906208754 | AI63: 7.305450535 | AJ63: 7.281854199 | AK63: 7.747091153 | AL63: 8.694831029 | AM63: 9.840388173 | AN63: 10.87067863 | AO63: 11.36215198 | AP63: 11.00775816 | AQ63: 9.264770011 | AS63: 22 | AT63: 22.46785369 | AU63: 22.46785369 | AV63: 22.46785369 | AW63: 22.46785369 | AX63: 22.46785369 | AY63: 22.46785369 | AZ63: 22.46785369 | BA63: 22.46785369 | BB63: 22.46785369 | BC63: 22.46785369 | BD63: 22.46785369 | BE63: 22.46785369 | BI63: 22 | BJ63: 653.6 | BK63: 26.49001809 | BL63: 26.49001809 | BM63: 26.49001809 | BN63: 26.49001809 | BO63: 26.49001809 | BP63: 26.49001809 | BQ63: 26.49001809 | BR63: 26.49001809 | BS63: 26.49001809 | BT63: 26.49001809 | BU63: 26.49001809 | BV63: 26.49001809 | BY63: 19313.57756 | BZ63: 12.36900064 | CA63: 13.6059007 | CB63: 13.6059007 | CC63: 13.6059007 | CD63: 13.6059007 | CE63: 13.6059007 | CF63: 13.6059007 | CG63: 13.6059007 | CH63: 13.6059007 | CI63: 13.6059007 | CJ63: 13.6059007 | CK63: 13.6059007 | CL63: 13.6059007 | CP63: 22 | CQ63: 653.6 | CR63: 2.784472194 | CS63: 6.752581421 | CT63: 6.752581421 | CU63: 6.752581421 | CV63: 6.752581421 | CW63: 6.752581421 | CX63: 6.752581421 | CY63: 6.752581421 | CZ63: 6.752581421 | DA63: 6.752581421 | DB63: 6.752581421 | DC63: 6.752581421 | DD63: 6.752581421 | DG63: Jan | DH63: =G48 -> 58.4817823 | DI63: =G47 -> 63.48559195 | DJ63: =G46 -> 68.78427641 | DK63: =G45 -> 74.35224715 | DL63: =G44 -> 80.14290546 | DM63: =G43 -> 86.07807713 | DN63: =G42 -> 92.03086803 | DO63: =G41 -> 97.79615401 | DP63: =G40 -> 103.0355654 | DQ63: =G39 -> 107.1627862 | DR63: =G38 -> 109.061138 | DS63: =G37 -> 106.1664441
C64: lact 2, phase 1, c | D64: 55.72231342 | F64: 2 | G64: 112.816871 | H64: 112.816871 | I64: 112.816871 | J64: 112.816871 | K64: 112.816871 | L64: 112.816871 | M64: 112.816871 | N64: 112.816871 | O64: 112.816871 | P64: 112.816871 | Q64: 112.816871 | R64: 112.816871 | S64: 45.6 | AE64: 9.715296831 | AF64: 9.029321232 | AG64: 8.151279625 | AH64: 6.936428603 | AI64: 6.024414389 | AJ64: 5.620538969 | AK64: 5.939300444 | AL64: 6.749602874 | AM64: 8.073524288 | AN64: 9.288557628 | AO64: 10.18733437 | AP64: 10.35524395 | AQ64: 8.0059036 | AS64: 23 | AT64: 19.41499579 | AU64: 19.41499579 | AV64: 19.41499579 | AW64: 19.41499579 | AX64: 19.41499579 | AY64: 19.41499579 | AZ64: 19.41499579 | BA64: 19.41499579 | BB64: 19.41499579 | BC64: 19.41499579 | BD64: 19.41499579 | BE64: 19.41499579 | BI64: 23 | BJ64: 684 | BK64: 24.16730995 | BL64: 24.16730995 | BM64: 24.16730995 | BN64: 24.16730995 | BO64: 24.16730995 | BP64: 24.16730995 | BQ64: 24.16730995 | BR64: 24.16730995 | BS64: 24.16730995 | BT64: 24.16730995 | BU64: 24.16730995 | BV64: 24.16730995 | BY64: 19659.2858 | BZ64: 11.37198155 | CA64: 12.5091797 | CB64: 12.5091797 | CC64: 12.5091797 | CD64: 12.5091797 | CE64: 12.5091797 | CF64: 12.5091797 | CG64: 12.5091797 | CH64: 12.5091797 | CI64: 12.5091797 | CJ64: 12.5091797 | CK64: 12.5091797 | CL64: 12.5091797 | CP64: 23 | CQ64: 684 | CR64: 2.276263432 | CS64: 5.520132036 | CT64: 5.520132036 | CU64: 5.520132036 | CV64: 5.520132036 | CW64: 5.520132036 | CX64: 5.520132036 | CY64: 5.520132036 | CZ64: 5.520132036 | DA64: 5.520132036 | DB64: 5.520132036 | DC64: 5.520132036 | DD64: 5.520132036 | DG64: Feb | DH64: =H49 -> 53.78423301 | DI64: =H48 -> 58.4817823 | DJ64: =H47 -> 63.48559195 | DK64: =H46 -> 68.78427641 | DL64: =H45 -> 74.35224715 | DM64: =H44 -> 80.14290546 | DN64: =H43 -> 86.07807713 | DO64: =H42 -> 92.03086803 | DP64: =H41 -> 97.79615401 | DQ64: =H40 -> 103.0355654 | DR64: =H39 -> 107.1627862 | DS64: =H38 -> 109.061138
C65: lact 2, phase 2, a | D65: 4609.780562 | F65: 3 | G65: 115.2463832 | H65: 115.2463832 | I65: 115.2463832 | J65: 115.2463832 | K65: 115.2463832 | L65: 115.2463832 | M65: 115.2463832 | N65: 115.2463832 | O65: 115.2463832 | P65: 115.2463832 | Q65: 115.2463832 | R65: 115.2463832 | S65: 76 | AE65: 8.945476234 | AF65: 8.260102289 | AG65: 7.425389338 | AH65: 5.966648452 | AI65: 4.743378242 | AJ65: 3.959223739 | AK65: 4.131509735 | AL65: 4.80437472 | AM65: 6.306660402 | AN65: 7.706436629 | AO65: 9.012516763 | AP65: 9.702729736 | AQ65: 6.74703719 | AS65: 24 | AT65: 16.36213789 | AU65: 16.36213789 | AV65: 16.36213789 | AW65: 16.36213789 | AX65: 16.36213789 | AY65: 16.36213789 | AZ65: 16.36213789 | BA65: 16.36213789 | BB65: 16.36213789 | BC65: 16.36213789 | BD65: 16.36213789 | BE65: 16.36213789 | BI65: 24 | BJ65: 714.4 | BK65: 22.03714845 | BL65: 22.03714845 | BM65: 22.03714845 | BN65: 22.03714845 | BO65: 22.03714845 | BP65: 22.03714845 | BQ65: 22.03714845 | BR65: 22.03714845 | BS65: 22.03714845 | BT65: 22.03714845 | BU65: 22.03714845 | BV65: 22.03714845 | BY65: 19976.97885 | BZ65: 10.45042922 | CA65: 11.49547214 | CB65: 11.49547214 | CC65: 11.49547214 | CD65: 11.49547214 | CE65: 11.49547214 | CF65: 11.49547214 | CG65: 11.49547214 | CH65: 11.49547214 | CI65: 11.49547214 | CJ65: 11.49547214 | CK65: 11.49547214 | CL65: 11.49547214 | CP65: 24 | CQ65: 714.4 | CR65: 1.859133188 | CS65: 4.508555787 | CT65: 4.508555787 | CU65: 4.508555787 | CV65: 4.508555787 | CW65: 4.508555787 | CX65: 4.508555787 | CY65: 4.508555787 | CZ65: 4.508555787 | DA65: 4.508555787 | DB65: 4.508555787 | DC65: 4.508555787 | DD65: 4.508555787 | DG65: Mar | DH65: =I50 -> 49.39466356 | DI65: =I49 -> 53.78423301 | DJ65: =I48 -> 58.4817823 | DK65: =I47 -> 63.48559195 | DL65: =I46 -> 68.78427641 | DM65: =I45 -> 74.35224715 | DN65: =I44 -> 80.14290546 | DO65: =I43 -> 86.07807713 | DP65: =I42 -> 92.03086803 | DQ65: =I41 -> 97.79615401 | DR65: =I40 -> 103.0355654 | DS65: =I39 -> 107.1627862
C66: lact 2, phase 2, b | D66: 0.003171818384 | F66: 4 | G66: 112.7068679 | H66: 112.7068679 | I66: 112.7068679 | J66: 112.7068679 | K66: 112.7068679 | L66: 112.7068679 | M66: 112.7068679 | N66: 112.7068679 | O66: 112.7068679 | P66: 112.7068679 | Q66: 112.7068679 | R66: 112.7068679 | S66: 106.4 | DG66: Apr | DH66: =J51 -> 45.30823001 | DI66: =J50 -> 49.39466356 | DJ66: =J49 -> 53.78423301 | DK66: =J48 -> 58.4817823 | DL66: =J47 -> 63.48559195 | DM66: =J46 -> 68.78427641 | DN66: =J45 -> 74.35224715 | DO66: =J44 -> 80.14290546 | DP66: =J43 -> 86.07807713 | DQ66: =J42 -> 92.03086803 | DR66: =J41 -> 97.79615401 | DS66: =J40 -> 103.0355654
C67: lact 2, phase 2, c | D67: 92.58595678 | F67: 5 | G67: 107.9015207 | H67: 107.9015207 | I67: 107.9015207 | J67: 107.9015207 | K67: 107.9015207 | L67: 107.9015207 | M67: 107.9015207 | N67: 107.9015207 | O67: 107.9015207 | P67: 107.9015207 | Q67: 107.9015207 | R67: 107.9015207 | S67: 136.8 | BL67: woodscurves3 | CB67: peakmilkcurves3 | DG67: May | DH67: =K52 -> 41.51568821 | DI67: =K51 -> 45.30823001 | DJ67: =K50 -> 49.39466356 | DK67: =K49 -> 53.78423301 | DL67: =K48 -> 58.4817823 | DM67: =K47 -> 63.48559195 | DN67: =K46 -> 68.78427641 | DO67: =K45 -> 74.35224715 | DP67: =K44 -> 80.14290546 | DQ67: =K43 -> 86.07807713 | DR67: =K42 -> 92.03086803 | DS67: =K41 -> 97.79615401
C68: lact 3+, phase 1, a | D68: 7928.527288 | F68: 6 | G68: 102.0014103 | H68: 102.0014103 | I68: 102.0014103 | J68: 102.0014103 | K68: 102.0014103 | L68: 102.0014103 | M68: 102.0014103 | N68: 102.0014103 | O68: 102.0014103 | P68: 102.0014103 | Q68: 102.0014103 | R68: 102.0014103 | S68: 167.2 | AE68: Jan | AF68: Feb | AG68: Mar | AH68: Apr | AI68: May | AJ68: Jun | AK68: Jul | AL68: Aug | AM68: Sep | AN68: Oct | AO68: Nov | AP68: Dec | AQ68: Avg | AS68: mim | AU68: floridacurves3 | BI68: mim | BK68: Jan | BL68: Feb | BM68: Mar | BN68: Apr | BO68: May | BP68: Jun | BQ68: Jul | BR68: Aug | BS68: Sep | BT68: Oct | BU68: Nov | BV68: Dec | CA68: Jan | CB68: Feb | CC68: Mar | CD68: Apr | CE68: May | CF68: Jun | CG68: Jul | CH68: Aug | CI68: Sep | CJ68: Oct | CK68: Nov | CL68: Dec | CS68: diphasiccurves3 | DG68: Jun | DH68: =L53 -> 38.00492332 | DI68: =L52 -> 41.51568821 | DJ68: =L51 -> 45.30823001 | DK68: =L50 -> 49.39466356 | DL68: =L49 -> 53.78423301 | DM68: =L48 -> 58.4817823 | DN68: =L47 -> 63.48559195 | DO68: =L46 -> 68.78427641 | DP68: =L45 -> 74.35224715 | DQ68: =L44 -> 80.14290546 | DR68: =L43 -> 86.07807713 | DS68: =L42 -> 92.03086803
C69: lact 3+, phase 1, b | D69: 0.00391985453 | F69: 7 | G69: 95.61695527 | H69: 95.61695527 | I69: 95.61695527 | J69: 95.61695527 | K69: 95.61695527 | L69: 95.61695527 | M69: 95.61695527 | N69: 95.61695527 | O69: 95.61695527 | P69: 95.61695527 | Q69: 95.61695527 | R69: 95.61695527 | S69: 197.6 | AE69: 36.16944008 | AF69: 36.47272093 | AG69: 35.84812224 | AH69: 34.51116237 | AI69: 32.29954809 | AJ69: 28.78620471 | AK69: 26.57889559 | AL69: 26.39109092 | AM69: 27.65055977 | AN69: 30.17078999 | AO69: 32.4711857 | AP69: 34.48904216 | AQ69: 31.81989688 | AS69: 1 | AT69: =((mseasonality*AE69*msea1+(1-mseasonality)*$AQ69)+mabs)*(1+pct)*lbs -> 77.16595087 | AU69: =((mseasonality*AF69*msea2+(1-mseasonality)*$AQ69)+mabs)*(1+pct)*lbs -> 77.16595087 | AV69: =((mseasonality*AG69*msea3+(1-mseasonality)*$AQ69)+mabs)*(1+pct)*lbs -> 77.16595087 | AW69: =((mseasonality*AH69*msea4+(1-mseasonality)*$AQ69)+mabs)*(1+pct)*lbs -> 77.16595087 | AX69: =((mseasonality*AI69*msea5+(1-mseasonality)*$AQ69)+mabs)*(1+pct)*lbs -> 77.16595087 | AY69: =((mseasonality*AJ69*msea6+(1-mseasonality)*$AQ69)+mabs)*(1+pct)*lbs -> 77.16595087 | AZ69: =((mseasonality*AK69*msea7+(1-mseasonality)*$AQ69)+mabs)*(1+pct)*lbs -> 77.16595087 | BA69: =((mseasonality*AL69*msea8+(1-mseasonality)*$AQ69)+mabs)*(1+pct)*lbs -> 77.16595087 | BB69: =((mseasonality*AM69*msea9+(1-mseasonality)*$AQ69)+mabs)*(1+pct)*lbs -> 77.16595087 | BC69: =((mseasonality*AN69*msea10+(1-mseasonality)*$AQ69)+mabs)*(1+pct)*lbs -> 77.16595087 | BD69: =((mseasonality*AO69*msea11+(1-mseasonality)*$AQ69)+mabs)*(1+pct)*lbs -> 77.16595087 | BE69: =((mseasonality*AP69*msea12+(1-mseasonality)*$AQ69)+mabs)*(1+pct)*lbs -> 77.16595087 | BI69: 1 | BJ69: =(BI69-1)*30.4+15.2 -> 15.2 | BK69: =((mseasonality*($D$38*($BJ69)^$D$39*EXP(-$D$40*$BJ69)*msea1) +(1-mseasonality)*($D$38*($BJ69)^$D$39*EXP(-$D$40*$BJ69)*mseaavg)))*(1+pct)*lbs+mabs -> 95.34604204 | BL69: =((mseasonality*($D$38*($BJ69)^$D$39*EXP(-$D$40*$BJ69)*msea2) +(1-mseasonality)*($D$38*($BJ69)^$D$39*EXP(-$D$40*$BJ69)*mseaavg)))*(1+pct)*lbs+mabs -> 95.34604204 | BM69: =((mseasonality*($D$38*($BJ69)^$D$39*EXP(-$D$40*$BJ69)*msea3) +(1-mseasonality)*($D$38*($BJ69)^$D$39*EXP(-$D$40*$BJ69)*mseaavg)))*(1+pct)*lbs+mabs -> 95.34604204 | BN69: =((mseasonality*($D$38*($BJ69)^$D$39*EXP(-$D$40*$BJ69)*msea4) +(1-mseasonality)*($D$38*($BJ69)^$D$39*EXP(-$D$40*$BJ69)*mseaavg)))*(1+pct)*lbs+mabs -> 95.34604204 | BO69: =((mseasonality*($D$38*($BJ69)^$D$39*EXP(-$D$40*$BJ69)*msea5) +(1-mseasonality)*($D$38*($BJ69)^$D$39*EXP(-$D$40*$BJ69)*mseaavg)))*(1+pct)*lbs+mabs -> 95.34604204 | BP69: =((mseasonality*($D$38*($BJ69)^$D$39*EXP(-$D$40*$BJ69)*msea6) +(1-mseasonality)*($D$38*($BJ69)^$D$39*EXP(-$D$40*$BJ69)*mseaavg)))*(1+pct)*lbs+mabs -> 95.34604204 | BQ69: =((mseasonality*($D$38*($BJ69)^$D$39*EXP(-$D$40*$BJ69)*msea7) +(1-mseasonality)*($D$38*($BJ69)^$D$39*EXP(-$D$40*$BJ69)*mseaavg)))*(1+pct)*lbs+mabs -> 95.34604204 | BR69: =((mseasonality*($D$38*($BJ69)^$D$39*EXP(-$D$40*$BJ69)*msea8) +(1-mseasonality)*($D$38*($BJ69)^$D$39*EXP(-$D$40*$BJ69)*mseaavg)))*(1+pct)*lbs+mabs -> 95.34604204 | BS69: =((mseasonality*($D$38*($BJ69)^$D$39*EXP(-$D$40*$BJ69)*msea9) +(1-mseasonality)*($D$38*($BJ69)^$D$39*EXP(-$D$40*$BJ69)*mseaavg)))*(1+pct)*lbs+mabs -> 95.34604204 | BT69: =((mseasonality*($D$38*($BJ69)^$D$39*EXP(-$D$40*$BJ69)*msea10) +(1-mseasonality)*($D$38*($BJ69)^$D$39*EXP(-$D$40*$BJ69)*mseaavg)))*(1+pct)*lbs+mabs -> 95.34604204 | BU69: =((mseasonality*($D$38*($BJ69)^$D$39*EXP(-$D$40*$BJ69)*msea11) +(1-mseasonality)*($D$38*($BJ69)^$D$39*EXP(-$D$40*$BJ69)*mseaavg)))*(1+pct)*lbs+mabs -> 95.34604204 | BV69: =((mseasonality*($D$38*($BJ69)^$D$39*EXP(-$D$40*$BJ69)*msea12) +(1-mseasonality)*($D$38*($BJ69)^$D$39*EXP(-$D$40*$BJ69)*mseaavg)))*(1+pct)*lbs+mabs -> 95.34604204 | BY69: =BZ69*30.4 -> 1129.164368 | BZ69: =(CK$6*($BJ69)^CL$6*EXP(-CM$6*$BJ69)) -> 37.14356475 | CA69: =((mseasonality*$BZ69*msea1+(1-mseasonality)*$BZ69*mseaavg))*(1+pct)+mabs -> 40.85792122 | CB69: =((mseasonality*$BZ69*msea2+(1-mseasonality)*$BZ69*mseaavg))*(1+pct)+mabs -> 40.85792122 | CC69: =((mseasonality*$BZ69*msea3+(1-mseasonality)*$BZ69*mseaavg))*(1+pct)+mabs -> 40.85792122 | CD69: =((mseasonality*$BZ69*msea4+(1-mseasonality)*$BZ69*mseaavg))*(1+pct)+mabs -> 40.85792122 | CE69: =((mseasonality*$BZ69*msea5+(1-mseasonality)*$BZ69*mseaavg))*(1+pct)+mabs -> 40.85792122 | CF69: =((mseasonality*$BZ69*msea6+(1-mseasonality)*$BZ69*mseaavg))*(1+pct)+mabs -> 40.85792122 | CG69: =((mseasonality*$BZ69*msea7+(1-mseasonality)*$BZ69*mseaavg))*(1+pct)+mabs -> 40.85792122 | CH69: =((mseasonality*$BZ69*msea8+(1-mseasonality)*$BZ69*mseaavg))*(1+pct)+mabs -> 40.85792122 | CI69: =((mseasonality*$BZ69*msea9+(1-mseasonality)*$BZ69*mseaavg))*(1+pct)+mabs -> 40.85792122 | CJ69: =((mseasonality*$BZ69*msea10+(1-mseasonality)*$BZ69*mseaavg))*(1+pct)+mabs -> 40.85792122 | CK69: =((mseasonality*$BZ69*msea11+(1-mseasonality)*$BZ69*mseaavg))*(1+pct)+mabs -> 40.85792122 | CL69: =((mseasonality*$BZ69*msea12+(1-mseasonality)*$BZ69*mseaavg))*(1+pct)+mabs -> 40.85792122 | CP69: 1 | CQ69: =(CP69-1)*30.4+15.2 -> 15.2 | CR69: =dp3_1a*dp3_1b*(1-(TANH(dp3_1b*($CQ69-dp3_1c)))^2)+dp3_2a*dp3_2b*(1-(TANH(dp3_2b*($CQ69-dp3_2c)))^2) -> 44.57494572 | CS69: =((mseasonality*$CR69*msea1+(1-mseasonality)*$CR69*mseaavg)*(1+pct)*lbs)+mabs -> 108.098027 | CT69: =((mseasonality*$CR69*msea2+(1-mseasonality)*$CR69*mseaavg)*(1+pct)*lbs)+mabs -> 108.098027 | CU69: =((mseasonality*$CR69*msea3+(1-mseasonality)*$CR69*mseaavg)*(1+pct)*lbs)+mabs -> 108.098027 | CV69: =((mseasonality*$CR69*msea4+(1-mseasonality)*$CR69*mseaavg)*(1+pct)*lbs)+mabs -> 108.098027 | CW69: =((mseasonality*$CR69*msea5+(1-mseasonality)*$CR69*mseaavg)*(1+pct)*lbs)+mabs -> 108.098027 | CX69: =((mseasonality*$CR69*msea6+(1-mseasonality)*$CR69*mseaavg)*(1+pct)*lbs)+mabs -> 108.098027 | CY69: =((mseasonality*$CR69*msea7+(1-mseasonality)*$CR69*mseaavg)*(1+pct)*lbs)+mabs -> 108.098027 | CZ69: =((mseasonality*$CR69*msea8+(1-mseasonality)*$CR69*mseaavg)*(1+pct)*lbs)+mabs -> 108.098027 | DA69: =((mseasonality*$CR69*msea9+(1-mseasonality)*$CR69*mseaavg)*(1+pct)*lbs)+mabs -> 108.098027 | DB69: =((mseasonality*$CR69*msea10+(1-mseasonality)*$CR69*mseaavg)*(1+pct)*lbs)+mabs -> 108.098027 | DC69: =((mseasonality*$CR69*msea11+(1-mseasonality)*$CR69*mseaavg)*(1+pct)*lbs)+mabs -> 108.098027 | DD69: =((mseasonality*$CR69*msea12+(1-mseasonality)*$CR69*mseaavg)*(1+pct)*lbs)+mabs -> 108.098027 | DG69: Jul | DH69: =M54 -> 34.76204131 | DI69: =M53 -> 38.00492332 | DJ69: =M52 -> 41.51568821 | DK69: =M51 -> 45.30823001 | DL69: =M50 -> 49.39466356 | DM69: =M49 -> 53.78423301 | DN69: =M48 -> 58.4817823 | DO69: =M47 -> 63.48559195 | DP69: =M46 -> 68.78427641 | DQ69: =M45 -> 74.35224715 | DR69: =M44 -> 80.14290546 | DS69: =M43 -> 86.07807713
C70: lact 3+, phase 1, c | D70: 55.11917239 | F70: 8 | G70: 89.09697396 | H70: 89.09697396 | I70: 89.09697396 | J70: 89.09697396 | K70: 89.09697396 | L70: 89.09697396 | M70: 89.09697396 | N70: 89.09697396 | O70: 89.09697396 | P70: 89.09697396 | Q70: 89.09697396 | R70: 89.09697396 | S70: 228 | AE70: 36.82863141 | AF70: 37.75600798 | AG70: 37.75011287 | AH70: 37.4231838 | AI70: 36.41684177 | AJ70: 34.47467428 | AK70: 32.55449436 | AL70: 31.36446922 | AM70: 31.21988671 | AN70: 32.14962944 | AO70: 33.53466862 | AP70: 35.33275935 | AQ70: 34.73377998 | AS70: 2 | AT70: 84.23236473 | AU70: 84.23236473 | AV70: 84.23236473 | AW70: 84.23236473 | AX70: 84.23236473 | AY70: 84.23236473 | AZ70: 84.23236473 | BA70: 84.23236473 | BB70: 84.23236473 | BC70: 84.23236473 | BD70: 84.23236473 | BE70: 84.23236473 | BI70: 2 | BJ70: =(BI70-1)*30.4+15.2 -> 45.6 | BK70: 112.816871 | BL70: 112.816871 | BM70: 112.816871 | BN70: 112.816871 | BO70: 112.816871 | BP70: 112.816871 | BQ70: 112.816871 | BR70: 112.816871 | BS70: 112.816871 | BT70: 112.816871 | BU70: 112.816871 | BV70: 112.816871 | BY70: 2461.694288 | BZ70: =(CK$6*($BJ70)^CL$6*EXP(-CM$6*$BJ70)) -> 43.83322105 | CA70: 48.21654315 | CB70: 48.21654315 | CC70: 48.21654315 | CD70: 48.21654315 | CE70: 48.21654315 | CF70: 48.21654315 | CG70: 48.21654315 | CH70: 48.21654315 | CI70: 48.21654315 | CJ70: 48.21654315 | CK70: 48.21654315 | CL70: 48.21654315 | CP70: 2 | CQ70: =(CP70-1)*30.4+15.2 -> 45.6 | CR70: 45.83132571 | CS70: 111.1448551 | CT70: 111.1448551 | CU70: 111.1448551 | CV70: 111.1448551 | CW70: 111.1448551 | CX70: 111.1448551 | CY70: 111.1448551 | CZ70: 111.1448551 | DA70: 111.1448551 | DB70: 111.1448551 | DC70: 111.1448551 | DD70: 111.1448551 | DG70: Aug | DH70: =N55 -> 31.7721518 | DI70: =N54 -> 34.76204131 | DJ70: =N53 -> 38.00492332 | DK70: =N52 -> 41.51568821 | DL70: =N51 -> 45.30823001 | DM70: =N50 -> 49.39466356 | DN70: =N49 -> 53.78423301 | DO70: =N48 -> 58.4817823 | DP70: =N47 -> 63.48559195 | DQ70: =N46 -> 68.78427641 | DR70: =N45 -> 74.35224715 | DS70: =N44 -> 80.14290546
C71: lact 3+, phase 2, a | D71: 4707.012095 | F71: 9 | G71: 82.65011018 | H71: 82.65011018 | I71: 82.65011018 | J71: 82.65011018 | K71: 82.65011018 | L71: 82.65011018 | M71: 82.65011018 | N71: 82.65011018 | O71: 82.65011018 | P71: 82.65011018 | Q71: 82.65011018 | R71: 82.65011018 | S71: 258.4 | AE71: 36.31421216 | AF71: 37.4712198 | AG71: 37.75355085 | AH71: 37.82797141 | AI71: 37.37577224 | AJ71: 36.31150816 | AK71: 34.74265645 | AL71: 33.27974793 | AM71: 32.54629042 | AN71: 32.66255205 | AO71: 33.50639357 | AP71: 34.99662701 | AQ71: 35.39904184 | AS71: 3 | AT71: 85.8456812 | AU71: 85.8456812 | AV71: 85.8456812 | AW71: 85.8456812 | AX71: 85.8456812 | AY71: 85.8456812 | AZ71: 85.8456812 | BA71: 85.8456812 | BB71: 85.8456812 | BC71: 85.8456812 | BD71: 85.8456812 | BE71: 85.8456812 | BI71: 3 | BJ71: 76 | BK71: 115.2463832 | BL71: 115.2463832 | BM71: 115.2463832 | BN71: 115.2463832 | BO71: 115.2463832 | BP71: 115.2463832 | BQ71: 115.2463832 | BR71: 115.2463832 | BS71: 115.2463832 | BT71: 115.2463832 | BU71: 115.2463832 | BV71: 115.2463832 | BY71: 3829.694288 | BZ71: 45 | CA71: 49.5 | CB71: 49.5 | CC71: 49.5 | CD71: 49.5 | CE71: 49.5 | CF71: 49.5 | CG71: 49.5 | CH71: 49.5 | CI71: 49.5 | CJ71: 49.5 | CK71: 49.5 | CL71: 49.5 | CP71: 3 | CQ71: 76 | CR71: 45.95569142 | CS71: 111.4464525 | CT71: 111.4464525 | CU71: 111.4464525 | CV71: 111.4464525 | CW71: 111.4464525 | CX71: 111.4464525 | CY71: 111.4464525 | CZ71: 111.4464525 | DA71: 111.4464525 | DB71: 111.4464525 | DC71: 111.4464525 | DD71: 111.4464525 | DG71: Sep | DH71: =O56 -> 29.01992995 | DI71: =O55 -> 31.7721518 | DJ71: =O54 -> 34.76204131 | DK71: =O53 -> 38.00492332 | DL71: =O52 -> 41.51568821 | DM71: =O51 -> 45.30823001 | DN71: =O50 -> 49.39466356 | DO71: =O49 -> 53.78423301 | DP71: =O48 -> 58.4817823 | DQ71: =O47 -> 63.48559195 | DR71: =O46 -> 68.78427641 | DS71: =O45 -> 74.35224715
C72: lact 3+, phase 2, b | D72: 0.003212791196 | F72: 10 | G72: 76.40304613 | H72: 76.40304613 | I72: 76.40304613 | J72: 76.40304613 | K72: 76.40304613 | L72: 76.40304613 | M72: 76.40304613 | N72: 76.40304613 | O72: 76.40304613 | P72: 76.40304613 | Q72: 76.40304613 | R72: 76.40304613 | S72: 288.8 | AE72: 34.98364472 | AF72: 36.1263308 | AG72: 36.49022817 | AH72: 36.5975432 | AI72: 36.2860784 | AJ72: 35.62096725 | AK72: 34.3959727 | AL72: 33.08420833 | AM72: 32.27150936 | AN72: 32.09167283 | AO72: 32.66162565 | AP72: 33.83012672 | AQ72: 34.53665901 | AS72: 4 | AT72: 83.75432964 | AU72: 83.75432964 | AV72: 83.75432964 | AW72: 83.75432964 | AX72: 83.75432964 | AY72: 83.75432964 | AZ72: 83.75432964 | BA72: 83.75432964 | BB72: 83.75432964 | BC72: 83.75432964 | BD72: 83.75432964 | BE72: 83.75432964 | BI72: 4 | BJ72: 106.4 | BK72: 112.7068679 | BL72: 112.7068679 | BM72: 112.7068679 | BN72: 112.7068679 | BO72: 112.7068679 | BP72: 112.7068679 | BQ72: 112.7068679 | BR72: 112.7068679 | BS72: 112.7068679 | BT72: 112.7068679 | BU72: 112.7068679 | BV72: 112.7068679 | BY72: 5177.248129 | BZ72: 44.32742896 | CA72: 48.76017186 | CB72: 48.76017186 | CC72: 48.76017186 | CD72: 48.76017186 | CE72: 48.76017186 | CF72: 48.76017186 | CG72: 48.76017186 | CH72: 48.76017186 | CI72: 48.76017186 | CJ72: 48.76017186 | CK72: 48.76017186 | CL72: 48.76017186 | CP72: 4 | CQ72: 106.4 | CR72: 44.94487253 | CS72: 108.9951309 | CT72: 108.9951309 | CU72: 108.9951309 | CV72: 108.9951309 | CW72: 108.9951309 | CX72: 108.9951309 | CY72: 108.9951309 | CZ72: 108.9951309 | DA72: 108.9951309 | DB72: 108.9951309 | DC72: 108.9951309 | DD72: 108.9951309 | DG72: Oct | DH72: =P57 -> 26.49001809 | DI72: =P56 -> 29.01992995 | DJ72: =P55 -> 31.7721518 | DK72: =P54 -> 34.76204131 | DL72: =P53 -> 38.00492332 | DM72: =P52 -> 41.51568821 | DN72: =P51 -> 45.30823001 | DO72: =P50 -> 49.39466356 | DP72: =P49 -> 53.78423301 | DQ72: =P48 -> 58.4817823 | DR72: =P47 -> 63.48559195 | DS72: =P46 -> 68.78427641
C73: lact 3+, phase 2, c | D73: 91.68697142 | F73: 11 | G73: 70.43169893 | H73: 70.43169893 | I73: 70.43169893 | J73: 70.43169893 | K73: 70.43169893 | L73: 70.43169893 | M73: 70.43169893 | N73: 70.43169893 | O73: 70.43169893 | P73: 70.43169893 | Q73: 70.43169893 | R73: 70.43169893 | S73: 319.2 | AE73: 33.1312831 | AF73: 34.13118791 | AG73: 34.46536267 | AH73: 34.42113103 | AI73: 34.02261535 | AJ73: 33.45153219 | AK73: 32.51536075 | AL73: 31.54795425 | AM73: 30.92897314 | AN73: 30.76416212 | AO73: 31.23917216 | AP73: 32.12287277 | AQ73: 32.72846729 | AS73: 5 | AT73: 79.36931123 | AU73: 79.36931123 | AV73: 79.36931123 | AW73: 79.36931123 | AX73: 79.36931123 | AY73: 79.36931123 | AZ73: 79.36931123 | BA73: 79.36931123 | BB73: 79.36931123 | BC73: 79.36931123 | BD73: 79.36931123 | BE73: 79.36931123 | BI73: 5 | BJ73: 136.8 | BK73: 107.9015207 | BL73: 107.9015207 | BM73: 107.9015207 | BN73: 107.9015207 | BO73: 107.9015207 | BP73: 107.9015207 | BQ73: 107.9015207 | BR73: 107.9015207 | BS73: 107.9015207 | BT73: 107.9015207 | BU73: 107.9015207 | BV73: 107.9015207 | BY73: 6478.134736 | BZ73: 42.79232261 | CA73: 47.07155487 | CB73: 47.07155487 | CC73: 47.07155487 | CD73: 47.07155487 | CE73: 47.07155487 | CF73: 47.07155487 | CG73: 47.07155487 | CH73: 47.07155487 | CI73: 47.07155487 | CJ73: 47.07155487 | CK73: 47.07155487 | CL73: 47.07155487 | CP73: 5 | CQ73: 136.8 | CR73: 42.90778632 | CS73: 104.0550239 | CT73: 104.0550239 | CU73: 104.0550239 | CV73: 104.0550239 | CW73: 104.0550239 | CX73: 104.0550239 | CY73: 104.0550239 | CZ73: 104.0550239 | DA73: 104.0550239 | DB73: 104.0550239 | DC73: 104.0550239 | DD73: 104.0550239 | DG73: Nov | DH73: =Q58 -> 24.16730995 | DI73: =Q57 -> 26.49001809 | DJ73: =Q56 -> 29.01992995 | DK73: =Q55 -> 31.7721518 | DL73: =Q54 -> 34.76204131 | DM73: =Q53 -> 38.00492332 | DN73: =Q52 -> 41.51568821 | DO73: =Q51 -> 45.30823001 | DP73: =Q50 -> 49.39466356 | DQ73: =Q49 -> 53.78423301 | DR73: =Q48 -> 58.4817823 | DS73: =Q47 -> 63.48559195
F74: 12 | G74: 64.77931733 | H74: 64.77931733 | I74: 64.77931733 | J74: 64.77931733 | K74: 64.77931733 | L74: 64.77931733 | M74: 64.77931733 | N74: 64.77931733 | O74: 64.77931733 | P74: 64.77931733 | Q74: 64.77931733 | R74: 64.77931733 | S74: 349.6 | AE74: 30.99371193 | AF74: 31.8066904 | AG74: 32.06982189 | AH74: 31.82350624 | AI74: 31.24902045 | AJ74: 30.60326566 | AK74: 29.87418411 | AL74: 29.27963257 | AM74: 28.95226198 | AN74: 28.95551877 | AO74: 29.44319082 | AP74: 30.10949098 | AQ74: 30.43002465 | AS74: 6 | AT74: 73.79539274 | AU74: 73.79539274 | AV74: 73.79539274 | AW74: 73.79539274 | AX74: 73.79539274 | AY74: 73.79539274 | AZ74: 73.79539274 | BA74: 73.79539274 | BB74: 73.79539274 | BC74: 73.79539274 | BD74: 73.79539274 | BE74: 73.79539274 | BI74: 6 | BJ74: 167.2 | BK74: 102.0014103 | BL74: 102.0014103 | BM74: 102.0014103 | BN74: 102.0014103 | BO74: 102.0014103 | BP74: 102.0014103 | BQ74: 102.0014103 | BR74: 102.0014103 | BS74: 102.0014103 | BT74: 102.0014103 | BU74: 102.0014103 | BV74: 102.0014103 | BY74: 7718.984367 | BZ74: 40.81742207 | CA74: 44.89916427 | CB74: 44.89916427 | CC74: 44.89916427 | CD74: 44.89916427 | CE74: 44.89916427 | CF74: 44.89916427 | CG74: 44.89916427 | CH74: 44.89916427 | CI74: 44.89916427 | CJ74: 44.89916427 | CK74: 44.89916427 | CL74: 44.89916427 | CP74: 6 | CQ74: 167.2 | CR74: 40.04145557 | CS74: 97.10392856 | CT74: 97.10392856 | CU74: 97.10392856 | CV74: 97.10392856 | CW74: 97.10392856 | CX74: 97.10392856 | CY74: 97.10392856 | CZ74: 97.10392856 | DA74: 97.10392856 | DB74: 97.10392856 | DC74: 97.10392856 | DD74: 97.10392856 | DG74: Dec | DH74: =R59 -> 22.03714845 | DI74: =R58 -> 24.16730995 | DJ74: =R57 -> 26.49001809 | DK74: =R56 -> 29.01992995 | DL74: =R55 -> 31.7721518 | DM74: =R54 -> 34.76204131 | DN74: =R53 -> 38.00492332 | DO74: =R52 -> 41.51568821 | DP74: =R51 -> 45.30823001 | DQ74: =R50 -> 49.39466356 | DR74: =R49 -> 53.78423301 | DS74: =R48 -> 58.4817823
F75: 13 | G75: 59.46760899 | H75: 59.46760899 | I75: 59.46760899 | J75: 59.46760899 | K75: 59.46760899 | L75: 59.46760899 | M75: 59.46760899 | N75: 59.46760899 | O75: 59.46760899 | P75: 59.46760899 | Q75: 59.46760899 | R75: 59.46760899 | S75: 380 | AE75: 28.75508549 | AF75: 29.39396979 | AG75: 29.59234688 | AH75: 29.18330514 | AI75: 28.44137942 | AJ75: 27.65517467 | AK75: 27.04237107 | AL75: 26.74215371 | AM75: 26.68356614 | AN75: 26.89284326 | AO75: 27.4449981 | AP75: 27.97449744 | AQ75: 27.98347426 | AS75: 7 | AT75: 67.86230037 | AU75: 67.86230037 | AV75: 67.86230037 | AW75: 67.86230037 | AX75: 67.86230037 | AY75: 67.86230037 | AZ75: 67.86230037 | BA75: 67.86230037 | BB75: 67.86230037 | BC75: 67.86230037 | BD75: 67.86230037 | BE75: 67.86230037 | BI75: 7 | BJ75: 197.6 | BK75: 95.61695527 | BL75: 95.61695527 | BM75: 95.61695527 | BN75: 95.61695527 | BO75: 95.61695527 | BP75: 95.61695527 | BQ75: 95.61695527 | BR75: 95.61695527 | BS75: 95.61695527 | BT75: 95.61695527 | BU75: 95.61695527 | BV75: 95.61695527 | BY75: 8893.173755 | BZ75: 38.62465093 | CA75: 42.48711602 | CB75: 42.48711602 | CC75: 42.48711602 | CD75: 42.48711602 | CE75: 42.48711602 | CF75: 42.48711602 | CG75: 42.48711602 | CH75: 42.48711602 | CI75: 42.48711602 | CJ75: 42.48711602 | CK75: 42.48711602 | CL75: 42.48711602 | CP75: 7 | CQ75: 197.6 | CR75: 36.59255902 | CS75: 88.74006167 | CT75: 88.74006167 | CU75: 88.74006167 | CV75: 88.74006167 | CW75: 88.74006167 | CX75: 88.74006167 | CY75: 88.74006167 | CZ75: 88.74006167 | DA75: 88.74006167 | DB75: 88.74006167 | DC75: 88.74006167 | DD75: 88.74006167 | DG75: Jan | DI75: =G59 -> 22.03714845 | DJ75: =G58 -> 24.16730995 | DK75: =G57 -> 26.49001809 | DL75: =G56 -> 29.01992995 | DM75: =G55 -> 31.7721518 | DN75: =G54 -> 34.76204131 | DO75: =G53 -> 38.00492332 | DP75: =G52 -> 41.51568821 | DQ75: =G51 -> 45.30823001 | DR75: =G50 -> 49.39466356 | DS75: =G49 -> 53.78423301
F76: 14 | G76: 54.50388796 | H76: 54.50388796 | I76: 54.50388796 | J76: 54.50388796 | K76: 54.50388796 | L76: 54.50388796 | M76: 54.50388796 | N76: 54.50388796 | O76: 54.50388796 | P76: 54.50388796 | Q76: 54.50388796 | R76: 54.50388796 | S76: 410.4 | AE76: 26.55246672 | AF76: 27.06356972 | AG76: 27.23177594 | AH76: 26.75135457 | AI76: 25.91189243 | AJ76: 24.99257288 | AK76: 24.41053373 | AL76: 24.26841215 | AM76: 24.38214534 | AN76: 24.75811087 | AO76: 25.3848774 | AP76: 25.85717723 | AQ76: 25.63040741 | AS76: 8 | AT76: 62.15591354 | AU76: 62.15591354 | AV76: 62.15591354 | AW76: 62.15591354 | AX76: 62.15591354 | AY76: 62.15591354 | AZ76: 62.15591354 | BA76: 62.15591354 | BB76: 62.15591354 | BC76: 62.15591354 | BD76: 62.15591354 | BE76: 62.15591354 | BI76: 8 | BJ76: 228 | BK76: 89.09697396 | BL76: 89.09697396 | BM76: 89.09697396 | BN76: 89.09697396 | BO76: 89.09697396 | BP76: 89.09697396 | BQ76: 89.09697396 | BR76: 89.09697396 | BS76: 89.09697396 | BT76: 89.09697396 | BU76: 89.09697396 | BV76: 89.09697396 | BY76: 9997.993024 | BZ76: 36.34273912 | CA76: 39.97701303 | CB76: 39.97701303 | CC76: 39.97701303 | CD76: 39.97701303 | CE76: 39.97701303 | CF76: 39.97701303 | CG76: 39.97701303 | CH76: 39.97701303 | CI76: 39.97701303 | CJ76: 39.97701303 | CK76: 39.97701303 | CL76: 39.97701303 | CP76: 8 | CQ76: 228 | CR76: 32.81656623 | CS76: 79.58295864 | CT76: 79.58295864 | CU76: 79.58295864 | CV76: 79.58295864 | CW76: 79.58295864 | CX76: 79.58295864 | CY76: 79.58295864 | CZ76: 79.58295864 | DA76: 79.58295864 | DB76: 79.58295864 | DC76: 79.58295864 | DD76: 79.58295864 | DG76: Feb | DJ76: =H59 -> 22.03714845 | DK76: =H58 -> 24.16730995 | DL76: =H57 -> 26.49001809 | DM76: =H56 -> 29.01992995 | DN76: =H55 -> 31.7721518 | DO76: =H54 -> 34.76204131 | DP76: =H53 -> 38.00492332 | DQ76: =H52 -> 41.51568821 | DR76: =H51 -> 45.30823001 | DS76: =H50 -> 49.39466356
F77: 15 | G77: 49.88581924 | H77: 49.88581924 | I77: 49.88581924 | J77: 49.88581924 | K77: 49.88581924 | L77: 49.88581924 | M77: 49.88581924 | N77: 49.88581924 | O77: 49.88581924 | P77: 49.88581924 | Q77: 49.88581924 | R77: 49.88581924 | S77: 440.8 | AE77: 24.48116621 | AF77: 24.92462584 | AG77: 25.10926847 | AH77: 24.66899747 | AI77: 23.83254012 | AJ77: 22.83444287 | AK77: 22.21408695 | AL77: 22.07700692 | AM77: 22.2327882 | AN77: 22.69144482 | AO77: 23.37388734 | AP77: 23.85646325 | AQ77: 23.52472654 | AS77: 9 | AT77: 57.04945868 | AU77: 57.04945868 | AV77: 57.04945868 | AW77: 57.04945868 | AX77: 57.04945868 | AY77: 57.04945868 | AZ77: 57.04945868 | BA77: 57.04945868 | BB77: 57.04945868 | BC77: 57.04945868 | BD77: 57.04945868 | BE77: 57.04945868 | BI77: 9 | BJ77: 258.4 | BK77: 82.65011018 | BL77: 82.65011018 | BM77: 82.65011018 | BN77: 82.65011018 | BO77: 82.65011018 | BP77: 82.65011018 | BQ77: 82.65011018 | BR77: 82.65011018 | BS77: 82.65011018 | BT77: 82.65011018 | BU77: 82.65011018 | BV77: 82.65011018 | BY77: 11033.12972 | BZ77: 34.05054906 | CA77: 37.45560396 | CB77: 37.45560396 | CC77: 37.45560396 | CD77: 37.45560396 | CE77: 37.45560396 | CF77: 37.45560396 | CG77: 37.45560396 | CH77: 37.45560396 | CI77: 37.45560396 | CJ77: 37.45560396 | CK77: 37.45560396 | CL77: 37.45560396 | CP77: 9 | CQ77: 258.4 | CR77: 28.94459076 | CS77: 70.19308946 | CT77: 70.19308946 | CU77: 70.19308946 | CV77: 70.19308946 | CW77: 70.19308946 | CX77: 70.19308946 | CY77: 70.19308946 | CZ77: 70.19308946 | DA77: 70.19308946 | DB77: 70.19308946 | DC77: 70.19308946 | DD77: 70.19308946 | DG77: Mar | DK77: =I59 -> 22.03714845 | DL77: =I58 -> 24.16730995 | DM77: =I57 -> 26.49001809 | DN77: =I56 -> 29.01992995 | DO77: =I55 -> 31.7721518 | DP77: =I54 -> 34.76204131 | DQ77: =I53 -> 38.00492332 | DR77: =I52 -> 41.51568821 | DS77: =I51 -> 45.30823001
F78: 16 | G78: 45.60464715 | H78: 45.60464715 | I78: 45.60464715 | J78: 45.60464715 | K78: 45.60464715 | L78: 45.60464715 | M78: 45.60464715 | N78: 45.60464715 | O78: 45.60464715 | P78: 45.60464715 | Q78: 45.60464715 | R78: 45.60464715 | S78: 471.2 | AE78: 22.60008124 | AF78: 23.03404569 | AG78: 23.28052876 | AH78: 22.98641841 | AI78: 22.25874975 | AJ78: 21.26079845 | AK78: 20.55736734 | AL78: 20.28796213 | AM78: 20.3542717 | AN78: 20.79438946 | AO78: 21.49566999 | AP78: 22.03581489 | AQ78: 21.74550815 | AS78: 10 | AT78: 52.73470307 | AU78: 52.73470307 | AV78: 52.73470307 | AW78: 52.73470307 | AX78: 52.73470307 | AY78: 52.73470307 | AZ78: 52.73470307 | BA78: 52.73470307 | BB78: 52.73470307 | BC78: 52.73470307 | BD78: 52.73470307 | BE78: 52.73470307 | BI78: 10 | BJ78: 288.8 | BK78: 76.40304613 | BL78: 76.40304613 | BM78: 76.40304613 | BN78: 76.40304613 | BO78: 76.40304613 | BP78: 76.40304613 | BQ78: 76.40304613 | BR78: 76.40304613 | BS78: 76.40304613 | BT78: 76.40304613 | BU78: 76.40304613 | BV78: 76.40304613 | BY78: 11999.77992 | BZ78: 31.79770397 | CA78: 34.97747437 | CB78: 34.97747437 | CC78: 34.97747437 | CD78: 34.97747437 | CE78: 34.97747437 | CF78: 34.97747437 | CG78: 34.97747437 | CH78: 34.97747437 | CI78: 34.97747437 | CJ78: 34.97747437 | CK78: 34.97747437 | CL78: 34.97747437 | CP78: 10 | CQ78: 288.8 | CR78: 25.16306134 | CS78: 61.02255964 | CT78: 61.02255964 | CU78: 61.02255964 | CV78: 61.02255964 | CW78: 61.02255964 | CX78: 61.02255964 | CY78: 61.02255964 | CZ78: 61.02255964 | DA78: 61.02255964 | DB78: 61.02255964 | DC78: 61.02255964 | DD78: 61.02255964 | DG78: Apr | DL78: =J59 -> 22.03714845 | DM78: =J58 -> 24.16730995 | DN78: =J57 -> 26.49001809 | DO78: =J56 -> 29.01992995 | DP78: =J55 -> 31.7721518 | DQ78: =J54 -> 34.76204131 | DR78: =J53 -> 38.00492332 | DS78: =J52 -> 41.51568821
F79: 17 | G79: 41.64743207 | H79: 41.64743207 | I79: 41.64743207 | J79: 41.64743207 | K79: 41.64743207 | L79: 41.64743207 | M79: 41.64743207 | N79: 41.64743207 | O79: 41.64743207 | P79: 41.64743207 | Q79: 41.64743207 | R79: 41.64743207 | S79: 501.6 | AE79: 20.93703478 | AF79: 21.40568855 | AG79: 21.74802978 | AH79: 21.68096917 | AI79: 21.15306122 | AJ79: 20.24004694 | AK79: 19.43775225 | AL79: 18.93844742 | AM79: 18.8078206 | AN79: 19.13318336 | AO79: 19.80825914 | AP79: 20.42809684 | AQ79: 20.30986584 | AS79: 11 | AT79: 49.2531486 | AU79: 49.2531486 | AV79: 49.2531486 | AW79: 49.2531486 | AX79: 49.2531486 | AY79: 49.2531486 | AZ79: 49.2531486 | BA79: 49.2531486 | BB79: 49.2531486 | BC79: 49.2531486 | BD79: 49.2531486 | BE79: 49.2531486 | BI79: 11 | BJ79: 319.2 | BK79: 70.43169893 | BL79: 70.43169893 | BM79: 70.43169893 | BN79: 70.43169893 | BO79: 70.43169893 | BP79: 70.43169893 | BQ79: 70.43169893 | BR79: 70.43169893 | BS79: 70.43169893 | BT79: 70.43169893 | BU79: 70.43169893 | BV79: 70.43169893 | BY79: 12900.09378 | BZ79: 29.61558766 | CA79: 32.57714642 | CB79: 32.57714642 | CC79: 32.57714642 | CD79: 32.57714642 | CE79: 32.57714642 | CF79: 32.57714642 | CG79: 32.57714642 | CH79: 32.57714642 | CI79: 32.57714642 | CJ79: 32.57714642 | CK79: 32.57714642 | CL79: 32.57714642 | CP79: 11 | CQ79: 319.2 | CR79: 21.60624429 | CS79: 52.39697638 | CT79: 52.39697638 | CU79: 52.39697638 | CV79: 52.39697638 | CW79: 52.39697638 | CX79: 52.39697638 | CY79: 52.39697638 | CZ79: 52.39697638 | DA79: 52.39697638 | DB79: 52.39697638 | DC79: 52.39697638 | DD79: 52.39697638 | DG79: May | DM79: =K59 -> 22.03714845 | DN79: =K58 -> 24.16730995 | DO79: =K57 -> 26.49001809 | DP79: =K56 -> 29.01992995 | DQ79: =K55 -> 31.7721518 | DR79: =K54 -> 34.76204131 | DS79: =K53 -> 38.00492332
F80: 18 | G80: 37.99861975 | H80: 37.99861975 | I80: 37.99861975 | J80: 37.99861975 | K80: 37.99861975 | L80: 37.99861975 | M80: 37.99861975 | N80: 37.99861975 | O80: 37.99861975 | P80: 37.99861975 | Q80: 37.99861975 | R80: 37.99861975 | S80: 532 | AE80: 19.4941145 | AF80: 20.01954536 | AG80: 20.473237 | AH80: 20.67549422 | AI80: 20.40879317 | AJ80: 19.65635151 | AK80: 18.76977871 | AL80: 17.99849852 | AM80: 17.60556686 | AN80: 17.74203249 | AO80: 18.34588856 | AP80: 19.04045785 | AQ80: 19.18581323 | AS80: 12 | AT80: 46.52722561 | AU80: 46.52722561 | AV80: 46.52722561 | AW80: 46.52722561 | AX80: 46.52722561 | AY80: 46.52722561 | AZ80: 46.52722561 | BA80: 46.52722561 | BB80: 46.52722561 | BC80: 46.52722561 | BD80: 46.52722561 | BE80: 46.52722561 | BI80: 12 | BJ80: 349.6 | BK80: 64.77931733 | BL80: 64.77931733 | BM80: 64.77931733 | BN80: 64.77931733 | BO80: 64.77931733 | BP80: 64.77931733 | BQ80: 64.77931733 | BR80: 64.77931733 | BS80: 64.77931733 | BT80: 64.77931733 | BU80: 64.77931733 | BV80: 64.77931733 | BY80: 13736.81448 | BZ80: 27.52370728 | CA80: 30.27607801 | CB80: 30.27607801 | CC80: 30.27607801 | CD80: 30.27607801 | CE80: 30.27607801 | CF80: 30.27607801 | CG80: 30.27607801 | CH80: 30.27607801 | CI80: 30.27607801 | CJ80: 30.27607801 | CK80: 30.27607801 | CL80: 30.27607801 | CP80: 12 | CQ80: 349.6 | CR80: 18.35849619 | CS80: 44.52091156 | CT80: 44.52091156 | CU80: 44.52091156 | CV80: 44.52091156 | CW80: 44.52091156 | CX80: 44.52091156 | CY80: 44.52091156 | CZ80: 44.52091156 | DA80: 44.52091156 | DB80: 44.52091156 | DC80: 44.52091156 | DD80: 44.52091156 | DG80: Jun | DN80: =L59 -> 22.03714845 | DO80: =L58 -> 24.16730995 | DP80: =L57 -> 26.49001809 | DQ80: =L56 -> 29.01992995 | DR80: =L55 -> 31.7721518 | DS80: =L54 -> 34.76204131
F81: 19 | G81: 34.64115062 | H81: 34.64115062 | I81: 34.64115062 | J81: 34.64115062 | K81: 34.64115062 | L81: 34.64115062 | M81: 34.64115062 | N81: 34.64115062 | O81: 34.64115062 | P81: 34.64115062 | Q81: 34.64115062 | R81: 34.64115062 | S81: 562.4 | AE81: 18.25301179 | AF81: 18.83091858 | AG81: 19.38883216 | AH81: 19.85665637 | AI81: 19.87370909 | AJ81: 19.33699342 | AK81: 18.40926249 | AL81: 17.38673772 | AM81: 16.71900911 | AN81: 16.62638338 | AO81: 17.12080022 | AP81: 17.85920946 | AQ81: 18.30512698 | AS81: 13 | AT81: 44.39148671 | AU81: 44.39148671 | AV81: 44.39148671 | AW81: 44.39148671 | AX81: 44.39148671 | AY81: 44.39148671 | AZ81: 44.39148671 | BA81: 44.39148671 | BB81: 44.39148671 | BC81: 44.39148671 | BD81: 44.39148671 | BE81: 44.39148671 | BI81: 13 | BJ81: 380 | BK81: 59.46760899 | BL81: 59.46760899 | BM81: 59.46760899 | BN81: 59.46760899 | BO81: 59.46760899 | BP81: 59.46760899 | BQ81: 59.46760899 | BR81: 59.46760899 | BS81: 59.46760899 | BT81: 59.46760899 | BU81: 59.46760899 | BV81: 59.46760899 | BY81: =BZ81*30.4+BY80 -> 14513.03605 | BZ81: 25.53360429 | CA81: 28.08696471 | CB81: 28.08696471 | CC81: 28.08696471 | CD81: 28.08696471 | CE81: 28.08696471 | CF81: 28.08696471 | CG81: 28.08696471 | CH81: 28.08696471 | CI81: 28.08696471 | CJ81: 28.08696471 | CK81: 28.08696471 | CL81: 28.08696471 | CP81: 13 | CQ81: 380 | CR81: 15.46218092 | CS81: 37.4971012 | CT81: 37.4971012 | CU81: 37.4971012 | CV81: 37.4971012 | CW81: 37.4971012 | CX81: 37.4971012 | CY81: 37.4971012 | CZ81: 37.4971012 | DA81: 37.4971012 | DB81: 37.4971012 | DC81: 37.4971012 | DD81: 37.4971012 | DG81: Jul | DO81: =M59 -> 22.03714845 | DP81: =M58 -> 24.16730995 | DQ81: =M57 -> 26.49001809 | DR81: =M56 -> 29.01992995 | DS81: =M55 -> 31.7721518
F82: 20 | G82: 31.5572461 | H82: 31.5572461 | I82: 31.5572461 | J82: 31.5572461 | K82: 31.5572461 | L82: 31.5572461 | M82: 31.5572461 | N82: 31.5572461 | O82: 31.5572461 | P82: 31.5572461 | Q82: 31.5572461 | R82: 31.5572461 | S82: 592.8 | AE82: 17.18036078 | AF82: 17.77960207 | AG82: 18.4109371 | AH82: 19.0932622 | AI82: 19.37368334 | AJ82: 19.07973436 | AK82: 18.17741698 | AL82: 16.98609437 | AM82: 16.08747208 | AN82: 15.76619626 | AO82: 16.12505257 | AP82: 16.85470476 | AQ82: 17.57620974 | AS82: 14 | AT82: 42.62380052 | AU82: 42.62380052 | AV82: 42.62380052 | AW82: 42.62380052 | AX82: 42.62380052 | AY82: 42.62380052 | AZ82: 42.62380052 | BA82: 42.62380052 | BB82: 42.62380052 | BC82: 42.62380052 | BD82: 42.62380052 | BE82: 42.62380052 | BI82: 14 | BJ82: 410.4 | BK82: 54.50388796 | BL82: 54.50388796 | BM82: 54.50388796 | BN82: 54.50388796 | BO82: 54.50388796 | BP82: 54.50388796 | BQ82: 54.50388796 | BR82: 54.50388796 | BS82: 54.50388796 | BT82: 54.50388796 | BU82: 54.50388796 | BV82: 54.50388796 | BY82: 15232.03776 | BZ82: 23.65137209 | CA82: 26.0165093 | CB82: 26.0165093 | CC82: 26.0165093 | CD82: 26.0165093 | CE82: 26.0165093 | CF82: 26.0165093 | CG82: 26.0165093 | CH82: 26.0165093 | CI82: 26.0165093 | CJ82: 26.0165093 | CK82: 26.0165093 | CL82: 26.0165093 | CP82: 14 | CQ82: 410.4 | CR82: 12.92773344 | CS82: 31.35085093 | CT82: 31.35085093 | CU82: 31.35085093 | CV82: 31.35085093 | CW82: 31.35085093 | CX82: 31.35085093 | CY82: 31.35085093 | CZ82: 31.35085093 | DA82: 31.35085093 | DB82: 31.35085093 | DC82: 31.35085093 | DD82: 31.35085093 | DG82: Aug | DP82: =N59 -> 22.03714845 | DQ82: =N58 -> 24.16730995 | DR82: =N57 -> 26.49001809 | DS82: =N56 -> 29.01992995
F83: 21 | G83: 28.72896473 | H83: 28.72896473 | I83: 28.72896473 | J83: 28.72896473 | K83: 28.72896473 | L83: 28.72896473 | M83: 28.72896473 | N83: 28.72896473 | O83: 28.72896473 | P83: 28.72896473 | Q83: 28.72896473 | R83: 28.72896473 | S83: 623.2 | AE83: 16.23307733 | AF83: 16.79906096 | AG83: 17.45133754 | AH83: 18.25458773 | AI83: 18.73636727 | AJ83: 18.68017872 | AK83: 17.88497226 | AL83: 16.65952541 | AM83: 15.626566 | AN83: 15.11921822 | AO83: 15.33232881 | AP83: 15.98621716 | AQ83: 16.89695312 | AS83: 15 | AT83: 40.97654556 | AU83: 40.97654556 | AV83: 40.97654556 | AW83: 40.97654556 | AX83: 40.97654556 | AY83: 40.97654556 | AZ83: 40.97654556 | BA83: 40.97654556 | BB83: 40.97654556 | BC83: 40.97654556 | BD83: 40.97654556 | BE83: 40.97654556 | BI83: 15 | BJ83: 440.8 | BK83: 49.88581924 | BL83: 49.88581924 | BM83: 49.88581924 | BN83: 49.88581924 | BO83: 49.88581924 | BP83: 49.88581924 | BQ83: 49.88581924 | BR83: 49.88581924 | BS83: 49.88581924 | BT83: 49.88581924 | BU83: 49.88581924 | BV83: 49.88581924 | BY83: 15897.16958 | BZ83: 21.87933597 | CA83: 24.06726957 | CB83: 24.06726957 | CC83: 24.06726957 | CD83: 24.06726957 | CE83: 24.06726957 | CF83: 24.06726957 | CG83: 24.06726957 | CH83: 24.06726957 | CI83: 24.06726957 | CJ83: 24.06726957 | CK83: 24.06726957 | CL83: 24.06726957 | CP83: 15 | CQ83: 440.8 | CR83: 10.74349731 | CS83: 26.05389292 | CT83: 26.05389292 | CU83: 26.05389292 | CV83: 26.05389292 | CW83: 26.05389292 | CX83: 26.05389292 | CY83: 26.05389292 | CZ83: 26.05389292 | DA83: 26.05389292 | DB83: 26.05389292 | DC83: 26.05389292 | DD83: 26.05389292 | DG83: Sep | DQ83: =O59 -> 22.03714845 | DR83: =O58 -> 24.16730995 | DS83: =O57 -> 26.49001809
F84: 22 | G84: 26.13859219 | H84: 26.13859219 | I84: 26.13859219 | J84: 26.13859219 | K84: 26.13859219 | L84: 26.13859219 | M84: 26.13859219 | N84: 26.13859219 | O84: 26.13859219 | P84: 26.13859219 | Q84: 26.13859219 | R84: 26.13859219 | S84: 653.6 | AE84: 15.36369804 | AF84: 15.82561156 | AG84: 16.42970689 | AH84: 17.22870387 | AI84: 17.81485528 | AJ84: 17.9591359 | AK84: 17.35629402 | AL84: 16.26573585 | AM84: 15.23664609 | AN84: 14.62425634 | AO84: 14.69974507 | AP84: 15.20681914 | AQ84: 16.16760067 | AS84: 16 | AT84: 39.20780396 | AU84: 39.20780396 | AV84: 39.20780396 | AW84: 39.20780396 | AX84: 39.20780396 | AY84: 39.20780396 | AZ84: 39.20780396 | BA84: 39.20780396 | BB84: 39.20780396 | BC84: 39.20780396 | BD84: 39.20780396 | BE84: 39.20780396 | BI84: 16 | BJ84: 471.2 | BK84: 45.60464715 | BL84: 45.60464715 | BM84: 45.60464715 | BN84: 45.60464715 | BO84: 45.60464715 | BP84: 45.60464715 | BQ84: 45.60464715 | BR84: 45.60464715 | BS84: 45.60464715 | BT84: 45.60464715 | BU84: 45.60464715 | BV84: 45.60464715 | BY84: 16511.77263 | BZ84: 20.21720554 | CA84: 22.23892609 | CB84: 22.23892609 | CC84: 22.23892609 | CD84: 22.23892609 | CE84: 22.23892609 | CF84: 22.23892609 | CG84: 22.23892609 | CH84: 22.23892609 | CI84: 22.23892609 | CJ84: 22.23892609 | CK84: 22.23892609 | CL84: 22.23892609 | CP84: 16 | CQ84: 471.2 | CR84: 8.884082615 | CS84: 21.54465444 | CT84: 21.54465444 | CU84: 21.54465444 | CV84: 21.54465444 | CW84: 21.54465444 | CX84: 21.54465444 | CY84: 21.54465444 | CZ84: 21.54465444 | DA84: 21.54465444 | DB84: 21.54465444 | DC84: 21.54465444 | DD84: 21.54465444 | DG84: Oct | DR84: =P59 -> 22.03714845 | DS84: =P58 -> 24.16730995
F85: 23 | G85: 23.76891047 | H85: 23.76891047 | I85: 23.76891047 | J85: 23.76891047 | K85: 23.76891047 | L85: 23.76891047 | M85: 23.76891047 | N85: 23.76891047 | O85: 23.76891047 | P85: 23.76891047 | Q85: 23.76891047 | R85: 23.76891047 | S85: 684 | AE85: 14.52571931 | AF85: 14.80760121 | AG85: 15.28583004 | AH85: 15.94080204 | AI85: 16.51135091 | AJ85: 16.78998261 | AK85: 16.45350257 | AL85: 15.67489926 | AM85: 14.81127198 | AN85: 14.20445087 | AO85: 14.16965875 | AP85: 14.468261 | AQ85: 15.30361088 | AS85: 17 | AT85: 37.11255538 | AU85: 37.11255538 | AV85: 37.11255538 | AW85: 37.11255538 | AX85: 37.11255538 | AY85: 37.11255538 | AZ85: 37.11255538 | BA85: 37.11255538 | BB85: 37.11255538 | BC85: 37.11255538 | BD85: 37.11255538 | BE85: 37.11255538 | BI85: 17 | BJ85: 501.6 | BK85: 41.64743207 | BL85: 41.64743207 | BM85: 41.64743207 | BN85: 41.64743207 | BO85: 41.64743207 | BP85: 41.64743207 | BQ85: 41.64743207 | BR85: 41.64743207 | BS85: 41.64743207 | BT85: 41.64743207 | BU85: 41.64743207 | BV85: 41.64743207 | BY85: 17079.12426 | BZ85: 18.66288256 | CA85: 20.52917081 | CB85: 20.52917081 | CC85: 20.52917081 | CD85: 20.52917081 | CE85: 20.52917081 | CF85: 20.52917081 | CG85: 20.52917081 | CH85: 20.52917081 | CI85: 20.52917081 | CJ85: 20.52917081 | CK85: 20.52917081 | CL85: 20.52917081 | CP85: 17 | CQ85: 501.6 | CR85: 7.316812893 | CS85: 17.74389233 | CT85: 17.74389233 | CU85: 17.74389233 | CV85: 17.74389233 | CW85: 17.74389233 | CX85: 17.74389233 | CY85: 17.74389233 | CZ85: 17.74389233 | DA85: 17.74389233 | DB85: 17.74389233 | DC85: 17.74389233 | DD85: 17.74389233 | DG85: Nov | DS85: =Q59 -> 22.03714845
F86: 24 | G86: 21.60337866 | H86: 21.60337866 | I86: 21.60337866 | J86: 21.60337866 | K86: 21.60337866 | L86: 21.60337866 | M86: 21.60337866 | N86: 21.60337866 | O86: 21.60337866 | P86: 21.60337866 | Q86: 21.60337866 | R86: 21.60337866 | S86: 714.4 | AE86: 13.6789363 | AF86: 13.71458817 | AG86: 13.99182718 | AH86: 14.37151965 | AI86: 14.80083289 | AJ86: 15.12602515 | AK86: 15.1005918 | AL86: 14.78437832 | AM86: 14.24566711 | AN86: 13.77054836 | AO86: 13.67147673 | AP86: 13.72584962 | AQ86: 14.24852011 | AS86: 18 | AT86: 34.5538707 | AU86: 34.5538707 | AV86: 34.5538707 | AW86: 34.5538707 | AX86: 34.5538707 | AY86: 34.5538707 | AZ86: 34.5538707 | BA86: 34.5538707 | BB86: 34.5538707 | BC86: 34.5538707 | BD86: 34.5538707 | BE86: 34.5538707 | BI86: 18 | BJ86: 532 | BK86: 37.99861975 | BL86: 37.99861975 | BM86: 37.99861975 | BN86: 37.99861975 | BO86: 37.99861975 | BP86: 37.99861975 | BQ86: 37.99861975 | BR86: 37.99861975 | BS86: 37.99861975 | BT86: 37.99861975 | BU86: 37.99861975 | BV86: 37.99861975 | BY86: 17602.40057 | BZ86: 17.21303655 | CA86: 18.93434021 | CB86: 18.93434021 | CC86: 18.93434021 | CD86: 18.93434021 | CE86: 18.93434021 | CF86: 18.93434021 | CG86: 18.93434021 | CH86: 18.93434021 | CI86: 18.93434021 | CJ86: 18.93434021 | CK86: 18.93434021 | CL86: 18.93434021 | CP86: 18 | CQ86: 532 | CR86: 6.006320848 | CS86: 14.56583789 | CT86: 14.56583789 | CU86: 14.56583789 | CV86: 14.56583789 | CW86: 14.56583789 | CX86: 14.56583789 | CY86: 14.56583789 | CZ86: 14.56583789 | DA86: 14.56583789 | DB86: 14.56583789 | DC86: 14.56583789 | DD86: 14.56583789 | DH86: chartmilk3
AE87: 12.79478197 | AF87: 12.54652151 | AG87: 12.56437759 | AH87: 12.57526573 | AI87: 12.75472127 | AJ87: 13.02786174 | AK87: 13.30754819 | AL87: 13.53444528 | AM87: 13.44517821 | AN87: 13.22417481 | AO87: 13.1234636 | AP87: 12.94332724 | AQ87: 12.9868056 | AS87: 19 | AT87: 31.49410591 | AU87: 31.49410591 | AV87: 31.49410591 | AW87: 31.49410591 | AX87: 31.49410591 | AY87: 31.49410591 | AZ87: 31.49410591 | BA87: 31.49410591 | BB87: 31.49410591 | BC87: 31.49410591 | BD87: 31.49410591 | BE87: 31.49410591 | BI87: 19 | BJ87: 562.4 | BK87: 34.64115062 | BL87: 34.64115062 | BM87: 34.64115062 | BN87: 34.64115062 | BO87: 34.64115062 | BP87: 34.64115062 | BQ87: 34.64115062 | BR87: 34.64115062 | BS87: 34.64115062 | BT87: 34.64115062 | BU87: 34.64115062 | BV87: 34.64115062 | BY87: 18084.65157 | BZ87: 15.86351985 | CA87: 17.44987184 | CB87: 17.44987184 | CC87: 17.44987184 | CD87: 17.44987184 | CE87: 17.44987184 | CF87: 17.44987184 | CG87: 17.44987184 | CH87: 17.44987184 | CI87: 17.44987184 | CJ87: 17.44987184 | CK87: 17.44987184 | CL87: 17.44987184 | CP87: 19 | CQ87: 562.4 | CR87: 4.917584466 | CS87: 11.92555974 | CT87: 11.92555974 | CU87: 11.92555974 | CV87: 11.92555974 | CW87: 11.92555974 | CX87: 11.92555974 | CY87: 11.92555974 | CZ87: 11.92555974 | DA87: 11.92555974 | DB87: 11.92555974 | DC87: 11.92555974 | DD87: 11.92555974 | DG87: Jan | DH87: =G63 -> 95.34604204
G88: Milk yield in lactations 4+ compared to lactation 3 | AE88: 11.86166608 | AF88: 11.34292096 | AG88: 11.07694342 | AH88: 10.69854641 | AI88: 10.56454345 | AJ88: 10.69074477 | AK88: 11.19446977 | AL88: 11.92400249 | AM88: 12.33373474 | AN88: 12.46110884 | AO88: 12.43454996 | AP88: 12.09775015 | AQ88: 11.55674842 | AS88: 20 | AT88: 28.02609588 | AU88: 28.02609588 | AV88: 28.02609588 | AW88: 28.02609588 | AX88: 28.02609588 | AY88: 28.02609588 | AZ88: 28.02609588 | BA88: 28.02609588 | BB88: 28.02609588 | BC88: 28.02609588 | BD88: 28.02609588 | BE88: 28.02609588 | BI88: 20 | BJ88: 592.8 | BK88: 31.5572461 | BL88: 31.5572461 | BM88: 31.5572461 | BN88: 31.5572461 | BO88: 31.5572461 | BP88: 31.5572461 | BQ88: 31.5572461 | BR88: 31.5572461 | BS88: 31.5572461 | BT88: 31.5572461 | BU88: 31.5572461 | BV88: 31.5572461 | BY88: 18528.78552 | BZ88: 14.60966938 | CA88: 16.07063632 | CB88: 16.07063632 | CC88: 16.07063632 | CD88: 16.07063632 | CE88: 16.07063632 | CF88: 16.07063632 | CG88: 16.07063632 | CH88: 16.07063632 | CI88: 16.07063632 | CJ88: 16.07063632 | CK88: 16.07063632 | CL88: 16.07063632 | CP88: 20 | CQ88: 592.8 | CR88: 4.017762222 | CS88: 9.743414424 | CT88: 9.743414424 | CU88: 9.743414424 | CV88: 9.743414424 | CW88: 9.743414424 | CX88: 9.743414424 | CY88: 9.743414424 | CZ88: 9.743414424 | DA88: 9.743414424 | DB88: 9.743414424 | DC88: 9.743414424 | DD88: 9.743414424 | DG88: Feb | DH88: =H64 -> 112.816871 | DI88: =H63 -> 95.34604204
G89: 4 | H89: 5 | I89: 6 | J89: 7 | K89: 8 | L89: 9 | M89: 10 | N89: 11 | O89: 12 | P89: lactation | AE89: 10.89031421 | AF89: 10.19205682 | AG89: 9.671993534 | AH89: 8.998290507 | AI89: 8.565600275 | AJ89: 8.471943128 | AK89: 9.015685082 | AL89: 10.02630286 | AM89: 10.8623083 | AN89: 11.37455482 | AO89: 11.50614066 | AP89: 11.18436754 | AQ89: 10.06329648 | AS89: 21 | AT89: 24.40434815 | AU89: 24.40434815 | AV89: 24.40434815 | AW89: 24.40434815 | AX89: 24.40434815 | AY89: 24.40434815 | AZ89: 24.40434815 | BA89: 24.40434815 | BB89: 24.40434815 | BC89: 24.40434815 | BD89: 24.40434815 | BE89: 24.40434815 | BI89: 21 | BJ89: 623.2 | BK89: 28.72896473 | BL89: 28.72896473 | BM89: 28.72896473 | BN89: 28.72896473 | BO89: 28.72896473 | BP89: 28.72896473 | BQ89: 28.72896473 | BR89: 28.72896473 | BS89: 28.72896473 | BT89: 28.72896473 | BU89: 28.72896473 | BV89: 28.72896473 | BY89: 18937.55994 | BZ89: 13.44652701 | CA89: 14.79117971 | CB89: 14.79117971 | CC89: 14.79117971 | CD89: 14.79117971 | CE89: 14.79117971 | CF89: 14.79117971 | CG89: 14.79117971 | CH89: 14.79117971 | CI89: 14.79117971 | CJ89: 14.79117971 | CK89: 14.79117971 | CL89: 14.79117971 | CP89: 21 | CQ89: 623.2 | CR89: 3.277164742 | CS89: 7.947402671 | CT89: 7.947402671 | CU89: 7.947402671 | CV89: 7.947402671 | CW89: 7.947402671 | CX89: 7.947402671 | CY89: 7.947402671 | CZ89: 7.947402671 | DA89: 7.947402671 | DB89: 7.947402671 | DC89: 7.947402671 | DD89: 7.947402671 | DG89: Mar | DH89: =I65 -> 115.2463832 | DI89: =I64 -> 112.816871 | DJ89: =I63 -> 95.34604204
G90: 1 | H90: 1 | I90: 1 | J90: 1 | K90: 1 | L90: 1 | M90: 1 | N90: 1 | O90: 1 | AE90: 9.919106764 | AF90: 9.240129834 | AG90: 8.573227257 | AH90: 7.860175057 | AI90: 7.26063212 | AJ90: 6.918104495 | AK90: 7.183872201 | AL90: 8.004670419 | AM90: 9.017372064 | AN90: 9.858416038 | AO90: 10.23392301 | AP90: 10.22150018 | AQ90: 8.690927454 | AS90: 22 | AT90: 21.07623678 | AU90: 21.07623678 | AV90: 21.07623678 | AW90: 21.07623678 | AX90: 21.07623678 | AY90: 21.07623678 | AZ90: 21.07623678 | BA90: 21.07623678 | BB90: 21.07623678 | BC90: 21.07623678 | BD90: 21.07623678 | BE90: 21.07623678 | BI90: 22 | BJ90: 653.6 | BK90: 26.13859219 | BL90: 26.13859219 | BM90: 26.13859219 | BN90: 26.13859219 | BO90: 26.13859219 | BP90: 26.13859219 | BQ90: 26.13859219 | BR90: 26.13859219 | BS90: 26.13859219 | BT90: 26.13859219 | BU90: 26.13859219 | BV90: 26.13859219 | BY90: 19313.57756 | BZ90: 12.36900064 | CA90: 13.6059007 | CB90: 13.6059007 | CC90: 13.6059007 | CD90: 13.6059007 | CE90: 13.6059007 | CF90: 13.6059007 | CG90: 13.6059007 | CH90: 13.6059007 | CI90: 13.6059007 | CJ90: 13.6059007 | CK90: 13.6059007 | CL90: 13.6059007 | CP90: 22 | CQ90: 653.6 | CR90: 2.669642007 | CS90: 6.474108471 | CT90: 6.474108471 | CU90: 6.474108471 | CV90: 6.474108471 | CW90: 6.474108471 | CX90: 6.474108471 | CY90: 6.474108471 | CZ90: 6.474108471 | DA90: 6.474108471 | DB90: 6.474108471 | DC90: 6.474108471 | DD90: 6.474108471 | DG90: Apr | DH90: =J66 -> 112.7068679 | DI90: =J65 -> 115.2463832 | DJ90: =J64 -> 112.816871 | DK90: =J63 -> 95.34604204
AE91: 8.947899321 | AF91: 8.28820285 | AG91: 7.47446098 | AH91: 6.722059606 | AI91: 5.955663965 | AJ91: 5.364265863 | AK91: 5.352059321 | AL91: 5.983037982 | AM91: 7.172435829 | AN91: 8.342277255 | AO91: 8.96170537 | AP91: 9.258632817 | AQ91: 7.31855843 | AS91: 23 | AT91: 17.74812541 | AU91: 17.74812541 | AV91: 17.74812541 | AW91: 17.74812541 | AX91: 17.74812541 | AY91: 17.74812541 | AZ91: 17.74812541 | BA91: 17.74812541 | BB91: 17.74812541 | BC91: 17.74812541 | BD91: 17.74812541 | BE91: 17.74812541 | BI91: 23 | BJ91: 684 | BK91: 23.76891047 | BL91: 23.76891047 | BM91: 23.76891047 | BN91: 23.76891047 | BO91: 23.76891047 | BP91: 23.76891047 | BQ91: 23.76891047 | BR91: 23.76891047 | BS91: 23.76891047 | BT91: 23.76891047 | BU91: 23.76891047 | BV91: 23.76891047 | BY91: 19659.2858 | BZ91: 11.37198155 | CA91: 12.5091797 | CB91: 12.5091797 | CC91: 12.5091797 | CD91: 12.5091797 | CE91: 12.5091797 | CF91: 12.5091797 | CG91: 12.5091797 | CH91: 12.5091797 | CI91: 12.5091797 | CJ91: 12.5091797 | CK91: 12.5091797 | CL91: 12.5091797 | CP91: 23 | CQ91: 684 | CR91: 2.172599066 | CS91: 5.268737151 | CT91: 5.268737151 | CU91: 5.268737151 | CV91: 5.268737151 | CW91: 5.268737151 | CX91: 5.268737151 | CY91: 5.268737151 | CZ91: 5.268737151 | DA91: 5.268737151 | DB91: 5.268737151 | DC91: 5.268737151 | DD91: 5.268737151 | DG91: May | DH91: =K67 -> 107.9015207 | DI91: =K66 -> 112.7068679 | DJ91: =K65 -> 115.2463832 | DK91: =K64 -> 112.816871 | DL91: =K63 -> 95.34604204
AE92: 7.976691878 | AF92: 7.336275865 | AG92: 6.375694703 | AH92: 5.583944156 | AI92: 4.65069581 | AJ92: 3.810427231 | AK92: 3.52024644 | AL92: 3.961405545 | AM92: 5.327499594 | AN92: 6.826138472 | AO92: 7.689487728 | AP92: 8.295765453 | AQ92: 5.946189406 | AS92: 24 | AT92: 14.42001403 | AU92: 14.42001403 | AV92: 14.42001403 | AW92: 14.42001403 | AX92: 14.42001403 | AY92: 14.42001403 | AZ92: 14.42001403 | BA92: 14.42001403 | BB92: 14.42001403 | BC92: 14.42001403 | BD92: 14.42001403 | BE92: 14.42001403 | BI92: 24 | BJ92: 714.4 | BK92: 21.60337866 | BL92: 21.60337866 | BM92: 21.60337866 | BN92: 21.60337866 | BO92: 21.60337866 | BP92: 21.60337866 | BQ92: 21.60337866 | BR92: 21.60337866 | BS92: 21.60337866 | BT92: 21.60337866 | BU92: 21.60337866 | BV92: 21.60337866 | BY92: 19976.97885 | BZ92: 10.45042922 | CA92: 11.49547214 | CB92: 11.49547214 | CC92: 11.49547214 | CD92: 11.49547214 | CE92: 11.49547214 | CF92: 11.49547214 | CG92: 11.49547214 | CH92: 11.49547214 | CI92: 11.49547214 | CJ92: 11.49547214 | CK92: 11.49547214 | CL92: 11.49547214 | CP92: 24 | CQ92: 714.4 | CR92: 1.766793377 | CS92: 4.284623907 | CT92: 4.284623907 | CU92: 4.284623907 | CV92: 4.284623907 | CW92: 4.284623907 | CX92: 4.284623907 | CY92: 4.284623907 | CZ92: 4.284623907 | DA92: 4.284623907 | DB92: 4.284623907 | DC92: 4.284623907 | DD92: 4.284623907 | DG92: Jun | DH92: =L68 -> 102.0014103 | DI92: =L67 -> 107.9015207 | DJ92: =L66 -> 112.7068679 | DK92: =L65 -> 115.2463832 | DL92: =L64 -> 112.816871 | DM92: =L63 -> 95.34604204
DG93: Jul | DH93: =M69 -> 95.61695527 | DI93: =M68 -> 102.0014103 | DJ93: =M67 -> 107.9015207 | DK93: =M66 -> 112.7068679 | DL93: =M65 -> 115.2463832 | DM93: =M64 -> 112.816871 | DN93: =M63 -> 95.34604204
DG94: Aug | DH94: =N70 -> 89.09697396 | DI94: =N69 -> 95.61695527 | DJ94: =N68 -> 102.0014103 | DK94: =N67 -> 107.9015207 | DL94: =N66 -> 112.7068679 | DM94: =N65 -> 115.2463832 | DN94: =N64 -> 112.816871 | DO94: =N63 -> 95.34604204
DG95: Sep | DH95: =O71 -> 82.65011018 | DI95: =O70 -> 89.09697396 | DJ95: =O69 -> 95.61695527 | DK95: =O68 -> 102.0014103 | DL95: =O67 -> 107.9015207 | DM95: =O66 -> 112.7068679 | DN95: =O65 -> 115.2463832 | DO95: =O64 -> 112.816871 | DP95: =O63 -> 95.34604204
DG96: Oct | DH96: =P72 -> 76.40304613 | DI96: =P71 -> 82.65011018 | DJ96: =P70 -> 89.09697396 | DK96: =P69 -> 95.61695527 | DL96: =P68 -> 102.0014103 | DM96: =P67 -> 107.9015207 | DN96: =P66 -> 112.7068679 | DO96: =P65 -> 115.2463832 | DP96: =P64 -> 112.816871 | DQ96: =P63 -> 95.34604204
DG97: Nov | DH97: =Q73 -> 70.43169893 | DI97: =Q72 -> 76.40304613 | DJ97: =Q71 -> 82.65011018 | DK97: =Q70 -> 89.09697396 | DL97: =Q69 -> 95.61695527 | DM97: =Q68 -> 102.0014103 | DN97: =Q67 -> 107.9015207 | DO97: =Q66 -> 112.7068679 | DP97: =Q65 -> 115.2463832 | DQ97: =Q64 -> 112.816871 | DR97: =Q63 -> 95.34604204
DG98: Dec | DH98: =R74 -> 64.77931733 | DI98: =R73 -> 70.43169893 | DJ98: =R72 -> 76.40304613 | DK98: =R71 -> 82.65011018 | DL98: =R70 -> 89.09697396 | DM98: =R69 -> 95.61695527 | DN98: =R68 -> 102.0014103 | DO98: =R67 -> 107.9015207 | DP98: =R66 -> 112.7068679 | DQ98: =R65 -> 115.2463832 | DR98: =R64 -> 112.816871 | DS98: =R63 -> 95.34604204
DG99: Jan | DH99: =G75 -> 59.46760899 | DI99: =G74 -> 64.77931733 | DJ99: =G73 -> 70.43169893 | DK99: =G72 -> 76.40304613 | DL99: =G71 -> 82.65011018 | DM99: =G70 -> 89.09697396 | DN99: =G69 -> 95.61695527 | DO99: =G68 -> 102.0014103 | DP99: =G67 -> 107.9015207 | DQ99: =G66 -> 112.7068679 | DR99: =G65 -> 115.2463832 | DS99: =G64 -> 112.816871
DG100: Feb | DH100: =H76 -> 54.50388796 | DI100: =H75 -> 59.46760899 | DJ100: =H74 -> 64.77931733 | DK100: =H73 -> 70.43169893 | DL100: =H72 -> 76.40304613 | DM100: =H71 -> 82.65011018 | DN100: =H70 -> 89.09697396 | DO100: =H69 -> 95.61695527 | DP100: =H68 -> 102.0014103 | DQ100: =H67 -> 107.9015207 | DR100: =H66 -> 112.7068679 | DS100: =H65 -> 115.2463832
DG101: Mar | DH101: =I77 -> 49.88581924 | DI101: =I76 -> 54.50388796 | DJ101: =I75 -> 59.46760899 | DK101: =I74 -> 64.77931733 | DL101: =I73 -> 70.43169893 | DM101: =I72 -> 76.40304613 | DN101: =I71 -> 82.65011018 | DO101: =I70 -> 89.09697396 | DP101: =I69 -> 95.61695527 | DQ101: =I68 -> 102.0014103 | DR101: =I67 -> 107.9015207 | DS101: =I66 -> 112.7068679
DG102: Apr | DH102: =J78 -> 45.60464715 | DI102: =J77 -> 49.88581924 | DJ102: =J76 -> 54.50388796 | DK102: =J75 -> 59.46760899 | DL102: =J74 -> 64.77931733 | DM102: =J73 -> 70.43169893 | DN102: =J72 -> 76.40304613 | DO102: =J71 -> 82.65011018 | DP102: =J70 -> 89.09697396 | DQ102: =J69 -> 95.61695527 | DR102: =J68 -> 102.0014103 | DS102: =J67 -> 107.9015207
DG103: May | DH103: =K79 -> 41.64743207 | DI103: =K78 -> 45.60464715 | DJ103: =K77 -> 49.88581924 | DK103: =K76 -> 54.50388796 | DL103: =K75 -> 59.46760899 | DM103: =K74 -> 64.77931733 | DN103: =K73 -> 70.43169893 | DO103: =K72 -> 76.40304613 | DP103: =K71 -> 82.65011018 | DQ103: =K70 -> 89.09697396 | DR103: =K69 -> 95.61695527 | DS103: =K68 -> 102.0014103
DG104: Jun | DH104: =L80 -> 37.99861975 | DI104: =L79 -> 41.64743207 | DJ104: =L78 -> 45.60464715 | DK104: =L77 -> 49.88581924 | DL104: =L76 -> 54.50388796 | DM104: =L75 -> 59.46760899 | DN104: =L74 -> 64.77931733 | DO104: =L73 -> 70.43169893 | DP104: =L72 -> 76.40304613 | DQ104: =L71 -> 82.65011018 | DR104: =L70 -> 89.09697396 | DS104: =L69 -> 95.61695527
DG105: Jul | DH105: =M81 -> 34.64115062 | DI105: =M80 -> 37.99861975 | DJ105: =M79 -> 41.64743207 | DK105: =M78 -> 45.60464715 | DL105: =M77 -> 49.88581924 | DM105: =M76 -> 54.50388796 | DN105: =M75 -> 59.46760899 | DO105: =M74 -> 64.77931733 | DP105: =M73 -> 70.43169893 | DQ105: =M72 -> 76.40304613 | DR105: =M71 -> 82.65011018 | DS105: =M70 -> 89.09697396
DG106: Aug | DH106: =N82 -> 31.5572461 | DI106: =N81 -> 34.64115062 | DJ106: =N80 -> 37.99861975 | DK106: =N79 -> 41.64743207 | DL106: =N78 -> 45.60464715 | DM106: =N77 -> 49.88581924 | DN106: =N76 -> 54.50388796 | DO106: =N75 -> 59.46760899 | DP106: =N74 -> 64.77931733 | DQ106: =N73 -> 70.43169893 | DR106: =N72 -> 76.40304613 | DS106: =N71 -> 82.65011018
DG107: Sep | DH107: =O83 -> 28.72896473 | DI107: =O82 -> 31.5572461 | DJ107: =O81 -> 34.64115062 | DK107: =O80 -> 37.99861975 | DL107: =O79 -> 41.64743207 | DM107: =O78 -> 45.60464715 | DN107: =O77 -> 49.88581924 | DO107: =O76 -> 54.50388796 | DP107: =O75 -> 59.46760899 | DQ107: =O74 -> 64.77931733 | DR107: =O73 -> 70.43169893 | DS107: =O72 -> 76.40304613
DG108: Oct | DH108: =P84 -> 26.13859219 | DI108: =P83 -> 28.72896473 | DJ108: =P82 -> 31.5572461 | DK108: =P81 -> 34.64115062 | DL108: =P80 -> 37.99861975 | DM108: =P79 -> 41.64743207 | DN108: =P78 -> 45.60464715 | DO108: =P77 -> 49.88581924 | DP108: =P76 -> 54.50388796 | DQ108: =P75 -> 59.46760899 | DR108: =P74 -> 64.77931733 | DS108: =P73 -> 70.43169893
DG109: Nov | DH109: =Q85 -> 23.76891047 | DI109: =Q84 -> 26.13859219 | DJ109: =Q83 -> 28.72896473 | DK109: =Q82 -> 31.5572461 | DL109: =Q81 -> 34.64115062 | DM109: =Q80 -> 37.99861975 | DN109: =Q79 -> 41.64743207 | DO109: =Q78 -> 45.60464715 | DP109: =Q77 -> 49.88581924 | DQ109: =Q76 -> 54.50388796 | DR109: =Q75 -> 59.46760899 | DS109: =Q74 -> 64.77931733
DG110: Dec | DH110: =R86 -> 21.60337866 | DI110: =R85 -> 23.76891047 | DJ110: =R84 -> 26.13859219 | DK110: =R83 -> 28.72896473 | DL110: =R82 -> 31.5572461 | DM110: =R81 -> 34.64115062 | DN110: =R80 -> 37.99861975 | DO110: =R79 -> 41.64743207 | DP110: =R78 -> 45.60464715 | DQ110: =R77 -> 49.88581924 | DR110: =R76 -> 54.50388796 | DS110: =R75 -> 59.46760899
DG111: Jan | DI111: =G86 -> 21.60337866 | DJ111: =G85 -> 23.76891047 | DK111: =G84 -> 26.13859219 | DL111: =G83 -> 28.72896473 | DM111: =G82 -> 31.5572461 | DN111: =G81 -> 34.64115062 | DO111: =G80 -> 37.99861975 | DP111: =G79 -> 41.64743207 | DQ111: =G78 -> 45.60464715 | DR111: =G77 -> 49.88581924 | DS111: =G76 -> 54.50388796
DG112: Feb | DJ112: =H86 -> 21.60337866 | DK112: =H85 -> 23.76891047 | DL112: =H84 -> 26.13859219 | DM112: =H83 -> 28.72896473 | DN112: =H82 -> 31.5572461 | DO112: =H81 -> 34.64115062 | DP112: =H80 -> 37.99861975 | DQ112: =H79 -> 41.64743207 | DR112: =H78 -> 45.60464715 | DS112: =H77 -> 49.88581924
DG113: Mar | DK113: =I86 -> 21.60337866 | DL113: =I85 -> 23.76891047 | DM113: =I84 -> 26.13859219 | DN113: =I83 -> 28.72896473 | DO113: =I82 -> 31.5572461 | DP113: =I81 -> 34.64115062 | DQ113: =I80 -> 37.99861975 | DR113: =I79 -> 41.64743207 | DS113: =I78 -> 45.60464715
DG114: Apr | DL114: =J86 -> 21.60337866 | DM114: =J85 -> 23.76891047 | DN114: =J84 -> 26.13859219 | DO114: =J83 -> 28.72896473 | DP114: =J82 -> 31.5572461 | DQ114: =J81 -> 34.64115062 | DR114: =J80 -> 37.99861975 | DS114: =J79 -> 41.64743207
DG115: May | DM115: =K86 -> 21.60337866 | DN115: =K85 -> 23.76891047 | DO115: =K84 -> 26.13859219 | DP115: =K83 -> 28.72896473 | DQ115: =K82 -> 31.5572461 | DR115: =K81 -> 34.64115062 | DS115: =K80 -> 37.99861975
DG116: Jun | DN116: =L86 -> 21.60337866 | DO116: =L85 -> 23.76891047 | DP116: =L84 -> 26.13859219 | DQ116: =L83 -> 28.72896473 | DR116: =L82 -> 31.5572461 | DS116: =L81 -> 34.64115062
DG117: Jul | DO117: =M86 -> 21.60337866 | DP117: =M85 -> 23.76891047 | DQ117: =M84 -> 26.13859219 | DR117: =M83 -> 28.72896473 | DS117: =M82 -> 31.5572461
DG118: Aug | DP118: =N86 -> 21.60337866 | DQ118: =N85 -> 23.76891047 | DR118: =N84 -> 26.13859219 | DS118: =N83 -> 28.72896473
DG119: Sep | DQ119: =O86 -> 21.60337866 | DR119: =O85 -> 23.76891047 | DS119: =O84 -> 26.13859219
DG120: Oct | DR120: =P86 -> 21.60337866 | DS120: =P85 -> 23.76891047
DG121: Nov | DS121: =Q86 -> 21.60337866

Sheet cull
B1: INVOLUNTARY CULLING | L1: =milk!L1 -> v.dairyvip 1.4
AO2: cfunction | AP2: 1 | AQ2: Inv. cull function | AR2: 1 | AS2: 1 | AT2: cchart | AV2: Hide charts
G3: Relative risk of involuntary culling per lactation number | AQ3: =ROUND(VAR(CULLRISKS)+AVERAGE(CULLRISKS),4) -> 0.0064 | AR3: =IF(cfunction=1,ROUND(AR2,4),ROUND(AR2,4)) -> 1 | AV3: Prob. involuntary cull
G4: 1 | H4: 1.36 | I4: 2.02 | J4: 2.61 | K4: 3.24 | L4: 3.67 | M4: 4.45 | N4: 5.52 | O4: 5.52 | P4: 5.52 | Q4: 5.52 | R4: 5.52 | AV4: Relative risk
G5: 1 | H5: 2 | I5: 3 | J5: 4 | K5: 5 | L5: 6 | M5: 7 | N5: 8 | O5: 9 | P5: 10 | Q5: 11 | R5: 12 | S5: lactatation number
G8: Probability of involuntary culling (open cows) | AQ8: functionrisks
F9: month | G9: Jan | H9: Feb | I9: Mar | J9: Apr | K9: May | L9: Jun | M9: Jul | N9: Aug | O9: Sep | P9: Oct | Q9: Nov | R9: Dec | S9: day | T9: Default | AP9: mim | AQ9: Jan | AR9: Feb | AS9: Mar | AT9: Apr | AU9: May | AV9: Jun | AW9: Jul | AX9: Aug | AY9: Sep | AZ9: Oct | BA9: Nov | BB9: Dec
F10: 1 | G10: 0.01301098 | H10: 0.01301098 | I10: 0.01301098 | J10: 0.01301098 | K10: 0.01301098 | L10: 0.01301098 | M10: 0.01301098 | N10: 0.01301098 | O10: 0.01301098 | P10: 0.01301098 | Q10: 0.01301098 | R10: 0.01301098 | S10: 15.2 | T10: 0.0260219595 | AP10: 1 | AQ10: =(((cseasonality*$T10*CULLSEA1)+(1-cseasonality)*$T10*cullseaavg)+CULLABS)*(1+CULLPCT) -> 0.01301097975 | AR10: =(((cseasonality*$T10*CULLSEA2)+(1-cseasonality)*$T10*cullseaavg)+CULLABS)*(1+CULLPCT) -> 0.01301097975 | AS10: =(((cseasonality*$T10*CULLSEA3)+(1-cseasonality)*$T10*cullseaavg)+CULLABS)*(1+CULLPCT) -> 0.01301097975 | AT10: =(((cseasonality*$T10*CULLSEA4)+(1-cseasonality)*$T10*cullseaavg)+CULLABS)*(1+CULLPCT) -> 0.01301097975 | AU10: =(((cseasonality*$T10*CULLSEA5)+(1-cseasonality)*$T10*cullseaavg)+CULLABS)*(1+CULLPCT) -> 0.01301097975 | AV10: =(((cseasonality*$T10*CULLSEA6)+(1-cseasonality)*$T10*cullseaavg)+CULLABS)*(1+CULLPCT) -> 0.01301097975 | AW10: =(((cseasonality*$T10*CULLSEA7)+(1-cseasonality)*$T10*cullseaavg)+CULLABS)*(1+CULLPCT) -> 0.01301097975 | AX10: =(((cseasonality*$T10*CULLSEA8)+(1-cseasonality)*$T10*cullseaavg)+CULLABS)*(1+CULLPCT) -> 0.01301097975 | AY10: =(((cseasonality*$T10*CULLSEA9)+(1-cseasonality)*$T10*cullseaavg)+CULLABS)*(1+CULLPCT) -> 0.01301097975 | AZ10: =(((cseasonality*$T10*CULLSEA10)+(1-cseasonality)*$T10*cullseaavg)+CULLABS)*(1+CULLPCT) -> 0.01301097975 | BA10: =(((cseasonality*$T10*CULLSEA11)+(1-cseasonality)*$T10*cullseaavg)+CULLABS)*(1+CULLPCT) -> 0.01301097975 | BB10: =(((cseasonality*$T10*CULLSEA12)+(1-cseasonality)*$T10*cullseaavg)+CULLABS)*(1+CULLPCT) -> 0.01301097975
F11: 2 | G11: 0.008456034 | H11: 0.008456034 | I11: 0.008456034 | J11: 0.008456034 | K11: 0.008456034 | L11: 0.008456034 | M11: 0.008456034 | N11: 0.008456034 | O11: 0.008456034 | P11: 0.008456034 | Q11: 0.008456034 | R11: 0.008456034 | S11: 45.6 | T11: 0.016912068 | AP11: 2 | AQ11: =(((cseasonality*$T11*CULLSEA1)+(1-cseasonality)*$T11*cullseaavg)+CULLABS)*(1+CULLPCT) -> 0.008456034 | AR11: 0.008456034 | AS11: 0.008456034 | AT11: 0.008456034 | AU11: 0.008456034 | AV11: 0.008456034 | AW11: 0.008456034 | AX11: 0.008456034 | AY11: 0.008456034 | AZ11: 0.008456034 | BA11: 0.008456034 | BB11: 0.008456034
D12: =update(AQ3,AR2,"Inv. cull function") -> Inv. cull function | F12: 3 | G12: 0.006102166 | H12: 0.006102166 | I12: 0.006102166 | J12: 0.006102166 | K12: 0.006102166 | L12: 0.006102166 | M12: 0.006102166 | N12: 0.006102166 | O12: 0.006102166 | P12: 0.006102166 | Q12: 0.006102166 | R12: 0.006102166 | S12: 76 | T12: 0.0122043315 | AP12: 3 | AQ12: 0.00610216575 | AR12: 0.00610216575 | AS12: 0.00610216575 | AT12: 0.00610216575 | AU12: 0.00610216575 | AV12: 0.00610216575 | AW12: 0.00610216575 | AX12: 0.00610216575 | AY12: 0.00610216575 | AZ12: 0.00610216575 | BA12: 0.00610216575 | BB12: 0.00610216575
C13: +/- (abs) | D13: 0 | F13: 4 | G13: 0.005053043 | H13: 0.005053043 | I13: 0.005053043 | J13: 0.005053043 | K13: 0.005053043 | L13: 0.005053043 | M13: 0.005053043 | N13: 0.005053043 | O13: 0.005053043 | P13: 0.005053043 | Q13: 0.005053043 | R13: 0.005053043 | S13: 106.4 | T13: 0.0101060865 | AP13: 4 | AQ13: 0.00505304325 | AR13: 0.00505304325 | AS13: 0.00505304325 | AT13: 0.00505304325 | AU13: 0.00505304325 | AV13: 0.00505304325 | AW13: 0.00505304325 | AX13: 0.00505304325 | AY13: 0.00505304325 | AZ13: 0.00505304325 | BA13: 0.00505304325 | BB13: 0.00505304325
C14: +/- (%) | D14: -0.5 | F14: 5 | G14: 0.004696295 | H14: 0.004696295 | I14: 0.004696295 | J14: 0.004696295 | K14: 0.004696295 | L14: 0.004696295 | M14: 0.004696295 | N14: 0.004696295 | O14: 0.004696295 | P14: 0.004696295 | Q14: 0.004696295 | R14: 0.004696295 | S14: 136.8 | T14: 0.0093925905 | AP14: 5 | AQ14: 0.00469629525 | AR14: 0.00469629525 | AS14: 0.00469629525 | AT14: 0.00469629525 | AU14: 0.00469629525 | AV14: 0.00469629525 | AW14: 0.00469629525 | AX14: 0.00469629525 | AY14: 0.00469629525 | AZ14: 0.00469629525 | BA14: 0.00469629525 | BB14: 0.00469629525
C15: Seasonality | D15: 1 | F15: 6 | G15: 0.004642466 | H15: 0.004642466 | I15: 0.004642466 | J15: 0.004642466 | K15: 0.004642466 | L15: 0.004642466 | M15: 0.004642466 | N15: 0.004642466 | O15: 0.004642466 | P15: 0.004642466 | Q15: 0.004642466 | R15: 0.004642466 | S15: 167.2 | T15: 0.009284931 | AP15: 6 | AQ15: 0.0046424655 | AR15: 0.0046424655 | AS15: 0.0046424655 | AT15: 0.0046424655 | AU15: 0.0046424655 | AV15: 0.0046424655 | AW15: 0.0046424655 | AX15: 0.0046424655 | AY15: 0.0046424655 | AZ15: 0.0046424655 | BA15: 0.0046424655 | BB15: 0.0046424655
C16: Jan | D16: 1 | F16: 7 | G16: 0.0046494 | H16: 0.0046494 | I16: 0.0046494 | J16: 0.0046494 | K16: 0.0046494 | L16: 0.0046494 | M16: 0.0046494 | N16: 0.0046494 | O16: 0.0046494 | P16: 0.0046494 | Q16: 0.0046494 | R16: 0.0046494 | S16: 197.6 | T16: 0.0092988 | AP16: 7 | AQ16: 0.0046494 | AR16: 0.0046494 | AS16: 0.0046494 | AT16: 0.0046494 | AU16: 0.0046494 | AV16: 0.0046494 | AW16: 0.0046494 | AX16: 0.0046494 | AY16: 0.0046494 | AZ16: 0.0046494 | BA16: 0.0046494 | BB16: 0.0046494
C17: Feb | D17: 1 | F17: 8 | G17: 0.0046494 | H17: 0.0046494 | I17: 0.0046494 | J17: 0.0046494 | K17: 0.0046494 | L17: 0.0046494 | M17: 0.0046494 | N17: 0.0046494 | O17: 0.0046494 | P17: 0.0046494 | Q17: 0.0046494 | R17: 0.0046494 | S17: 228 | T17: 0.0092988 | AP17: 8 | AQ17: 0.0046494 | AR17: 0.0046494 | AS17: 0.0046494 | AT17: 0.0046494 | AU17: 0.0046494 | AV17: 0.0046494 | AW17: 0.0046494 | AX17: 0.0046494 | AY17: 0.0046494 | AZ17: 0.0046494 | BA17: 0.0046494 | BB17: 0.0046494
C18: Mar | D18: 1 | F18: 9 | G18: 0.004653299 | H18: 0.004653299 | I18: 0.004653299 | J18: 0.004653299 | K18: 0.004653299 | L18: 0.004653299 | M18: 0.004653299 | N18: 0.004653299 | O18: 0.004653299 | P18: 0.004653299 | Q18: 0.004653299 | R18: 0.004653299 | S18: 258.4 | T18: 0.009306597 | AP18: 9 | AQ18: 0.0046532985 | AR18: 0.0046532985 | AS18: 0.0046532985 | AT18: 0.0046532985 | AU18: 0.0046532985 | AV18: 0.0046532985 | AW18: 0.0046532985 | AX18: 0.0046532985 | AY18: 0.0046532985 | AZ18: 0.0046532985 | BA18: 0.0046532985 | BB18: 0.0046532985
C19: Apr | D19: 1 | F19: 10 | G19: 0.004613549 | H19: 0.004613549 | I19: 0.004613549 | J19: 0.004613549 | K19: 0.004613549 | L19: 0.004613549 | M19: 0.004613549 | N19: 0.004613549 | O19: 0.004613549 | P19: 0.004613549 | Q19: 0.004613549 | R19: 0.004613549 | S19: 288.8 | T19: 0.009227097 | AP19: 10 | AQ19: 0.0046135485 | AR19: 0.0046135485 | AS19: 0.0046135485 | AT19: 0.0046135485 | AU19: 0.0046135485 | AV19: 0.0046135485 | AW19: 0.0046135485 | AX19: 0.0046135485 | AY19: 0.0046135485 | AZ19: 0.0046135485 | BA19: 0.0046135485 | BB19: 0.0046135485
C20: May | D20: 1 | F20: 11 | G20: 0.004605695 | H20: 0.004605695 | I20: 0.004605695 | J20: 0.004605695 | K20: 0.004605695 | L20: 0.004605695 | M20: 0.004605695 | N20: 0.004605695 | O20: 0.004605695 | P20: 0.004605695 | Q20: 0.004605695 | R20: 0.004605695 | S20: 319.2 | T20: 0.0092113905 | AP20: 11 | AQ20: 0.00460569525 | AR20: 0.00460569525 | AS20: 0.00460569525 | AT20: 0.00460569525 | AU20: 0.00460569525 | AV20: 0.00460569525 | AW20: 0.00460569525 | AX20: 0.00460569525 | AY20: 0.00460569525 | AZ20: 0.00460569525 | BA20: 0.00460569525 | BB20: 0.00460569525
C21: Jun | D21: 1 | F21: 12 | G21: 0.004671149 | H21: 0.004671149 | I21: 0.004671149 | J21: 0.004671149 | K21: 0.004671149 | L21: 0.004671149 | M21: 0.004671149 | N21: 0.004671149 | O21: 0.004671149 | P21: 0.004671149 | Q21: 0.004671149 | R21: 0.004671149 | S21: 349.6 | T21: 0.009342297 | AP21: 12 | AQ21: 0.0046711485 | AR21: 0.0046711485 | AS21: 0.0046711485 | AT21: 0.0046711485 | AU21: 0.0046711485 | AV21: 0.0046711485 | AW21: 0.0046711485 | AX21: 0.0046711485 | AY21: 0.0046711485 | AZ21: 0.0046711485 | BA21: 0.0046711485 | BB21: 0.0046711485
C22: Jul | D22: 1 | F22: 13 | G22: 0.004834594 | H22: 0.004834594 | I22: 0.004834594 | J22: 0.004834594 | K22: 0.004834594 | L22: 0.004834594 | M22: 0.004834594 | N22: 0.004834594 | O22: 0.004834594 | P22: 0.004834594 | Q22: 0.004834594 | R22: 0.004834594 | S22: 380 | T22: 0.0096691875 | AP22: 13 | AQ22: 0.00483459375 | AR22: 0.00483459375 | AS22: 0.00483459375 | AT22: 0.00483459375 | AU22: 0.00483459375 | AV22: 0.00483459375 | AW22: 0.00483459375 | AX22: 0.00483459375 | AY22: 0.00483459375 | AZ22: 0.00483459375 | BA22: 0.00483459375 | BB22: 0.00483459375
C23: Aug | D23: 1 | F23: 14 | G23: 0.005096571 | H23: 0.005096571 | I23: 0.005096571 | J23: 0.005096571 | K23: 0.005096571 | L23: 0.005096571 | M23: 0.005096571 | N23: 0.005096571 | O23: 0.005096571 | P23: 0.005096571 | Q23: 0.005096571 | R23: 0.005096571 | S23: 410.4 | T23: 0.010193142 | AP23: 14 | AQ23: 0.005096571 | AR23: 0.005096571 | AS23: 0.005096571 | AT23: 0.005096571 | AU23: 0.005096571 | AV23: 0.005096571 | AW23: 0.005096571 | AX23: 0.005096571 | AY23: 0.005096571 | AZ23: 0.005096571 | BA23: 0.005096571 | BB23: 0.005096571
C24: Sep | D24: 1 | F24: 15 | G24: 0.005432759 | H24: 0.005432759 | I24: 0.005432759 | J24: 0.005432759 | K24: 0.005432759 | L24: 0.005432759 | M24: 0.005432759 | N24: 0.005432759 | O24: 0.005432759 | P24: 0.005432759 | Q24: 0.005432759 | R24: 0.005432759 | S24: 440.8 | T24: 0.010865517 | AP24: 15 | AQ24: 0.0054327585 | AR24: 0.0054327585 | AS24: 0.0054327585 | AT24: 0.0054327585 | AU24: 0.0054327585 | AV24: 0.0054327585 | AW24: 0.0054327585 | AX24: 0.0054327585 | AY24: 0.0054327585 | AZ24: 0.0054327585 | BA24: 0.0054327585 | BB24: 0.0054327585
C25: Oct | D25: 1 | F25: 16 | G25: 0.005799959 | H25: 0.005799959 | I25: 0.005799959 | J25: 0.005799959 | K25: 0.005799959 | L25: 0.005799959 | M25: 0.005799959 | N25: 0.005799959 | O25: 0.005799959 | P25: 0.005799959 | Q25: 0.005799959 | R25: 0.005799959 | S25: 471.2 | T25: 0.011599917 | AP25: 16 | AQ25: 0.0057999585 | AR25: 0.0057999585 | AS25: 0.0057999585 | AT25: 0.0057999585 | AU25: 0.0057999585 | AV25: 0.0057999585 | AW25: 0.0057999585 | AX25: 0.0057999585 | AY25: 0.0057999585 | AZ25: 0.0057999585 | BA25: 0.0057999585 | BB25: 0.0057999585
C26: Nov | D26: 1 | F26: 17 | G26: 0.006148787 | H26: 0.006148787 | I26: 0.006148787 | J26: 0.006148787 | K26: 0.006148787 | L26: 0.006148787 | M26: 0.006148787 | N26: 0.006148787 | O26: 0.006148787 | P26: 0.006148787 | Q26: 0.006148787 | R26: 0.006148787 | S26: 501.6 | T26: 0.012297573 | AP26: 17 | AQ26: 0.0061487865 | AR26: 0.0061487865 | AS26: 0.0061487865 | AT26: 0.0061487865 | AU26: 0.0061487865 | AV26: 0.0061487865 | AW26: 0.0061487865 | AX26: 0.0061487865 | AY26: 0.0061487865 | AZ26: 0.0061487865 | BA26: 0.0061487865 | BB26: 0.0061487865
C27: Dec | D27: 1 | F27: 18 | G27: 0.006443068 | H27: 0.006443068 | I27: 0.006443068 | J27: 0.006443068 | K27: 0.006443068 | L27: 0.006443068 | M27: 0.006443068 | N27: 0.006443068 | O27: 0.006443068 | P27: 0.006443068 | Q27: 0.006443068 | R27: 0.006443068 | S27: 532 | T27: 0.0128861355 | AP27: 18 | AQ27: 0.00644306775 | AR27: 0.00644306775 | AS27: 0.00644306775 | AT27: 0.00644306775 | AU27: 0.00644306775 | AV27: 0.00644306775 | AW27: 0.00644306775 | AX27: 0.00644306775 | AY27: 0.00644306775 | AZ27: 0.00644306775 | BA27: 0.00644306775 | BB27: 0.00644306775
D28: 1 | F28: 19 | G28: 0.006685931 | H28: 0.006685931 | I28: 0.006685931 | J28: 0.006685931 | K28: 0.006685931 | L28: 0.006685931 | M28: 0.006685931 | N28: 0.006685931 | O28: 0.006685931 | P28: 0.006685931 | Q28: 0.006685931 | R28: 0.006685931 | S28: 562.4 | T28: 0.0133718625 | AP28: 19 | AQ28: 0.00668593125 | AR28: 0.00668593125 | AS28: 0.00668593125 | AT28: 0.00668593125 | AU28: 0.00668593125 | AV28: 0.00668593125 | AW28: 0.00668593125 | AX28: 0.00668593125 | AY28: 0.00668593125 | AZ28: 0.00668593125 | BA28: 0.00668593125 | BB28: 0.00668593125
F29: 20 | G29: 0.006952612 | H29: 0.006952612 | I29: 0.006952612 | J29: 0.006952612 | K29: 0.006952612 | L29: 0.006952612 | M29: 0.006952612 | N29: 0.006952612 | O29: 0.006952612 | P29: 0.006952612 | Q29: 0.006952612 | R29: 0.006952612 | S29: 592.8 | T29: 0.0139052235 | AP29: 20 | AQ29: 0.00695261175 | AR29: 0.00695261175 | AS29: 0.00695261175 | AT29: 0.00695261175 | AU29: 0.00695261175 | AV29: 0.00695261175 | AW29: 0.00695261175 | AX29: 0.00695261175 | AY29: 0.00695261175 | AZ29: 0.00695261175 | BA29: 0.00695261175 | BB29: 0.00695261175
F30: 21 | G30: 0.007429952 | H30: 0.007429952 | I30: 0.007429952 | J30: 0.007429952 | K30: 0.007429952 | L30: 0.007429952 | M30: 0.007429952 | N30: 0.007429952 | O30: 0.007429952 | P30: 0.007429952 | Q30: 0.007429952 | R30: 0.007429952 | S30: 623.2 | T30: 0.014859903 | AP30: 21 | AQ30: 0.0074299515 | AR30: 0.0074299515 | AS30: 0.0074299515 | AT30: 0.0074299515 | AU30: 0.0074299515 | AV30: 0.0074299515 | AW30: 0.0074299515 | AX30: 0.0074299515 | AY30: 0.0074299515 | AZ30: 0.0074299515 | BA30: 0.0074299515 | BB30: 0.0074299515
F31: 22 | G31: 0.008462611 | H31: 0.008462611 | I31: 0.008462611 | J31: 0.008462611 | K31: 0.008462611 | L31: 0.008462611 | M31: 0.008462611 | N31: 0.008462611 | O31: 0.008462611 | P31: 0.008462611 | Q31: 0.008462611 | R31: 0.008462611 | S31: 653.6 | T31: 0.0169252215 | AP31: 22 | AQ31: 0.00846261075 | AR31: 0.00846261075 | AS31: 0.00846261075 | AT31: 0.00846261075 | AU31: 0.00846261075 | AV31: 0.00846261075 | AW31: 0.00846261075 | AX31: 0.00846261075 | AY31: 0.00846261075 | AZ31: 0.00846261075 | BA31: 0.00846261075 | BB31: 0.00846261075
F32: 23 | G32: 0.00945 | H32: 0.00945 | I32: 0.00945 | J32: 0.00945 | K32: 0.00945 | L32: 0.00945 | M32: 0.00945 | N32: 0.00945 | O32: 0.00945 | P32: 0.00945 | Q32: 0.00945 | R32: 0.00945 | S32: 684 | T32: 0.0189 | AP32: 23 | AQ32: 0.00945 | AR32: 0.00945 | AS32: 0.00945 | AT32: 0.00945 | AU32: 0.00945 | AV32: 0.00945 | AW32: 0.00945 | AX32: 0.00945 | AY32: 0.00945 | AZ32: 0.00945 | BA32: 0.00945 | BB32: 0.00945
F33: 24 | G33: 0.010584 | H33: 0.010584 | I33: 0.010584 | J33: 0.010584 | K33: 0.010584 | L33: 0.010584 | M33: 0.010584 | N33: 0.010584 | O33: 0.010584 | P33: 0.010584 | Q33: 0.010584 | R33: 0.010584 | S33: 714.4 | T33: 0.021168 | AP33: 24 | AQ33: 0.010584 | AR33: 0.010584 | AS33: 0.010584 | AT33: 0.010584 | AU33: 0.010584 | AV33: 0.010584 | AW33: 0.010584 | AX33: 0.010584 | AY33: 0.010584 | AZ33: 0.010584 | BA33: 0.010584 | BB33: 0.010584

Sheet bw
B1: BODY WEIGHT | L1: =milk!L1 -> v.dairyvip 1.4
AG2: 1 | AH2: bfunction | AI2: 1 | AJ2: Korver function | AK2: =ROUND(VAR(bwopenfunction,bwpregfunction)+AVERAGE(bwopenfunction,bwpregfunction),2) -> 341061.81 | AN2: 1 | AO2: bchart | AQ2: Hide charts
G3: Open cows | L3: Add pregnant weight | AJ3: =ROUND(VAR(bwopen,bwpreg)+AVERAGE(bwopen,bwpreg),2) -> 341061.81 | AK3: =IF(bfunction=1,ROUND(AK2,2),ROUND(AK2,2)) -> 341061.81 | AQ3: Body weight open
F4: month | G4: lact 1 | H4: lact ≥ 2 | I4: day | K4: months pregnant | L4: lact 1 | M4: lact ≥ 2 | N4: day | AQ4: Body weight pregnant
F5: 1 | G5: 1177.08831 | H5: 1340.786116 | I5: 15.2 | K5: 1 | L5: 0 | M5: 0 | N5: 15.2
F6: 2 | G6: 1170.990214 | H6: 1305.923968 | I6: 45.6 | K6: 2 | L6: 0 | M6: 0 | N6: 45.6 | AG6: Lact 1
F7: 3 | G7: 1181.145744 | H7: 1302.913985 | I7: 76 | K7: 3 | L7: 0.253383962 | M7: 0.253383962 | N7: 76 | AG7: t(l) | AH7: t(a) | AI7: t(p) | AP7: original data
F8: 4 | G8: 1197.216961 | H8: 1313.947705 | I8: 106.4 | K8: 4 | L8: 2.586404163 | M8: 2.586404163 | N8: 106.4 | AG8: dim | AH8: age | AI8: dconc | AJ8: t(pc) | AK8: f(age) | AL8: f(lactation) | AM8: bwopen | AN8: f(pregnancy) | AP8: NRC[1112]5 | AS8: bwopenfunction | AU8: bwpregfunction
F9: 5 | G9: 1214.216967 | H9: 1329.734994 | I9: 136.8 | K9: 5 | L9: 9.427971352 | M9: 9.427971352 | N9: 136.8 | AF9: 1 | AG9: =30.4/2 -> 15.2 | AH9: =730+AG9 -> 745.2 | AI9: =30.4/2 -> 15.2 | AJ9: =IF($AI9-50>0,$AI9-50,0) -> 0 | AK9: =($D$13*(1-(1-($D$14/$D$13)^(1/3))*EXP(-$D$15/1000*AH9))^3)*lbs -> 1199.271851 | AL9: =($D$16/BW_P2_1*AG9*EXP(1-AG9/BW_P2_1))*lbs -> 22.18354116 | AM9: =AK9-AL9 -> 1177.08831 | AN9: =(BW_P3_1)^3*(AJ9)^3*lbs -> 0 | AP9: 532 | AR9: =AM9 -> 1177.08831 | AS9: =AM38 -> 1340.786116 | AT9: =AN9 -> 0 | AU9: =AN38 -> 0
F10: 6 | G10: 1229.965886 | H10: 1345.733717 | I10: 167.2 | K10: 6 | L10: 23.20822433 | M10: 23.20822433 | N10: 167.2 | AF10: 2 | AG10: =AG9+30.4 -> 45.6 | AH10: 775.6 | AI10: =AI9+30.4 -> 45.6 | AJ10: =IF($AI10-50>0,$AI10-50,0) -> 0 | AK10: 1212.680602 | AL10: 41.69038829 | AM10: 1170.990214 | AN10: 0 | AP10: 529 | AR10: 1170.990214 | AS10: 1305.923968 | AT10: 0 | AU10: 0
D11: =update(AJ3,AK2,"Korver function") -> Korver function | F11: 7 | G11: 1243.699649 | H11: 1359.972151 | I11: 197.6 | K11: 7 | L11: 46.3573019 | M11: 46.3573019 | N11: 197.6 | AF11: 3 | AG11: =AG10+30.4 -> 76 | AH11: 806 | AI11: 76 | AJ11: 26 | AK11: 1224.673723 | AL11: 43.52797878 | AM11: 1181.145744 | AN11: 0.253383962 | AP11: 534 | AR11: 1181.145744 | AS11: 1302.913985 | AT11: 0.253383962 | AU11: 0.253383962
D12: lact = 1 | F12: 8 | G12: 1255.325424 | H12: 1371.811979 | I12: 228 | K12: 8 | L12: 81.30534287 | M12: 81.30534287 | N12: 228 | AF12: 4 | AG12: 106.4 | AH12: 836.4 | AI12: 106.4 | AJ12: 56.4 | AK12: 1235.392075 | AL12: 38.1751145 | AM12: 1197.216961 | AN12: 2.586404163 | AP12: 539 | AR12: 1197.216961 | AS12: 1313.947705 | AT12: 2.586404163 | AU12: 2.586404163
C13: A | D13: 600 | F13: 9 | G13: 1265.03481 | H13: 1381.26084 | I13: 258.4 | K13: 9 | L13: 130.482486 | M13: 130.482486 | N13: 258.4 | AF13: 5 | AG13: 136.8 | AH13: 866.8 | AI13: 136.8 | AJ13: 86.8 | AK13: 1244.964383 | AL13: 30.7474164 | AM13: 1214.216967 | AN13: 9.427971352 | AP13: 545 | AR13: 1214.216967 | AS13: 1329.734994 | AT13: 9.427971352 | AU13: 9.427971352
C14: yo | D14: 42 | F14: 10 | G14: 1273.111499 | H14: 1388.601692 | I14: 288.8 | AF14: 6 | AG14: 167.2 | AH14: 897.2 | AI14: 167.2 | AJ14: 117.2 | AK14: 1253.507846 | AL14: 23.54195995 | AM14: 1229.965886 | AN14: 23.20822433 | AP14: 554 | AR14: 1229.965886 | AS14: 1345.733717 | AT14: 23.20822433 | AU14: 23.20822433
C15: k | D15: 3.9 | F15: 11 | G15: 1279.842177 | H15: 1394.201728 | I15: 319.2 | AF15: 7 | AG15: 197.6 | AH15: 927.6 | AI15: 197.6 | AJ15: 147.6 | AK15: 1261.128835 | AL15: 17.42918562 | AM15: 1243.699649 | AN15: 46.3573019 | AP15: 562 | AR15: 1243.699649 | AS15: 1359.972151 | AT15: 46.3573019 | AU15: 46.3573019
C16: p1 | D16: 20 | F16: 12 | G16: 1285.480452 | H16: 1398.420759 | I16: 349.6 | AF16: 8 | AG16: 228 | AH16: 958 | AI16: 228 | AJ16: 178 | AK16: 1267.923633 | AL16: 12.59820914 | AM16: 1255.325424 | AN16: 81.30534287 | AP16: 573 | AR16: 1255.325424 | AS16: 1371.811979 | AT16: 81.30534287 | AU16: 81.30534287
C17: p2 | D17: 65 | F17: 13 | G17: 1290.236697 | H17: 1401.572983 | I17: 380 | AF17: 9 | AG17: 258.4 | AH17: 988.4 | AI17: 258.4 | AJ17: 208.4 | AK17: 1273.979191 | AL17: 8.944380939 | AM17: 1265.03481 | AN17: 130.482486 | AP17: 584 | AR17: 1265.03481 | AS17: 1381.26084 | AT17: 130.482486 | AU17: 130.482486
C18: p3 | D18: 0.0187 | F18: 14 | G18: 1294.279537 | H18: 1403.916105 | I18: 410.4 | AF18: 10 | AG18: 288.8 | AH18: 1018.8 | AK18: 1279.373869 | AL18: 6.262370794 | AM18: 1273.111499 | AP18: 596 | AR18: 1273.111499 | AS18: 1388.601692
D19: lact ≥ 2 | F19: 15 | G19: 1297.741768 | H19: 1405.653407 | I19: 440.8 | AF19: 11 | AG19: 319.2 | AH19: 1049.2 | AK19: 1284.178167 | AL19: 4.335990119 | AM19: 1279.842177 | AP19: 605 | AR19: 1279.842177 | AS19: 1394.201728
C20: A | D20: 640 | F20: 16 | G20: 1300.727228 | H20: 1406.941101 | I20: 471.2 | AF20: 12 | AG20: 349.6 | AH20: 1079.6 | AK20: 1288.455409 | AL20: 2.974956615 | AM20: 1285.480452 | AP20: 616 | AR20: 1285.480452 | AS20: 1398.420759
C21: yo | D21: 42 | F21: 17 | G21: 1303.317144 | H21: 1407.897048 | I21: 501.6 | AF21: 13 | AG21: 380 | AH21: 1110 | AK21: 1292.262404 | AL21: 2.025706963 | AM21: 1290.236697 | AP21: 627 | AR21: 1290.236697 | AS21: 1401.572983
C22: k | D22: 6 | F22: 18 | G22: 1305.57542 | H22: 1408.609016 | I22: 532 | AF22: 14 | AG22: 410.4 | AH22: 1140.4 | AK22: 1295.650054 | AL22: 1.370516246 | AM22: 1294.279537 | AR22: 1294.279537 | AS22: 1403.916105
C23: p1 | D23: 40 | F23: 19 | G23: 1307.552811 | H23: 1409.141761 | I23: 562.4 | AF23: 15 | AG23: 440.8 | AH23: 1170.8 | AK23: 1298.663919 | AL23: 0.9221514069 | AM23: 1297.741768 | AR23: 1297.741768 | AS23: 1405.653407
C24: p2 | D24: 70 | F24: 20 | G24: 1309.290117 | H24: 1409.542756 | I24: 592.8 | AF24: 16 | AG24: 471.2 | AH24: 1201.2 | AK24: 1301.344746 | AL24: 0.6175181697 | AM24: 1300.727228 | AR24: 1300.727228 | AS24: 1406.941101
C25: p3 | D25: 0.0187 | F25: 21 | G25: 1310.820571 | H25: 1409.846669 | I25: 623.2 | AF25: 17 | AG25: 501.6 | AH25: 1231.6 | AK25: 1303.728944 | AL25: 0.4117994841 | AM25: 1303.317144 | AR25: 1303.317144 | AS25: 1407.897048
F26: 22 | G26: 1312.171608 | H26: 1410.07876 | I26: 653.6 | AF26: 18 | AG26: 532 | AH26: 1262 | AK26: 1305.849025 | AL26: 0.2736048013 | AM26: 1305.57542 | AR26: 1305.57542 | AS26: 1408.609016
F27: 23 | G27: 1313.36617 | H27: 1410.25744 | I27: 684 | AF27: 19 | AG27: 562.4 | AH27: 1292.4 | AK27: 1307.734004 | AL27: 0.1811929123 | AM27: 1307.552811 | AR27: 1307.552811 | AS27: 1409.141761
F28: 24 | G28: 1314.423664 | H28: 1410.396141 | I28: 714.4 | AF28: 20 | AG28: 592.8 | AH28: 1322.8 | AK28: 1309.409761 | AL28: 0.1196431669 | AM28: 1309.290117 | AR28: 1309.290117 | AS28: 1409.542756
AF29: 21 | AG29: 623.2 | AH29: 1353.2 | AK29: 1310.899365 | AL29: 0.07879360324 | AM29: 1310.820571 | AR29: 1310.820571 | AS29: 1409.846669
AF30: 22 | AG30: 653.6 | AH30: 1383.6 | AK30: 1312.223376 | AL30: 0.05176775979 | AM30: 1312.171608 | AR30: 1312.171608 | AS30: 1410.07876
AF31: 23 | AG31: 684 | AH31: 1414 | AK31: 1313.400108 | AL31: 0.03393807784 | AM31: 1313.36617 | AR31: 1313.36617 | AS31: 1410.25744
AF32: 24 | AG32: 714.4 | AH32: 1444.4 | AK32: 1314.445869 | AL32: 0.02220528732 | AM32: 1314.423664 | AR32: 1314.423664 | AS32: 1410.396141
AG35: Lact 2+
AG36: t(l) | AH36: t(a) | AI36: t(p) | AP36: original data
AG37: dim | AH37: age | AI37: dconc | AJ37: t(pc) | AK37: f(age) | AL37: f(lactation) | AM37: bwopen | AN37: f(pregnancy) | AP37: NRC[1112]5
AG38: 15 | AH38: =730+AG38 -> 745 | AI38: =30.4/2 -> 15.2 | AJ38: =IF($AI38-50>0,$AI38-50,0) -> 0 | AK38: =($D$20*(1-(1-($D$21/$D$20)^(1/3))*EXP(-$D$22/1000*AH38))^3)*lbs -> 1382.245118 | AL38: =($D$23/$D$24*AG38*EXP(1-AG38/$D$24))*lbs -> 41.45900243 | AM38: =AK38-AL38 -> 1340.786116 | AN38: =(BW_P3_2)^3*(AJ38)^3*lbs -> 0 | AP38: 603
AG39: 45 | AH39: 775 | AI39: =AI38+30.4 -> 45.6 | AJ39: =IF($AI39-50>0,$AI39-50,0) -> 0 | AK39: 1386.948008 | AL39: 81.02404041 | AM39: 1305.923968 | AN39: 0 | AP39: 593
AG40: 75 | AH40: 805 | AI40: =AI39+30.4 -> 76 | AJ40: 26 | AK40: 1390.884359 | AL40: 87.9703742 | AM40: 1302.913985 | AN40: 0.253383962 | AP40: 596
AG41: 105 | AH41: 835 | AI41: 106.4 | AJ41: 56.4 | AK41: 1394.177978 | AL41: 80.23027273 | AM41: 1313.947705 | AN41: 2.586404163 | AP41: 599
AG42: 135 | AH42: 865 | AI42: 136.8 | AJ42: 86.8 | AK42: 1396.933022 | AL42: 67.19802847 | AM42: 1329.734994 | AN42: 9.427971352 | AP42: 604
AG43: 165 | AH43: 895 | AI43: 167.2 | AJ43: 117.2 | AK43: 1399.237008 | AL43: 53.50329152 | AM43: 1345.733717 | AN43: 23.20822433 | AP43: 609
AG44: 195 | AH44: 925 | AI44: 197.6 | AJ44: 147.6 | AK44: 1401.1634 | AL44: 41.19124904 | AM44: 1359.972151 | AN44: 46.3573019 | AP44: 615
AG45: 225 | AH45: 955 | AI45: 228 | AJ45: 178 | AK45: 1402.773812 | AL45: 30.96183283 | AM45: 1371.811979 | AN45: 81.30534287 | AP45: 622
AG46: 255 | AH46: 985 | AI46: 258.4 | AJ46: 208.4 | AK46: 1404.119887 | AL46: 22.85904682 | AM46: 1381.26084 | AN46: 130.482486 | AP46: 631
AG47: 285 | AH47: 1015 | AK47: 1405.244883 | AL47: 16.64319073 | AM47: 1388.601692 | AP47: 642
AG48: 315 | AH48: 1045 | AK48: 1406.185019 | AL48: 11.98329022 | AM48: 1394.201728 | AP48: 654
AG49: 345 | AH49: 1075 | AK49: 1406.970608 | AL49: 8.549848362 | AM49: 1398.420759 | AP49: 661
AG50: 375 | AH50: 1105 | AK50: 1407.627011 | AL50: 6.054027347 | AM50: 1401.572983 | AP50: 667
AG51: 405 | AH51: 1135 | AK51: 1408.175441 | AL51: 4.259336259 | AM51: 1403.916105
AG52: 435 | AH52: 1165 | AK52: 1408.633638 | AL52: 2.980231183 | AM52: 1405.653407
AG53: 465 | AH53: 1195 | AK53: 1409.016433 | AL53: 2.075331337 | AM53: 1406.941101
AG54: 495 | AH54: 1225 | AK54: 1409.336222 | AL54: 1.439174593 | AM54: 1407.897048
AG55: 525 | AH55: 1255 | AK55: 1409.60337 | AL55: 0.9943548158 | AM55: 1408.609016
AG56: 555 | AH56: 1285 | AK56: 1409.826537 | AL56: 0.6847765106 | AM56: 1409.141761
AG57: 585 | AH57: 1315 | AK57: 1410.01296 | AL57: 0.4702031465 | AM57: 1409.542756
AG58: 615 | AH58: 1345 | AK58: 1410.168685 | AL58: 0.3220168328 | AM58: 1409.846669
AG59: 645 | AH59: 1375 | AK59: 1410.298767 | AL59: 0.2200072368 | AM59: 1410.07876
AG60: 675 | AH60: 1405 | AK60: 1410.407427 | AL60: 0.1499874143 | AM60: 1410.25744
AG61: 705 | AH61: 1435 | AK61: 1410.498191 | AL61: 0.1020502225 | AM61: 1410.396141

Sheet cow
C1: Plan A: | L1: plan A | P1: =milk!L1 -> v.dairyvip 1.4 | T1: plan B | AK1: sell | AL1: pmlk | AM1: insm | AN1: sellb | AO1: pmlkb | AQ1: store | BK1: gmlk | BL1: gmlkb
C2: Plan B: | I2: rpoopena | J2: rpoprega | K2: pregvala | L2: newprega | M2: delprega | N2: delopena | Q2: rpoopenb | R2: rpopregb | S2: pregvalb | T2: newpregb | U2: delpregb | W2: delopenb | AK2: plan A | AL2: plan A | AM2: plan A | AN2: plan B | AO2: plan B | AP2: plan B | BK2: plan A | BL2: plan B
I3: Open | J3: Pregnant | K3: Pregnancy | L3: New preg. | M3: Preg. delay | N3: Open delay | O3: Insemination | Q3: Open | R3: Pregnant | S3: Pregnancy | T3: New preg. | U3: Preg. delay | V3: Open delay | W3: Insemination | AK3: Salvage | AL3: Pregnant | AM3: insemination | AN3: Salvage | AO3: Pregnant | AP3: insemination | AQ3: 0 | AR3: 0 | AT3: 1 | AU3: 1 | AV3: 1 | BK3: Open | BL3: Open | BN3: Hide charts
F4: mo | G4: day | H4: sea | I4: RPO ($) | J4: RPO ($) | K4: value ($) | L4: value ($) | M4: value ($) | N4: value ($) | O4: value ($) | Q4: RPO($) | R4: RPO ($) | S4: value ($) | T4: value ($) | U4: value ($) | V4: value ($) | W4: value ($) | AK4: value ($) | AL4: Milk (lbs/d) | AM4: value ($) | AN4: value ($) | AO4: Milk (lbs/d) | AP4: value | AQ4: 0 | AR4: 0 | BE4: JAN | BF4: 1 | BH4: cost per day open? | BK4: Milk (lbs/d) | BL4: Milk (lbs/d) | BN4: RPO A
F5: 1 | G5: 1 | H5: =CHOOSE(BE19,"Jan","Feb","Mar","Apr","May","Jun","Jul","Aug","Sep","Oct","Nov","Dec") -> Jan | I5: 1467 | Q5: -130 | AQ5: 0 | AR5: 0 | BE5: FEB | BF5: 2 | BH5: =IF(U5<>"",-U5/30.4,"") ->  | BK5: 24.17 | BL5: 16.86 | BN5: RPO B
F6: 2 | G6: =G5+30.4 -> 31.4 | H6: Jan | I6: 1561 | Q6: -73 | AQ6: 0 | AR6: 0 | BE6: MAR | BF6: 3 | BK6: 32.26 | BL6: 22.49 | BN6: Compare RPO A and B
F7: 3 | G7: =G6+30.4 -> 61.8 | H7: Jan | I7: 1586 | J7: 1563 | K7: -22 | L7: -22 | M7: 84 | N7: -10 | O7: -22 | Q7: -45 | R7: -43 | S7: 0 | T7: 0 | U7: -43 | V7: -45 | W7: -13 | AQ7: 0 | AR7: 0 | BE7: APR | BF7: 4 | BH7: 1.414473684 | BK7: 35.24 | BL7: 24.58 | BN7: Cost delayed pregnancy
D8: =RPOAFILE ->  | F8: 4 | G8: 92.2 | H8: Jan | I8: 1537 | J8: 1524 | K8: -12 | L8: 72 | M8: 108 | N8: -38 | O8: 10 | Q8: -35 | R8: -34 | S8: 0 | T8: 0 | U8: -77 | V8: -79 | W8: -14 | AQ8: 0 | AR8: 0 | BE8: MAY | BF8: 5 | BH8: 2.532894737 | BK8: 36.29 | BL8: 25.31 | BN8: Value new pregnancy
C9: Milk yield (%) | D9: 100 | F9: 5 | G9: 122.6 | H9: Jan | I9: 1454 | J9: 1470 | K9: 16 | L9: 125 | M9: 119 | N9: -85 | O9: 28 | Q9: -38 | R9: -37 | S9: 0 | T9: 0 | U9: -114 | V9: -116 | W9: -15 | AQ9: 0 | AR9: 0 | BE9: JUN | BF9: 6 | BH9: 3.75 | BK9: 36.3 | BL9: 25.32
C10: Lactation | D10: 1 | F10: 6 | G10: 153 | H10: Jan | I10: 1352 | J10: 1418 | K10: 66 | L10: 184 | M10: 121 | N10: -156 | O10: 48 | Q10: -43 | R10: -43 | S10: 0 | T10: 0 | U10: -156 | V10: -157 | W10: -15 | AQ10: 0 | AR10: 0 | BE10: JUL | BF10: 7 | BH10: 5.131578947 | BK10: 35.69 | BL10: 24.89
C11: Conception mo. | D11: 3 | F11: 7 | G11: 183.4 | H11: Jan | I11: 1234 | J11: 1374 | K11: 140 | L11: 254 | M11: 93 | N11: -247 | O11: 71 | Q11: -51 | R11: -4 | S11: 0 | T11: 0 | U11: -204 | V11: -205 | W11: -15 | AQ11: 0 | AR11: 0 | BE11: AUG | BF11: 8 | BH11: 6.710526316 | BK11: 34.7 | BL11: 24.2
C12: Season | D12: MAY | F12: 8 | G12: 213.8 | H12: Jan | I12: 1102 | J12: 1353 | K12: 251 | L12: 331 | M12: 47 | N12: -356 | O12: 94 | Q12: -59 | R12: 58 | S12: 58 | T12: 0 | U12: -260 | V12: -261 | W12: -15 | AR12: 0 | BE12: SEP | BF12: 9 | BH12: 8.552631579 | BK12: 33.45 | BL12: 23.33
F13: 9 | G13: 244.2 | H13: Jan | I13: 963 | J13: 1360 | K13: 396 | L13: 393 | M13: -16 | N13: -482 | O13: 112 | Q13: -68 | R13: 139 | S13: 139 | T13: 0 | U13: -324 | V13: -324 | W13: -15 | AR13: 0 | BE13: OCT | BF13: 10 | BH13: 10.65789474 | BK13: 32.06 | BL13: 22.36
F14: 10 | G14: 274.6 | H14: Jan | I14: 818 | J14: 1392 | K14: 574 | L14: 461 | M14: -87 | N14: -627 | O14: 131 | Q14: -77 | R14: 239 | S14: 239 | T14: 0 | U14: -396 | V14: -396 | W14: -15 | AR14: 0 | BE14: NOV | BF14: 11 | BH14: 13.02631579 | BK14: 30.58 | BL14: 21.33
C15: % data read | D15: 0 | F15: 11 | G15: 305 | H15: Jan | I15: 667 | J15: 1602 | K15: 935 | L15: 538 | M15: -192 | N15: -781 | O15: 150 | Q15: -87 | R15: 428 | S15: 428 | T15: 0 | U15: -476 | V15: -476 | W15: -15 | AR15: 0 | BE15: DEC | BF15: 12 | BH15: 15.65789474 | BK15: 29.06 | BL15: 20.26
F16: 12 | G16: 335.4 | H16: Jan | I16: 519 | L16: 592 | M16: -304 | N16: -943 | O16: 160 | Q16: -96 | T16: 0 | U16: -564 | V16: -564 | W16: -15 | AR16: 0 | BK16: 27.52 | BL16: 19.19
F17: 13 | G17: 365.8 | H17: Jan | I17: 375 | L17: 646 | M17: -424 | N17: -1109 | O17: 169 | Q17: -105 | T17: 0 | U17: -659 | V17: -659 | W17: -15 | AR17: 0 | BK17: 26 | BL17: 18.14
F18: 14 | G18: 396.2 | H18: Jan | I18: 238 | L18: 698 | M18: -551 | N18: -1276 | O18: 175 | Q18: -114 | T18: 0 | U18: -761 | V18: -761 | W18: -15 | AR18: 0 | BE18: =STARTSEA -> JAN | BF18: Jan | BG18: 1 | BK18: 24.52 | BL18: 17.1
D19: =RPOBFILE ->  | F19: 15 | G19: 426.6 | H19: Jan | I19: 113 | L19: 744 | M19: -686 | N19: -1443 | O19: 176 | Q19: -123 | T19: 0 | U19: -870 | V19: -870 | W19: -15 | AR19: 0 | BD19: 1 | BE19: =VLOOKUP(BE18,BF18:BG29,2,FALSE) -> 1 | BF19: Feb | BG19: 2 | BK19: 23.07 | BL19: 16.09
C20: Milk yield (%) | D20: 73 | F20: 16 | G20: 457 | H20: Jan | I20: -75 | L20: 781 | N20: -1513 | O20: 176 | Q20: -131 | T20: 0 | V20: -986 | W20: -15 | AR20: 0 | BC20: =IF(AB21<12,AB21+1,1) | BD20: 2 | BE20: =BE19 -> 1 | BF20: Mar | BG20: 3 | BK20: 21.67 | BL20: 15.11
C21: Lactation | D21: 1 | F21: 17 | G21: 487.4 | H21: Jan | I21: -87 | N21: -1594 | Q21: -139 | V21: -1106 | AR21: 0 | BD21: 3 | BE21: =BE20 -> 1 | BF21: Apr | BG21: 4 | BK21: 20.33 | BL21: 14.18
C22: Conception mo. | D22: 3 | F22: 18 | G22: 517.8 | H22: Jan | I22: -98 | N22: -1685 | Q22: -147 | V22: -1232 | AR22: 0 | BD22: 4 | BE22: 1 | BF22: May | BG22: 5 | BK22: 19.05 | BL22: 13.29
C23: Season | D23: MAY | F23: 19 | G23: 548.2 | H23: Jan | I23: -109 | N23: -1786 | Q23: -154 | V23: -1362 | AR23: 0 | BD23: 5 | BE23: 1 | BF23: Jun | BG23: 6 | BK23: 17.83 | BL23: 12.43
F24: 20 | G24: 578.6 | H24: Jan | I24: -119 | N24: -1895 | Q24: -161 | V24: -1497 | AR24: 0 | BD24: 6 | BE24: 1 | BF24: Jul | BG24: 7 | BK24: 16.67 | BL24: 11.63
F25: 21 | G25: 609 | H25: Jan | I25: -129 | N25: -2012 | Q25: -167 | V25: -1634 | AR25: 0 | BD25: 7 | BE25: 1 | BF25: Aug | BG25: 8 | BK25: 15.57 | BL25: 10.86
C26: % data read | D26: 0 | F26: 22 | G26: 639.4 | H26: Jan | I26: -138 | N26: -2136 | Q26: -173 | V26: -1775 | AR26: 0 | BD26: 8 | BE26: 1 | BF26: Sep | BG26: 9 | BK26: 14.53 | BL26: 10.14
F27: 23 | G27: 669.8 | H27: Jan | I27: -147 | N27: -2267 | Q27: -179 | V27: -1918 | AR27: 0 | BD27: 9 | BE27: 1 | BF27: Oct | BG27: 10 | BK27: 13.56 | BL27: 9.45
F28: 24 | G28: 700.2 | H28: Jan | I28: -155 | Q28: -185 | BD28: 10 | BE28: 1 | BF28: Nov | BG28: 11 | BK28: 12.64 | BL28: 8.81
BD29: 11 | BE29: 1 | BF29: Dec | BG29: 12
BD30: 12 | BE30: 1
C31: =IF(UNITS = "kg","Milk yield (kg)","Milk yield (lbs)") -> Milk yield (lbs) | D31: 35 | BD31: 13 | BE31: 1
C32: Lactation | D32: 1 | BD32: 14 | BE32: 1
C33: Month in milk | D33: 6 | BD33: 15 | BE33: 1
C34: Months pregn. | D34: 0 | BD34: 16 | BE34: 1
C35: Season | D35: JUN | BD35: 17 | BE35: 1
C36: % data read | D36: 0 | BD36: 18 | BE36: 1
D37: =findrpo(CURRYIELD,LACTC,RPOMIM,RPOPREG,RPOSEA) ->  | BD37: 19 | BE37: 1
BD38: 20 | BE38: 1
BD39: 21 | BE39: 1
BD40: 22 | BE40: 1
BD41: 23 | BE41: 1
BD42: 24 | BE42: 1
C61: check: calving season
C62: cost of delayed pregnancy --> sign wrong
C63: add 100% milk yield curve
C64: add cost/day open curve
C66: RPO (open)
C67: RPO( preg)
C68: Pregn. Value
C69: Cull value
C70: Milk (open)
C71: Milk (preg)
C73: A - RPO (open)
C74: A - RPO (preg)
C75: A - Pregn. Value
C76: B - RPO (open)
C77: B - RPO (preg)
C78: B - Pregn. Value
C80: A
C81: B

Sheet table
B1: Plan A: | C1: =CONCATENATE(input!K3,": ",input!K2) -> final.bio: steady state | K1: =milk!L1 -> v.dairyvip 1.4
B2: Plan B: | C2: =CONCATENATE(input!X3,": ",input!X2) -> final.bio: steady state | F2: =IF(OR(table=1,table=4,table=7),"per slot per year",IF(OR(table=2,table=5,table=8),"per slot per day","per cwt")) -> per slot per year
F3: plan A | G3: plan B | H3: plan B - A | L3: plan A | M3: plan B | N3: plan B - A
E4: milk sales | F4: =CHOOSE(table,resa!A311,resa!A311/365,resa!A312,resa!B311,resa!B311/365,resa!B312,resa!C311,resa!C311/365,resa!C312) -> 5247.825588 | G4: =CHOOSE(table,resb!A311,resb!A311/365,resb!A312,resb!B311,resb!B311/365,resb!B312,resb!C311,resb!C311/365,resb!C312) -> 5247.82559 | H4: =G4-F4 -> 2.000000677e-06 | K4: days to end VWP | L4: =CHOOSE(tabl,resa!A366,resa!B366,resa!C366) -> 72.359089 | M4: =CHOOSE(tabl,resb!A366,resb!B366,resb!C366) -> 72.359089 | N4: =M4-L4 -> 0 | AT4: Year 1, per slot / year
E5: cow sales | F5: =CHOOSE(table,resa!A317,resa!A317/365,resa!A318,resa!B317,resa!B317/365,resa!B318,resa!C317,resa!C317/365,resa!C318) -> 248.542526 | G5: =CHOOSE(table,resb!A317,resb!A317/365,resb!A318,resb!B317,resb!B317/365,resb!B318,resb!C317,resb!C317/365,resb!C318) -> 248.542524 | H5: =G5-F5 -> -2.000000023e-06 | K5: days to first service | L5: =CHOOSE(tabl,resa!A358,resa!B358,resa!C358) -> 82.375184 | M5: =CHOOSE(tabl,resb!A358,resb!B358,resb!C358) -> 82.375184 | N5: =M5-L5 -> 0 | AT5: Year 1, per slot / day
E6: calf sales | F6: =CHOOSE(table,resa!A319,resa!A319/365,resa!A320,resa!B319,resa!B319/365,resa!B320,resa!C319,resa!C319/365,resa!C320) -> 212.625931 | G6: =CHOOSE(table,resb!A319,resb!A319/365,resb!A320,resb!B319,resb!B319/365,resb!B320,resb!C319,resb!C319/365,resb!C320) -> 212.625931 | H6: 0 | K6: days to conception | L6: =CHOOSE(tabl,resa!A324,resa!B324,resa!C324) -> 134.174024 | M6: =CHOOSE(tabl,resb!A324,resb!B324,resb!C324) -> 134.174024 | N6: 0 | AT6: Year 1, per cwt
E7: total revenue | F7: =SUM(F4:F6) -> 5708.994045 | G7: =SUM(G4:G6) -> 5708.994045 | H7: 0 | K7: days to last service | L7: =CHOOSE(tabl,resa!A367,resa!B367,resa!C367) -> 208.436294 | M7: =CHOOSE(tabl,resb!A367,resb!B367,resb!C367) -> 208.436295 | N7: 9.999999975e-07 | AT7: Year 2, per slot / year
E8: feed cost | F8: =CHOOSE(table,resa!A313,resa!A313/365,resa!A314,resa!B313,resa!B313/365,resa!B314,resa!C313,resa!C313/365,resa!C314) -> 2783.367997 | G8: =CHOOSE(table,resb!A313,resb!A313/365,resb!A314,resb!B313,resb!B313/365,resb!B314,resb!C313,resb!C313/365,resb!C314) -> 2783.367997 | H8: 0 | K8: calving interval (mo) | L8: =CHOOSE(tabl,resa!A323,resa!B323,resa!C323) -> 13.432834 | M8: =CHOOSE(tabl,resb!A323,resb!B323,resb!C323) -> 13.432834 | N8: 0 | AT8: Year 2, per slot / day
E9: breeding supply cost | F9: =CHOOSE(table,resa!A332,resa!A332/365,resa!A333,resa!B332,resa!B332/365,resa!B333,resa!C332,resa!C332/365,resa!C333) -> 46.773899 | G9: =CHOOSE(table,resb!A332,resb!A332/365,resb!A333,resb!B332,resb!B332/365,resb!B333,resb!C332,resb!C332/365,resb!C333) -> 46.773899 | H9: 0 | K9: open days | L9: =CHOOSE(tabl,resa!A351,resa!B351,resa!C351) -> 150.459533 | M9: =CHOOSE(tabl,resb!A351,resb!B351,resb!C351) -> 150.459533 | N9: 0 | AT9: Year 2, per cwt
E10: heifer purchase cost | F10: =CHOOSE(table,resa!A315,resa!A315/365,resa!A316,resa!B315,resa!B315/365,resa!B316,resa!C315,resa!C315/365,resa!C316) -> 539.362695 | G10: =CHOOSE(table,resb!A315,resb!A315/365,resb!A316,resb!B315,resb!B315/365,resb!B316,resb!C315,resb!C315/365,resb!C316) -> 539.362691 | H10: -3.99999999e-06 | K10: pregnancy rate | L10: =CHOOSE(tabl,resa!A338,resa!B338,resa!C338) -> 0.202768 | M10: =CHOOSE(tabl,resb!A338,resb!B338,resb!C338) -> 0.202768 | N10: 0 | AT10: Year 3, per slot / year
E11: veterinary cost | F11: =CHOOSE(table,resa!A330,resa!A330/365,resa!A331,resa!B330,resa!B330/365,resa!B331,resa!C330,resa!C330/365,resa!C331) -> 80.409977 | G11: =CHOOSE(table,resb!A330,resb!A330/365,resb!A331,resb!B330,resb!B330/365,resb!B331,resb!C330,resb!C330/365,resb!C331) -> 80.409977 | H11: 0 | K11: value of new pregnancy | L11: =CHOOSE(tabl,resa!A349,resa!B349,resa!C349) -> 193.056208 | M11: =CHOOSE(tabl,resb!A349,resb!B349,resb!C349) -> 193.05626 | N11: 5.200000001e-05 | AT11: Year 3, per slot / day
E12: inv. culling loss | F12: =CHOOSE(table,resa!A334,resa!A334/365,resa!A335,resa!B334,resa!B335/365,resa!B335,resa!C334,resa!C334/365,resa!C335) -> 0 | G12: =CHOOSE(table,resb!A334,resb!A334/365,resb!A335,resb!B334,resb!B335/365,resb!B335,resb!C334,resb!C334/365,resb!C335) -> 0 | H12: 0 | K12: cost of pregnancy loss | L12: =CHOOSE(tabl,resa!A353,resa!B353,resa!C353) -> 513.426712 | M12: =CHOOSE(tabl,resb!A353,resb!B353,resb!C353) -> 513.426819 | N12: 0.0001070000001 | AT12: Year 3, per cwt
E13: variable labor cost | F13: =CHOOSE(table,resa!A328,resa!A328/365,resa!A329,resa!B328,resa!B328/365,resa!B329,resa!C328,resa!C328/365,resa!C329) -> 401.36625 | G13: =CHOOSE(table,resb!A328,resb!A328/365,resb!A329,resb!B328,resb!B328/365,resb!B329,resb!C328,resb!C328/365,resb!C329) -> 401.36625 | H13: 0 | K13: breeding cost / preg | L13: =CHOOSE(tabl,resa!A345+resa!A346,resa!B345+resa!B346,resa!C345+resa!C346) -> 54.249268 | M13: =CHOOSE(tabl,resb!A345+resb!A346,resb!B345+resb!B346,resb!C345+resb!C346) -> 54.249268 | N13: 0
E14: variable other cost | F14: =CHOOSE(table,resa!A336,resa!A336/365,resa!A337,resa!B336,resa!B336/365,resa!B337,resa!C336,resa!C336/365,resa!C337) -> 364.8 | G14: =CHOOSE(table,resb!A336,resb!A336/365,resb!A337,resb!B336,resb!B336/365,resb!B337,resb!C336,resb!C336/365,resb!C337) -> 364.8 | H14: 0 | K14: cost of extra day open | L14: =CHOOSE(tabl,resa!A368,resa!B368,resa!C368) -> 1.12437 | M14: =CHOOSE(tabl,resb!A368,resb!B368,resb!C368) -> 1.124371 | N14: 9.999999999e-07
E15: fixed labor cost | F15: =CHOOSE(table,resa!A341,resa!A341/365,resa!A342,resa!B341,resa!B341/365,resa!B342,resa!C341,resa!C341/365,resa!C342) -> 182.4 | G15: =CHOOSE(table,resb!A341,resb!A341/365,resb!A342,resb!B341,resb!B341/365,resb!B342,resb!C341,resb!C341/365,resb!C342) -> 182.4 | H15: 0 | K15: overall cull rate | L15: =CHOOSE(tabl,resa!A325,resa!B325,resa!C325) -> 0.337102 | M15: =CHOOSE(tabl,resb!A325,resb!B325,resb!C325) -> 0.337102 | N15: 0
E16: fixed other cost | F16: =CHOOSE(table,resa!A343,resa!A343/365,resa!A344,resa!B343,resa!B343/365,resa!B344,resa!C343,resa!C343/365,resa!C344) -> 729.6 | G16: =CHOOSE(table,resb!A343,resb!A343/365,resb!A344,resb!B343,resb!B343/365,resb!B344,resb!C343,resb!C343/365,resb!C344) -> 729.6 | H16: 0 | K16: involuntary cull rate | L16: =CHOOSE(tabl,resa!A327,resa!B327,resa!C327) -> 0.129054 | M16: =CHOOSE(tabl,resb!A327,resb!B327,resb!C327) -> 0.129054 | N16: 0
E17: total costs | F17: =SUM(F8:F16) -> 5128.080818 | G17: =SUM(G8:G16) -> 5128.080814 | H17: -4.000000445e-06 | K17: voluntary cull rate | L17: =CHOOSE(tabl,resa!A326,resa!B326,resa!C326) -> 0.208048 | M17: =CHOOSE(tabl,resb!A326,resb!B326,resb!C326) -> 0.208048 | N17: 0
E18: total profit | F18: =CHOOSE(table,resa!A306,resa!A306/365,resa!A307,resa!B306,resa!B306/365,resa!B307,resa!C306,resa!C306,resa!C307) -> 580.913226 | G18: =CHOOSE(table,resb!A306,resb!A306/365,resb!A307,resb!B306,resb!B306/365,resb!B307,resb!C306,resb!C306,resb!C307) -> 580.913229 | H18: 2.999999992e-06 | K18: days in milk | L18: =CHOOSE(tabl,resa!A357,resa!B357,resa!C357) -> 223.234309 | M18: =CHOOSE(tabl,resb!A357,resb!B357,resb!C357) -> 223.234309 | N18: 0
E19: total fixed cost | F19: =F15+F16 -> 912 | G19: =G15+G16 -> 912 | H19: 0 | K19: value of cow | L19: =CHOOSE(tabl,resa!A356,resa!B356,resa!C356) -> 1594.053849 | M19: =CHOOSE(tabl,resb!A356,resb!B356,resb!C356) -> 1594.053959 | N19: 0.0001100000002
E20: revenue - var. cost | F20: =F7-(F17-F19) -> 1492.913227 | G20: =G7-(G17-G19) -> 1492.913231 | H20: 4.000001354e-06 | K20: cull price | L20: =CHOOSE(tabl,resa!A359,resa!B359,resa!C359) -> 737.292446 | M20: =CHOOSE(tabl,resb!A359,resb!B359,resb!C359) -> 737.292446 | N20: 0
E21: herd replacement costs | F21: =CHOOSE(table,resa!A321,resa!A321/365,resa!A322,resa!B321,resa!B321/365,resa!B322,resa!C321,resa!C321/365,resa!C322) -> 290.82017 | G21: =CHOOSE(table,resb!A321,resb!A321/365,resb!A322,resb!B321,resb!B321/365,resb!B322,resb!C321,resb!C321/365,resb!C322) -> 290.820168 | H21: -1.999999995e-06 | K21: dry cow feed cost / day | L21: =CHOOSE(tabl,resa!A354,resa!B354,resa!C354)/365 -> 2.498630137 | M21: =CHOOSE(tabl,resb!A354,resb!B354,resb!C354)/365 -> 2.498630137 | N21: 0
E22: breeding cost | F22: =CHOOSE(table,resa!A347,resa!A347/365,resa!A348,resa!B347,resa!B347/365,resa!B348,resa!C347,resa!C347/365,resa!C348) -> 46.773899 | G22: =CHOOSE(table,resb!A347,resb!A347/365,resb!A348,resb!B347,resb!B347/365,resb!B348,resb!C347,resb!C347/365,resb!C348) -> 46.773899 | H22: 0 | K22: lact. cow feed cost / day | L22: =CHOOSE(tabl,resa!A355,resa!B355,resa!C355)/365 -> 8.34256637 | M22: =CHOOSE(tabl,resb!A355,resb!B355,resb!C355)/365 -> 8.342566373 | N22: 2.739726668e-09
E23: milk yield | F23: =CHOOSE(table,resa!A309,resa!A309/365,resa!A310,resa!B309,resa!B309/365,resa!B310,resa!C309,resa!C309/365,resa!C310) -> 29154.5866 | G23: =CHOOSE(table,resb!A309,resb!A309/365,resb!A310,resb!B309,resb!B309/365,resb!B310,resb!C309,resb!C309/365,resb!C310) -> 29154.58661 | H23: 1.000000339e-05 | K23: income over feed cost / day | L23: =(resa!A311-resa!A313)/365 -> 6.751938605 | M23: =(resb!A311-resb!A313)/365 -> 6.751938611 | N23: 5.479454224e-09
K24: cost of day later pregnant | L24: =CHOOSE(tabl,resa!A369,resa!B369,resa!C369) -> 0.339977 | M24: =CHOOSE(tabl,resb!A369,resb!B369,resb!C369) -> 0.339977 | N24: 0
K25: milk-feed price ratio | L25: =IF(F8<>0,F4/F8,0) -> 1.885422838 | M25: =IF(G8<>0,G4/G8,0) -> 1.885422839 | N25: =M25-L25 -> 7.185541051e-10

Sheet time
C1: Plan A: | D1: =CONCATENATE(input!K3,": ",input!K2) -> final.bio: steady state | K1: =milk!L1 -> v.dairyvip 1.4
C2: Plan B: | D2: =CONCATENATE(input!X3,": ",input!X2) -> final.bio: steady state | AM2: Year 1
AM3: Year 2
AM4: Year 3
AC6: heifers purchased | AE6: total cash | AG6: total revenue | AI6: total cost | AK6: involuntary culling | AM6: voluntary culling | AO6: milk yield | AQ6: dim | AS6: % lactation 1 | AU6: % lactation 2 | AW6: open | AY6: milking | BA6: delayed | BC6: rpo | BE6: preg rate - serve | BG6: preg rate - serve (keep) | BI6: =CHOOSE(graph,resa!W4,resa!W16,resa!W28) -> cullprice | BK6: present | BM6: value new pregnancy | BO6: value old pregnancy | BQ6: RPO at pind | BS6: Opportunity cost | BU6: Cow value | BW6: milk yield/milking cow/day | BY6: Calvings | CA6: feedcost_lact | CC6: milk yield/lact.cow/day | CE6: dmi / wetcow / day | CG6: IOFC at vol. culling | CI6: Total cost / cwt | CK6: Calvinginterval | CM6: Days to conception | CO6: Days to end VWP | CQ6: Days to first service | CS6: Days to last service | CU6: DIM at vol. culling | CW6: Milk yield at vol. culling
AC7: plan A | AD7: plan B | AE7: plan A | AF7: plan B | AG7: plan A | AH7: plan B | AI7: plan A | AJ7: plan B | AK7: plan A | AL7: plan B | AM7: plan A | AN7: plan B | AO7: plan A | AP7: plan B | AQ7: plan A | AR7: plan B | AS7: plan A | AT7: plan B | AU7: plan A | AV7: plan B | AW7: plan A | AX7: plan B | AY7: plan A | AZ7: plan B | BA7: plan A | BB7: plan B | BC7: plan A | BD7: plan B | BE7: plan A | BF7: plan B | BG7: plan A | BH7: plan B | BI7: plan A | BJ7: plan B | BK7: plan A | BL7: plan B | BM7: plan A | BN7: plan B | BO7: plan A | BP7: plan B | BQ7: plan A | BR7: plan B | BS7: plan A | BT7: plan B | BU7: plan A | BV7: plan B | BW7: plan A | BX7: plan B | BY7: plan A | BZ7: plan B | CA7: plan A | CB7: plan B | CC7: plan A | CD7: plan B | CE7: plan A | CF7: plan B | CG7: plan A | CH7: plan B | CI7: plan A | CJ7: plan B | CK7: plan A | CL7: plan B | CM7: plan A | CN7: plan B | CO7: plan A | CP7: plan B | CQ7: plan A | CR7: plan B | CS7: plan A | CT7: plan B | CU7: plan A | CV7: plan B | CW7: plan A | CX7: plan B
AA8: 1 | AB8: =CHOOSE(graph,resa!B5,resa!B17,resa!B29) -> 1 | AC8: =CHOOSE(graph,resa!I5,resa!I17,resa!I29) -> 0.028092 | AD8: =CHOOSE(graph,resb!I5,resb!I17,resb!I29) -> 0.028092 | AE8: =CHOOSE(graph,resa!D5,resa!D17,resa!D29) -> 48.409436 | AF8: =CHOOSE(graph,resb!D5,resb!D17,resb!D29) -> 48.409436 | AG8: =CHOOSE(graph,resa!BO5,resa!BO17,resa!BO29) -> 475.749504 | AH8: =CHOOSE(graph,resb!BO5,resb!BO17,resb!BO29) -> 475.749504 | AI8: =CHOOSE(graph,resa!BP5,resa!BP17,resa!BP29) -> 427.340068 | AJ8: =CHOOSE(graph,resb!BP5,resb!BP17,resb!BP29) -> 427.340068 | AK8: =CHOOSE(graph,resa!BB5,resa!BB17,resa!BB29) -> 0.010754 | AL8: =CHOOSE(graph,resb!BB5,resb!BB17,resb!BB29) -> 0.010754 | AM8: =CHOOSE(graph,resa!BC5,resa!BC17,resa!BC29) -> 0.017337 | AN8: =CHOOSE(graph,resb!BC5,resb!BC17,resb!BC29) -> 0.017337 | AO8: =CHOOSE(graph,resa!F5,resa!F17,resa!F29) -> 79.919371 | AP8: =CHOOSE(graph,resb!F5,resb!F17,resb!F29) -> 79.919371 | AQ8: =CHOOSE(graph,resa!BN5,resa!BN17,resa!BN29) -> 223.234309 | AR8: =CHOOSE(graph,resb!BN5,resb!BN17,resb!BN29) -> 223.234309 | AS8: =CHOOSE(graph,resa!AN5,resa!AN17,resa!AN29) -> 0.335045 | AT8: =CHOOSE(graph,resb!AN5,resb!AN17,resb!AN29) -> 0.335045 | AU8: =CHOOSE(graph,resa!AO5,resa!AO17,resa!AO29) -> 0.249775 | AV8: =CHOOSE(graph,resb!AO5,resb!AO17,resb!AO29) -> 0.249775 | AW8: =CHOOSE(graph,resa!P5,resa!P17,resa!P29) -> 0.412218 | AX8: =CHOOSE(graph,resb!P5,resb!P17,resb!P29) -> 0.412218 | AY8: =CHOOSE(graph,resa!R5,resa!R17,resa!R29) -> 0.877326 | AZ8: =CHOOSE(graph,resb!R5,resb!R17,resb!R29) -> 0.877326 | BA8: =CHOOSE(graph,resa!AK5,resa!AK17,resa!AK29) -> 0.184703 | BB8: =CHOOSE(graph,resb!AK5,resb!AK17,resb!AK29) -> 0.184703 | BC8: =CHOOSE(graph,resa!BA5,resa!BA17,resa!BA29) -> 804.162375 | BD8: =CHOOSE(graph,resb!BA5,resb!BA17,resb!BA29) -> 804.16247 | BE8: =CHOOSE(graph,resa!AL5,resa!AL17,resa!AL29) -> 0.202768 | BF8: =CHOOSE(graph,resb!AL5,resb!AL17,resb!AL29) -> 0.202768 | BG8: =CHOOSE(graph,resa!AM5,resa!AM17,resa!AM29) -> 0.165316 | BH8: =CHOOSE(graph,resb!AM5,resb!AM17,resb!AM29) -> 0.165316 | BI8: =CHOOSE(graph,resa!W5,resa!W17,resa!W29) -> 737.292446 | BJ8: =CHOOSE(graph,resb!W5,resb!W17,resb!W29) -> 737.292445 | BK8: =CHOOSE(graph,resa!S5,resa!S17,resa!S29) -> 1 | BL8: =CHOOSE(graph,resb!S5,resb!S17,resb!S29) -> 1 | BM8: =CHOOSE(graph,resa!CO5,resa!CO17,resa!CO29) -> 193.056217 | BN8: =CHOOSE(graph,resb!CO5,resb!CO17,resb!CO29) -> 193.05626 | BO8: =CHOOSE(graph,resa!CP5,resa!CP17,resa!CP29) -> 513.426731 | BP8: =CHOOSE(graph,resb!CP5,resb!CP17,resb!CP29) -> 513.426819 | BQ8: =CHOOSE(graph,resa!AX5,resa!AX17,resa!AX29) -> 91.094298 | BR8: =CHOOSE(graph,resb!AX5,resb!AX17,resb!AX29) -> 91.094298 | BS8: =CHOOSE(graph,resa!CV5,resa!CV17,resa!CV29) -> 124.415582 | BT8: =CHOOSE(graph,resb!CV5,resb!CV17,resb!CV29) -> 124.415587 | BU8: =CHOOSE(graph,resa!CW5,resa!CW17,resa!CW29) -> 1594.053864 | BV8: =CHOOSE(graph,resb!CW5,resb!CW17,resb!CW29) -> 1594.053959 | BW8: =CHOOSE(graph,resa!AX5,resa!AX17,resa!AX29) -> 91.094298 | BX8: =CHOOSE(graph,resb!AX5,resb!AX17,resb!AX29) -> 91.094298 | BY8: =CHOOSE(graph,resa!AU5,resa!AU17,resa!AU29) -> 0.088594 | BZ8: =CHOOSE(graph,resb!AU5,resb!AU17,resb!AU29) -> 0.088594 | CA8: =CHOOSE(graph,resa!AY5,resa!AY17,resa!AY29) -> 7.323161 | CB8: =CHOOSE(graph,resb!AY5,resb!AY17,resb!AY29) -> 7.323161 | CC8: =CHOOSE(graph,resa!AX5,resa!AX17,resa!AX29) -> 91.094298 | CD8: =CHOOSE(graph,resb!AX5,resb!AX17,resb!AX29) -> 91.094298 | CE8: =CHOOSE(graph,resa!CB5,resa!CB17,resa!CB29) -> 48.821072 | CF8: =CHOOSE(graph,resb!CB5,resb!CB17,resb!CB29) -> 48.821072 | CG8: =CHOOSE(graph,resa!BX5,resa!BX17,resa!BX29) -> 4.485236 | CH8: =CHOOSE(graph,resb!BX5,resb!BX17,resb!BX29) -> 4.485236 | CI8: =AI8/(AO8*30.4)*100 -> 17.58927642 | CJ8: =AJ8/(AP8*30.4)*100 -> 17.58927642 | CK8: =CHOOSE(graph,resa!CS5,resa!CS17,resa!CS29) -> 13.432834 | CL8: =CHOOSE(graph,resb!CS5,resb!CS17,resb!CS29) -> 13.432834 | CM8: =CHOOSE(graph,resa!CT5,resa!CT17,resa!CT29) -> 134.174023 | CN8: =CHOOSE(graph,resb!CT5,resb!CT17,resb!CT29) -> 134.174024 | CO8: =CHOOSE(graph,resa!DD5,resa!DD17,resa!DD29) -> 72.359089 | CP8: =CHOOSE(graph,resb!DD5,resb!DD17,resb!DD29) -> 72.359089 | CQ8: =CHOOSE(graph,resa!DG5,resa!DG17,resa!DG29) -> 82.375184 | CR8: =CHOOSE(graph,resb!DG5,resb!DG17,resb!DG29) -> 82.375184 | CS8: =CHOOSE(graph,resa!DJ5,resa!DJ17,resa!DJ29) -> 208.436294 | CT8: =CHOOSE(graph,resb!DJ5,resb!DJ17,resb!DJ29) -> 208.436295 | CU8: =CHOOSE(graph,resa!BR5,resa!BR17,resa!BR29) -> 221.571012 | CV8: =CHOOSE(graph,resb!BR5,resb!BR17,resb!BR29) -> 221.571012 | CW8: =CHOOSE(graph,resa!BL5,resa!BL17,resa!BL29) -> 72.47038 | CX8: =CHOOSE(graph,resb!BL5,resb!BL17,resb!BL29) -> 72.47038
AA9: 2 | AB9: =CHOOSE(graph,resa!B6,resa!B18,resa!B30) -> 2 | AC9: =CHOOSE(graph,resa!I6,resa!I18,resa!I30) -> 0.028092 | AD9: =CHOOSE(graph,resb!I6,resb!I18,resb!I30) -> 0.028092 | AE9: =CHOOSE(graph,resa!D6,resa!D18,resa!D30) -> 48.409436 | AF9: =CHOOSE(graph,resb!D6,resb!D18,resb!D30) -> 48.409436 | AG9: =CHOOSE(graph,resa!BO6,resa!BO18,resa!BO30) -> 475.749504 | AH9: =CHOOSE(graph,resb!BO6,resb!BO18,resb!BO30) -> 475.749504 | AI9: =CHOOSE(graph,resa!BP6,resa!BP18,resa!BP30) -> 427.340068 | AJ9: =CHOOSE(graph,resb!BP6,resb!BP18,resb!BP30) -> 427.340068 | AK9: =CHOOSE(graph,resa!BB6,resa!BB18,resa!BB30) -> 0.010754 | AL9: =CHOOSE(graph,resb!BB6,resb!BB18,resb!BB30) -> 0.010754 | AM9: =CHOOSE(graph,resa!BC6,resa!BC18,resa!BC30) -> 0.017337 | AN9: =CHOOSE(graph,resb!BC6,resb!BC18,resb!BC30) -> 0.017337 | AO9: =CHOOSE(graph,resa!F6,resa!F18,resa!F30) -> 79.919371 | AP9: =CHOOSE(graph,resb!F6,resb!F18,resb!F30) -> 79.919371 | AQ9: =CHOOSE(graph,resa!BN6,resa!BN18,resa!BN30) -> 223.234309 | AR9: =CHOOSE(graph,resb!BN6,resb!BN18,resb!BN30) -> 223.234309 | AS9: =CHOOSE(graph,resa!AN6,resa!AN18,resa!AN30) -> 0.335045 | AT9: =CHOOSE(graph,resb!AN6,resb!AN18,resb!AN30) -> 0.335045 | AU9: =CHOOSE(graph,resa!AO6,resa!AO18,resa!AO30) -> 0.249775 | AV9: =CHOOSE(graph,resb!AO6,resb!AO18,resb!AO30) -> 0.249775 | AW9: =CHOOSE(graph,resa!P6,resa!P18,resa!P30) -> 0.412218 | AX9: =CHOOSE(graph,resb!P6,resb!P18,resb!P30) -> 0.412218 | AY9: =CHOOSE(graph,resa!R6,resa!R18,resa!R30) -> 0.877326 | AZ9: =CHOOSE(graph,resb!R6,resb!R18,resb!R30) -> 0.877326 | BA9: =CHOOSE(graph,resa!AK6,resa!AK18,resa!AK30) -> 0.184703 | BB9: =CHOOSE(graph,resb!AK6,resb!AK18,resb!AK30) -> 0.184703 | BC9: =CHOOSE(graph,resa!BA6,resa!BA18,resa!BA30) -> 804.162371 | BD9: =CHOOSE(graph,resb!BA6,resb!BA18,resb!BA30) -> 804.16247 | BE9: =CHOOSE(graph,resa!AL6,resa!AL18,resa!AL30) -> 0.202768 | BF9: =CHOOSE(graph,resb!AL6,resb!AL18,resb!AL30) -> 0.202768 | BG9: =CHOOSE(graph,resa!AM6,resa!AM18,resa!AM30) -> 0.165316 | BH9: =CHOOSE(graph,resb!AM6,resb!AM18,resb!AM30) -> 0.165316 | BI9: =CHOOSE(graph,resa!W6,resa!W18,resa!W30) -> 737.292446 | BJ9: =CHOOSE(graph,resb!W6,resb!W18,resb!W30) -> 737.292445 | BK9: =CHOOSE(graph,resa!S6,resa!S18,resa!S30) -> 1 | BL9: =CHOOSE(graph,resb!S6,resb!S18,resb!S30) -> 1 | BM9: =CHOOSE(graph,resa!CO6,resa!CO18,resa!CO30) -> 193.056214 | BN9: =CHOOSE(graph,resb!CO6,resb!CO18,resb!CO30) -> 193.05626 | BO9: =CHOOSE(graph,resa!CP6,resa!CP18,resa!CP30) -> 513.426726 | BP9: =CHOOSE(graph,resb!CP6,resb!CP18,resb!CP30) -> 513.426819 | BQ9: =CHOOSE(graph,resa!AX6,resa!AX18,resa!AX30) -> 91.094298 | BR9: =CHOOSE(graph,resb!AX6,resb!AX18,resb!AX30) -> 91.094298 | BS9: =CHOOSE(graph,resa!CV6,resa!CV18,resa!CV30) -> 124.415583 | BT9: =CHOOSE(graph,resb!CV6,resb!CV18,resb!CV30) -> 124.415587 | BU9: =CHOOSE(graph,resa!CW6,resa!CW18,resa!CW30) -> 1594.053859 | BV9: =CHOOSE(graph,resb!CW6,resb!CW18,resb!CW30) -> 1594.053959 | BW9: =CHOOSE(graph,resa!AX6,resa!AX18,resa!AX30) -> 91.094298 | BX9: =CHOOSE(graph,resb!AX6,resb!AX18,resb!AX30) -> 91.094298 | BY9: =CHOOSE(graph,resa!AU6,resa!AU18,resa!AU30) -> 0.088594 | BZ9: =CHOOSE(graph,resb!AU6,resb!AU18,resb!AU30) -> 0.088594 | CA9: =CHOOSE(graph,resa!AY6,resa!AY18,resa!AY30) -> 7.323161 | CB9: =CHOOSE(graph,resb!AY6,resb!AY18,resb!AY30) -> 7.323161 | CC9: =CHOOSE(graph,resa!AX6,resa!AX18,resa!AX30) -> 91.094298 | CD9: =CHOOSE(graph,resb!AX6,resb!AX18,resb!AX30) -> 91.094298 | CE9: =CHOOSE(graph,resa!CB6,resa!CB18,resa!CB30) -> 48.821072 | CF9: =CHOOSE(graph,resb!CB6,resb!CB18,resb!CB30) -> 48.821072 | CG9: =CHOOSE(graph,resa!BX6,resa!BX18,resa!BX30) -> 4.485236 | CH9: =CHOOSE(graph,resb!BX6,resb!BX18,resb!BX30) -> 4.485236 | CI9: =AI9/(AO9*30.4)*100 -> 17.58927642 | CJ9: =AJ9/(AP9*30.4)*100 -> 17.58927642 | CK9: =CHOOSE(graph,resa!CS6,resa!CS18,resa!CS30) -> 13.432834 | CL9: =CHOOSE(graph,resb!CS6,resb!CS18,resb!CS30) -> 13.432834 | CM9: =CHOOSE(graph,resa!CT6,resa!CT18,resa!CT30) -> 134.174024 | CN9: =CHOOSE(graph,resb!CT6,resb!CT18,resb!CT30) -> 134.174024 | CO9: =CHOOSE(graph,resa!DD6,resa!DD18,resa!DD30) -> 72.359089 | CP9: =CHOOSE(graph,resb!DD6,resb!DD18,resb!DD30) -> 72.359089 | CQ9: =CHOOSE(graph,resa!DG6,resa!DG18,resa!DG30) -> 82.375184 | CR9: =CHOOSE(graph,resb!DG6,resb!DG18,resb!DG30) -> 82.375184 | CS9: =CHOOSE(graph,resa!DJ6,resa!DJ18,resa!DJ30) -> 208.436294 | CT9: =CHOOSE(graph,resb!DJ6,resb!DJ18,resb!DJ30) -> 208.436295 | CU9: =CHOOSE(graph,resa!BR6,resa!BR18,resa!BR30) -> 221.571012 | CV9: =CHOOSE(graph,resb!BR6,resb!BR18,resb!BR30) -> 221.571012 | CW9: =CHOOSE(graph,resa!BL6,resa!BL18,resa!BL30) -> 72.47038 | CX9: =CHOOSE(graph,resb!BL6,resb!BL18,resb!BL30) -> 72.47038
AA10: 3 | AB10: =CHOOSE(graph,resa!B7,resa!B19,resa!B31) -> 3 | AC10: =CHOOSE(graph,resa!I7,resa!I19,resa!I31) -> 0.028092 | AD10: =CHOOSE(graph,resb!I7,resb!I19,resb!I31) -> 0.028092 | AE10: =CHOOSE(graph,resa!D7,resa!D19,resa!D31) -> 48.409436 | AF10: =CHOOSE(graph,resb!D7,resb!D19,resb!D31) -> 48.409436 | AG10: =CHOOSE(graph,resa!BO7,resa!BO19,resa!BO31) -> 475.749504 | AH10: =CHOOSE(graph,resb!BO7,resb!BO19,resb!BO31) -> 475.749504 | AI10: =CHOOSE(graph,resa!BP7,resa!BP19,resa!BP31) -> 427.340068 | AJ10: =CHOOSE(graph,resb!BP7,resb!BP19,resb!BP31) -> 427.340068 | AK10: =CHOOSE(graph,resa!BB7,resa!BB19,resa!BB31) -> 0.010754 | AL10: =CHOOSE(graph,resb!BB7,resb!BB19,resb!BB31) -> 0.010754 | AM10: =CHOOSE(graph,resa!BC7,resa!BC19,resa!BC31) -> 0.017337 | AN10: =CHOOSE(graph,resb!BC7,resb!BC19,resb!BC31) -> 0.017337 | AO10: =CHOOSE(graph,resa!F7,resa!F19,resa!F31) -> 79.919371 | AP10: =CHOOSE(graph,resb!F7,resb!F19,resb!F31) -> 79.919371 | AQ10: =CHOOSE(graph,resa!BN7,resa!BN19,resa!BN31) -> 223.234309 | AR10: =CHOOSE(graph,resb!BN7,resb!BN19,resb!BN31) -> 223.234309 | AS10: =CHOOSE(graph,resa!AN7,resa!AN19,resa!AN31) -> 0.335045 | AT10: =CHOOSE(graph,resb!AN7,resb!AN19,resb!AN31) -> 0.335045 | AU10: =CHOOSE(graph,resa!AO7,resa!AO19,resa!AO31) -> 0.249775 | AV10: =CHOOSE(graph,resb!AO7,resb!AO19,resb!AO31) -> 0.249775 | AW10: =CHOOSE(graph,resa!P7,resa!P19,resa!P31) -> 0.412218 | AX10: =CHOOSE(graph,resb!P7,resb!P19,resb!P31) -> 0.412218 | AY10: =CHOOSE(graph,resa!R7,resa!R19,resa!R31) -> 0.877326 | AZ10: =CHOOSE(graph,resb!R7,resb!R19,resb!R31) -> 0.877326 | BA10: =CHOOSE(graph,resa!AK7,resa!AK19,resa!AK31) -> 0.184703 | BB10: =CHOOSE(graph,resb!AK7,resb!AK19,resb!AK31) -> 0.184703 | BC10: =CHOOSE(graph,resa!BA7,resa!BA19,resa!BA31) -> 804.162367 | BD10: =CHOOSE(graph,resb!BA7,resb!BA19,resb!BA31) -> 804.16247 | BE10: =CHOOSE(graph,resa!AL7,resa!AL19,resa!AL31) -> 0.202768 | BF10: =CHOOSE(graph,resb!AL7,resb!AL19,resb!AL31) -> 0.202768 | BG10: =CHOOSE(graph,resa!AM7,resa!AM19,resa!AM31) -> 0.165316 | BH10: =CHOOSE(graph,resb!AM7,resb!AM19,resb!AM31) -> 0.165316 | BI10: =CHOOSE(graph,resa!W7,resa!W19,resa!W31) -> 737.292446 | BJ10: =CHOOSE(graph,resb!W7,resb!W19,resb!W31) -> 737.292445 | BK10: =CHOOSE(graph,resa!S7,resa!S19,resa!S31) -> 1 | BL10: =CHOOSE(graph,resb!S7,resb!S19,resb!S31) -> 1 | BM10: =CHOOSE(graph,resa!CO7,resa!CO19,resa!CO31) -> 193.056212 | BN10: =CHOOSE(graph,resb!CO7,resb!CO19,resb!CO31) -> 193.05626 | BO10: =CHOOSE(graph,resa!CP7,resa!CP19,resa!CP31) -> 513.426722 | BP10: =CHOOSE(graph,resb!CP7,resb!CP19,resb!CP31) -> 513.426819 | BQ10: =CHOOSE(graph,resa!AX7,resa!AX19,resa!AX31) -> 91.094298 | BR10: =CHOOSE(graph,resb!AX7,resb!AX19,resb!AX31) -> 91.094298 | BS10: =CHOOSE(graph,resa!CV7,resa!CV19,resa!CV31) -> 124.415583 | BT10: =CHOOSE(graph,resb!CV7,resb!CV19,resb!CV31) -> 124.415587 | BU10: =CHOOSE(graph,resa!CW7,resa!CW19,resa!CW31) -> 1594.053855 | BV10: =CHOOSE(graph,resb!CW7,resb!CW19,resb!CW31) -> 1594.053959 | BW10: =CHOOSE(graph,resa!AX7,resa!AX19,resa!AX31) -> 91.094298 | BX10: =CHOOSE(graph,resb!AX7,resb!AX19,resb!AX31) -> 91.094298 | BY10: =CHOOSE(graph,resa!AU7,resa!AU19,resa!AU31) -> 0.088594 | BZ10: =CHOOSE(graph,resb!AU7,resb!AU19,resb!AU31) -> 0.088594 | CA10: =CHOOSE(graph,resa!AY7,resa!AY19,resa!AY31) -> 7.323161 | CB10: =CHOOSE(graph,resb!AY7,resb!AY19,resb!AY31) -> 7.323161 | CC10: =CHOOSE(graph,resa!AX7,resa!AX19,resa!AX31) -> 91.094298 | CD10: =CHOOSE(graph,resb!AX7,resb!AX19,resb!AX31) -> 91.094298 | CE10: =CHOOSE(graph,resa!CB7,resa!CB19,resa!CB31) -> 48.821072 | CF10: =CHOOSE(graph,resb!CB7,resb!CB19,resb!CB31) -> 48.821072 | CG10: =CHOOSE(graph,resa!BX7,resa!BX19,resa!BX31) -> 4.485236 | CH10: =CHOOSE(graph,resb!BX7,resb!BX19,resb!BX31) -> 4.485236 | CI10: =AI10/(AO10*30.4)*100 -> 17.58927642 | CJ10: =AJ10/(AP10*30.4)*100 -> 17.58927642 | CK10: =CHOOSE(graph,resa!CS7,resa!CS19,resa!CS31) -> 13.432834 | CL10: =CHOOSE(graph,resb!CS7,resb!CS19,resb!CS31) -> 13.432834 | CM10: =CHOOSE(graph,resa!CT7,resa!CT19,resa!CT31) -> 134.174024 | CN10: =CHOOSE(graph,resb!CT7,resb!CT19,resb!CT31) -> 134.174024 | CO10: =CHOOSE(graph,resa!DD7,resa!DD19,resa!DD31) -> 72.359089 | CP10: =CHOOSE(graph,resb!DD7,resb!DD19,resb!DD31) -> 72.359089 | CQ10: =CHOOSE(graph,resa!DG7,resa!DG19,resa!DG31) -> 82.375184 | CR10: =CHOOSE(graph,resb!DG7,resb!DG19,resb!DG31) -> 82.375184 | CS10: =CHOOSE(graph,resa!DJ7,resa!DJ19,resa!DJ31) -> 208.436294 | CT10: =CHOOSE(graph,resb!DJ7,resb!DJ19,resb!DJ31) -> 208.436295 | CU10: =CHOOSE(graph,resa!BR7,resa!BR19,resa!BR31) -> 221.571012 | CV10: =CHOOSE(graph,resb!BR7,resb!BR19,resb!BR31) -> 221.571012 | CW10: =CHOOSE(graph,resa!BL7,resa!BL19,resa!BL31) -> 72.47038 | CX10: =CHOOSE(graph,resb!BL7,resb!BL19,resb!BL31) -> 72.47038
AA11: 4 | AB11: =CHOOSE(graph,resa!B8,resa!B20,resa!B32) -> 4 | AC11: =CHOOSE(graph,resa!I8,resa!I20,resa!I32) -> 0.028092 | AD11: =CHOOSE(graph,resb!I8,resb!I20,resb!I32) -> 0.028092 | AE11: =CHOOSE(graph,resa!D8,resa!D20,resa!D32) -> 48.409435 | AF11: =CHOOSE(graph,resb!D8,resb!D20,resb!D32) -> 48.409436 | AG11: =CHOOSE(graph,resa!BO8,resa!BO20,resa!BO32) -> 475.749504 | AH11: =CHOOSE(graph,resb!BO8,resb!BO20,resb!BO32) -> 475.749504 | AI11: =CHOOSE(graph,resa!BP8,resa!BP20,resa!BP32) -> 427.340068 | AJ11: =CHOOSE(graph,resb!BP8,resb!BP20,resb!BP32) -> 427.340068 | AK11: =CHOOSE(graph,resa!BB8,resa!BB20,resa!BB32) -> 0.010754 | AL11: =CHOOSE(graph,resb!BB8,resb!BB20,resb!BB32) -> 0.010754 | AM11: =CHOOSE(graph,resa!BC8,resa!BC20,resa!BC32) -> 0.017337 | AN11: =CHOOSE(graph,resb!BC8,resb!BC20,resb!BC32) -> 0.017337 | AO11: =CHOOSE(graph,resa!F8,resa!F20,resa!F32) -> 79.919371 | AP11: =CHOOSE(graph,resb!F8,resb!F20,resb!F32) -> 79.919371 | AQ11: =CHOOSE(graph,resa!BN8,resa!BN20,resa!BN32) -> 223.234309 | AR11: =CHOOSE(graph,resb!BN8,resb!BN20,resb!BN32) -> 223.234309 | AS11: =CHOOSE(graph,resa!AN8,resa!AN20,resa!AN32) -> 0.335045 | AT11: =CHOOSE(graph,resb!AN8,resb!AN20,resb!AN32) -> 0.335045 | AU11: =CHOOSE(graph,resa!AO8,resa!AO20,resa!AO32) -> 0.249775 | AV11: =CHOOSE(graph,resb!AO8,resb!AO20,resb!AO32) -> 0.249775 | AW11: =CHOOSE(graph,resa!P8,resa!P20,resa!P32) -> 0.412218 | AX11: =CHOOSE(graph,resb!P8,resb!P20,resb!P32) -> 0.412218 | AY11: =CHOOSE(graph,resa!R8,resa!R20,resa!R32) -> 0.877326 | AZ11: =CHOOSE(graph,resb!R8,resb!R20,resb!R32) -> 0.877326 | BA11: =CHOOSE(graph,resa!AK8,resa!AK20,resa!AK32) -> 0.184703 | BB11: =CHOOSE(graph,resb!AK8,resb!AK20,resb!AK32) -> 0.184703 | BC11: =CHOOSE(graph,resa!BA8,resa!BA20,resa!BA32) -> 804.162363 | BD11: =CHOOSE(graph,resb!BA8,resb!BA20,resb!BA32) -> 804.16247 | BE11: =CHOOSE(graph,resa!AL8,resa!AL20,resa!AL32) -> 0.202768 | BF11: =CHOOSE(graph,resb!AL8,resb!AL20,resb!AL32) -> 0.202768 | BG11: =CHOOSE(graph,resa!AM8,resa!AM20,resa!AM32) -> 0.165316 | BH11: =CHOOSE(graph,resb!AM8,resb!AM20,resb!AM32) -> 0.165316 | BI11: =CHOOSE(graph,resa!W8,resa!W20,resa!W32) -> 737.292446 | BJ11: =CHOOSE(graph,resb!W8,resb!W20,resb!W32) -> 737.292445 | BK11: =CHOOSE(graph,resa!S8,resa!S20,resa!S32) -> 1 | BL11: =CHOOSE(graph,resb!S8,resb!S20,resb!S32) -> 1 | BM11: =CHOOSE(graph,resa!CO8,resa!CO20,resa!CO32) -> 193.05621 | BN11: =CHOOSE(graph,resb!CO8,resb!CO20,resb!CO32) -> 193.05626 | BO11: =CHOOSE(graph,resa!CP8,resa!CP20,resa!CP32) -> 513.426718 | BP11: =CHOOSE(graph,resb!CP8,resb!CP20,resb!CP32) -> 513.426819 | BQ11: =CHOOSE(graph,resa!AX8,resa!AX20,resa!AX32) -> 91.094298 | BR11: =CHOOSE(graph,resb!AX8,resb!AX20,resb!AX32) -> 91.094298 | BS11: =CHOOSE(graph,resa!CV8,resa!CV20,resa!CV32) -> 124.415583 | BT11: =CHOOSE(graph,resb!CV8,resb!CV20,resb!CV32) -> 124.415587 | BU11: =CHOOSE(graph,resa!CW8,resa!CW20,resa!CW32) -> 1594.053852 | BV11: =CHOOSE(graph,resb!CW8,resb!CW20,resb!CW32) -> 1594.053959 | BW11: =CHOOSE(graph,resa!AX8,resa!AX20,resa!AX32) -> 91.094298 | BX11: =CHOOSE(graph,resb!AX8,resb!AX20,resb!AX32) -> 91.094298 | BY11: =CHOOSE(graph,resa!AU8,resa!AU20,resa!AU32) -> 0.088594 | BZ11: =CHOOSE(graph,resb!AU8,resb!AU20,resb!AU32) -> 0.088594 | CA11: =CHOOSE(graph,resa!AY8,resa!AY20,resa!AY32) -> 7.323161 | CB11: =CHOOSE(graph,resb!AY8,resb!AY20,resb!AY32) -> 7.323161 | CC11: =CHOOSE(graph,resa!AX8,resa!AX20,resa!AX32) -> 91.094298 | CD11: =CHOOSE(graph,resb!AX8,resb!AX20,resb!AX32) -> 91.094298 | CE11: =CHOOSE(graph,resa!CB8,resa!CB20,resa!CB32) -> 48.821072 | CF11: =CHOOSE(graph,resb!CB8,resb!CB20,resb!CB32) -> 48.821072 | CG11: =CHOOSE(graph,resa!BX8,resa!BX20,resa!BX32) -> 4.485236 | CH11: =CHOOSE(graph,resb!BX8,resb!BX20,resb!BX32) -> 4.485236 | CI11: 17.58927642 | CJ11: 17.58927642 | CK11: =CHOOSE(graph,resa!CS8,resa!CS20,resa!CS32) -> 13.432834 | CL11: =CHOOSE(graph,resb!CS8,resb!CS20,resb!CS32) -> 13.432834 | CM11: =CHOOSE(graph,resa!CT8,resa!CT20,resa!CT32) -> 134.174024 | CN11: =CHOOSE(graph,resb!CT8,resb!CT20,resb!CT32) -> 134.174024 | CO11: =CHOOSE(graph,resa!DD8,resa!DD20,resa!DD32) -> 72.359089 | CP11: =CHOOSE(graph,resb!DD8,resb!DD20,resb!DD32) -> 72.359089 | CQ11: =CHOOSE(graph,resa!DG8,resa!DG20,resa!DG32) -> 82.375184 | CR11: =CHOOSE(graph,resb!DG8,resb!DG20,resb!DG32) -> 82.375184 | CS11: =CHOOSE(graph,resa!DJ8,resa!DJ20,resa!DJ32) -> 208.436294 | CT11: =CHOOSE(graph,resb!DJ8,resb!DJ20,resb!DJ32) -> 208.436295 | CU11: =CHOOSE(graph,resa!BR8,resa!BR20,resa!BR32) -> 221.571012 | CV11: =CHOOSE(graph,resb!BR8,resb!BR20,resb!BR32) -> 221.571012 | CW11: =CHOOSE(graph,resa!BL8,resa!BL20,resa!BL32) -> 72.47038 | CX11: =CHOOSE(graph,resb!BL8,resb!BL20,resb!BL32) -> 72.47038
AA12: 5 | AB12: =CHOOSE(graph,resa!B9,resa!B21,resa!B33) -> 5 | AC12: =CHOOSE(graph,resa!I9,resa!I21,resa!I33) -> 0.028092 | AD12: =CHOOSE(graph,resb!I9,resb!I21,resb!I33) -> 0.028092 | AE12: =CHOOSE(graph,resa!D9,resa!D21,resa!D33) -> 48.409435 | AF12: =CHOOSE(graph,resb!D9,resb!D21,resb!D33) -> 48.409436 | AG12: =CHOOSE(graph,resa!BO9,resa!BO21,resa!BO33) -> 475.749504 | AH12: =CHOOSE(graph,resb!BO9,resb!BO21,resb!BO33) -> 475.749504 | AI12: =CHOOSE(graph,resa!BP9,resa!BP21,resa!BP33) -> 427.340068 | AJ12: =CHOOSE(graph,resb!BP9,resb!BP21,resb!BP33) -> 427.340068 | AK12: =CHOOSE(graph,resa!BB9,resa!BB21,resa!BB33) -> 0.010754 | AL12: =CHOOSE(graph,resb!BB9,resb!BB21,resb!BB33) -> 0.010754 | AM12: =CHOOSE(graph,resa!BC9,resa!BC21,resa!BC33) -> 0.017337 | AN12: =CHOOSE(graph,resb!BC9,resb!BC21,resb!BC33) -> 0.017337 | AO12: =CHOOSE(graph,resa!F9,resa!F21,resa!F33) -> 79.919371 | AP12: =CHOOSE(graph,resb!F9,resb!F21,resb!F33) -> 79.919371 | AQ12: =CHOOSE(graph,resa!BN9,resa!BN21,resa!BN33) -> 223.234309 | AR12: =CHOOSE(graph,resb!BN9,resb!BN21,resb!BN33) -> 223.234309 | AS12: =CHOOSE(graph,resa!AN9,resa!AN21,resa!AN33) -> 0.335045 | AT12: =CHOOSE(graph,resb!AN9,resb!AN21,resb!AN33) -> 0.335045 | AU12: =CHOOSE(graph,resa!AO9,resa!AO21,resa!AO33) -> 0.249775 | AV12: =CHOOSE(graph,resb!AO9,resb!AO21,resb!AO33) -> 0.249775 | AW12: =CHOOSE(graph,resa!P9,resa!P21,resa!P33) -> 0.412218 | AX12: =CHOOSE(graph,resb!P9,resb!P21,resb!P33) -> 0.412218 | AY12: =CHOOSE(graph,resa!R9,resa!R21,resa!R33) -> 0.877326 | AZ12: =CHOOSE(graph,resb!R9,resb!R21,resb!R33) -> 0.877326 | BA12: =CHOOSE(graph,resa!AK9,resa!AK21,resa!AK33) -> 0.184703 | BB12: =CHOOSE(graph,resb!AK9,resb!AK21,resb!AK33) -> 0.184703 | BC12: =CHOOSE(graph,resa!BA9,resa!BA21,resa!BA33) -> 804.16236 | BD12: =CHOOSE(graph,resb!BA9,resb!BA21,resb!BA33) -> 804.16247 | BE12: =CHOOSE(graph,resa!AL9,resa!AL21,resa!AL33) -> 0.202768 | BF12: =CHOOSE(graph,resb!AL9,resb!AL21,resb!AL33) -> 0.202768 | BG12: =CHOOSE(graph,resa!AM9,resa!AM21,resa!AM33) -> 0.165316 | BH12: =CHOOSE(graph,resb!AM9,resb!AM21,resb!AM33) -> 0.165316 | BI12: =CHOOSE(graph,resa!W9,resa!W21,resa!W33) -> 737.292446 | BJ12: =CHOOSE(graph,resb!W9,resb!W21,resb!W33) -> 737.292445 | BK12: =CHOOSE(graph,resa!S9,resa!S21,resa!S33) -> 1 | BL12: =CHOOSE(graph,resb!S9,resb!S21,resb!S33) -> 1 | BM12: =CHOOSE(graph,resa!CO9,resa!CO21,resa!CO33) -> 193.056209 | BN12: =CHOOSE(graph,resb!CO9,resb!CO21,resb!CO33) -> 193.05626 | BO12: =CHOOSE(graph,resa!CP9,resa!CP21,resa!CP33) -> 513.426714 | BP12: =CHOOSE(graph,resb!CP9,resb!CP21,resb!CP33) -> 513.426819 | BQ12: =CHOOSE(graph,resa!AX9,resa!AX21,resa!AX33) -> 91.094298 | BR12: =CHOOSE(graph,resb!AX9,resb!AX21,resb!AX33) -> 91.094298 | BS12: =CHOOSE(graph,resa!CV9,resa!CV21,resa!CV33) -> 124.415584 | BT12: =CHOOSE(graph,resb!CV9,resb!CV21,resb!CV33) -> 124.415587 | BU12: =CHOOSE(graph,resa!CW9,resa!CW21,resa!CW33) -> 1594.053849 | BV12: =CHOOSE(graph,resb!CW9,resb!CW21,resb!CW33) -> 1594.053959 | BW12: =CHOOSE(graph,resa!AX9,resa!AX21,resa!AX33) -> 91.094298 | BX12: =CHOOSE(graph,resb!AX9,resb!AX21,resb!AX33) -> 91.094298 | BY12: =CHOOSE(graph,resa!AU9,resa!AU21,resa!AU33) -> 0.088594 | BZ12: =CHOOSE(graph,resb!AU9,resb!AU21,resb!AU33) -> 0.088594 | CA12: =CHOOSE(graph,resa!AY9,resa!AY21,resa!AY33) -> 7.323161 | CB12: =CHOOSE(graph,resb!AY9,resb!AY21,resb!AY33) -> 7.323161 | CC12: =CHOOSE(graph,resa!AX9,resa!AX21,resa!AX33) -> 91.094298 | CD12: =CHOOSE(graph,resb!AX9,resb!AX21,resb!AX33) -> 91.094298 | CE12: =CHOOSE(graph,resa!CB9,resa!CB21,resa!CB33) -> 48.821072 | CF12: =CHOOSE(graph,resb!CB9,resb!CB21,resb!CB33) -> 48.821072 | CG12: =CHOOSE(graph,resa!BX9,resa!BX21,resa!BX33) -> 4.485236 | CH12: =CHOOSE(graph,resb!BX9,resb!BX21,resb!BX33) -> 4.485236 | CI12: 17.58927642 | CJ12: 17.58927642 | CK12: =CHOOSE(graph,resa!CS9,resa!CS21,resa!CS33) -> 13.432834 | CL12: =CHOOSE(graph,resb!CS9,resb!CS21,resb!CS33) -> 13.432834 | CM12: =CHOOSE(graph,resa!CT9,resa!CT21,resa!CT33) -> 134.174024 | CN12: =CHOOSE(graph,resb!CT9,resb!CT21,resb!CT33) -> 134.174024 | CO12: =CHOOSE(graph,resa!DD9,resa!DD21,resa!DD33) -> 72.359089 | CP12: =CHOOSE(graph,resb!DD9,resb!DD21,resb!DD33) -> 72.359089 | CQ12: =CHOOSE(graph,resa!DG9,resa!DG21,resa!DG33) -> 82.375184 | CR12: =CHOOSE(graph,resb!DG9,resb!DG21,resb!DG33) -> 82.375184 | CS12: =CHOOSE(graph,resa!DJ9,resa!DJ21,resa!DJ33) -> 208.436294 | CT12: =CHOOSE(graph,resb!DJ9,resb!DJ21,resb!DJ33) -> 208.436295 | CU12: =CHOOSE(graph,resa!BR9,resa!BR21,resa!BR33) -> 221.571012 | CV12: =CHOOSE(graph,resb!BR9,resb!BR21,resb!BR33) -> 221.571012 | CW12: =CHOOSE(graph,resa!BL9,resa!BL21,resa!BL33) -> 72.47038 | CX12: =CHOOSE(graph,resb!BL9,resb!BL21,resb!BL33) -> 72.47038
AA13: 6 | AB13: =CHOOSE(graph,resa!B10,resa!B22,resa!B34) -> 6 | AC13: =CHOOSE(graph,resa!I10,resa!I22,resa!I34) -> 0.028092 | AD13: =CHOOSE(graph,resb!I10,resb!I22,resb!I34) -> 0.028092 | AE13: =CHOOSE(graph,resa!D10,resa!D22,resa!D34) -> 48.409435 | AF13: =CHOOSE(graph,resb!D10,resb!D22,resb!D34) -> 48.409436 | AG13: =CHOOSE(graph,resa!BO10,resa!BO22,resa!BO34) -> 475.749504 | AH13: =CHOOSE(graph,resb!BO10,resb!BO22,resb!BO34) -> 475.749504 | AI13: =CHOOSE(graph,resa!BP10,resa!BP22,resa!BP34) -> 427.340068 | AJ13: =CHOOSE(graph,resb!BP10,resb!BP22,resb!BP34) -> 427.340068 | AK13: =CHOOSE(graph,resa!BB10,resa!BB22,resa!BB34) -> 0.010754 | AL13: =CHOOSE(graph,resb!BB10,resb!BB22,resb!BB34) -> 0.010754 | AM13: =CHOOSE(graph,resa!BC10,resa!BC22,resa!BC34) -> 0.017337 | AN13: =CHOOSE(graph,resb!BC10,resb!BC22,resb!BC34) -> 0.017337 | AO13: =CHOOSE(graph,resa!F10,resa!F22,resa!F34) -> 79.919371 | AP13: =CHOOSE(graph,resb!F10,resb!F22,resb!F34) -> 79.919371 | AQ13: =CHOOSE(graph,resa!BN10,resa!BN22,resa!BN34) -> 223.234309 | AR13: =CHOOSE(graph,resb!BN10,resb!BN22,resb!BN34) -> 223.234309 | AS13: =CHOOSE(graph,resa!AN10,resa!AN22,resa!AN34) -> 0.335045 | AT13: =CHOOSE(graph,resb!AN10,resb!AN22,resb!AN34) -> 0.335045 | AU13: =CHOOSE(graph,resa!AO10,resa!AO22,resa!AO34) -> 0.249775 | AV13: =CHOOSE(graph,resb!AO10,resb!AO22,resb!AO34) -> 0.249775 | AW13: =CHOOSE(graph,resa!P10,resa!P22,resa!P34) -> 0.412218 | AX13: =CHOOSE(graph,resb!P10,resb!P22,resb!P34) -> 0.412218 | AY13: =CHOOSE(graph,resa!R10,resa!R22,resa!R34) -> 0.877326 | AZ13: =CHOOSE(graph,resb!R10,resb!R22,resb!R34) -> 0.877326 | BA13: =CHOOSE(graph,resa!AK10,resa!AK22,resa!AK34) -> 0.184703 | BB13: =CHOOSE(graph,resb!AK10,resb!AK22,resb!AK34) -> 0.184703 | BC13: =CHOOSE(graph,resa!BA10,resa!BA22,resa!BA34) -> 804.162357 | BD13: =CHOOSE(graph,resb!BA10,resb!BA22,resb!BA34) -> 804.16247 | BE13: =CHOOSE(graph,resa!AL10,resa!AL22,resa!AL34) -> 0.202768 | BF13: =CHOOSE(graph,resb!AL10,resb!AL22,resb!AL34) -> 0.202768 | BG13: =CHOOSE(graph,resa!AM10,resa!AM22,resa!AM34) -> 0.165316 | BH13: =CHOOSE(graph,resb!AM10,resb!AM22,resb!AM34) -> 0.165316 | BI13: =CHOOSE(graph,resa!W10,resa!W22,resa!W34) -> 737.292446 | BJ13: =CHOOSE(graph,resb!W10,resb!W22,resb!W34) -> 737.292445 | BK13: =CHOOSE(graph,resa!S10,resa!S22,resa!S34) -> 1 | BL13: =CHOOSE(graph,resb!S10,resb!S22,resb!S34) -> 1 | BM13: =CHOOSE(graph,resa!CO10,resa!CO22,resa!CO34) -> 193.056207 | BN13: =CHOOSE(graph,resb!CO10,resb!CO22,resb!CO34) -> 193.05626 | BO13: =CHOOSE(graph,resa!CP10,resa!CP22,resa!CP34) -> 513.42671 | BP13: =CHOOSE(graph,resb!CP10,resb!CP22,resb!CP34) -> 513.426819 | BQ13: =CHOOSE(graph,resa!AX10,resa!AX22,resa!AX34) -> 91.094298 | BR13: =CHOOSE(graph,resb!AX10,resb!AX22,resb!AX34) -> 91.094298 | BS13: =CHOOSE(graph,resa!CV10,resa!CV22,resa!CV34) -> 124.415585 | BT13: =CHOOSE(graph,resb!CV10,resb!CV22,resb!CV34) -> 124.415587 | BU13: =CHOOSE(graph,resa!CW10,resa!CW22,resa!CW34) -> 1594.053846 | BV13: =CHOOSE(graph,resb!CW10,resb!CW22,resb!CW34) -> 1594.053959 | BW13: =CHOOSE(graph,resa!AX10,resa!AX22,resa!AX34) -> 91.094298 | BX13: =CHOOSE(graph,resb!AX10,resb!AX22,resb!AX34) -> 91.094298 | BY13: =CHOOSE(graph,resa!AU10,resa!AU22,resa!AU34) -> 0.088594 | BZ13: =CHOOSE(graph,resb!AU10,resb!AU22,resb!AU34) -> 0.088594 | CA13: =CHOOSE(graph,resa!AY10,resa!AY22,resa!AY34) -> 7.323161 | CB13: =CHOOSE(graph,resb!AY10,resb!AY22,resb!AY34) -> 7.323161 | CC13: =CHOOSE(graph,resa!AX10,resa!AX22,resa!AX34) -> 91.094298 | CD13: =CHOOSE(graph,resb!AX10,resb!AX22,resb!AX34) -> 91.094298 | CE13: =CHOOSE(graph,resa!CB10,resa!CB22,resa!CB34) -> 48.821072 | CF13: =CHOOSE(graph,resb!CB10,resb!CB22,resb!CB34) -> 48.821072 | CG13: =CHOOSE(graph,resa!BX10,resa!BX22,resa!BX34) -> 4.485236 | CH13: =CHOOSE(graph,resb!BX10,resb!BX22,resb!BX34) -> 4.485236 | CI13: 17.58927642 | CJ13: 17.58927642 | CK13: =CHOOSE(graph,resa!CS10,resa!CS22,resa!CS34) -> 13.432834 | CL13: =CHOOSE(graph,resb!CS10,resb!CS22,resb!CS34) -> 13.432834 | CM13: =CHOOSE(graph,resa!CT10,resa!CT22,resa!CT34) -> 134.174024 | CN13: =CHOOSE(graph,resb!CT10,resb!CT22,resb!CT34) -> 134.174024 | CO13: =CHOOSE(graph,resa!DD10,resa!DD22,resa!DD34) -> 72.359089 | CP13: =CHOOSE(graph,resb!DD10,resb!DD22,resb!DD34) -> 72.359089 | CQ13: =CHOOSE(graph,resa!DG10,resa!DG22,resa!DG34) -> 82.375184 | CR13: =CHOOSE(graph,resb!DG10,resb!DG22,resb!DG34) -> 82.375184 | CS13: =CHOOSE(graph,resa!DJ10,resa!DJ22,resa!DJ34) -> 208.436294 | CT13: =CHOOSE(graph,resb!DJ10,resb!DJ22,resb!DJ34) -> 208.436295 | CU13: =CHOOSE(graph,resa!BR10,resa!BR22,resa!BR34) -> 221.571012 | CV13: =CHOOSE(graph,resb!BR10,resb!BR22,resb!BR34) -> 221.571012 | CW13: =CHOOSE(graph,resa!BL10,resa!BL22,resa!BL34) -> 72.47038 | CX13: =CHOOSE(graph,resb!BL10,resb!BL22,resb!BL34) -> 72.47038
AA14: 7 | AB14: =CHOOSE(graph,resa!B11,resa!B23,resa!B35) -> 7 | AC14: =CHOOSE(graph,resa!I11,resa!I23,resa!I35) -> 0.028092 | AD14: =CHOOSE(graph,resb!I11,resb!I23,resb!I35) -> 0.028092 | AE14: =CHOOSE(graph,resa!D11,resa!D23,resa!D35) -> 48.409435 | AF14: =CHOOSE(graph,resb!D11,resb!D23,resb!D35) -> 48.409436 | AG14: =CHOOSE(graph,resa!BO11,resa!BO23,resa!BO35) -> 475.749504 | AH14: =CHOOSE(graph,resb!BO11,resb!BO23,resb!BO35) -> 475.749504 | AI14: =CHOOSE(graph,resa!BP11,resa!BP23,resa!BP35) -> 427.340068 | AJ14: =CHOOSE(graph,resb!BP11,resb!BP23,resb!BP35) -> 427.340068 | AK14: =CHOOSE(graph,resa!BB11,resa!BB23,resa!BB35) -> 0.010754 | AL14: =CHOOSE(graph,resb!BB11,resb!BB23,resb!BB35) -> 0.010754 | AM14: =CHOOSE(graph,resa!BC11,resa!BC23,resa!BC35) -> 0.017337 | AN14: =CHOOSE(graph,resb!BC11,resb!BC23,resb!BC35) -> 0.017337 | AO14: =CHOOSE(graph,resa!F11,resa!F23,resa!F35) -> 79.919371 | AP14: =CHOOSE(graph,resb!F11,resb!F23,resb!F35) -> 79.919371 | AQ14: =CHOOSE(graph,resa!BN11,resa!BN23,resa!BN35) -> 223.234309 | AR14: =CHOOSE(graph,resb!BN11,resb!BN23,resb!BN35) -> 223.234309 | AS14: =CHOOSE(graph,resa!AN11,resa!AN23,resa!AN35) -> 0.335045 | AT14: =CHOOSE(graph,resb!AN11,resb!AN23,resb!AN35) -> 0.335045 | AU14: =CHOOSE(graph,resa!AO11,resa!AO23,resa!AO35) -> 0.249775 | AV14: =CHOOSE(graph,resb!AO11,resb!AO23,resb!AO35) -> 0.249775 | AW14: =CHOOSE(graph,resa!P11,resa!P23,resa!P35) -> 0.412218 | AX14: =CHOOSE(graph,resb!P11,resb!P23,resb!P35) -> 0.412218 | AY14: =CHOOSE(graph,resa!R11,resa!R23,resa!R35) -> 0.877326 | AZ14: =CHOOSE(graph,resb!R11,resb!R23,resb!R35) -> 0.877326 | BA14: =CHOOSE(graph,resa!AK11,resa!AK23,resa!AK35) -> 0.184703 | BB14: =CHOOSE(graph,resb!AK11,resb!AK23,resb!AK35) -> 0.184703 | BC14: =CHOOSE(graph,resa!BA11,resa!BA23,resa!BA35) -> 804.162355 | BD14: =CHOOSE(graph,resb!BA11,resb!BA23,resb!BA35) -> 804.16247 | BE14: =CHOOSE(graph,resa!AL11,resa!AL23,resa!AL35) -> 0.202768 | BF14: =CHOOSE(graph,resb!AL11,resb!AL23,resb!AL35) -> 0.202768 | BG14: =CHOOSE(graph,resa!AM11,resa!AM23,resa!AM35) -> 0.165316 | BH14: =CHOOSE(graph,resb!AM11,resb!AM23,resb!AM35) -> 0.165316 | BI14: =CHOOSE(graph,resa!W11,resa!W23,resa!W35) -> 737.292446 | BJ14: =CHOOSE(graph,resb!W11,resb!W23,resb!W35) -> 737.292446 | BK14: =CHOOSE(graph,resa!S11,resa!S23,resa!S35) -> 1 | BL14: =CHOOSE(graph,resb!S11,resb!S23,resb!S35) -> 1 | BM14: =CHOOSE(graph,resa!CO11,resa!CO23,resa!CO35) -> 193.056206 | BN14: =CHOOSE(graph,resb!CO11,resb!CO23,resb!CO35) -> 193.05626 | BO14: =CHOOSE(graph,resa!CP11,resa!CP23,resa!CP35) -> 513.426708 | BP14: =CHOOSE(graph,resb!CP11,resb!CP23,resb!CP35) -> 513.426819 | BQ14: =CHOOSE(graph,resa!AX11,resa!AX23,resa!AX35) -> 91.094298 | BR14: =CHOOSE(graph,resb!AX11,resb!AX23,resb!AX35) -> 91.094298 | BS14: =CHOOSE(graph,resa!CV11,resa!CV23,resa!CV35) -> 124.415585 | BT14: =CHOOSE(graph,resb!CV11,resb!CV23,resb!CV35) -> 124.415587 | BU14: =CHOOSE(graph,resa!CW11,resa!CW23,resa!CW35) -> 1594.053844 | BV14: =CHOOSE(graph,resb!CW11,resb!CW23,resb!CW35) -> 1594.053959 | BW14: =CHOOSE(graph,resa!AX11,resa!AX23,resa!AX35) -> 91.094298 | BX14: =CHOOSE(graph,resb!AX11,resb!AX23,resb!AX35) -> 91.094298 | BY14: =CHOOSE(graph,resa!AU11,resa!AU23,resa!AU35) -> 0.088594 | BZ14: =CHOOSE(graph,resb!AU11,resb!AU23,resb!AU35) -> 0.088594 | CA14: =CHOOSE(graph,resa!AY11,resa!AY23,resa!AY35) -> 7.323161 | CB14: =CHOOSE(graph,resb!AY11,resb!AY23,resb!AY35) -> 7.323161 | CC14: =CHOOSE(graph,resa!AX11,resa!AX23,resa!AX35) -> 91.094298 | CD14: =CHOOSE(graph,resb!AX11,resb!AX23,resb!AX35) -> 91.094298 | CE14: =CHOOSE(graph,resa!CB11,resa!CB23,resa!CB35) -> 48.821072 | CF14: =CHOOSE(graph,resb!CB11,resb!CB23,resb!CB35) -> 48.821072 | CG14: =CHOOSE(graph,resa!BX11,resa!BX23,resa!BX35) -> 4.485236 | CH14: =CHOOSE(graph,resb!BX11,resb!BX23,resb!BX35) -> 4.485236 | CI14: 17.58927642 | CJ14: 17.58927642 | CK14: =CHOOSE(graph,resa!CS11,resa!CS23,resa!CS35) -> 13.432834 | CL14: =CHOOSE(graph,resb!CS11,resb!CS23,resb!CS35) -> 13.432834 | CM14: =CHOOSE(graph,resa!CT11,resa!CT23,resa!CT35) -> 134.174024 | CN14: =CHOOSE(graph,resb!CT11,resb!CT23,resb!CT35) -> 134.174024 | CO14: =CHOOSE(graph,resa!DD11,resa!DD23,resa!DD35) -> 72.359089 | CP14: =CHOOSE(graph,resb!DD11,resb!DD23,resb!DD35) -> 72.359089 | CQ14: =CHOOSE(graph,resa!DG11,resa!DG23,resa!DG35) -> 82.375184 | CR14: =CHOOSE(graph,resb!DG11,resb!DG23,resb!DG35) -> 82.375184 | CS14: =CHOOSE(graph,resa!DJ11,resa!DJ23,resa!DJ35) -> 208.436295 | CT14: =CHOOSE(graph,resb!DJ11,resb!DJ23,resb!DJ35) -> 208.436295 | CU14: =CHOOSE(graph,resa!BR11,resa!BR23,resa!BR35) -> 221.571012 | CV14: =CHOOSE(graph,resb!BR11,resb!BR23,resb!BR35) -> 221.571012 | CW14: =CHOOSE(graph,resa!BL11,resa!BL23,resa!BL35) -> 72.47038 | CX14: =CHOOSE(graph,resb!BL11,resb!BL23,resb!BL35) -> 72.47038
AA15: 8 | AB15: =CHOOSE(graph,resa!B12,resa!B24,resa!B36) -> 8 | AC15: =CHOOSE(graph,resa!I12,resa!I24,resa!I36) -> 0.028092 | AD15: =CHOOSE(graph,resb!I12,resb!I24,resb!I36) -> 0.028092 | AE15: =CHOOSE(graph,resa!D12,resa!D24,resa!D36) -> 48.409435 | AF15: =CHOOSE(graph,resb!D12,resb!D24,resb!D36) -> 48.409436 | AG15: =CHOOSE(graph,resa!BO12,resa!BO24,resa!BO36) -> 475.749504 | AH15: =CHOOSE(graph,resb!BO12,resb!BO24,resb!BO36) -> 475.749504 | AI15: =CHOOSE(graph,resa!BP12,resa!BP24,resa!BP36) -> 427.340068 | AJ15: =CHOOSE(graph,resb!BP12,resb!BP24,resb!BP36) -> 427.340068 | AK15: =CHOOSE(graph,resa!BB12,resa!BB24,resa!BB36) -> 0.010754 | AL15: =CHOOSE(graph,resb!BB12,resb!BB24,resb!BB36) -> 0.010754 | AM15: =CHOOSE(graph,resa!BC12,resa!BC24,resa!BC36) -> 0.017337 | AN15: =CHOOSE(graph,resb!BC12,resb!BC24,resb!BC36) -> 0.017337 | AO15: =CHOOSE(graph,resa!F12,resa!F24,resa!F36) -> 79.919371 | AP15: =CHOOSE(graph,resb!F12,resb!F24,resb!F36) -> 79.919371 | AQ15: =CHOOSE(graph,resa!BN12,resa!BN24,resa!BN36) -> 223.234309 | AR15: =CHOOSE(graph,resb!BN12,resb!BN24,resb!BN36) -> 223.234309 | AS15: =CHOOSE(graph,resa!AN12,resa!AN24,resa!AN36) -> 0.335045 | AT15: =CHOOSE(graph,resb!AN12,resb!AN24,resb!AN36) -> 0.335045 | AU15: =CHOOSE(graph,resa!AO12,resa!AO24,resa!AO36) -> 0.249775 | AV15: =CHOOSE(graph,resb!AO12,resb!AO24,resb!AO36) -> 0.249775 | AW15: =CHOOSE(graph,resa!P12,resa!P24,resa!P36) -> 0.412218 | AX15: =CHOOSE(graph,resb!P12,resb!P24,resb!P36) -> 0.412218 | AY15: =CHOOSE(graph,resa!R12,resa!R24,resa!R36) -> 0.877326 | AZ15: =CHOOSE(graph,resb!R12,resb!R24,resb!R36) -> 0.877326 | BA15: =CHOOSE(graph,resa!AK12,resa!AK24,resa!AK36) -> 0.184703 | BB15: =CHOOSE(graph,resb!AK12,resb!AK24,resb!AK36) -> 0.184703 | BC15: =CHOOSE(graph,resa!BA12,resa!BA24,resa!BA36) -> 804.162354 | BD15: =CHOOSE(graph,resb!BA12,resb!BA24,resb!BA36) -> 804.16247 | BE15: =CHOOSE(graph,resa!AL12,resa!AL24,resa!AL36) -> 0.202768 | BF15: =CHOOSE(graph,resb!AL12,resb!AL24,resb!AL36) -> 0.202768 | BG15: =CHOOSE(graph,resa!AM12,resa!AM24,resa!AM36) -> 0.165316 | BH15: =CHOOSE(graph,resb!AM12,resb!AM24,resb!AM36) -> 0.165316 | BI15: =CHOOSE(graph,resa!W12,resa!W24,resa!W36) -> 737.292446 | BJ15: =CHOOSE(graph,resb!W12,resb!W24,resb!W36) -> 737.292446 | BK15: =CHOOSE(graph,resa!S12,resa!S24,resa!S36) -> 1 | BL15: =CHOOSE(graph,resb!S12,resb!S24,resb!S36) -> 1 | BM15: =CHOOSE(graph,resa!CO12,resa!CO24,resa!CO36) -> 193.056205 | BN15: =CHOOSE(graph,resb!CO12,resb!CO24,resb!CO36) -> 193.05626 | BO15: =CHOOSE(graph,resa!CP12,resa!CP24,resa!CP36) -> 513.426705 | BP15: =CHOOSE(graph,resb!CP12,resb!CP24,resb!CP36) -> 513.426819 | BQ15: =CHOOSE(graph,resa!AX12,resa!AX24,resa!AX36) -> 91.094298 | BR15: =CHOOSE(graph,resb!AX12,resb!AX24,resb!AX36) -> 91.094298 | BS15: =CHOOSE(graph,resa!CV12,resa!CV24,resa!CV36) -> 124.415586 | BT15: =CHOOSE(graph,resb!CV12,resb!CV24,resb!CV36) -> 124.415587 | BU15: =CHOOSE(graph,resa!CW12,resa!CW24,resa!CW36) -> 1594.053843 | BV15: =CHOOSE(graph,resb!CW12,resb!CW24,resb!CW36) -> 1594.053959 | BW15: =CHOOSE(graph,resa!AX12,resa!AX24,resa!AX36) -> 91.094298 | BX15: =CHOOSE(graph,resb!AX12,resb!AX24,resb!AX36) -> 91.094298 | BY15: =CHOOSE(graph,resa!AU12,resa!AU24,resa!AU36) -> 0.088594 | BZ15: =CHOOSE(graph,resb!AU12,resb!AU24,resb!AU36) -> 0.088594 | CA15: =CHOOSE(graph,resa!AY12,resa!AY24,resa!AY36) -> 7.323161 | CB15: =CHOOSE(graph,resb!AY12,resb!AY24,resb!AY36) -> 7.323161 | CC15: =CHOOSE(graph,resa!AX12,resa!AX24,resa!AX36) -> 91.094298 | CD15: =CHOOSE(graph,resb!AX12,resb!AX24,resb!AX36) -> 91.094298 | CE15: =CHOOSE(graph,resa!CB12,resa!CB24,resa!CB36) -> 48.821072 | CF15: =CHOOSE(graph,resb!CB12,resb!CB24,resb!CB36) -> 48.821072 | CG15: =CHOOSE(graph,resa!BX12,resa!BX24,resa!BX36) -> 4.485236 | CH15: =CHOOSE(graph,resb!BX12,resb!BX24,resb!BX36) -> 4.485236 | CI15: 17.58927642 | CJ15: 17.58927642 | CK15: =CHOOSE(graph,resa!CS12,resa!CS24,resa!CS36) -> 13.432834 | CL15: =CHOOSE(graph,resb!CS12,resb!CS24,resb!CS36) -> 13.432834 | CM15: =CHOOSE(graph,resa!CT12,resa!CT24,resa!CT36) -> 134.174024 | CN15: =CHOOSE(graph,resb!CT12,resb!CT24,resb!CT36) -> 134.174024 | CO15: =CHOOSE(graph,resa!DD12,resa!DD24,resa!DD36) -> 72.359089 | CP15: =CHOOSE(graph,resb!DD12,resb!DD24,resb!DD36) -> 72.359089 | CQ15: =CHOOSE(graph,resa!DG12,resa!DG24,resa!DG36) -> 82.375184 | CR15: =CHOOSE(graph,resb!DG12,resb!DG24,resb!DG36) -> 82.375184 | CS15: =CHOOSE(graph,resa!DJ12,resa!DJ24,resa!DJ36) -> 208.436295 | CT15: =CHOOSE(graph,resb!DJ12,resb!DJ24,resb!DJ36) -> 208.436295 | CU15: =CHOOSE(graph,resa!BR12,resa!BR24,resa!BR36) -> 221.571012 | CV15: =CHOOSE(graph,resb!BR12,resb!BR24,resb!BR36) -> 221.571012 | CW15: =CHOOSE(graph,resa!BL12,resa!BL24,resa!BL36) -> 72.47038 | CX15: =CHOOSE(graph,resb!BL12,resb!BL24,resb!BL36) -> 72.47038
AA16: 9 | AB16: =CHOOSE(graph,resa!B13,resa!B25,resa!B37) -> 9 | AC16: =CHOOSE(graph,resa!I13,resa!I25,resa!I37) -> 0.028092 | AD16: =CHOOSE(graph,resb!I13,resb!I25,resb!I37) -> 0.028092 | AE16: =CHOOSE(graph,resa!D13,resa!D25,resa!D37) -> 48.409435 | AF16: =CHOOSE(graph,resb!D13,resb!D25,resb!D37) -> 48.409436 | AG16: =CHOOSE(graph,resa!BO13,resa!BO25,resa!BO37) -> 475.749504 | AH16: =CHOOSE(graph,resb!BO13,resb!BO25,resb!BO37) -> 475.749504 | AI16: =CHOOSE(graph,resa!BP13,resa!BP25,resa!BP37) -> 427.340068 | AJ16: =CHOOSE(graph,resb!BP13,resb!BP25,resb!BP37) -> 427.340068 | AK16: =CHOOSE(graph,resa!BB13,resa!BB25,resa!BB37) -> 0.010754 | AL16: =CHOOSE(graph,resb!BB13,resb!BB25,resb!BB37) -> 0.010754 | AM16: =CHOOSE(graph,resa!BC13,resa!BC25,resa!BC37) -> 0.017337 | AN16: =CHOOSE(graph,resb!BC13,resb!BC25,resb!BC37) -> 0.017337 | AO16: =CHOOSE(graph,resa!F13,resa!F25,resa!F37) -> 79.919371 | AP16: =CHOOSE(graph,resb!F13,resb!F25,resb!F37) -> 79.919371 | AQ16: =CHOOSE(graph,resa!BN13,resa!BN25,resa!BN37) -> 223.234309 | AR16: =CHOOSE(graph,resb!BN13,resb!BN25,resb!BN37) -> 223.234309 | AS16: =CHOOSE(graph,resa!AN13,resa!AN25,resa!AN37) -> 0.335045 | AT16: =CHOOSE(graph,resb!AN13,resb!AN25,resb!AN37) -> 0.335045 | AU16: =CHOOSE(graph,resa!AO13,resa!AO25,resa!AO37) -> 0.249775 | AV16: =CHOOSE(graph,resb!AO13,resb!AO25,resb!AO37) -> 0.249775 | AW16: =CHOOSE(graph,resa!P13,resa!P25,resa!P37) -> 0.412218 | AX16: =CHOOSE(graph,resb!P13,resb!P25,resb!P37) -> 0.412218 | AY16: =CHOOSE(graph,resa!R13,resa!R25,resa!R37) -> 0.877326 | AZ16: =CHOOSE(graph,resb!R13,resb!R25,resb!R37) -> 0.877326 | BA16: =CHOOSE(graph,resa!AK13,resa!AK25,resa!AK37) -> 0.184703 | BB16: =CHOOSE(graph,resb!AK13,resb!AK25,resb!AK37) -> 0.184703 | BC16: =CHOOSE(graph,resa!BA13,resa!BA25,resa!BA37) -> 804.162353 | BD16: =CHOOSE(graph,resb!BA13,resb!BA25,resb!BA37) -> 804.16247 | BE16: =CHOOSE(graph,resa!AL13,resa!AL25,resa!AL37) -> 0.202768 | BF16: =CHOOSE(graph,resb!AL13,resb!AL25,resb!AL37) -> 0.202768 | BG16: =CHOOSE(graph,resa!AM13,resa!AM25,resa!AM37) -> 0.165316 | BH16: =CHOOSE(graph,resb!AM13,resb!AM25,resb!AM37) -> 0.165316 | BI16: =CHOOSE(graph,resa!W13,resa!W25,resa!W37) -> 737.292446 | BJ16: =CHOOSE(graph,resb!W13,resb!W25,resb!W37) -> 737.292446 | BK16: =CHOOSE(graph,resa!S13,resa!S25,resa!S37) -> 1 | BL16: =CHOOSE(graph,resb!S13,resb!S25,resb!S37) -> 1 | BM16: =CHOOSE(graph,resa!CO13,resa!CO25,resa!CO37) -> 193.056204 | BN16: =CHOOSE(graph,resb!CO13,resb!CO25,resb!CO37) -> 193.05626 | BO16: =CHOOSE(graph,resa!CP13,resa!CP25,resa!CP37) -> 513.426704 | BP16: =CHOOSE(graph,resb!CP13,resb!CP25,resb!CP37) -> 513.426819 | BQ16: =CHOOSE(graph,resa!AX13,resa!AX25,resa!AX37) -> 91.094298 | BR16: =CHOOSE(graph,resb!AX13,resb!AX25,resb!AX37) -> 91.094298 | BS16: =CHOOSE(graph,resa!CV13,resa!CV25,resa!CV37) -> 124.415587 | BT16: =CHOOSE(graph,resb!CV13,resb!CV25,resb!CV37) -> 124.415587 | BU16: =CHOOSE(graph,resa!CW13,resa!CW25,resa!CW37) -> 1594.053842 | BV16: =CHOOSE(graph,resb!CW13,resb!CW25,resb!CW37) -> 1594.053959 | BW16: =CHOOSE(graph,resa!AX13,resa!AX25,resa!AX37) -> 91.094298 | BX16: =CHOOSE(graph,resb!AX13,resb!AX25,resb!AX37) -> 91.094298 | BY16: =CHOOSE(graph,resa!AU13,resa!AU25,resa!AU37) -> 0.088594 | BZ16: =CHOOSE(graph,resb!AU13,resb!AU25,resb!AU37) -> 0.088594 | CA16: =CHOOSE(graph,resa!AY13,resa!AY25,resa!AY37) -> 7.323161 | CB16: =CHOOSE(graph,resb!AY13,resb!AY25,resb!AY37) -> 7.323161 | CC16: =CHOOSE(graph,resa!AX13,resa!AX25,resa!AX37) -> 91.094298 | CD16: =CHOOSE(graph,resb!AX13,resb!AX25,resb!AX37) -> 91.094298 | CE16: =CHOOSE(graph,resa!CB13,resa!CB25,resa!CB37) -> 48.821072 | CF16: =CHOOSE(graph,resb!CB13,resb!CB25,resb!CB37) -> 48.821072 | CG16: =CHOOSE(graph,resa!BX13,resa!BX25,resa!BX37) -> 4.485236 | CH16: =CHOOSE(graph,resb!BX13,resb!BX25,resb!BX37) -> 4.485236 | CI16: 17.58927642 | CJ16: 17.58927642 | CK16: =CHOOSE(graph,resa!CS13,resa!CS25,resa!CS37) -> 13.432834 | CL16: =CHOOSE(graph,resb!CS13,resb!CS25,resb!CS37) -> 13.432834 | CM16: =CHOOSE(graph,resa!CT13,resa!CT25,resa!CT37) -> 134.174024 | CN16: =CHOOSE(graph,resb!CT13,resb!CT25,resb!CT37) -> 134.174024 | CO16: =CHOOSE(graph,resa!DD13,resa!DD25,resa!DD37) -> 72.359089 | CP16: =CHOOSE(graph,resb!DD13,resb!DD25,resb!DD37) -> 72.359089 | CQ16: =CHOOSE(graph,resa!DG13,resa!DG25,resa!DG37) -> 82.375184 | CR16: =CHOOSE(graph,resb!DG13,resb!DG25,resb!DG37) -> 82.375184 | CS16: =CHOOSE(graph,resa!DJ13,resa!DJ25,resa!DJ37) -> 208.436295 | CT16: =CHOOSE(graph,resb!DJ13,resb!DJ25,resb!DJ37) -> 208.436295 | CU16: =CHOOSE(graph,resa!BR13,resa!BR25,resa!BR37) -> 221.571012 | CV16: =CHOOSE(graph,resb!BR13,resb!BR25,resb!BR37) -> 221.571012 | CW16: =CHOOSE(graph,resa!BL13,resa!BL25,resa!BL37) -> 72.47038 | CX16: =CHOOSE(graph,resb!BL13,resb!BL25,resb!BL37) -> 72.47038
AA17: 10 | AB17: =CHOOSE(graph,resa!B14,resa!B26,resa!B38) -> 10 | AC17: =CHOOSE(graph,resa!I14,resa!I26,resa!I38) -> 0.028092 | AD17: =CHOOSE(graph,resb!I14,resb!I26,resb!I38) -> 0.028092 | AE17: =CHOOSE(graph,resa!D14,resa!D26,resa!D38) -> 48.409436 | AF17: =CHOOSE(graph,resb!D14,resb!D26,resb!D38) -> 48.409436 | AG17: =CHOOSE(graph,resa!BO14,resa!BO26,resa!BO38) -> 475.749504 | AH17: =CHOOSE(graph,resb!BO14,resb!BO26,resb!BO38) -> 475.749504 | AI17: =CHOOSE(graph,resa!BP14,resa!BP26,resa!BP38) -> 427.340068 | AJ17: =CHOOSE(graph,resb!BP14,resb!BP26,resb!BP38) -> 427.340068 | AK17: =CHOOSE(graph,resa!BB14,resa!BB26,resa!BB38) -> 0.010754 | AL17: =CHOOSE(graph,resb!BB14,resb!BB26,resb!BB38) -> 0.010754 | AM17: =CHOOSE(graph,resa!BC14,resa!BC26,resa!BC38) -> 0.017337 | AN17: =CHOOSE(graph,resb!BC14,resb!BC26,resb!BC38) -> 0.017337 | AO17: =CHOOSE(graph,resa!F14,resa!F26,resa!F38) -> 79.919371 | AP17: =CHOOSE(graph,resb!F14,resb!F26,resb!F38) -> 79.919371 | AQ17: =CHOOSE(graph,resa!BN14,resa!BN26,resa!BN38) -> 223.234309 | AR17: =CHOOSE(graph,resb!BN14,resb!BN26,resb!BN38) -> 223.234309 | AS17: =CHOOSE(graph,resa!AN14,resa!AN26,resa!AN38) -> 0.335045 | AT17: =CHOOSE(graph,resb!AN14,resb!AN26,resb!AN38) -> 0.335045 | AU17: =CHOOSE(graph,resa!AO14,resa!AO26,resa!AO38) -> 0.249775 | AV17: =CHOOSE(graph,resb!AO14,resb!AO26,resb!AO38) -> 0.249775 | AW17: =CHOOSE(graph,resa!P14,resa!P26,resa!P38) -> 0.412218 | AX17: =CHOOSE(graph,resb!P14,resb!P26,resb!P38) -> 0.412218 | AY17: =CHOOSE(graph,resa!R14,resa!R26,resa!R38) -> 0.877326 | AZ17: =CHOOSE(graph,resb!R14,resb!R26,resb!R38) -> 0.877326 | BA17: =CHOOSE(graph,resa!AK14,resa!AK26,resa!AK38) -> 0.184703 | BB17: =CHOOSE(graph,resb!AK14,resb!AK26,resb!AK38) -> 0.184703 | BC17: =CHOOSE(graph,resa!BA14,resa!BA26,resa!BA38) -> 804.162353 | BD17: =CHOOSE(graph,resb!BA14,resb!BA26,resb!BA38) -> 804.16247 | BE17: =CHOOSE(graph,resa!AL14,resa!AL26,resa!AL38) -> 0.202768 | BF17: =CHOOSE(graph,resb!AL14,resb!AL26,resb!AL38) -> 0.202768 | BG17: =CHOOSE(graph,resa!AM14,resa!AM26,resa!AM38) -> 0.165316 | BH17: =CHOOSE(graph,resb!AM14,resb!AM26,resb!AM38) -> 0.165316 | BI17: =CHOOSE(graph,resa!W14,resa!W26,resa!W38) -> 737.292446 | BJ17: =CHOOSE(graph,resb!W14,resb!W26,resb!W38) -> 737.292446 | BK17: =CHOOSE(graph,resa!S14,resa!S26,resa!S38) -> 1 | BL17: =CHOOSE(graph,resb!S14,resb!S26,resb!S38) -> 1 | BM17: =CHOOSE(graph,resa!CO14,resa!CO26,resa!CO38) -> 193.056204 | BN17: =CHOOSE(graph,resb!CO14,resb!CO26,resb!CO38) -> 193.05626 | BO17: =CHOOSE(graph,resa!CP14,resa!CP26,resa!CP38) -> 513.426703 | BP17: =CHOOSE(graph,resb!CP14,resb!CP26,resb!CP38) -> 513.426819 | BQ17: =CHOOSE(graph,resa!AX14,resa!AX26,resa!AX38) -> 91.094298 | BR17: =CHOOSE(graph,resb!AX14,resb!AX26,resb!AX38) -> 91.094298 | BS17: =CHOOSE(graph,resa!CV14,resa!CV26,resa!CV38) -> 124.415588 | BT17: =CHOOSE(graph,resb!CV14,resb!CV26,resb!CV38) -> 124.415587 | BU17: =CHOOSE(graph,resa!CW14,resa!CW26,resa!CW38) -> 1594.053842 | BV17: =CHOOSE(graph,resb!CW14,resb!CW26,resb!CW38) -> 1594.053959 | BW17: =CHOOSE(graph,resa!AX14,resa!AX26,resa!AX38) -> 91.094298 | BX17: =CHOOSE(graph,resb!AX14,resb!AX26,resb!AX38) -> 91.094298 | BY17: =CHOOSE(graph,resa!AU14,resa!AU26,resa!AU38) -> 0.088594 | BZ17: =CHOOSE(graph,resb!AU14,resb!AU26,resb!AU38) -> 0.088594 | CA17: =CHOOSE(graph,resa!AY14,resa!AY26,resa!AY38) -> 7.323161 | CB17: =CHOOSE(graph,resb!AY14,resb!AY26,resb!AY38) -> 7.323161 | CC17: =CHOOSE(graph,resa!AX14,resa!AX26,resa!AX38) -> 91.094298 | CD17: =CHOOSE(graph,resb!AX14,resb!AX26,resb!AX38) -> 91.094298 | CE17: =CHOOSE(graph,resa!CB14,resa!CB26,resa!CB38) -> 48.821072 | CF17: =CHOOSE(graph,resb!CB14,resb!CB26,resb!CB38) -> 48.821072 | CG17: =CHOOSE(graph,resa!BX14,resa!BX26,resa!BX38) -> 4.485236 | CH17: =CHOOSE(graph,resb!BX14,resb!BX26,resb!BX38) -> 4.485236 | CI17: 17.58927642 | CJ17: 17.58927642 | CK17: =CHOOSE(graph,resa!CS14,resa!CS26,resa!CS38) -> 13.432834 | CL17: =CHOOSE(graph,resb!CS14,resb!CS26,resb!CS38) -> 13.432834 | CM17: =CHOOSE(graph,resa!CT14,resa!CT26,resa!CT38) -> 134.174024 | CN17: =CHOOSE(graph,resb!CT14,resb!CT26,resb!CT38) -> 134.174024 | CO17: =CHOOSE(graph,resa!DD14,resa!DD26,resa!DD38) -> 72.359089 | CP17: =CHOOSE(graph,resb!DD14,resb!DD26,resb!DD38) -> 72.359089 | CQ17: =CHOOSE(graph,resa!DG14,resa!DG26,resa!DG38) -> 82.375184 | CR17: =CHOOSE(graph,resb!DG14,resb!DG26,resb!DG38) -> 82.375184 | CS17: =CHOOSE(graph,resa!DJ14,resa!DJ26,resa!DJ38) -> 208.436295 | CT17: =CHOOSE(graph,resb!DJ14,resb!DJ26,resb!DJ38) -> 208.436295 | CU17: =CHOOSE(graph,resa!BR14,resa!BR26,resa!BR38) -> 221.571012 | CV17: =CHOOSE(graph,resb!BR14,resb!BR26,resb!BR38) -> 221.571012 | CW17: =CHOOSE(graph,resa!BL14,resa!BL26,resa!BL38) -> 72.47038 | CX17: =CHOOSE(graph,resb!BL14,resb!BL26,resb!BL38) -> 72.47038
AA18: 11 | AB18: =CHOOSE(graph,resa!B15,resa!B27,resa!B39) -> 11 | AC18: =CHOOSE(graph,resa!I15,resa!I27,resa!I39) -> 0.028092 | AD18: =CHOOSE(graph,resb!I15,resb!I27,resb!I39) -> 0.028092 | AE18: =CHOOSE(graph,resa!D15,resa!D27,resa!D39) -> 48.409436 | AF18: =CHOOSE(graph,resb!D15,resb!D27,resb!D39) -> 48.409436 | AG18: =CHOOSE(graph,resa!BO15,resa!BO27,resa!BO39) -> 475.749504 | AH18: =CHOOSE(graph,resb!BO15,resb!BO27,resb!BO39) -> 475.749504 | AI18: =CHOOSE(graph,resa!BP15,resa!BP27,resa!BP39) -> 427.340068 | AJ18: =CHOOSE(graph,resb!BP15,resb!BP27,resb!BP39) -> 427.340068 | AK18: =CHOOSE(graph,resa!BB15,resa!BB27,resa!BB39) -> 0.010754 | AL18: =CHOOSE(graph,resb!BB15,resb!BB27,resb!BB39) -> 0.010754 | AM18: =CHOOSE(graph,resa!BC15,resa!BC27,resa!BC39) -> 0.017337 | AN18: =CHOOSE(graph,resb!BC15,resb!BC27,resb!BC39) -> 0.017337 | AO18: =CHOOSE(graph,resa!F15,resa!F27,resa!F39) -> 79.919371 | AP18: =CHOOSE(graph,resb!F15,resb!F27,resb!F39) -> 79.919371 | AQ18: =CHOOSE(graph,resa!BN15,resa!BN27,resa!BN39) -> 223.234309 | AR18: =CHOOSE(graph,resb!BN15,resb!BN27,resb!BN39) -> 223.234309 | AS18: =CHOOSE(graph,resa!AN15,resa!AN27,resa!AN39) -> 0.335045 | AT18: =CHOOSE(graph,resb!AN15,resb!AN27,resb!AN39) -> 0.335045 | AU18: =CHOOSE(graph,resa!AO15,resa!AO27,resa!AO39) -> 0.249775 | AV18: =CHOOSE(graph,resb!AO15,resb!AO27,resb!AO39) -> 0.249775 | AW18: =CHOOSE(graph,resa!P15,resa!P27,resa!P39) -> 0.412218 | AX18: =CHOOSE(graph,resb!P15,resb!P27,resb!P39) -> 0.412218 | AY18: =CHOOSE(graph,resa!R15,resa!R27,resa!R39) -> 0.877326 | AZ18: =CHOOSE(graph,resb!R15,resb!R27,resb!R39) -> 0.877326 | BA18: =CHOOSE(graph,resa!AK15,resa!AK27,resa!AK39) -> 0.184703 | BB18: =CHOOSE(graph,resb!AK15,resb!AK27,resb!AK39) -> 0.184703 | BC18: =CHOOSE(graph,resa!BA15,resa!BA27,resa!BA39) -> 804.162355 | BD18: =CHOOSE(graph,resb!BA15,resb!BA27,resb!BA39) -> 804.16247 | BE18: =CHOOSE(graph,resa!AL15,resa!AL27,resa!AL39) -> 0.202768 | BF18: =CHOOSE(graph,resb!AL15,resb!AL27,resb!AL39) -> 0.202768 | BG18: =CHOOSE(graph,resa!AM15,resa!AM27,resa!AM39) -> 0.165316 | BH18: =CHOOSE(graph,resb!AM15,resb!AM27,resb!AM39) -> 0.165316 | BI18: =CHOOSE(graph,resa!W15,resa!W27,resa!W39) -> 737.292446 | BJ18: =CHOOSE(graph,resb!W15,resb!W27,resb!W39) -> 737.292446 | BK18: =CHOOSE(graph,resa!S15,resa!S27,resa!S39) -> 1 | BL18: =CHOOSE(graph,resb!S15,resb!S27,resb!S39) -> 1 | BM18: =CHOOSE(graph,resa!CO15,resa!CO27,resa!CO39) -> 193.056205 | BN18: =CHOOSE(graph,resb!CO15,resb!CO27,resb!CO39) -> 193.05626 | BO18: =CHOOSE(graph,resa!CP15,resa!CP27,resa!CP39) -> 513.426703 | BP18: =CHOOSE(graph,resb!CP15,resb!CP27,resb!CP39) -> 513.426819 | BQ18: =CHOOSE(graph,resa!AX15,resa!AX27,resa!AX39) -> 91.094298 | BR18: =CHOOSE(graph,resb!AX15,resb!AX27,resb!AX39) -> 91.094298 | BS18: =CHOOSE(graph,resa!CV15,resa!CV27,resa!CV39) -> 124.415589 | BT18: =CHOOSE(graph,resb!CV15,resb!CV27,resb!CV39) -> 124.415587 | BU18: =CHOOSE(graph,resa!CW15,resa!CW27,resa!CW39) -> 1594.053843 | BV18: =CHOOSE(graph,resb!CW15,resb!CW27,resb!CW39) -> 1594.053959 | BW18: =CHOOSE(graph,resa!AX15,resa!AX27,resa!AX39) -> 91.094298 | BX18: =CHOOSE(graph,resb!AX15,resb!AX27,resb!AX39) -> 91.094298 | BY18: =CHOOSE(graph,resa!AU15,resa!AU27,resa!AU39) -> 0.088594 | BZ18: =CHOOSE(graph,resb!AU15,resb!AU27,resb!AU39) -> 0.088594 | CA18: =CHOOSE(graph,resa!AY15,resa!AY27,resa!AY39) -> 7.323161 | CB18: =CHOOSE(graph,resb!AY15,resb!AY27,resb!AY39) -> 7.323161 | CC18: =CHOOSE(graph,resa!AX15,resa!AX27,resa!AX39) -> 91.094298 | CD18: =CHOOSE(graph,resb!AX15,resb!AX27,resb!AX39) -> 91.094298 | CE18: =CHOOSE(graph,resa!CB15,resa!CB27,resa!CB39) -> 48.821072 | CF18: =CHOOSE(graph,resb!CB15,resb!CB27,resb!CB39) -> 48.821072 | CG18: =CHOOSE(graph,resa!BX15,resa!BX27,resa!BX39) -> 4.485236 | CH18: =CHOOSE(graph,resb!BX15,resb!BX27,resb!BX39) -> 4.485236 | CI18: 17.58927642 | CJ18: 17.58927642 | CK18: =CHOOSE(graph,resa!CS15,resa!CS27,resa!CS39) -> 13.432834 | CL18: =CHOOSE(graph,resb!CS15,resb!CS27,resb!CS39) -> 13.432834 | CM18: =CHOOSE(graph,resa!CT15,resa!CT27,resa!CT39) -> 134.174024 | CN18: =CHOOSE(graph,resb!CT15,resb!CT27,resb!CT39) -> 134.174024 | CO18: =CHOOSE(graph,resa!DD15,resa!DD27,resa!DD39) -> 72.359089 | CP18: =CHOOSE(graph,resb!DD15,resb!DD27,resb!DD39) -> 72.359089 | CQ18: =CHOOSE(graph,resa!DG15,resa!DG27,resa!DG39) -> 82.375184 | CR18: =CHOOSE(graph,resb!DG15,resb!DG27,resb!DG39) -> 82.375184 | CS18: =CHOOSE(graph,resa!DJ15,resa!DJ27,resa!DJ39) -> 208.436295 | CT18: =CHOOSE(graph,resb!DJ15,resb!DJ27,resb!DJ39) -> 208.436295 | CU18: =CHOOSE(graph,resa!BR15,resa!BR27,resa!BR39) -> 221.571012 | CV18: =CHOOSE(graph,resb!BR15,resb!BR27,resb!BR39) -> 221.571012 | CW18: =CHOOSE(graph,resa!BL15,resa!BL27,resa!BL39) -> 72.47038 | CX18: =CHOOSE(graph,resb!BL15,resb!BL27,resb!BL39) -> 72.47038
AA19: 12 | AB19: =CHOOSE(graph,resa!B16,resa!B28,resa!B40) -> 12 | AC19: =CHOOSE(graph,resa!I16,resa!I28,resa!I40) -> 0.028092 | AD19: =CHOOSE(graph,resb!I16,resb!I28,resb!I40) -> 0.028092 | AE19: =CHOOSE(graph,resa!D16,resa!D28,resa!D40) -> 48.409436 | AF19: =CHOOSE(graph,resb!D16,resb!D28,resb!D40) -> 48.409436 | AG19: =CHOOSE(graph,resa!BO16,resa!BO28,resa!BO40) -> 475.749504 | AH19: =CHOOSE(graph,resb!BO16,resb!BO28,resb!BO40) -> 475.749504 | AI19: =CHOOSE(graph,resa!BP16,resa!BP28,resa!BP40) -> 427.340068 | AJ19: =CHOOSE(graph,resb!BP16,resb!BP28,resb!BP40) -> 427.340068 | AK19: =CHOOSE(graph,resa!BB16,resa!BB28,resa!BB40) -> 0.010754 | AL19: =CHOOSE(graph,resb!BB16,resb!BB28,resb!BB40) -> 0.010754 | AM19: =CHOOSE(graph,resa!BC16,resa!BC28,resa!BC40) -> 0.017337 | AN19: =CHOOSE(graph,resb!BC16,resb!BC28,resb!BC40) -> 0.017337 | AO19: =CHOOSE(graph,resa!F16,resa!F28,resa!F40) -> 79.919371 | AP19: =CHOOSE(graph,resb!F16,resb!F28,resb!F40) -> 79.919371 | AQ19: =CHOOSE(graph,resa!BN16,resa!BN28,resa!BN40) -> 223.234309 | AR19: =CHOOSE(graph,resb!BN16,resb!BN28,resb!BN40) -> 223.234309 | AS19: =CHOOSE(graph,resa!AN16,resa!AN28,resa!AN40) -> 0.335045 | AT19: =CHOOSE(graph,resb!AN16,resb!AN28,resb!AN40) -> 0.335045 | AU19: =CHOOSE(graph,resa!AO16,resa!AO28,resa!AO40) -> 0.249775 | AV19: =CHOOSE(graph,resb!AO16,resb!AO28,resb!AO40) -> 0.249775 | AW19: =CHOOSE(graph,resa!P16,resa!P28,resa!P40) -> 0.412218 | AX19: =CHOOSE(graph,resb!P16,resb!P28,resb!P40) -> 0.412218 | AY19: =CHOOSE(graph,resa!R16,resa!R28,resa!R40) -> 0.877326 | AZ19: =CHOOSE(graph,resb!R16,resb!R28,resb!R40) -> 0.877326 | BA19: =CHOOSE(graph,resa!AK16,resa!AK28,resa!AK40) -> 0.184703 | BB19: =CHOOSE(graph,resb!AK16,resb!AK28,resb!AK40) -> 0.184703 | BC19: =CHOOSE(graph,resa!BA16,resa!BA28,resa!BA40) -> 804.162357 | BD19: =CHOOSE(graph,resb!BA16,resb!BA28,resb!BA40) -> 804.16247 | BE19: =CHOOSE(graph,resa!AL16,resa!AL28,resa!AL40) -> 0.202768 | BF19: =CHOOSE(graph,resb!AL16,resb!AL28,resb!AL40) -> 0.202768 | BG19: =CHOOSE(graph,resa!AM16,resa!AM28,resa!AM40) -> 0.165316 | BH19: =CHOOSE(graph,resb!AM16,resb!AM28,resb!AM40) -> 0.165316 | BI19: =CHOOSE(graph,resa!W16,resa!W28,resa!W40) -> 737.292446 | BJ19: =CHOOSE(graph,resb!W16,resb!W28,resb!W40) -> 737.292446 | BK19: =CHOOSE(graph,resa!S16,resa!S28,resa!S40) -> 1 | BL19: =CHOOSE(graph,resb!S16,resb!S28,resb!S40) -> 1 | BM19: =CHOOSE(graph,resa!CO16,resa!CO28,resa!CO40) -> 193.056205 | BN19: =CHOOSE(graph,resb!CO16,resb!CO28,resb!CO40) -> 193.05626 | BO19: =CHOOSE(graph,resa!CP16,resa!CP28,resa!CP40) -> 513.426704 | BP19: =CHOOSE(graph,resb!CP16,resb!CP28,resb!CP40) -> 513.426819 | BQ19: =CHOOSE(graph,resa!AX16,resa!AX28,resa!AX40) -> 91.094298 | BR19: =CHOOSE(graph,resb!AX16,resb!AX28,resb!AX40) -> 91.094298 | BS19: =CHOOSE(graph,resa!CV16,resa!CV28,resa!CV40) -> 124.41559 | BT19: =CHOOSE(graph,resb!CV16,resb!CV28,resb!CV40) -> 124.415587 | BU19: =CHOOSE(graph,resa!CW16,resa!CW28,resa!CW40) -> 1594.053846 | BV19: =CHOOSE(graph,resb!CW16,resb!CW28,resb!CW40) -> 1594.053959 | BW19: =CHOOSE(graph,resa!AX16,resa!AX28,resa!AX40) -> 91.094298 | BX19: =CHOOSE(graph,resb!AX16,resb!AX28,resb!AX40) -> 91.094298 | BY19: =CHOOSE(graph,resa!AU16,resa!AU28,resa!AU40) -> 0.088594 | BZ19: =CHOOSE(graph,resb!AU16,resb!AU28,resb!AU40) -> 0.088594 | CA19: =CHOOSE(graph,resa!AY16,resa!AY28,resa!AY40) -> 7.323161 | CB19: =CHOOSE(graph,resb!AY16,resb!AY28,resb!AY40) -> 7.323161 | CC19: =CHOOSE(graph,resa!AX16,resa!AX28,resa!AX40) -> 91.094298 | CD19: =CHOOSE(graph,resb!AX16,resb!AX28,resb!AX40) -> 91.094298 | CE19: =CHOOSE(graph,resa!CB16,resa!CB28,resa!CB40) -> 48.821072 | CF19: =CHOOSE(graph,resb!CB16,resb!CB28,resb!CB40) -> 48.821072 | CG19: =CHOOSE(graph,resa!BX16,resa!BX28,resa!BX40) -> 4.485236 | CH19: =CHOOSE(graph,resb!BX16,resb!BX28,resb!BX40) -> 4.485236 | CI19: 17.58927642 | CJ19: 17.58927642 | CK19: =CHOOSE(graph,resa!CS16,resa!CS28,resa!CS40) -> 13.432834 | CL19: =CHOOSE(graph,resb!CS16,resb!CS28,resb!CS40) -> 13.432834 | CM19: =CHOOSE(graph,resa!CT16,resa!CT28,resa!CT40) -> 134.174024 | CN19: =CHOOSE(graph,resb!CT16,resb!CT28,resb!CT40) -> 134.174024 | CO19: =CHOOSE(graph,resa!DD16,resa!DD28,resa!DD40) -> 72.359089 | CP19: =CHOOSE(graph,resb!DD16,resb!DD28,resb!DD40) -> 72.359089 | CQ19: =CHOOSE(graph,resa!DG16,resa!DG28,resa!DG40) -> 82.375184 | CR19: =CHOOSE(graph,resb!DG16,resb!DG28,resb!DG40) -> 82.375184 | CS19: =CHOOSE(graph,resa!DJ16,resa!DJ28,resa!DJ40) -> 208.436295 | CT19: =CHOOSE(graph,resb!DJ16,resb!DJ28,resb!DJ40) -> 208.436295 | CU19: =CHOOSE(graph,resa!BR16,resa!BR28,resa!BR40) -> 221.571012 | CV19: =CHOOSE(graph,resb!BR16,resb!BR28,resb!BR40) -> 221.571012 | CW19: =CHOOSE(graph,resa!BL16,resa!BL28,resa!BL40) -> 72.47038 | CX19: =CHOOSE(graph,resb!BL16,resb!BL28,resb!BL40) -> 72.47038

Sheet chart
B1: Plan A: | C1: =CONCATENATE(input!K3,": ",input!K2) -> final.bio: steady state | H1: =milk!L1 -> v.dairyvip 1.4
B2: Plan B: | C2: =CONCATENATE(input!X3,": ",input!X2) -> final.bio: steady state
R5: plan A | S5: plan B
R8: =res!AG5/100 -> 0.69740433 | S8: 30.4 | T8: 1
R9: =res!AG6/100 -> 0.76219788 | S9: =S8+30.4 -> 60.8 | T9: 2
R10: =res!AG7/100 -> 0.80183564 | S10: =S9+30.4 -> 91.2 | T10: 3
R11: =res!AG8/100 -> 0.8414712 | S11: =S10+30.4 -> 121.6 | T11: 4
R12: =res!AG9/100 -> 0.88110497 | S12: =S11+30.4 -> 152 | T12: 5
R13: =res!AG10/100 -> 0.9207374 | S13: =S12+30.4 -> 182.4 | T13: 6
R14: =res!AG11/100 -> 0.96036893 | S14: =S13+30.4 -> 212.8 | T14: 7
R15: =res!AG12/100 -> 1 | S15: 243.2 | T15: 8
R16: =res!AG13/100 -> 1.03963107 | S16: 273.6 | T16: 9
R17: =res!AG14/100 -> 1.0792626 | S17: 304 | T17: 10
R18: =res!AG15/100 -> 1.11889503 | S18: 334.4 | T18: 11
R19: =res!AG16/100 -> 1.1585288 | S19: 364.8 | T19: 12
R20: =res!AG17/100 -> 1.19816436 | S20: 395.2 | T20: 13
R21: =res!AG18/100 -> 1.23780212 | S21: 425.6 | T21: 14
R22: =res!AG19/100 -> 1.30259567 | S22: 456 | T22: 15
S23: 486.4 | T23: 16
S24: 516.8 | T24: 17
S25: 547.2 | T25: 18
S26: 577.6 | T26: 19
S27: 608 | T27: 20
S28: 638.4 | T28: 21
S29: 668.8 | T29: 22
S30: 699.2 | T30: 23
S31: =S30+30.4 -> 729.6 | T31: 24

Sheet input
B1: COMPARE INPUT | Q1: =milk!$L$1 -> v.dairyvip 1.4 | AJ1: 1 | AK1: 2 | AL1: 3 | AM1: 4 | AN1: 5 | AO1: 6 | AP1: 7 | AQ1: 8 | AR1: 9 | AS1: 10 | AT1: 11 | AU1: 12
C2: Differences | D2: =SUM(D3:D448) -> 30 | E2: COMPLETED AT | G2: 41088.58148 | H2: 2012-06-28 | J2: Plan A | K2: steady state | R2: COMPLETED AT | T2: 41088.29614 | U2: 2012-06-28 | W2: Plan B | X2: steady state | AJ2: COMPLETED AT | AL2: =NOW() -> 41088.58149 | AM2: =TODAY() -> 2012-06-28 | AO2: =CONCATENATE("Plan ",main!AF4) -> Plan A | AP2: =IF(main!AF3=1,"steady state",IF(main!AF3=2,"3 years","no replacement")) -> steady state
C3: =IF(D3=1," misc ","misc") -> misc | D3: =IF(CONCATENATE(E3,F3,G3,H3,I3,J3,K3,L3,M3,N3,O3,P3)=CONCATENATE(R3,S3,T3,U3,V3,W3,X3,Y3,Z3,AA3,AB3,AC3),"",1) ->  | E3: MISCELLANEOUS | K3: final.bio | R3: MISCELLANEOUS | X3: final.bio | AJ3: =misc!$B$1 -> MISCELLANEOUS | AP3: =bio!A2 -> final.bio
C4: misc | F4: General | K4: final.rpo | S4: General | X4: final.rpo | AK4: =misc!H3 -> General | AP4: =bio!A3 -> final.rpo
C5: misc | E5: 2.20462262 | F5: Units | K5: final.del | R5: 2.20462262 | S5: Units | X5: final.del | AJ5: =misc!AD2 -> 2.20462262 | AK5: =misc!G4 -> Units | AP5: =bio!A4 -> final.del
C6: misc | E6: 0 | F6: Annual interest rate | K6: final.mkv | R6: 0 | S6: Annual interest rate | X6: final.mkv | AJ6: =misc!H5 -> 0 | AK6: =misc!G5 -> Annual interest rate | AP6: =bio!A5 -> final.mkv
C7: misc | E7: JAN | F7: First calendar month | K7: final.res | R7: JAN | S7: First calendar month | X7: final.res | AJ7: =misc!H6 -> JAN | AK7: =misc!G6 -> First calendar month | AP7: =bio!A6 -> final.res
C8: misc | E8: NO | F8: Save RPO and DEL files? | K8: final.pol | R8: NO | S8: Save RPO and DEL files? | X8: final.pol | AJ8: =misc!H7 -> NO | AK8: =misc!G7 -> Save RPO and DEL files? | AP8: =bio!A7 -> final.pol
C9: misc | E9: NO | F9: Save POL file? | K9: LBS | R9: NO | S9: Save POL file? | X9: LBS | AJ9: =misc!H8 -> NO | AK9: =misc!G8 -> Save POL file? | AP9: =bio!A10 -> LBS
C10: misc | F10: Other | S10: Other | AK10: =misc!H10 -> Other
C11: misc | D11: =IF(CONCATENATE(E11,F11,G11,H11,I11,J11,K11,L11,M11,N11,O11,P11)=CONCATENATE(R11,S11,T11,U11,V11,W11,X11,Y11,Z11,AA11,AB11,AC11),"",1) ->  | E11: 200 | F11: Price calf at birth ($/calf) | R11: 200 | S11: Price calf at birth ($/calf) | AJ11: =misc!H15 -> 200 | AK11: =misc!G15 -> Price calf at birth ($/calf)
C12: misc | E12: 3.5 | F12: Percent fat in milk | R12: 3.5 | S12: Percent fat in milk | AJ12: =misc!H11 -> 3.5 | AK12: =misc!G11 -> Percent fat in milk
C13: =IF(D13=1," misc ","misc") -> misc | E13: 12 | F13: CV milk yield (std/average x 100) | R13: 12 | S13: CV milk yield (std/average x 100) | AJ13: =misc!H12 -> 12 | AK13: =misc!G12 -> CV milk yield (std/average x 100)
C14: =IF(D14=1," misc ","misc") -> misc | E14: YES | F14: Effect of previous days open on milk yield? | R14: YES | S14: Effect of previous days open on milk yield? | AJ14: =misc!H13 -> YES | AK14: =misc!G13 -> Effect of previous days open on milk yield?
C15: misc | E15: 2 | F15: Fixed other cost ($/slot/day) | R15: 2 | S15: Fixed other cost ($/slot/day) | AJ15: =misc!H16 -> 2 | AK15: =misc!G16 -> Fixed other cost ($/slot/day)
C16: misc | E16: 1 | F16: Other variable cost dry cows ($/cow/day) | R16: 1 | S16: Other variable cost dry cows ($/cow/day) | AJ16: =misc!H17 -> 1 | AK16: =misc!G17 -> Other variable cost dry cows ($/cow/day)
C17: misc | E17: 1 | F17: Other variable cost lactating cows ($/cow/day) | R17: 1 | S17: Other variable cost lactating cows ($/cow/day) | AJ17: =misc!H18 -> 1 | AK17: =misc!G18 -> Other variable cost lactating cows ($/cow/day)
C18: misc | F18: Feed | S18: Feed | AK18: =misc!H20 -> Feed
C19: misc | E19: 0.15 | F19: Feed cost lactating cows ($/lbs DM) | R19: 0.15 | S19: Feed cost lactating cows ($/lbs DM) | AJ19: =misc!H21 -> 0.15 | AK19: =misc!G21 -> Feed cost lactating cows ($/lbs DM)
C20: misc | E20: 0.1 | F20: Feed cost dry cows ($/lbs DM) | R20: 0.1 | S20: Feed cost dry cows ($/lbs DM) | AJ20: =misc!H22 -> 0.1 | AK20: =misc!G22 -> Feed cost dry cows ($/lbs DM)
C21: misc | E21: 25 | F21: DMI dry cows (lbs/cow/day) | R21: 25 | S21: DMI dry cows (lbs/cow/day) | AJ21: =misc!H23 -> 25 | AK21: =misc!G23 -> DMI dry cows (lbs/cow/day)
C22: misc | F22: Culling policy | S22: Culling policy | AK22: =misc!K3 -> Culling policy
C23: misc | E23: OPTIMAL | F23: Policy | R23: OPTIMAL | S23: Policy | AJ23: =misc!K4 -> OPTIMAL | AK23: =misc!L4 -> Policy
